Workbook

Sheet Formulário
AA1: QUADRO DE DADOS AUXILIARES
B2: QUANTO SE USA ?
K4: =CONCATENATE("- ",ROUND((I6*I12/($AA$23/100))/1000,1)) -> - 50,3 | AA4: 500 | AB4: 7950
D6: Distância média anual | E6: [km/ano] | I6: =$AB$4*10 -> 79500 | N6: =CONCATENATE("- ",ROUND(1.012*(I6*I12/($AA$23/100))/1000,0)," kg/ano") -> - 51 kg/ano | AB6: 1 | AC6: 220
N7: =CONCATENATE("- ",ROUND(1.49*(I6*I12/($AA$23/100))/1000,0)," kg/ano") -> - 75 kg/ano
D8: Dias de operação/ano | E8: [dias/ano] | I8: =$AA$8 -> 288 | AA8: 288
D10: Distância diária média | E10: [km/dia] | I10: =CONCATENATE(TRUNC($I$6/'Distribuidoras&Tarifas'!R15,0)," km/dia") -> 276 km/dia | K10: =CONCATENATE("- ",TRUNC(FatorEmissao!$R$8*((I6*I12)/($AA$23/100))*FatorEmissao!$R$11/1000000,1)) -> - 131,4 | Q10: Rio de Janeiro, Brasil | AC10: 1
N11: =CONCATENATE("- ",ROUND(4.8369*(I6*I12/($AA$23/100))/1000,0)," kg/ano") -> - 243 kg/ano
D12: Qtde. ônibus elétricos | E12: [unidade] | I12: =$AC$10 -> 1 | Q12: =TODAY() -> 2021-07-22 | AA12: 34 | AC12: 26
B15: QUANTO CUSTA ?
O17: Custo de Aquisição (R$) | R17: =AA17*1000 -> 546000 | S17: ="x "&W17&" =" -> x 1,75 = | T17: =$R$17*$W$17 -> 955500 | W17: =AB17/100 -> 1.75 | AA17: 546 | AB17: 175
D19: Preço do diesel (R$/l): | E19: =AC6/100 -> 2.2 | I19: Pot. do carregador (kW) | K19: =PotDoCarregador -> 60 | O19: Infraestrutura de Recarga (R$) | R19: 0 | T19: =$AB$19*100 -> 161000 | AA19: 60 | AB19: 1610 | AC19: =$K$19*$I$12 -> 60
I21: Duração recarga(3) (h) | K21: =$AB$21 -> 6 | AA21: 4 | AB21: 6
I23: Tarifa Elétrica (R$/kWh) | K23: =TarifaEletrica/100 -> 0.49 | O23: Custo Operacional (R$/km) | R23: =IFERROR($E$19/($AA$23/100)," Custo Diesel") -> 1.392405063 | T23: =IFERROR(IF(AA31=1,TarifaEletrica/100,(1-0.1)*TarifaEletrica/100)/($AB$25/100),IF(AA31=1,TRUNC('Distribuidoras&Tarifas'!$AD$66,2),(1-0.1)*TRUNC('Distribuidoras&Tarifas'!$AD$66,2)/($AB$25/100))) -> 0.5268817204 | AA23: 158 | AB23: =$I$12*PotDoCarregador*$AB$21 -> 360 | AC23: 15
E25: =CONCATENATE(ROUND(VLOOKUP($AC12,PreçoDiesel!$A$2:$D$29,4,0),2)," R$/l") -> 3,32 R$/l | K25: =CONCATENATE(TRUNC(VLOOKUP($AA$12,'Distribuidoras&Tarifas'!$U$15:$AH$65,8,0)/1000,2)," R$/kWh") -> 0,49 R$/kWh | O25: § Rendimento | R25: =CONCATENATE(TRUNC(AA23/100,2)," km/l") -> 1,58 km/l | T25: =CONCATENATE(TRUNC(AB25/100,2)," km/kWh") -> 0,93 km/kWh | AA25: FALSE | AB25: 93
O27: § Custo do Combustível | R27: =CONCATENATE(E19," R$/l") -> 2,2 R$/l | T27: =IFERROR(CONCATENATE(ROUND(IF(AA31=1,TarifaEletrica/100,(1-0.1)*TarifaEletrica/100),2)," R$/kWh"),CONCATENATE(ROUND(IF(AA31=1,'Distribuidoras&Tarifas'!$AD$66,(1-0.1)*'Distribuidoras&Tarifas'!$AD$66),2)," R$/kWh")) -> 0,49 R$/kWh | AA27: =TRUNC(VLOOKUP($AA$12,'Distribuidoras&Tarifas'!$U$15:$AH$65,8,0)/1000,2) -> 0.49 | AB27: 49
O29: Custo de Manutenção (R$/km) | R29: =AA29/100 -> 0.77 | T29: =AB29/100 -> 0.58 | V29: =IF(AA31=1,"valores tarifários aplicados pelas"&CHAR(10)&"distribuidoras de energia elétrica"&CHAR(10)&"ao grupo de alta tensão (A4)","desconto médio de 10% em relação"&CHAR(10)&"às tarifas das distribuidoras pelo aluguel de geração distribuída") -> valores tarifários aplicados pelas distribuidoras de energia elétrica ao grupo de alta tensão (A4) | AA29: 77 | AB29: 58
D31: =IF(EstadoPrecoDieselANP=1,"preço nacional (média simples)","") ->  | O31: Custo Var. Anual (R$/ano) | R31: =(IFERROR($E$19/($AA$23/100)," Custo Diesel")+(AA29/100))*$I$6 -> 171911.2025 | T31: =IFERROR((T23+T29)*$I$6," Custo Elétrico") -> 87997.09677 | AA31: 1
I32: ='Distribuidoras&Tarifas'!W69 -> Eletropaulo
B35: COMO PAGAR ?
D38: Custo Capital Próprio | E38: =FluxoDeCaixa!B21 -> 0.125 | I38: Custo Capital Próprio | K38: =FluxoDeCaixa!B21 -> 0.125 | N38: =IFERROR(FluxoDeCaixa!B70,"TIR:") -> 0.1699515107 | O38: =IFERROR(CONCATENATE("Taxa Interna de Retorno (TIR): ",TRUNC(FluxoDeCaixa!B70,4)*100,"%"),"Taxa indefinida (problema de cálculo)") -> Taxa Interna de Retorno (TIR): 16,99%
D40: Custo Financiamento | E40: =FluxoDeCaixa!B22 -> 0.09 | I40: Custo Financiamento | K40: =FluxoDeCaixa!B53 -> 0.09 | N40: =FluxoDeCaixa!B69 -> 144913.0108 | O40: =IFERROR(CONCATENATE("Valor Presente Líquido (VPL): ",TEXT(FluxoDeCaixa!B69,"R$ #.##0;-R$ #.##0")),"Valor indefinido (problema de cálculo)") -> Valor Presente Líquido (VPL): R$ 144.913
D42: Percentual financiado | E42: =FluxoDeCaixa!B23 -> 0.8 | I42: Percentual financiado | K42: =FluxoDeCaixa!B54 -> 0.8 | N42: =FluxoDeCaixa!$P$68 -> 144913.0108 | O42: =IFERROR(FluxoDeCaixa!A71, "Valor indefinido (problema de cálculo)") -> Estimativa de Payback de 7 anos
D44: Custo Pond. de Capital | E44: =FluxoDeCaixa!B25 -> 0.07252 | I44: Custo Pond. de Capital | K44: =FluxoDeCaixa!B56 -> 0.07252 | O44: Premissas da estimativa de payback
D46: Prazo financiamento | E46: =FluxoDeCaixa!B26 -> 5 | I46: Prazo financiamento | K46: =FluxoDeCaixa!B57 -> 10 | R46: DIESEL | T46: ELÉTRICO | V46: DIFERENÇA DE TCO10
D48: Valor de revenda (%) | E48: =FluxoDeCaixa!B20 -> 0.66 | I48: Valor de revenda (%) | K48: =FluxoDeCaixa!B51 -> 0.43 | N48: Custo Total em 10 anos (TCO10) | R48: =R31*10+R17+R19 -> 2265112.025 | T48: =T31*10+T17+T19 -> 1996470.968 | V48: =R48-T48 -> 268641.0576
B51: CONSIDERAÇÕES
AA52: CUSTO DE ABATIMENTO (R$/ ton CO2) | AC52: =(T48-R48)/(((3070*(I6*I12/10000)*0.848/1000)/I12)*10) -> -1297.98906
AA53: =IF($AC$52<0,"(Solução custo-efetiva)","(Solução Custo-negativa)") -> (Solução custo-efetiva)

Sheet FactSheet 1-2
D4: 1

Sheet Metodologia

Sheet ModuloDePrecos

Sheet ModuloFinanceiro

Sheet ModuloDeUtilização

Sheet FluxoDeCaixa
A1: Análise financeira por ônibus: Diesel Padron LE
A2: Ciclo de Avaliação de até 20 anos | B2: 10
A3: Vida útil do ônibus a diesel 5 anos
A4: Período | B4: 0 | C4: 1 | D4: 2 | E4: 3 | F4: 4 | G4: 5 | H4: 6 | I4: 7 | J4: 8 | K4: 9 | L4: 10
A5: Custo de Aquisição | B5: =Formulário!R17 -> 546000 | C5: 0 | D5: 0 | E5: 0 | F5: 0 | G5: =B5 -> 546000 | H5: 0 | I5: 0 | J5: 0 | K5: 0 | L5: 0
A6: Custo de Infraestrutura de recarga | C6: 0 | D6: 0 | E6: 0 | F6: 0 | G6: 0 | H6: 0 | I6: 0 | J6: 0 | K6: 0 | L6: 0
A7: Custo Variável Anual | C7: =SUM(C8:C10) -> 298583.2025 | D7: =SUM(D8:D10) -> 290720.8025 | E7: =SUM(E8:E10) -> 282858.4025 | F7: =SUM(F8:F10) -> 274996.0025 | G7: 267133.6025 | H7: 298583.2025 | I7: 290720.8025 | J7: 282858.4025 | K7: 274996.0025 | L7: 267133.6025
A8: Custo Operacional | C8: =IF(C4<=$B$2,Formulário!$R$23*Formulário!$I$6,"") -> 110696.2025 | D8: =IF(D4<=$B$2,Formulário!$R$23*Formulário!$I$6,"") -> 110696.2025 | E8: =IF(E4<=$B$2,Formulário!$R$23*Formulário!$I$6,"") -> 110696.2025 | F8: =IF(F4<=$B$2,Formulário!$R$23*Formulário!$I$6,"") -> 110696.2025 | G8: =IF(G4<=$B$2,Formulário!$R$23*Formulário!$I$6,"") -> 110696.2025 | H8: =IF(H4<=$B$2,Formulário!$R$23*Formulário!$I$6,"") -> 110696.2025 | I8: =IF(I4<=$B$2,Formulário!$R$23*Formulário!$I$6,"") -> 110696.2025 | J8: =IF(J4<=$B$2,Formulário!$R$23*Formulário!$I$6,"") -> 110696.2025 | K8: =IF(K4<=$B$2,Formulário!$R$23*Formulário!$I$6,"") -> 110696.2025 | L8: =IF(L4<=$B$2,Formulário!$R$23*Formulário!$I$6,"") -> 110696.2025
A9: Custo de Manutenção | C9: =IF(C4<=$B$2,Formulário!$R$29*Formulário!$I$6,"") -> 61215 | D9: =IF(D4<=$B$2,Formulário!$R$29*Formulário!$I$6,"") -> 61215 | E9: =IF(E4<=$B$2,Formulário!$R$29*Formulário!$I$6,"") -> 61215 | F9: =IF(F4<=$B$2,Formulário!$R$29*Formulário!$I$6,"") -> 61215 | G9: =IF(G4<=$B$2,Formulário!$R$29*Formulário!$I$6,"") -> 61215 | H9: =IF(H4<=$B$2,Formulário!$R$29*Formulário!$I$6,"") -> 61215 | I9: =IF(I4<=$B$2,Formulário!$R$29*Formulário!$I$6,"") -> 61215 | J9: =IF(J4<=$B$2,Formulário!$R$29*Formulário!$I$6,"") -> 61215 | K9: =IF(K4<=$B$2,Formulário!$R$29*Formulário!$I$6,"") -> 61215 | L9: =IF(L4<=$B$2,Formulário!$R$29*Formulário!$I$6,"") -> 61215
A10: Custo de Financiamento | C10: =C32 -> 126672 | D10: =D32 -> 118809.6 | E10: =E32 -> 110947.2 | F10: =F32 -> 103084.8 | G10: =G32 -> 95222.4 | H10: =C10 -> 126672 | I10: =D10 -> 118809.6 | J10: =E10 -> 110947.2 | K10: =F10 -> 103084.8 | L10: =G10 -> 95222.4
A11: Entradas de Caixa (financiamento) | B11: =B$5*$B$23 -> 436800 | C11: 0 | D11: 0 | E11: 0 | F11: 0 | G11: =B11 -> 436800 | H11: 0 | I11: 0 | J11: 0 | K11: 0 | L11: 0
A12: Entradas de Caixa (valor de revenda) | C12: 0 | D12: 0 | E12: 0 | F12: 0 | G12: =$B$5*$B$20 -> 360360 | H12: 0 | I12: 0 | J12: 0 | K12: 0 | L12: =$B$5*$B$20 -> 360360
A13: Saídas de Caixa | B13: =B5 -> 546000 | C13: =C7 -> 298583.2025 | D13: =D7 -> 290720.8025 | E13: =E7 -> 282858.4025 | F13: =F7 -> 274996.0025 | G13: =G7+G5 -> 813133.6025 | H13: =H7 -> 298583.2025 | I13: 290720.8025 | J13: 282858.4025 | K13: 274996.0025 | L13: 267133.6025
A14: Fluxo de Caixa Anual | B14: =(B11+B12)-B13 -> -109200 | C14: -298583.2025 | D14: -290720.8025 | E14: -282858.4025 | F14: -274996.0025 | G14: -15973.60253 | H14: =(H11+H12)-H13 -> -298583.2025 | I14: -290720.8025 | J14: -282858.4025 | K14: -274996.0025 | L14: 93226.39747
A15: Fluxo de Caixa Acumulado | B15: =B14 -> -109200 | C15: =B15+C14 -> -407783.2025 | D15: -698504.0051 | E15: -981362.4076 | F15: -1256358.41 | G15: -1272332.013 | H15: -1570915.215 | I15: -1861636.018 | J15: -2144494.42 | K15: -2419490.423 | L15: -2326264.025
A16: Fluxo YTD | C16: =C14/((1+$B$25)^(FluxoDeCaixa!C4)) -> -278394.0649 | D16: =D14/((1+$B$25)^(FluxoDeCaixa!D4)) -> -252734.9537 | E16: =E14/((1+$B$25)^(FluxoDeCaixa!E4)) -> -229272.9853 | F16: =F14/((1+$B$25)^(FluxoDeCaixa!F4)) -> -207828.3467 | G16: =G14/((1+$B$25)^(FluxoDeCaixa!G4)) -> -11255.78726 | H16: =H14/((1+$B$25)^(FluxoDeCaixa!H4)) -> -196170.1729 | I16: =I14/((1+$B$25)^(FluxoDeCaixa!I4)) -> -178089.499 | J16: =J14/((1+$B$25)^(FluxoDeCaixa!J4)) -> -161557.0402 | K16: =K14/((1+$B$25)^(FluxoDeCaixa!K4)) -> -146446.0915 | L16: =L14/((1+$B$25)^(FluxoDeCaixa!L4)) -> 46289.75765
A17: VP do Custo Anual Total em 10 anos | B17: =SUM(C16:L16)-$B$5 -> -2161459.184
A19: Linha de financiamento para ônibus a diesel
A20: Valor de revenda (% aquisição) | B20: =C20/100 -> 0.66 | C20: 66 | E20: Depreciação anual | F20: =(1-B20)/20 -> 0.017
A21: Custo de Capital Próprio | B21: =C21/1000 -> 0.125 | C21: 125
A22: Custo de Financiamento | B22: =C22/1000 -> 0.09 | C22: 90
A23: Percentual Financiado (%) | B23: =C23/1000 -> 0.8 | C23: 800
A24: Fator de Tributos no K de Terceiros (T) | B24: 0.34
A25: Custo Médio Ponderado de Capital | B25: =(1-$B$23)*$B$21+$B$23*$B$22*(1-B24) -> 0.07252
A26: Nº de períodos financiamento (anos) | B26: 5
A28: Financiamento | C28: =$B$5*$B$23 -> 436800
A29: Dívida | C29: =C28 -> 436800 | D29: =C29-C30 -> 349440 | E29: =D29-D30 -> 262080 | F29: 174720 | G29: 87360 | H29: 0 | I29: 0 | J29: 0 | K29: 0 | L29: 0
A30: Amortização | C30: =IF(C$4<=$B$26,$C$28/$B$26,0) -> 87360 | D30: =IF(D$4<=$B$26,$C$28/$B$26,0) -> 87360 | E30: 87360 | F30: 87360 | G30: 87360 | H30: 0 | I30: 0 | J30: 0 | K30: 0 | L30: 0
A31: Despesa financeira | C31: =C29*$B$22 -> 39312 | D31: =D29*$B$22 -> 31449.6 | E31: 23587.2 | F31: 15724.8 | G31: 7862.4 | H31: 0 | I31: 0 | J31: 0 | K31: 0 | L31: 0
A32: Parcela Financiamento | C32: =C31+C30 -> 126672 | D32: =D31+D30 -> 118809.6 | E32: =E31+E30 -> 110947.2 | F32: 103084.8 | G32: 95222.4 | H32: 0 | I32: 0 | J32: 0 | K32: 0 | L32: 0
A34: Análise financeira por ônibus: Elétrico à Bateria
A35: Período | B35: 0 | C35: 1 | D35: 2 | E35: 3 | F35: 4 | G35: 5 | H35: 6 | I35: 7 | J35: 8 | K35: 9 | L35: 10
A36: Custo de Aquisição | B36: =Formulário!T17 -> 955500 | D36: 0 | E36: 0 | F36: 0 | G36: 0 | H36: 0 | I36: 0 | J36: 0 | K36: 0 | L36: 0
A37: Custo de Infraestrutura de recarga | B37: =Formulário!T19 -> 161000 | D37: 0 | E37: 0 | F37: 0 | G37: 0 | H37: 0 | I37: 0 | J37: 0 | K37: 0 | L37: 0
A38: Custo Variável Anual | C38: =SUM(C39:C41) -> 233233.0968 | D38: =SUM(D39:D41) -> 226353.4968 | E38: =SUM(E39:E41) -> 219473.8968 | F38: 212594.2968 | G38: 205714.6968 | H38: 198835.0968 | I38: 191955.4968 | J38: 185075.8968 | K38: 178196.2968 | L38: 171316.6968
A39: Custo Operacional | C39: =IF(C35<=$B$2,Formulário!$T$23*Formulário!$I$6,"") -> 41887.09677 | D39: =IF(D35<=$B$2,Formulário!$T$23*Formulário!$I$6,"") -> 41887.09677 | E39: =IF(E35<=$B$2,Formulário!$T$23*Formulário!$I$6,"") -> 41887.09677 | F39: =IF(F35<=$B$2,Formulário!$T$23*Formulário!$I$6,"") -> 41887.09677 | G39: =IF(G35<=$B$2,Formulário!$T$23*Formulário!$I$6,"") -> 41887.09677 | H39: =IF(H35<=$B$2,Formulário!$T$23*Formulário!$I$6,"") -> 41887.09677 | I39: =IF(I35<=$B$2,Formulário!$T$23*Formulário!$I$6,"") -> 41887.09677 | J39: =IF(J35<=$B$2,Formulário!$T$23*Formulário!$I$6,"") -> 41887.09677 | K39: =IF(K35<=$B$2,Formulário!$T$23*Formulário!$I$6,"") -> 41887.09677 | L39: =IF(L35<=$B$2,Formulário!$T$23*Formulário!$I$6,"") -> 41887.09677
A40: Custo de Manutenção | C40: =IF(C35<=$B$2,Formulário!$T$29*Formulário!$I$6,"") -> 46110 | D40: =IF(D35<=$B$2,Formulário!$T$29*Formulário!$I$6,"") -> 46110 | E40: =IF(E35<=$B$2,Formulário!$T$29*Formulário!$I$6,"") -> 46110 | F40: =IF(F35<=$B$2,Formulário!$T$29*Formulário!$I$6,"") -> 46110 | G40: =IF(G35<=$B$2,Formulário!$T$29*Formulário!$I$6,"") -> 46110 | H40: =IF(H35<=$B$2,Formulário!$T$29*Formulário!$I$6,"") -> 46110 | I40: =IF(I35<=$B$2,Formulário!$T$29*Formulário!$I$6,"") -> 46110 | J40: =IF(J35<=$B$2,Formulário!$T$29*Formulário!$I$6,"") -> 46110 | K40: =IF(K35<=$B$2,Formulário!$T$29*Formulário!$I$6,"") -> 46110 | L40: =IF(L35<=$B$2,Formulário!$T$29*Formulário!$I$6,"") -> 46110
A41: Custo de Financiamento | C41: =C63 -> 145236 | D41: =D63 -> 138356.4 | E41: 131476.8 | F41: 124597.2 | G41: 117717.6 | H41: 110838 | I41: 103958.4 | J41: 97078.8 | K41: 90199.2 | L41: 83319.6
A42: Entradas de Caixa (financiamento) | B42: =B$36*$B$54 -> 764400 | C42: 0 | D42: 0 | E42: 0 | F42: 0 | G42: 0 | H42: 0 | I42: 0 | J42: 0 | K42: 0 | L42: 0
A43: Entradas de Caixa (valor de revenda) | C43: 0 | D43: 0 | E43: 0 | F43: 0 | G43: 0 | H43: 0 | I43: 0 | J43: 0 | K43: 0 | L43: =$B$36*$B$51 -> 410865
A44: Saídas de Caixa | B44: =B36+B37 -> 1116500 | C44: =C38 -> 233233.0968 | D44: =D38 -> 226353.4968 | E44: =E38 -> 219473.8968 | F44: 212594.2968 | G44: 205714.6968 | H44: 198835.0968 | I44: 191955.4968 | J44: 185075.8968 | K44: 178196.2968 | L44: 171316.6968
A45: Fluxo de Caixa Anual | B45: =(B42+B43)-B44 -> -352100 | C45: =(C42+C43)-C44 -> -233233.0968 | D45: -226353.4968 | E45: -219473.8968 | F45: -212594.2968 | G45: -205714.6968 | H45: -198835.0968 | I45: -191955.4968 | J45: -185075.8968 | K45: -178196.2968 | L45: 239548.3032
A46: Fluxo de Caixa Acumulado | B46: =B45 -> -352100 | C46: =B46+C45 -> -585333.0968 | D46: -811686.5935 | E46: -1031160.49 | F46: -1243754.787 | G46: -1449469.484 | H46: -1648304.581 | I46: -1840260.077 | J46: -2025335.974 | K46: -2203532.271 | L46: -1963983.968
A47: Fluxo YTD | C47: =C45/((1+$B$56)^(FluxoDeCaixa!C35)) -> -217462.7017 | D47: =D45/((1+$B$56)^(FluxoDeCaixa!D35)) -> -196777.9396 | E47: =E45/((1+$B$56)^(FluxoDeCaixa!E35)) -> -177896.202 | F47: =F45/((1+$B$56)^(FluxoDeCaixa!F35)) -> -160668.2308 | G47: =G45/((1+$B$56)^(FluxoDeCaixa!G35)) -> -144956.7096 | H47: =H45/((1+$B$56)^(FluxoDeCaixa!H35)) -> -130635.3304 | I47: =I45/((1+$B$56)^(FluxoDeCaixa!I35)) -> -117587.933 | J47: =J45/((1+$B$56)^(FluxoDeCaixa!J35)) -> -105707.7104 | K47: =K45/((1+$B$56)^(FluxoDeCaixa!K35)) -> -94896.47462 | L47: =L45/((1+$B$56)^(FluxoDeCaixa!L35)) -> 118943.0591
A48: VP do Custo Anual Total em 10 anos | B48: =SUM(C47:L47)-$B$36 -> -2183146.173
A50: Linha de financiamento para ônibus elétricos
A51: Valor de revenda (% aquisição) | B51: =C51/100 -> 0.43 | C51: 43 | E51: Depreciação anual | F51: =(1-B51)/10 -> 0.057
A52: Custo de Capital Próprio | B52: =B21 -> 0.125
A53: Custo de Financiamento | B53: =C53/1000 -> 0.09 | C53: 90
A54: Percentual Financiado (%) | B54: =C54/1000 -> 0.8 | C54: 800
A55: Fator de Tributos no K de Terceiros (T) | B55: 0.34
A56: Custo Médio Ponderado de Capital | B56: =(1-$B$54)*$B$52+$B$54*$B$53*(1-$B$55) -> 0.07252
A57: Nº de períodos financiamento (anos) | B57: 10
A59: Financiamento | C59: =$B$36*$B$54 -> 764400
A60: Dívida | C60: =C59 -> 764400 | D60: =C60-C61 -> 687960 | E60: 611520 | F60: 535080 | G60: 458640 | H60: 382200 | I60: 305760 | J60: 229320 | K60: 152880 | L60: 76440
A61: Amortização | C61: =IF(C$35<=$B$57,$C$59/$B$57,0) -> 76440 | D61: =IF(D$35<=$B$57,$C$59/$B$57,0) -> 76440 | E61: 76440 | F61: 76440 | G61: 76440 | H61: 76440 | I61: 76440 | J61: 76440 | K61: 76440 | L61: 76440
A62: Despesa financeira | C62: =C60*$B$53 -> 68796 | D62: =D60*$B$53 -> 61916.4 | E62: =E60*$B$53 -> 55036.8 | F62: 48157.2 | G62: 41277.6 | H62: 34398 | I62: 27518.4 | J62: 20638.8 | K62: 13759.2 | L62: 6879.6
A63: Parcela Financiamento | C63: =C62+C61 -> 145236 | D63: =D62+D61 -> 138356.4 | E63: =E62+E61 -> 131476.8 | F63: 124597.2 | G63: 117717.6 | H63: 110838 | I63: 103958.4 | J63: 97078.8 | K63: 90199.2 | L63: 83319.6
A65: Análise financeira comparativa dos ônibus: Fluxo(Elétrico à Bateria) - Fluxo (Diesel)
A66: Período | C66: 1 | D66: 2 | E66: 3 | F66: 4 | G66: 5 | H66: 6 | I66: 7 | J66: 8 | K66: 9 | L66: 10 | N66: FLUXO > 0 | O66: FLUXO < 0 | P66: PAYBACK
A67: Fluxo de Caixa Anual | B67: =(B45)-(B14) -> -242900 | C67: =(C45)-(C14) -> 65350.10576 | D67: =(D45)-(D14) -> 64367.30576 | E67: 63384.50576 | F67: 62401.70576 | G67: -189741.0942 | H67: 99748.10576 | I67: 98765.30576 | J67: 97782.50576 | K67: 96799.70576 | L67: 146321.9058 | N67: =SUMIF(B67:L67,">0",B67:L67) -> 794921.1518 | O67: =SUMIF(B67:L67,"<0",B67:L67) -> -432641.0942 | P67: =N67+O67 -> 362280.0576
A68: Fluxo YTD | B68: =B67 -> -242900 | C68: =C67/((1+$B$56)^(FluxoDeCaixa!C66)) -> 60931.36329 | D68: =D67/((1+$B$56)^(FluxoDeCaixa!D66)) -> 55957.01408 | E68: =E67/((1+$B$56)^(FluxoDeCaixa!E66)) -> 51376.78331 | F68: =F67/((1+$B$56)^(FluxoDeCaixa!F66)) -> 47160.11585 | G68: =G67/((1+$B$56)^(FluxoDeCaixa!G66)) -> -133700.9223 | H68: =H67/((1+$B$56)^(FluxoDeCaixa!H66)) -> 65534.8425 | I68: =I67/((1+$B$56)^(FluxoDeCaixa!I66)) -> 60501.56601 | J68: =J67/((1+$B$56)^(FluxoDeCaixa!J66)) -> 55849.32983 | K68: =K67/((1+$B$56)^(FluxoDeCaixa!K66)) -> 51549.61684 | L68: =L67/((1+$B$56)^(FluxoDeCaixa!L66)) -> 72653.30143 | N68: =SUMIF(B68:L68,">0",B68:L68) -> 521513.9331 | O68: =SUMIF(B68:L68,"<0",B68:L68) -> -376600.9223 | P68: =N68+O68 -> 144913.0108
A69: VPL | B69: =SUM(C68:L68)+B67 -> 144913.0108
A70: TIR | B70: =IRR(B67:L67,0.2) -> 0.1699515107
A71: =IF($P$68<0,"Estimativa de Payback > 10 anos",CONCATENATE("Estimativa de Payback de ",LARGE(C73:L73,1)," anos")) -> Estimativa de Payback de 7 anos | B71: =O68 -> -376600.9223 | C71: =IF(C68>=0,C68,0) -> 60931.36329 | D71: 55957.01408 | E71: 51376.78331 | F71: 47160.11585 | G71: 0 | H71: 65534.8425 | I71: 60501.56601 | J71: 55849.32983 | K71: 51549.61684 | L71: 72653.30143
B72: =B71 -> -376600.9223 | C72: =B72+C71 -> -315669.5591 | D72: =C72+D71 -> -259712.545 | E72: -208335.7617 | F72: -161175.6458 | G72: -161175.6458 | H72: -95640.80331 | I72: -35139.2373 | J72: 20710.09253 | K72: 72259.70936 | L72: 144913.0108
B73: =IF($P$68<0,"> 10",IF(B$72<0,0,"")) -> 0 | C73: =IF($P$68<0,"> 10",IF(C$72<0,C$66,"")) -> 1 | D73: =IF($P$68<0,"> 10",IF(D$72<0,D$66,"")) -> 2 | E73: 3 | F73: 4 | G73: 5 | H73: 6 | I73: 7

Sheet ExplicaçãoTarifa (hidden)

Sheet FatorEmissao
P1: Fatores de emissão utilizados para o óleo diesel
B2: Abril | C2: Outubro | P2: Decisão em 13/08: corrigir a fprmula para o cálculo de emissões de CO2-eq
A3: 1995 | P3: Fator de emissão CO2-eq = FE(CO2) + FE(CH4) + FE(N2O)
A4: 1996 | B4: 4.46 | C4: 4.37 | P4: Poluente | Q4: Unidade
A5: 1997 | B5: 3.93 | C5: 4 | P5: CO2 | Q5: tCO2-eq/10³tep | R5: 3070
A6: 1998 | B6: 4.4 | C6: 4.36 | E6: Idade média da frota de ônibus urbanos municipais nas princpais capitais | P6: CH4 | Q6: tCO2-eq/10³tep | R6: 2.638
A7: 1999 | B7: 4.33 | C7: 4.83 | E7: Fonte: Anuário NTU (2018) - pág. 52 | P7: N2O | Q7: tCO2-eq/10³tep | R7: 7.788
A8: 2000 | B8: 4.83 | C8: 5.15 | P8: Total | Q8: tCO2-eq/10³tep | R8: =SUM(R5:R7) -> 3080.426
A9: 2001 | B9: 4.92 | C9: 5.09
A10: 2002 | B10: 5.6 | C10: 5.69 | P10: Fator de conversão
A11: 2003 | B11: 5.73 | C11: 5.6 | P11: diesel | Q11: tep/m³ | R11: 0.848
A12: 2004 | B12: 5.44 | C12: 5.32
A13: 2005 | B13: 5.4 | C13: 5.38 | P13: Tabela 5 e Tabela 19 - MMA(2014): Inventário Nacional de Emissões Atmosféricas por Veículos Automotores Rodoviários 2013
A14: 2006 | B14: 5.53 | C14: 5.39 | P14: Rendimento dos ônibus
A15: 2007 | B15: 5.24 | C15: 5.07 | P15: km/Ldiesel | Q15: 2.3
A16: 2008 | B16: 5.1 | C16: 5.07
A17: 2009 | B17: 4.59 | C17: 4.62 | P17: Fator emissão CO
A18: 2010 | B18: 4.85 | C18: 4.61 | R18: g/km | S18: g/L
A19: 2011 | B19: 4.22 | C19: 4.2 | P19: CO | Q19: Tabela 19 | R19: 0.44 | S19: =R19*Q15 -> 1.012
A20: 2012 | B20: 4.24 | C20: 4.25
A21: 2013 | B21: 4.42 | C21: 4.47 | P21: Fator emissão MP = MP10(pneus, freios) + MP10pista + MPcomb
A22: 2014 | B22: 4.63 | C22: 4.67 | R22: g/km | S22: g/L
A23: 2015 | B23: 4.66 | C23: 4.83 | P23: MPcomb | Q23: Tabela 19 | R23: 0.02 | S23: =R23*$Q$15 -> 0.046
A24: 2016 | B24: 5.01 | C24: 5.03 | P24: MP10(pneu, freios) | Q24: Tabela 05 | R24: 0.59 | S24: =R24*$Q$15 -> 1.357
A25: 2017 | B25: 5.42 | C25: 5.58 | P25: MP10pista | Q25: Tabela 05 | R25: 0.038 | S25: =R25*$Q$15 -> 0.0874
A26: Média | B26: =AVERAGE(B4:B25) -> 4.861363636 | C26: =AVERAGE(C4:C25) -> 4.89 | D26: =AVERAGE(B26:C26) -> 4.875681818 | R26: =SUM(R23:R25) -> 0.648 | S26: =SUM(S23:S25) -> 1.4904
A27: Desvio Padrão | B27: =_xlfn.STDEV.S(B4:B25) -> 0.5161606935 | C27: =_xlfn.STDEV.S(C4:C25) -> 0.4927860542
A28: Variância | B28: =_xlfn.VAR.S(B4:B25) -> 0.2664218615 | C28: =_xlfn.VAR.S(C4:C25) -> 0.2428380952 | P28: Fator de emissão NOX
A29: Menor | B29: =SMALL(B4:B25,1) -> 3.93 | C29: =SMALL(C4:C25,1) -> 4 | R29: g/km | S29: g/L
A30: Maior | B30: =LARGE(B4:B25,1) -> 5.73 | C30: =LARGE(C4:C25,1) -> 5.69 | P30: NOX | Q30: Tabela 19 | R30: 2.103 | S30: =R30*2.3 -> 4.8369

Sheet Cidades&Frota (hidden)
A1: CHAVE PRIMÁRIA (MUNICÍPIO_CÓDIGO MUNICÍPIO) | B1: DADOS MUNICIPAIS | G1: DISTRIBUIDORA | H1: POPULAÇÃO | I1: DADOS FROTA DE ÔNIBUS | K1: DADOS TIPOS DE CIDADE
B2: MUNICÍPIO | C2: UF | D2: CÓDIGO UF | E2: REGIÃO | F2: CÓDIGO MUNICÍPIO | I2: FROTA RENAVAM | J2: FROTA ÔNIBUS PÚBLICO URBANO (ESTIMADA) | K2: ÍNDICE | L2: TIPO DE CIDADES | U2: NTU/Renavan | V2: Renavan | W2: NTU
A3: =CONCATENATE(B3,"_",F3) -> Alta Floresta D'Oeste_00015 | B3: Alta Floresta D'Oeste | C3: RO | D3: 11 | E3: Norte | F3: 00015 | G3: ELETROBRÁS DISTRIBUIÇÃO RONDÔNIA | H3: 23167 | I3: 94 | J3: =I3*$U$3 -> 16.71147207 | K3: =IF(H3>=$W$6,$U$6,IF(H3>=$W$7,$U$7,IF(H3>=$W$8,$U$8,IF(H3>=$W$9,$U$9,$U$10)))) -> 5 | L3: =VLOOKUP(K3,$U$6:$W$10,2,FALSE) -> de 60 a 100 mil | U3: =W3/V3 -> 0.1777816177 | V3: =SUM(I3:I5572) -> 601862 | W3: 107000
A4: =CONCATENATE(B4,"_",F4) -> Ariquemes_00023 | B4: Ariquemes | C4: RO | D4: 11 | E4: Norte | F4: 00023 | G4: ELETROBRÁS DISTRIBUIÇÃO RONDÔNIA | H4: 106168 | I4: 221 | J4: 39.28973751 | K4: 4 | L4: =VLOOKUP(K4,$U$6:$W$10,2,FALSE) -> de 100 a 250 mil
A5: Cabixi_00031 | B5: Cabixi | C5: RO | D5: 11 | E5: Norte | F5: 00031 | G5: ELETROBRÁS DISTRIBUIÇÃO RONDÔNIA | H5: 5438 | I5: 25 | J5: 4.444540443 | K5: 5 | L5: de 60 a 100 mil | U5: Casos | V5: Tipo de Cidade | W5: População (Máx.) | X5: Frota | Y5: Número de Cidades | Z5: % de Municípios | AA5: Frota média por cidade
A6: Cacoal_00049 | B6: Cacoal | C6: RO | D6: 11 | E6: Norte | F6: 00049 | G6: ELETROBRÁS DISTRIBUIÇÃO RONDÔNIA | H6: 84813 | I6: 329 | J6: 58.49015223 | K6: 5 | L6: de 60 a 100 mil | U6: 1 | V6: Mais de 1 milhão | W6: 1000000 | X6: =SUMIF($K$3:$K$5572,U6,$J$3:$J$5572) -> 26496.39452 | Y6: =COUNTIF($K$3:$K$5572,$U6) -> 17 | Z6: =$Y6/SUM($Y$6:$Y$10) -> 0.003052064632 | AA6: =X6/Y6 -> 1558.611442
A7: Cerejeiras_00056 | B7: Cerejeiras | C7: RO | D7: 11 | E7: Norte | F7: 00056 | G7: ELETROBRÁS DISTRIBUIÇÃO RONDÔNIA | H7: 16444 | I7: 54 | J7: 9.600207357 | K7: 5 | L7: de 60 a 100 mil | U7: 2 | V7: de 500 mil a 1 milhão | W7: 500000 | X7: =SUMIF($K$3:$K$5572,U7,$J$3:$J$5572) -> 10495.69336 | Y7: =COUNTIF($K$3:$K$5572,$U7) -> 29 | Z7: =$Y7/SUM($Y$6:$Y$10) -> 0.005206463196 | AA7: =X7/Y7 -> 361.9204609
A8: Colorado do Oeste_00064 | B8: Colorado do Oeste | C8: RO | D8: 11 | E8: Norte | F8: 00064 | G8: ELETROBRÁS DISTRIBUIÇÃO RONDÔNIA | H8: 16227 | I8: 68 | J8: 12.08915 | K8: 5 | L8: de 60 a 100 mil | U8: 3 | V8: de 250 a 500 mil | W8: 250000 | X8: =SUMIF($K$3:$K$5572,U8,$J$3:$J$5572) -> 9967.148615 | Y8: =COUNTIF($K$3:$K$5572,$U8) -> 66 | Z8: =$Y8/SUM($Y$6:$Y$10) -> 0.0118491921 | AA8: =X8/Y8 -> 151.0174033
A9: Corumbiara_00072 | B9: Corumbiara | C9: RO | D9: 11 | E9: Norte | F9: 00072 | G9: ELETROBRÁS DISTRIBUIÇÃO RONDÔNIA | H9: 7567 | I9: 24 | J9: 4.266758825 | K9: 5 | L9: de 60 a 100 mil | U9: 4 | V9: de 100 a 250 mil | W9: 100000 | X9: =SUMIF($K$3:$K$5572,U9,$J$3:$J$5572) -> 14565.29238 | Y9: =COUNTIF($K$3:$K$5572,$U9) -> 205 | Z9: =$Y9/SUM($Y$6:$Y$10) -> 0.0368043088 | AA9: =X9/Y9 -> 71.05020671
A10: Costa Marques_00080 | B10: Costa Marques | C10: RO | D10: 11 | E10: Norte | F10: 00080 | G10: ELETROBRÁS DISTRIBUIÇÃO RONDÔNIA | H10: 17855 | I10: 29 | J10: 5.155666914 | K10: 5 | L10: de 60 a 100 mil | U10: 5 | V10: de 60 a 100 mil | W10: 60000 | X10: =SUMIF($K$3:$K$5572,U10,$J$3:$J$5572) -> 45475.47112 | Y10: =COUNTIF($K$3:$K$5572,$U10) -> 5253 | Z10: =$Y10/SUM($Y$6:$Y$10) -> 0.9430879713 | AA10: =X10/Y10 -> 8.657047615
A11: Espigao D'Oeste_00098 | B11: Espigao D'Oeste | C11: RO | D11: 11 | E11: Norte | F11: 00098 | G11: ELETROBRÁS DISTRIBUIÇÃO RONDÔNIA | H11: 32047 | I11: 143 | J11: 25.42277133 | K11: 5 | L11: de 60 a 100 mil
A12: Guajara-Mirim_00106 | B12: Guajara-Mirim | C12: RO | D12: 11 | E12: Norte | F12: 00106 | G12: ELETROBRÁS DISTRIBUIÇÃO RONDÔNIA | H12: 45783 | I12: 30 | J12: 5.333448531 | K12: 5 | L12: de 60 a 100 mil
A13: Jaru_00114 | B13: Jaru | C13: RO | D13: 11 | E13: Norte | F13: 00114 | G13: ELETROBRÁS DISTRIBUIÇÃO RONDÔNIA | H13: 51933 | I13: 223 | J13: 39.64530075 | K13: 5 | L13: de 60 a 100 mil
A14: Ji-Parana_00122 | B14: Ji-Parana | C14: RO | D14: 11 | E14: Norte | F14: 00122 | G14: ELETROBRÁS DISTRIBUIÇÃO RONDÔNIA | H14: 127907 | I14: 718 | J14: 127.6472015 | K14: 4 | L14: de 100 a 250 mil
A15: Machadinho D'Oeste_00130 | B15: Machadinho D'Oeste | C15: RO | D15: 11 | E15: Norte | F15: 00130 | G15: ELETROBRÁS DISTRIBUIÇÃO RONDÔNIA | H15: 39097 | I15: 79 | J15: 14.0447478 | K15: 5 | L15: de 60 a 100 mil
A16: Nova Brasilandia D'Oeste_00148 | B16: Nova Brasilandia D'Oeste | C16: RO | D16: 11 | E16: Norte | F16: 00148 | G16: ELETROBRÁS DISTRIBUIÇÃO RONDÔNIA | H16: 20459 | I16: 100 | J16: 17.77816177 | K16: 5 | L16: de 60 a 100 mil
A17: Ouro Preto do Oeste_00155 | B17: Ouro Preto do Oeste | C17: RO | D17: 11 | E17: Norte | F17: 00155 | G17: ELETROBRÁS DISTRIBUIÇÃO RONDÔNIA | H17: 36340 | I17: 131 | J17: 23.28939192 | K17: 5 | L17: de 60 a 100 mil
A18: Pimenta Bueno_00189 | B18: Pimenta Bueno | C18: RO | D18: 11 | E18: Norte | F18: 00189 | G18: ELETROBRÁS DISTRIBUIÇÃO RONDÔNIA | H18: 36434 | I18: 103 | J18: 18.31150662 | K18: 5 | L18: de 60 a 100 mil
A19: Porto Velho_00205 | B19: Porto Velho | C19: RO | D19: 11 | E19: Norte | F19: 00205 | G19: ELETROBRÁS DISTRIBUIÇÃO RONDÔNIA | H19: 519531 | I19: 1863 | J19: 331.2071538 | K19: 2 | L19: de 500 mil a 1 milhão
A20: Presidente Medici_00254 | B20: Presidente Medici | C20: RO | D20: 11 | E20: Norte | F20: 00254 | G20: ELETROBRÁS DISTRIBUIÇÃO RONDÔNIA | H20: 19409 | I20: 3 | J20: 0.5333448531 | K20: 5 | L20: de 60 a 100 mil
A21: Rio Crespo_00262 | B21: Rio Crespo | C21: RO | D21: 11 | E21: Norte | F21: 00262 | G21: ELETROBRÁS DISTRIBUIÇÃO RONDÔNIA | H21: 3723 | I21: 19 | J21: 3.377850737 | K21: 5 | L21: de 60 a 100 mil
A22: Rolim de Moura_00288 | B22: Rolim de Moura | C22: RO | D22: 11 | E22: Norte | F22: 00288 | G22: ELETROBRÁS DISTRIBUIÇÃO RONDÔNIA | H22: 54702 | I22: 158 | J22: 28.0894956 | K22: 5 | L22: de 60 a 100 mil
A23: Santa Luzia D'Oeste_00296 | B23: Santa Luzia D'Oeste | C23: RO | D23: 11 | E23: Norte | F23: 00296 | G23: ELETROBRÁS DISTRIBUIÇÃO RONDÔNIA | H23: 6781 | I23: 52 | J23: 9.244644121 | K23: 5 | L23: de 60 a 100 mil
A24: Vilhena_00304 | B24: Vilhena | C24: RO | D24: 11 | E24: Norte | F24: 00304 | G24: ELETROBRÁS DISTRIBUIÇÃO RONDÔNIA | H24: 97448 | I24: 193 | J24: 34.31185222 | K24: 5 | L24: de 60 a 100 mil
A25: Sao Miguel do Guapore_00320 | B25: Sao Miguel do Guapore | C25: RO | D25: 11 | E25: Norte | F25: 00320 | G25: ELETROBRÁS DISTRIBUIÇÃO RONDÔNIA | H25: 22931 | I25: 75 | J25: 13.33362133 | K25: 5 | L25: de 60 a 100 mil
A26: Nova Mamore_00338 | B26: Nova Mamore | C26: RO | D26: 11 | E26: Norte | F26: 00338 | G26: ELETROBRÁS DISTRIBUIÇÃO RONDÔNIA | H26: 29757 | I26: 34 | J26: 6.044575002 | K26: 5 | L26: de 60 a 100 mil
A27: Alvorada D'Oeste_00346 | B27: Alvorada D'Oeste | C27: RO | D27: 11 | E27: Norte | F27: 00346 | G27: ELETROBRÁS DISTRIBUIÇÃO RONDÔNIA | H27: 14722 | I27: 67 | J27: 11.91136839 | K27: 5 | L27: de 60 a 100 mil
A28: Alto Alegre dos Parecis_00379 | B28: Alto Alegre dos Parecis | C28: RO | D28: 11 | E28: Norte | F28: 00379 | G28: ELETROBRÁS DISTRIBUIÇÃO RONDÔNIA | H28: 13227 | I28: 39 | J28: 6.933483091 | K28: 5 | L28: de 60 a 100 mil
A29: Alto Paraiso_00403 | B29: Alto Paraiso | C29: RO | D29: 11 | E29: Norte | F29: 00403 | G29: ELETROBRÁS DISTRIBUIÇÃO RONDÔNIA | H29: 20999 | I29: 14 | J29: 2.488942648 | K29: 5 | L29: de 60 a 100 mil
A30: Buritis_00452 | B30: Buritis | C30: RO | D30: 11 | E30: Norte | F30: 00452 | G30: ELETROBRÁS DISTRIBUIÇÃO RONDÔNIA | H30: 38937 | I30: 123 | J30: 21.86713898 | K30: 5 | L30: de 60 a 100 mil
A31: Novo Horizonte do Oeste_00502 | B31: Novo Horizonte do Oeste | C31: RO | D31: 11 | E31: Norte | F31: 00502 | G31: ELETROBRÁS DISTRIBUIÇÃO RONDÔNIA | H31: 8751 | I31: 18 | J31: 3.200069119 | K31: 5 | L31: de 60 a 100 mil
A32: Cacaulandia_00601 | B32: Cacaulandia | C32: RO | D32: 11 | E32: Norte | F32: 00601 | G32: ELETROBRÁS DISTRIBUIÇÃO RONDÔNIA | H32: 6190 | I32: 29 | J32: 5.155666914 | K32: 5 | L32: de 60 a 100 mil
A33: Campo Novo de Rondonia_00700 | B33: Campo Novo de Rondonia | C33: RO | D33: 11 | E33: Norte | F33: 00700 | G33: ELETROBRÁS DISTRIBUIÇÃO RONDÔNIA | H33: 14009 | I33: 57 | J33: 10.13355221 | K33: 5 | L33: de 60 a 100 mil
A34: Candeias do Jamari_00809 | B34: Candeias do Jamari | C34: RO | D34: 11 | E34: Norte | F34: 00809 | G34: ELETROBRÁS DISTRIBUIÇÃO RONDÔNIA | H34: 25983 | I34: 34 | J34: 6.044575002 | K34: 5 | L34: de 60 a 100 mil
A35: Castanheiras_00908 | B35: Castanheiras | C35: RO | D35: 11 | E35: Norte | F35: 00908 | G35: ELETROBRÁS DISTRIBUIÇÃO RONDÔNIA | H35: 3119 | I35: 18 | J35: 3.200069119 | K35: 5 | L35: de 60 a 100 mil
A36: Chupinguaia_00924 | B36: Chupinguaia | C36: RO | D36: 11 | E36: Norte | F36: 00924 | G36: ELETROBRÁS DISTRIBUIÇÃO RONDÔNIA | H36: 10886 | I36: 85 | J36: 15.11143751 | K36: 5 | L36: de 60 a 100 mil
A37: Cujubim_00940 | B37: Cujubim | C37: RO | D37: 11 | E37: Norte | F37: 00940 | G37: ELETROBRÁS DISTRIBUIÇÃO RONDÔNIA | H37: 24226 | I37: 41 | J37: 7.289046326 | K37: 5 | L37: de 60 a 100 mil
A38: Governador Jorge Teixeira_01005 | B38: Governador Jorge Teixeira | C38: RO | D38: 11 | E38: Norte | F38: 01005 | G38: ELETROBRÁS DISTRIBUIÇÃO RONDÔNIA | H38: 8095 | I38: 31 | J38: 5.511230149 | K38: 5 | L38: de 60 a 100 mil
A39: Itapua do Oeste_01104 | B39: Itapua do Oeste | C39: RO | D39: 11 | E39: Norte | F39: 01104 | G39: ELETROBRÁS DISTRIBUIÇÃO RONDÔNIA | H39: 10272 | I39: 66 | J39: 11.73358677 | K39: 5 | L39: de 60 a 100 mil
A40: Ministro Andreazza_01203 | B40: Ministro Andreazza | C40: RO | D40: 11 | E40: Norte | F40: 01203 | G40: ELETROBRÁS DISTRIBUIÇÃO RONDÔNIA | H40: 9762 | I40: 19 | J40: 3.377850737 | K40: 5 | L40: de 60 a 100 mil
A41: Mirante da Serra_01302 | B41: Mirante da Serra | C41: RO | D41: 11 | E41: Norte | F41: 01302 | G41: ELETROBRÁS DISTRIBUIÇÃO RONDÔNIA | H41: 11080 | I41: 32 | J41: 5.689011767 | K41: 5 | L41: de 60 a 100 mil
A42: Monte Negro_01401 | B42: Monte Negro | C42: RO | D42: 11 | E42: Norte | F42: 01401 | G42: ELETROBRÁS DISTRIBUIÇÃO RONDÔNIA | H42: 15695 | I42: 95 | J42: 16.88925368 | K42: 5 | L42: de 60 a 100 mil
A43: Nova Uniao_01435 | B43: Nova Uniao | C43: RO | D43: 11 | E43: Norte | F43: 01435 | G43: ELETROBRÁS DISTRIBUIÇÃO RONDÔNIA | H43: 7047 | I43: 28 | J43: 4.977885296 | K43: 5 | L43: de 60 a 100 mil
A44: Parecis_01450 | B44: Parecis | C44: RO | D44: 11 | E44: Norte | F44: 01450 | G44: ELETROBRÁS DISTRIBUIÇÃO RONDÔNIA | H44: 5947 | I44: 30 | J44: 5.333448531 | K44: 5 | L44: de 60 a 100 mil
A45: Pimenteiras do Oeste_01468 | B45: Pimenteiras do Oeste | C45: RO | D45: 11 | E45: Norte | F45: 01468 | G45: ELETROBRÁS DISTRIBUIÇÃO RONDÔNIA | H45: 2191 | I45: 22 | J45: 3.91119559 | K45: 5 | L45: de 60 a 100 mil
A46: Primavera de Rondonia_01476 | B46: Primavera de Rondonia | C46: RO | D46: 11 | E46: Norte | F46: 01476 | G46: ELETROBRÁS DISTRIBUIÇÃO RONDÔNIA | H46: 2939 | I46: 15 | J46: 2.666724266 | K46: 5 | L46: de 60 a 100 mil
A47: Sao Felipe D'Oeste_01484 | B47: Sao Felipe D'Oeste | C47: RO | D47: 11 | E47: Norte | F47: 01484 | G47: ELETROBRÁS DISTRIBUIÇÃO RONDÔNIA | H47: 5280 | I47: 29 | J47: 5.155666914 | K47: 5 | L47: de 60 a 100 mil
A48: Sao Francisco do Guapore_01492 | B48: Sao Francisco do Guapore | C48: RO | D48: 11 | E48: Norte | F48: 01492 | G48: ELETROBRÁS DISTRIBUIÇÃO RONDÔNIA | H48: 19842 | I48: 80 | J48: 14.22252942 | K48: 5 | L48: de 60 a 100 mil
A49: Seringueiras_01500 | B49: Seringueiras | C49: RO | D49: 11 | E49: Norte | F49: 01500 | G49: ELETROBRÁS DISTRIBUIÇÃO RONDÔNIA | H49: 11860 | I49: 52 | J49: 9.244644121 | K49: 5 | L49: de 60 a 100 mil
A50: Teixeiropolis_01559 | B50: Teixeiropolis | C50: RO | D50: 11 | E50: Norte | F50: 01559 | G50: ELETROBRÁS DISTRIBUIÇÃO RONDÔNIA | H50: 4384 | I50: 15 | J50: 2.666724266 | K50: 5 | L50: de 60 a 100 mil
A51: Theobroma_01609 | B51: Theobroma | C51: RO | D51: 11 | E51: Norte | F51: 01609 | G51: ELETROBRÁS DISTRIBUIÇÃO RONDÔNIA | H51: 10494 | I51: 24 | J51: 4.266758825 | K51: 5 | L51: de 60 a 100 mil
A52: Urupa_01708 | B52: Urupa | C52: RO | D52: 11 | E52: Norte | F52: 01708 | G52: ELETROBRÁS DISTRIBUIÇÃO RONDÔNIA | H52: 11665 | I52: 112 | J52: 19.91154118 | K52: 5 | L52: de 60 a 100 mil
A53: Vale do Anari_01757 | B53: Vale do Anari | C53: RO | D53: 11 | E53: Norte | F53: 01757 | G53: ELETROBRÁS DISTRIBUIÇÃO RONDÔNIA | H53: 11028 | I53: 34 | J53: 6.044575002 | K53: 5 | L53: de 60 a 100 mil
A54: Vale do Paraiso_01807 | B54: Vale do Paraiso | C54: RO | D54: 11 | E54: Norte | F54: 01807 | G54: ELETROBRÁS DISTRIBUIÇÃO RONDÔNIA | H54: 6998 | I54: 24 | J54: 4.266758825 | K54: 5 | L54: de 60 a 100 mil
A55: Acrelandia_00013 | B55: Acrelandia | C55: AC | D55: 12 | E55: Norte | F55: 00013 | G55: ELETROBRÁS DISTRIBUIÇÃO ACRE | H55: 15020 | I55: 43 | J55: 7.644609562 | K55: 5 | L55: de 60 a 100 mil
A56: Assis Brasil_00054 | B56: Assis Brasil | C56: AC | D56: 12 | E56: Norte | F56: 00054 | G56: ELETROBRÁS DISTRIBUIÇÃO ACRE | H56: 7300 | I56: 2 | J56: 0.3555632354 | K56: 5 | L56: de 60 a 100 mil
A57: Brasileia_00104 | B57: Brasileia | C57: AC | D57: 12 | E57: Sudeste | F57: 00104 | G57: CEMIG-D | H57: 25848 | I57: 18 | J57: 3.200069119 | K57: 5 | L57: de 60 a 100 mil
A58: Bujari_00138 | B58: Bujari | C58: AC | D58: 12 | E58: Norte | F58: 00138 | G58: ELETROBRÁS DISTRIBUIÇÃO ACRE | H58: 10111 | I58: 12 | J58: 2.133379413 | K58: 5 | L58: de 60 a 100 mil
A59: Capixaba_00179 | B59: Capixaba | C59: AC | D59: 12 | E59: Norte | F59: 00179 | G59: ELETROBRÁS DISTRIBUIÇÃO ACRE | H59: 11456 | I59: 13 | J59: 2.31116103 | K59: 5 | L59: de 60 a 100 mil
A60: Cruzeiro do Sul_00203 | B60: Cruzeiro do Sul | C60: AC | D60: 12 | E60: Sudeste | F60: 00203 | G60: CEMIG-D | H60: 87673 | I60: 74 | J60: 13.15583971 | K60: 5 | L60: de 60 a 100 mil
A61: Epitaciolandia_00252 | B61: Epitaciolandia | C61: AC | D61: 12 | E61: Centro-Oeste | F61: 00252 | G61: ENERSUL | H61: 18122 | I61: 14 | J61: 2.488942648 | K61: 5 | L61: de 60 a 100 mil
A62: Feijo_00302 | B62: Feijo | C62: AC | D62: 12 | E62: Sudeste | F62: 00302 | G62: CEMIG-D | H62: 34675 | I62: 7 | J62: 1.244471324 | K62: 5 | L62: de 60 a 100 mil
A63: Jordao_00328 | B63: Jordao | C63: AC | D63: 12 | E63: Norte | F63: 00328 | G63: ELETROBRÁS DISTRIBUIÇÃO ACRE | H63: 8159 | I63: 0 | J63: 0 | K63: 5 | L63: de 60 a 100 mil
A64: Mancio Lima_00336 | B64: Mancio Lima | C64: AC | D64: 12 | E64: Norte | F64: 00336 | G64: ELETROBRÁS DISTRIBUIÇÃO ACRE | H64: 18638 | I64: 13 | J64: 2.31116103 | K64: 5 | L64: de 60 a 100 mil
A65: Manoel Urbano_00344 | B65: Manoel Urbano | C65: AC | D65: 12 | E65: Norte | F65: 00344 | G65: ELETROBRÁS DISTRIBUIÇÃO ACRE | H65: 9336 | I65: 5 | J65: 0.8889080886 | K65: 5 | L65: de 60 a 100 mil
A66: Marechal Thaumaturgo_00351 | B66: Marechal Thaumaturgo | C66: AC | D66: 12 | E66: Norte | F66: 00351 | G66: ELETROBRÁS DISTRIBUIÇÃO ACRE | H66: 18430 | I66: 9 | J66: 1.600034559 | K66: 5 | L66: de 60 a 100 mil
A67: Placido de Castro_00385 | B67: Placido de Castro | C67: AC | D67: 12 | E67: Norte | F67: 00385 | G67: ELETROBRÁS DISTRIBUIÇÃO ACRE | H67: 19565 | I67: 21 | J67: =I67*$U$3 -> 3.733413972 | K67: =IF(H67>=$W$6,$U$6,IF(H67>=$W$7,$U$7,IF(H67>=$W$8,$U$8,IF(H67>=$W$9,$U$9,$U$10)))) -> 5 | L67: de 60 a 100 mil
A68: =CONCATENATE(B68,"_",F68) -> Porto Walter_00393 | B68: Porto Walter | C68: AC | D68: 12 | E68: Norte | F68: 00393 | G68: ELETROBRÁS DISTRIBUIÇÃO ACRE | H68: 11720 | I68: 5 | J68: 0.8889080886 | K68: 5 | L68: =VLOOKUP(K68,$U$6:$W$10,2,FALSE) -> de 60 a 100 mil
A69: Rio Branco_00401 | B69: Rio Branco | C69: AC | D69: 12 | E69: Sudeste | F69: 00401 | G69: CEMIG-D | H69: 401155 | I69: 781 | J69: 138.8474434 | K69: 3 | L69: de 250 a 500 mil
A70: Rodrigues Alves_00427 | B70: Rodrigues Alves | C70: AC | D70: 12 | E70: Norte | F70: 00427 | G70: ELETROBRÁS DISTRIBUIÇÃO ACRE | H70: 18504 | I70: 7 | J70: 1.244471324 | K70: 5 | L70: de 60 a 100 mil
A71: Santa Rosa do Purus_00435 | B71: Santa Rosa do Purus | C71: AC | D71: 12 | E71: Norte | F71: 00435 | G71: ELETROBRÁS DISTRIBUIÇÃO ACRE | H71: 6362 | I71: 3 | J71: 0.5333448531 | K71: 5 | L71: de 60 a 100 mil
A72: Senador Guiomard_00450 | B72: Senador Guiomard | C72: AC | D72: 12 | E72: Norte | F72: 00450 | G72: ELETROBRÁS DISTRIBUIÇÃO ACRE | H72: 22810 | I72: 33 | J72: 5.866793385 | K72: 5 | L72: de 60 a 100 mil
A73: Sena Madureira_00500 | B73: Sena Madureira | C73: AC | D73: 12 | E73: Sudeste | F73: 00500 | G73: CEMIG-D | H73: 45177 | I73: 9 | J73: 1.600034559 | K73: 5 | L73: de 60 a 100 mil
A74: Tarauaca_00609 | B74: Tarauaca | C74: AC | D74: 12 | E74: Sudeste | F74: 00609 | G74: CEMIG-D | H74: 41976 | I74: 25 | J74: 4.444540443 | K74: 5 | L74: de 60 a 100 mil
A75: Xapuri_00708 | B75: Xapuri | C75: AC | D75: 12 | E75: Sudeste | F75: 00708 | G75: CEMIG-D | H75: 19048 | I75: 6 | J75: 1.066689706 | K75: 5 | L75: de 60 a 100 mil
A76: Porto Acre_00807 | B76: Porto Acre | C76: AC | D76: 12 | E76: Sudeste | F76: 00807 | G76: CEMIG-D | H76: 18180 | I76: 40 | J76: 7.111264709 | K76: 5 | L76: de 60 a 100 mil
A77: Alvaraes_00029 | B77: Alvaraes | C77: AM | D77: 13 | E77: Norte | F77: 00029 | G77: ELETROBRÁS AMAZONAS ENERGIA | H77: 15860 | I77: 3 | J77: 0.5333448531 | K77: 5 | L77: de 60 a 100 mil
A78: Amatura_00060 | B78: Amatura | C78: AM | D78: 13 | E78: Norte | F78: 00060 | G78: ELETROBRÁS AMAZONAS ENERGIA | H78: 11332 | I78: 1 | J78: 0.1777816177 | K78: 5 | L78: de 60 a 100 mil
A79: Anama_00086 | B79: Anama | C79: AM | D79: 13 | E79: Norte | F79: 00086 | G79: ELETROBRÁS AMAZONAS ENERGIA | H79: 13269 | I79: 6 | J79: 1.066689706 | K79: 5 | L79: de 60 a 100 mil
A80: Anori_00102 | B80: Anori | C80: AM | D80: 13 | E80: Centro-Oeste | F80: 00102 | G80: CEMAT | H80: 20538 | I80: 4 | J80: 0.7111264709 | K80: 5 | L80: de 60 a 100 mil
A81: Apui_00144 | B81: Apui | C81: AM | D81: 13 | E81: Norte | F81: 00144 | G81: ELETROBRÁS AMAZONAS ENERGIA | H81: 21583 | I81: 33 | J81: 5.866793385 | K81: 5 | L81: de 60 a 100 mil
A82: Atalaia do Norte_00201 | B82: Atalaia do Norte | C82: AM | D82: 13 | E82: Centro-Oeste | F82: 00201 | G82: CEMAT | H82: 19438 | I82: 1 | J82: 0.1777816177 | K82: 5 | L82: de 60 a 100 mil
A83: Autazes_00300 | B83: Autazes | C83: AM | D83: 13 | E83: Centro-Oeste | F83: 00300 | G83: CEMAT | H83: 38830 | I83: 23 | J83: 4.088977207 | K83: 5 | L83: de 60 a 100 mil
A84: Barcelos_00409 | B84: Barcelos | C84: AM | D84: 13 | E84: Centro-Oeste | F84: 00409 | G84: CEMAT | H84: 27364 | I84: 0 | J84: 0 | K84: 5 | L84: de 60 a 100 mil
A85: Barreirinha_00508 | B85: Barreirinha | C85: AM | D85: 13 | E85: Centro-Oeste | F85: 00508 | G85: CEMAT | H85: 31593 | I85: 6 | J85: 1.066689706 | K85: 5 | L85: de 60 a 100 mil
A86: Benjamin Constant_00607 | B86: Benjamin Constant | C86: AM | D86: 13 | E86: Centro-Oeste | F86: 00607 | G86: CEMAT | H86: 42020 | I86: 4 | J86: 0.7111264709 | K86: 5 | L86: de 60 a 100 mil
A87: Beruri_00631 | B87: Beruri | C87: AM | D87: 13 | E87: Norte | F87: 00631 | G87: ELETROBRÁS AMAZONAS ENERGIA | H87: 19258 | I87: 0 | J87: 0 | K87: 5 | L87: de 60 a 100 mil
A88: Boa Vista do Ramos_00680 | B88: Boa Vista do Ramos | C88: AM | D88: 13 | E88: Norte | F88: 00680 | G88: ELETROBRÁS AMAZONAS ENERGIA | H88: 18781 | I88: 1 | J88: 0.1777816177 | K88: 5 | L88: de 60 a 100 mil
A89: Boca do Acre_00706 | B89: Boca do Acre | C89: AM | D89: 13 | E89: Sudeste | F89: 00706 | G89: ESCELSA | H89: 33976 | I89: 8 | J89: 1.422252942 | K89: 5 | L89: de 60 a 100 mil
A90: Borba_00805 | B90: Borba | C90: AM | D90: 13 | E90: Centro-Oeste | F90: 00805 | G90: CEMAT | H90: 40565 | I90: 6 | J90: 1.066689706 | K90: 5 | L90: de 60 a 100 mil
A91: Caapiranga_00839 | B91: Caapiranga | C91: AM | D91: 13 | E91: Norte | F91: 00839 | G91: ELETROBRÁS AMAZONAS ENERGIA | H91: 12877 | I91: 8 | J91: 1.422252942 | K91: 5 | L91: de 60 a 100 mil
A92: Canutama_00904 | B92: Canutama | C92: AM | D92: 13 | E92: Sudeste | F92: 00904 | G92: ESCELSA | H92: 15450 | I92: 1 | J92: 0.1777816177 | K92: 5 | L92: de 60 a 100 mil
A93: Carauari_01001 | B93: Carauari | C93: AM | D93: 13 | E93: Centro-Oeste | F93: 01001 | G93: CEMAT | H93: 28076 | I93: 1 | J93: 0.1777816177 | K93: 5 | L93: de 60 a 100 mil
A94: Careiro_01100 | B94: Careiro | C94: AM | D94: 13 | E94: Sudeste | F94: 01100 | G94: ESCELSA | H94: 37384 | I94: 85 | J94: 15.11143751 | K94: 5 | L94: de 60 a 100 mil
A95: Careiro da Varzea_01159 | B95: Careiro da Varzea | C95: AM | D95: 13 | E95: Sudeste | F95: 01159 | G95: ESCELSA | H95: 29595 | I95: 46 | J95: 8.177954415 | K95: 5 | L95: de 60 a 100 mil
A96: Coari_01209 | B96: Coari | C96: AM | D96: 13 | E96: Centro-Oeste | F96: 01209 | G96: CEMAT | H96: 84272 | I96: 15 | J96: 2.666724266 | K96: 5 | L96: de 60 a 100 mil
A97: Codajas_01308 | B97: Codajas | C97: AM | D97: 13 | E97: Centro-Oeste | F97: 01308 | G97: CEMAT | H97: 28100 | I97: 4 | J97: 0.7111264709 | K97: 5 | L97: de 60 a 100 mil
A98: Eirunepe_01407 | B98: Eirunepe | C98: AM | D98: 13 | E98: Centro-Oeste | F98: 01407 | G98: CEMAT | H98: 34840 | I98: 5 | J98: 0.8889080886 | K98: 5 | L98: de 60 a 100 mil
A99: Envira_01506 | B99: Envira | C99: AM | D99: 13 | E99: Sudeste | F99: 01506 | G99: ELFSM | H99: 19668 | I99: 5 | J99: 0.8889080886 | K99: 5 | L99: de 60 a 100 mil
A100: Fonte Boa_01605 | B100: Fonte Boa | C100: AM | D100: 13 | E100: Centro-Oeste | F100: 01605 | G100: CEMAT | H100: 18221 | I100: 0 | J100: 0 | K100: 5 | L100: de 60 a 100 mil
A101: Guajara_01654 | B101: Guajara | C101: AM | D101: 13 | E101: Norte | F101: 01654 | G101: ELETROBRÁS AMAZONAS ENERGIA | H101: 16416 | I101: 9 | J101: 1.600034559 | K101: 5 | L101: de 60 a 100 mil
A102: Humaita_01704 | B102: Humaita | C102: AM | D102: 13 | E102: Centro-Oeste | F102: 01704 | G102: CEMAT | H102: 54001 | I102: 36 | J102: 6.400138238 | K102: 5 | L102: de 60 a 100 mil
A103: Ipixuna_01803 | B103: Ipixuna | C103: AM | D103: 13 | E103: Centro-Oeste | F103: 01803 | G103: CEMAT | H103: 28933 | I103: 3 | J103: 0.5333448531 | K103: 5 | L103: de 60 a 100 mil
A104: Iranduba_01852 | B104: Iranduba | C104: AM | D104: 13 | E104: Centro-Oeste | F104: 01852 | G104: CEMAT | H104: 47571 | I104: 140 | J104: 24.88942648 | K104: 5 | L104: de 60 a 100 mil
A105: Itacoatiara_01902 | B105: Itacoatiara | C105: AM | D105: 13 | E105: Centro-Oeste | F105: 01902 | G105: CEMAT | H105: 99955 | I105: 172 | J105: 30.57843825 | K105: 5 | L105: de 60 a 100 mil
A106: Itamarati_01951 | B106: Itamarati | C106: AM | D106: 13 | E106: Norte | F106: 01951 | G106: ELETROBRÁS AMAZONAS ENERGIA | H106: 7888 | I106: 0 | J106: 0 | K106: 5 | L106: de 60 a 100 mil
A107: Itapiranga_02009 | B107: Itapiranga | C107: AM | D107: 13 | E107: Sudeste | F107: 02009 | G107: ESCELSA | H107: 9064 | I107: 7 | J107: 1.244471324 | K107: 5 | L107: de 60 a 100 mil
A108: Japura_02108 | B108: Japura | C108: AM | D108: 13 | E108: Sudeste | F108: 02108 | G108: ESCELSA | H108: 3265 | I108: 4 | J108: 0.7111264709 | K108: 5 | L108: de 60 a 100 mil
A109: Jurua_02207 | B109: Jurua | C109: AM | D109: 13 | E109: Sudeste | F109: 02207 | G109: ESCELSA | H109: 14312 | I109: 4 | J109: 0.7111264709 | K109: 5 | L109: de 60 a 100 mil
A110: Jutai_02306 | B110: Jutai | C110: AM | D110: 13 | E110: Sudeste | F110: 02306 | G110: ESCELSA | H110: 14753 | I110: 0 | J110: 0 | K110: 5 | L110: de 60 a 100 mil
A111: Labrea_02405 | B111: Labrea | C111: AM | D111: 13 | E111: Sudeste | F111: 02405 | G111: ESCELSA | H111: 45245 | I111: 7 | J111: 1.244471324 | K111: 5 | L111: de 60 a 100 mil
A112: Manacapuru_02504 | B112: Manacapuru | C112: AM | D112: 13 | E112: Centro-Oeste | F112: 02504 | G112: CEMAT | H112: 96236 | I112: 116 | J112: 20.62266765 | K112: 5 | L112: de 60 a 100 mil
A113: Manaquiri_02553 | B113: Manaquiri | C113: AM | D113: 13 | E113: Sudeste | F113: 02553 | G113: ESCELSA | H113: 31147 | I113: 8 | J113: 1.422252942 | K113: 5 | L113: de 60 a 100 mil
A114: Manaus_02603 | B114: Manaus | C114: AM | D114: 13 | E114: Centro-Oeste | F114: 02603 | G114: CEMAT | H114: 2145444 | I114: 7773 | J114: 1381.896514 | K114: 1 | L114: Mais de 1 milhão
A115: Manicore_02702 | B115: Manicore | C115: AM | D115: 13 | E115: Centro-Oeste | F115: 02702 | G115: CEMAT | H115: 54907 | I115: 17 | J115: 3.022287501 | K115: 5 | L115: de 60 a 100 mil
A116: Maraa_02801 | B116: Maraa | C116: AM | D116: 13 | E116: Sudeste | F116: 02801 | G116: ESCELSA | H116: 18186 | I116: 0 | J116: 0 | K116: 5 | L116: de 60 a 100 mil
A117: Maues_02900 | B117: Maues | C117: AM | D117: 13 | E117: Sudeste | F117: 02900 | G117: ESCELSA | H117: 62755 | I117: 22 | J117: 3.91119559 | K117: 5 | L117: de 60 a 100 mil
A118: Nhamunda_03007 | B118: Nhamunda | C118: AM | D118: 13 | E118: Centro-Oeste | F118: 03007 | G118: CEMAT | H118: 20899 | I118: 5 | J118: 0.8889080886 | K118: 5 | L118: de 60 a 100 mil
A119: Nova Olinda do Norte_03106 | B119: Nova Olinda do Norte | C119: AM | D119: 13 | E119: Centro-Oeste | F119: 03106 | G119: CEMAT | H119: 36721 | I119: 11 | J119: 1.955597795 | K119: 5 | L119: de 60 a 100 mil
A120: Novo Airao_03205 | B120: Novo Airao | C120: AM | D120: 13 | E120: Centro-Oeste | F120: 03205 | G120: CEMAT | H120: 18974 | I120: 11 | J120: 1.955597795 | K120: 5 | L120: de 60 a 100 mil
A121: Novo Aripuana_03304 | B121: Novo Aripuana | C121: AM | D121: 13 | E121: Centro-Oeste | F121: 03304 | G121: CEMAT | H121: 25237 | I121: 8 | J121: 1.422252942 | K121: 5 | L121: de 60 a 100 mil
A122: Parintins_03403 | B122: Parintins | C122: AM | D122: 13 | E122: Centro-Oeste | F122: 03403 | G122: CEMAT | H122: 113168 | I122: 29 | J122: 5.155666914 | K122: 4 | L122: de 100 a 250 mil
A123: Pauini_03502 | B123: Pauini | C123: AM | D123: 13 | E123: Centro-Oeste | F123: 03502 | G123: CEMAT | H123: 19329 | I123: 1 | J123: 0.1777816177 | K123: 5 | L123: de 60 a 100 mil
A124: Presidente Figueiredo_03536 | B124: Presidente Figueiredo | C124: AM | D124: 13 | E124: Norte | F124: 03536 | G124: ELETROBRÁS AMAZONAS ENERGIA | H124: 35352 | I124: 87 | J124: 15.46700074 | K124: 5 | L124: de 60 a 100 mil
A125: Rio Preto da Eva_03569 | B125: Rio Preto da Eva | C125: AM | D125: 13 | E125: Norte | F125: 03569 | G125: ELETROBRÁS AMAZONAS ENERGIA | H125: 32577 | I125: 77 | J125: 13.68918456 | K125: 5 | L125: de 60 a 100 mil
A126: Santa Isabel do Rio Negro_03601 | B126: Santa Isabel do Rio Negro | C126: AM | D126: 13 | E126: Centro-Oeste | F126: 03601 | G126: CEMAT | H126: 24436 | I126: 3 | J126: 0.5333448531 | K126: 5 | L126: de 60 a 100 mil
A127: Santo Antonio do Ica_03700 | B127: Santo Antonio do Ica | C127: AM | D127: 13 | E127: Centro-Oeste | F127: 03700 | G127: CEMAT | H127: 21966 | I127: 0 | J127: 0 | K127: 5 | L127: de 60 a 100 mil
A128: Sao Gabriel da Cachoeira_03809 | B128: Sao Gabriel da Cachoeira | C128: AM | D128: 13 | E128: Centro-Oeste | F128: 03809 | G128: CEMAT | H128: 44816 | I128: 36 | J128: 6.400138238 | K128: 5 | L128: de 60 a 100 mil
A129: Sao Paulo de Olivenca_03908 | B129: Sao Paulo de Olivenca | C129: AM | D129: 13 | E129: Centro-Oeste | F129: 03908 | G129: CEMAT | H129: 38515 | I129: 5 | J129: 0.8889080886 | K129: 5 | L129: de 60 a 100 mil
A130: Sao Sebastiao do Uatuma_03957 | B130: Sao Sebastiao do Uatuma | C130: AM | D130: 13 | E130: Centro-Oeste | F130: 03957 | G130: CEMAT | H130: 13685 | I130: 1 | J130: 0.1777816177 | K130: 5 | L130: de 60 a 100 mil
A131: Silves_04005 | B131: Silves | C131: AM | D131: 13 | E131: Sudeste | F131: 04005 | G131: ELFSM | H131: 9110 | I131: 4 | J131: =I131*$U$3 -> 0.7111264709 | K131: =IF(H131>=$W$6,$U$6,IF(H131>=$W$7,$U$7,IF(H131>=$W$8,$U$8,IF(H131>=$W$9,$U$9,$U$10)))) -> 5 | L131: de 60 a 100 mil
A132: =CONCATENATE(B132,"_",F132) -> Tabatinga_04062 | B132: Tabatinga | C132: AM | D132: 13 | E132: Norte | F132: 04062 | G132: ELETROBRÁS AMAZONAS ENERGIA | H132: 64488 | I132: 7 | J132: 1.244471324 | K132: 5 | L132: =VLOOKUP(K132,$U$6:$W$10,2,FALSE) -> de 60 a 100 mil
A133: Tapaua_04104 | B133: Tapaua | C133: AM | D133: 13 | E133: Centro-Oeste | F133: 04104 | G133: CEMAT | H133: 17299 | I133: 2 | J133: 0.3555632354 | K133: 5 | L133: de 60 a 100 mil
A134: Tefe_04203 | B134: Tefe | C134: AM | D134: 13 | E134: Centro-Oeste | F134: 04203 | G134: CEMAT | H134: 60154 | I134: 21 | J134: 3.733413972 | K134: 5 | L134: de 60 a 100 mil
A135: Tonantins_04237 | B135: Tonantins | C135: AM | D135: 13 | E135: Norte | F135: 04237 | G135: ELETROBRÁS AMAZONAS ENERGIA | H135: 18610 | I135: 1 | J135: 0.1777816177 | K135: 5 | L135: de 60 a 100 mil
A136: Uarini_04260 | B136: Uarini | C136: AM | D136: 13 | E136: Norte | F136: 04260 | G136: ELETROBRÁS AMAZONAS ENERGIA | H136: 13387 | I136: 4 | J136: 0.7111264709 | K136: 5 | L136: de 60 a 100 mil
A137: Urucara_04302 | B137: Urucara | C137: AM | D137: 13 | E137: Sudeste | F137: 04302 | G137: ESCELSA | H137: 16383 | I137: 2 | J137: 0.3555632354 | K137: 5 | L137: de 60 a 100 mil
A138: Urucurituba_04401 | B138: Urucurituba | C138: AM | D138: 13 | E138: Sudeste | F138: 04401 | G138: ESCELSA | H138: 22537 | I138: 2 | J138: 0.3555632354 | K138: 5 | L138: de 60 a 100 mil
A139: Amajari_00027 | B139: Amajari | C139: RR | D139: 14 | E139: Norte | F139: 00027 | G139: CERR | H139: 12394 | I139: 4 | J139: 0.7111264709 | K139: 5 | L139: de 60 a 100 mil
A140: Alto Alegre_00050 | B140: Alto Alegre | C140: RR | D140: 14 | E140: Centro-Oeste | F140: 00050 | G140: CELG-D | H140: 15638 | I140: 15 | J140: 2.666724266 | K140: 5 | L140: de 60 a 100 mil
A141: Boa Vista_00100 | B141: Boa Vista | C141: RR | D141: 14 | E141: Centro-Oeste | F141: 00100 | G141: CELG-D | H141: 375374 | I141: 24 | J141: 4.266758825 | K141: 3 | L141: de 250 a 500 mil
A142: Bonfim_00159 | B142: Bonfim | C142: RR | D142: 14 | E142: Centro-Oeste | F142: 00159 | G142: CELG-D | H142: 12257 | I142: 22 | J142: 3.91119559 | K142: 5 | L142: de 60 a 100 mil
A143: Canta_00175 | B143: Canta | C143: RR | D143: 14 | E143: Centro-Oeste | F143: 00175 | G143: CELG-D | H143: 17868 | I143: 13 | J143: 2.31116103 | K143: 5 | L143: de 60 a 100 mil
A144: Caracarai_00209 | B144: Caracarai | C144: RR | D144: 14 | E144: Centro-Oeste | F144: 00209 | G144: CELG-D | H144: 21564 | I144: 12 | J144: 2.133379413 | K144: 5 | L144: de 60 a 100 mil
A145: Caroebe_00233 | B145: Caroebe | C145: RR | D145: 14 | E145: Sudeste | F145: 00233 | G145: AMPLA | H145: 9950 | I145: 31 | J145: 5.511230149 | K145: 5 | L145: de 60 a 100 mil
A146: Iracema_00282 | B146: Iracema | C146: RR | D146: 14 | E146: Norte | F146: 00282 | G146: CERR | H146: 11600 | I146: 30 | J146: 5.333448531 | K146: 5 | L146: de 60 a 100 mil
A147: Mucajai_00308 | B147: Mucajai | C147: RR | D147: 14 | E147: Centro-Oeste | F147: 00308 | G147: CELG-D | H147: 17528 | I147: 48 | J147: 8.53351765 | K147: 5 | L147: de 60 a 100 mil
A148: Normandia_00407 | B148: Normandia | C148: RR | D148: 14 | E148: Sudeste | F148: 00407 | G148: LIGHT | H148: 11045 | I148: 2 | J148: 0.3555632354 | K148: 5 | L148: de 60 a 100 mil
A149: Pacaraima_00456 | B149: Pacaraima | C149: RR | D149: 14 | E149: Sudeste | F149: 00456 | G149: LIGHT | H149: 15580 | I149: 13 | J149: 2.31116103 | K149: 5 | L149: de 60 a 100 mil
A150: Rorainopolis_00472 | B150: Rorainopolis | C150: RR | D150: 14 | E150: Norte | F150: 00472 | G150: CERR | H150: 29533 | I150: 40 | J150: 7.111264709 | K150: 5 | L150: de 60 a 100 mil
A151: Sao Joao da Baliza_00506 | B151: Sao Joao da Baliza | C151: RR | D151: 14 | E151: Centro-Oeste | F151: 00506 | G151: CELG-D | H151: 8052 | I151: 8 | J151: 1.422252942 | K151: 5 | L151: de 60 a 100 mil
A152: Sao Luiz_00605 | B152: Sao Luiz | C152: RR | D152: 14 | E152: Centro-Oeste | F152: 00605 | G152: CELG-D | H152: 7860 | I152: 5 | J152: 0.8889080886 | K152: 5 | L152: de 60 a 100 mil
A153: Uiramuta_00704 | B153: Uiramuta | C153: RR | D153: 14 | E153: Sudeste | F153: 00704 | G153: AMPLA | H153: 10325 | I153: 0 | J153: 0 | K153: 5 | L153: de 60 a 100 mil
A154: Abaetetuba_00107 | B154: Abaetetuba | C154: PA | D154: 15 | E154: Norte | F154: 00107 | G154: CELPA | H154: 156292 | I154: 281 | J154: 49.95663458 | K154: 4 | L154: de 100 a 250 mil
A155: Abel Figueiredo_00131 | B155: Abel Figueiredo | C155: PA | D155: 15 | E155: Norte | F155: 00131 | G155: CELPA | H155: 7382 | I155: 4 | J155: 0.7111264709 | K155: 5 | L155: de 60 a 100 mil
A156: Acara_00206 | B156: Acara | C156: PA | D156: 15 | E156: Norte | F156: 00206 | G156: CELPA | H156: 55513 | I156: 99 | J156: 17.60038015 | K156: 5 | L156: de 60 a 100 mil
A157: Afua_00305 | B157: Afua | C157: PA | D157: 15 | E157: Norte | F157: 00305 | G157: CELPA | H157: 38863 | I157: 0 | J157: 0 | K157: 5 | L157: de 60 a 100 mil
A158: agua Azul do Norte_00347 | B158: agua Azul do Norte | C158: PA | D158: 15 | E158: Norte | F158: 00347 | G158: CELPA | H158: 27241 | I158: 35 | J158: 6.22235662 | K158: 5 | L158: de 60 a 100 mil
A159: Alenquer_00404 | B159: Alenquer | C159: PA | D159: 15 | E159: Norte | F159: 00404 | G159: CELPA | H159: 56480 | I159: 83 | J159: 14.75587427 | K159: 5 | L159: de 60 a 100 mil
A160: Almeirim_00503 | B160: Almeirim | C160: PA | D160: 15 | E160: Norte | F160: 00503 | G160: CELPA | H160: 34142 | I160: 102 | J160: 18.13372501 | K160: 5 | L160: de 60 a 100 mil
A161: Altamira_00602 | B161: Altamira | C161: PA | D161: 15 | E161: Norte | F161: 00602 | G161: CELPA | H161: 113195 | I161: 485 | J161: 86.22408459 | K161: 4 | L161: de 100 a 250 mil
A162: Anajas_00701 | B162: Anajas | C162: PA | D162: 15 | E162: Norte | F162: 00701 | G162: CELPA | H162: 28859 | I162: 1 | J162: 0.1777816177 | K162: 5 | L162: de 60 a 100 mil
A163: Ananindeua_00800 | B163: Ananindeua | C163: PA | D163: 15 | E163: Norte | F163: 00800 | G163: CELPA | H163: 525566 | I163: 1592 | J163: 283.0283354 | K163: 2 | L163: de 500 mil a 1 milhão
A164: Anapu_00859 | B164: Anapu | C164: PA | D164: 15 | E164: Norte | F164: 00859 | G164: CELPA | H164: 27161 | I164: 21 | J164: 3.733413972 | K164: 5 | L164: de 60 a 100 mil
A165: Augusto Correa_00909 | B165: Augusto Correa | C165: PA | D165: 15 | E165: Norte | F165: 00909 | G165: CELPA | H165: 45516 | I165: 75 | J165: 13.33362133 | K165: 5 | L165: de 60 a 100 mil
A166: Aurora do Para_00958 | B166: Aurora do Para | C166: PA | D166: 15 | E166: Norte | F166: 00958 | G166: CELPA | H166: 30896 | I166: 82 | J166: 14.57809265 | K166: 5 | L166: de 60 a 100 mil
A167: Aveiro_01006 | B167: Aveiro | C167: PA | D167: 15 | E167: Norte | F167: 01006 | G167: CELPA | H167: 16371 | I167: 6 | J167: 1.066689706 | K167: 5 | L167: de 60 a 100 mil
A168: Bagre_01105 | B168: Bagre | C168: PA | D168: 15 | E168: Norte | F168: 01105 | G168: CELPA | H168: 30009 | I168: 2 | J168: 0.3555632354 | K168: 5 | L168: de 60 a 100 mil
A169: Baiao_01204 | B169: Baiao | C169: PA | D169: 15 | E169: Norte | F169: 01204 | G169: CELPA | H169: 46416 | I169: 28 | J169: 4.977885296 | K169: 5 | L169: de 60 a 100 mil
A170: Bannach_01253 | B170: Bannach | C170: PA | D170: 15 | E170: Norte | F170: 01253 | G170: CELPA | H170: 3310 | I170: 4 | J170: 0.7111264709 | K170: 5 | L170: de 60 a 100 mil
A171: Barcarena_01303 | B171: Barcarena | C171: PA | D171: 15 | E171: Norte | F171: 01303 | G171: CELPA | H171: 122294 | I171: 811 | J171: 144.180892 | K171: 4 | L171: de 100 a 250 mil
A172: Belem_01402 | B172: Belem | C172: PA | D172: 15 | E172: Norte | F172: 01402 | G172: CELPA | H172: 1485732 | I172: 6 | J172: 1.066689706 | K172: 1 | L172: Mais de 1 milhão
A173: Belterra_01451 | B173: Belterra | C173: PA | D173: 15 | E173: Norte | F173: 01451 | G173: CELPA | H173: 17624 | I173: 67 | J173: 11.91136839 | K173: 5 | L173: de 60 a 100 mil
A174: Benevides_01501 | B174: Benevides | C174: PA | D174: 15 | E174: Norte | F174: 01501 | G174: CELPA | H174: 61689 | I174: 165 | J174: 29.33396692 | K174: 5 | L174: de 60 a 100 mil
A175: Bom Jesus do Tocantins_01576 | B175: Bom Jesus do Tocantins | C175: PA | D175: 15 | E175: Norte | F175: 01576 | G175: CELPA | H175: 16841 | I175: 10 | J175: 1.777816177 | K175: 5 | L175: de 60 a 100 mil
A176: Bonito_01600 | B176: Bonito | C176: PA | D176: 15 | E176: Norte | F176: 01600 | G176: CELPA | H176: 16038 | I176: 25 | J176: 4.444540443 | K176: 5 | L176: de 60 a 100 mil
A177: Braganca_01709 | B177: Braganca | C177: PA | D177: 15 | E177: Norte | F177: 01709 | G177: CELPA | H177: 126436 | I177: 208 | J177: 36.97857648 | K177: 4 | L177: de 100 a 250 mil
A178: Brasil Novo_01725 | B178: Brasil Novo | C178: PA | D178: 15 | E178: Norte | F178: 01725 | G178: CELPA | H178: 15190 | I178: 14 | J178: 2.488942648 | K178: 5 | L178: de 60 a 100 mil
A179: Brejo Grande do Araguaia_01758 | B179: Brejo Grande do Araguaia | C179: PA | D179: 15 | E179: Norte | F179: 01758 | G179: CELPA | H179: 7392 | I179: 9 | J179: 1.600034559 | K179: 5 | L179: de 60 a 100 mil
A180: Breu Branco_01782 | B180: Breu Branco | C180: PA | D180: 15 | E180: Norte | F180: 01782 | G180: CELPA | H180: 64738 | I180: 130 | J180: 23.1116103 | K180: 5 | L180: de 60 a 100 mil
A181: Breves_01808 | B181: Breves | C181: PA | D181: 15 | E181: Norte | F181: 01808 | G181: CELPA | H181: 101891 | I181: 11 | J181: 1.955597795 | K181: 4 | L181: de 100 a 250 mil
A182: Bujaru_01907 | B182: Bujaru | C182: PA | D182: 15 | E182: Norte | F182: 01907 | G182: CELPA | H182: 28832 | I182: 40 | J182: 7.111264709 | K182: 5 | L182: de 60 a 100 mil
A183: Cachoeira do Piria_01956 | B183: Cachoeira do Piria | C183: PA | D183: 15 | E183: Norte | F183: 01956 | G183: CELPA | H183: 33178 | I183: 32 | J183: 5.689011767 | K183: 5 | L183: de 60 a 100 mil
A184: Cachoeira do Arari_02004 | B184: Cachoeira do Arari | C184: PA | D184: 15 | E184: Norte | F184: 02004 | G184: CELPA | H184: 23466 | I184: 19 | J184: 3.377850737 | K184: 5 | L184: de 60 a 100 mil
A185: Cameta_02103 | B185: Cameta | C185: PA | D185: 15 | E185: Norte | F185: 02103 | G185: CELPA | H185: 136390 | I185: 83 | J185: 14.75587427 | K185: 4 | L185: de 100 a 250 mil
A186: Canaa dos Carajas_02152 | B186: Canaa dos Carajas | C186: PA | D186: 15 | E186: Norte | F186: 02152 | G186: CELPA | H186: 36050 | I186: 264 | J186: 46.93434708 | K186: 5 | L186: de 60 a 100 mil
A187: Capanema_02202 | B187: Capanema | C187: PA | D187: 15 | E187: Norte | F187: 02202 | G187: CELPA | H187: 68616 | I187: 125 | J187: 22.22270221 | K187: 5 | L187: de 60 a 100 mil
A188: Capitao Poco_02301 | B188: Capitao Poco | C188: PA | D188: 15 | E188: Norte | F188: 02301 | G188: CELPA | H188: 54179 | I188: 121 | J188: 21.51157574 | K188: 5 | L188: de 60 a 100 mil
A189: Castanhal_02400 | B189: Castanhal | C189: PA | D189: 15 | E189: Norte | F189: 02400 | G189: CELPA | H189: 198294 | I189: 460 | J189: 81.77954415 | K189: 4 | L189: de 100 a 250 mil
A190: Chaves_02509 | B190: Chaves | C190: PA | D190: 15 | E190: Norte | F190: 02509 | G190: CELPA | H190: 23482 | I190: 0 | J190: 0 | K190: 5 | L190: de 60 a 100 mil
A191: Colares_02608 | B191: Colares | C191: PA | D191: 15 | E191: Norte | F191: 02608 | G191: CELPA | H191: 12040 | I191: 4 | J191: 0.7111264709 | K191: 5 | L191: de 60 a 100 mil
A192: Conceicao do Araguaia_02707 | B192: Conceicao do Araguaia | C192: PA | D192: 15 | E192: Norte | F192: 02707 | G192: CELPA | H192: 47734 | I192: 118 | J192: 20.97823089 | K192: 5 | L192: de 60 a 100 mil
A193: Concordia do Para_02756 | B193: Concordia do Para | C193: PA | D193: 15 | E193: Norte | F193: 02756 | G193: CELPA | H193: 32847 | I193: 81 | J193: 14.40031103 | K193: 5 | L193: de 60 a 100 mil
A194: Cumaru do Norte_02764 | B194: Cumaru do Norte | C194: PA | D194: 15 | E194: Norte | F194: 02764 | G194: CELPA | H194: 13179 | I194: 10 | J194: 1.777816177 | K194: 5 | L194: de 60 a 100 mil
A195: Curionopolis_02772 | B195: Curionopolis | C195: PA | D195: 15 | E195: Norte | F195: 02772 | G195: CELPA | H195: 18014 | I195: 29 | J195: =I195*$U$3 -> 5.155666914 | K195: =IF(H195>=$W$6,$U$6,IF(H195>=$W$7,$U$7,IF(H195>=$W$8,$U$8,IF(H195>=$W$9,$U$9,$U$10)))) -> 5 | L195: de 60 a 100 mil
A196: =CONCATENATE(B196,"_",F196) -> Curralinho_02806 | B196: Curralinho | C196: PA | D196: 15 | E196: Norte | F196: 02806 | G196: CELPA | H196: 33893 | I196: 2 | J196: 0.3555632354 | K196: 5 | L196: =VLOOKUP(K196,$U$6:$W$10,2,FALSE) -> de 60 a 100 mil
A197: Curua_02855 | B197: Curua | C197: PA | D197: 15 | E197: Norte | F197: 02855 | G197: CELPA | H197: 14197 | I197: 5 | J197: 0.8889080886 | K197: 5 | L197: de 60 a 100 mil
A198: Curuca_02905 | B198: Curuca | C198: PA | D198: 15 | E198: Norte | F198: 02905 | G198: CELPA | H198: 39540 | I198: 24 | J198: 4.266758825 | K198: 5 | L198: de 60 a 100 mil
A199: Dom Eliseu_02939 | B199: Dom Eliseu | C199: PA | D199: 15 | E199: Norte | F199: 02939 | G199: CELPA | H199: 58956 | I199: 54 | J199: 9.600207357 | K199: 5 | L199: de 60 a 100 mil
A200: Eldorado do Carajas_02954 | B200: Eldorado do Carajas | C200: PA | D200: 15 | E200: Norte | F200: 02954 | G200: CELPA | H200: 33674 | I200: 29 | J200: 5.155666914 | K200: 5 | L200: de 60 a 100 mil
... 5372 more rows

Sheet Distribuidoras&Tarifas (hidden)
A10: SubGrupo | B10: A4 | AJ10: 12
AZ11: Tabela de alíquota de impostos aplicados a cada distribuidora | BD11: Quantidade de empresas
C12: Azul | H12: Verde | M12: Convencional | Q12: Dados do usuário | X12: Azul | AA12: Valor da Tarifa (R$/MWh) | AB12: Valor da Tarifa com impostos (R$/MWh) | AC12: Valor da Tarifa (R$/kWh) | AD12: Valor da Tarifa com impostos (R$/kWh) | AE12: Composiçção do preço da tarifa Azul com os impostos | AI12: Verde | AL12: Valor da Tarifa (R$/MWh) | AM12: Valor da Tarifa (R$/kWh) | AN12: Convencional | AQ12: Valor da Tarifa (R$/MWh) | AR12: Valor da Tarifa (R$/kWh) | AZ12: Empresa | BA12: Aliquota | BB12: Check | BD12: Aqui | BE12: =COUNTA(AZ13:AZ107) -> 95
C13: TUSD-Azul | F13: TE-Horaria | H13: TUSD-Verde | K13: TE-Horaria | M13: TUSD-Convencional-A | O13: TE-Convencional | Q13: Potência | R13: =PotenciaFrota -> 60 | S13: kW | X13: TUSD-Azul | Z13: TE-Horaria | AE13: TUSD-Azul | AG13: TE-Horaria | AH13: Impostos | AI13: TUSD-Verde | AK13: TE-Horaria | AN13: TUSD-Convencional-A | AP13: TE-Convencional | AW13: ELETROPAULO - ELETROPAULO METROPOLITANA ELETRICIDADE DE SÃO PAULO S.A. | AX13: ok | AZ13: AME - AMAZONAS DISTRIBUIDORA DE ENERGIA S/A | BA13: 0.1308966718 | BB13: AME | BC13: 0.1308966718 | BD13: A4 | BE13: =COUNTA(W16:W65) -> 50
A14: Cod | B14: Escolha a Distribuidora | C14: TUSDa-DP | D14: TUSDa-DFP | E14: TUSDa-E | F14: TEh-EP | G14: TEh-EFP | H14: TUSDv-D | I14: TUSDv-EP | J14: TUSDv-EFP | K14: TEh-EP | L14: TEh-EFP | M14: TUSDca-D | N14: TUSDca-E | O14: TEc-E | Q14: Energia | R14: =ConsumoFrota -> 360 | S14: kWh | U14: CodProcv | V14: Cod | W14: Escolha a Distribuidora | X14: TUSDa-DFP | Y14: TUSDa-E | Z14: TEh-EFP | AE14: TUSDa-DFP | AF14: TUSDa-E | AG14: TEh-EFP | AH14: Impostos | AI14: TUSDv-D | AJ14: TUSDv-EFP | AK14: TEh-EFP | AN14: TUSDca-D | AO14: TUSDca-E | AP14: TEc-E | AW14: CPFL-PAULISTA - COMPANHIA PAULISTA DE FORÇA E LUZ | AX14: ok | AZ14: BOA VISTA - RORAIMA ENERGIA S.A | BA14: 0.1567175916
A15: NA | B15: Escolha a Distribuidora | Q15: Geração | R15: =Formulário!AA8 -> 288 | U15: 1 | V15: NA | W15: Escolha a Distribuidora | X15: =X66 -> 13503.0599 | Y15: =Y66 -> 8730.272907 | Z15: 25708.04469 | AA15: 462.3975453 | AB15: 621.3588107 | AC15: 0.4623975453 | AD15: 0.6213588107 | AE15: 0.1302378462 | AF15: 0.08420402109 | AG15: 0.247955678 | AH15: 0.1589612654 | AI15: 13503.0599 | AJ15: 8730.272907 | AK15: 25708.04469 | AL15: 462.3975453 | AM15: 0.4623975453 | AN15: 30756.6061 | AO15: 5506.12102 | AP15: 26763.70892 | AQ15: 607.8938661 | AR15: 0.6078938661 | AT15: Escolha a Distribuidora | AU15: =AVERAGE(AU16:AU65) -> 0.2537045239 | AW15: CEMIG-D - CEMIG DISTRIBUIÇÃO S.A | AX15: ok | AZ15: CEA - COMPANHIA DE ELETRICIDADE DO AMAPÁ | BA15: 0.1761552177 | BB15: BOA VISTA | BC15: 0.1567175916
A16: 4 | B16: AmE | C16: 26.65776616 | D16: 13.36156066 | E16: 54.71342484 | F16: 162.5638386 | G16: 162.5638386 | H16: 13.36156066 | I16: 1336.960545 | J16: 54.71342484 | K16: 162.5638386 | L16: 162.5638386 | M16: 32.5553939 | N16: 48.36669819 | O16: 162.5638386 | S16: dias | U16: 2 | V16: 4 | W16: AmE | X16: =($R$13)*D16*12 -> 9620.323673 | Y16: =($R$14/1000)*E16*$R$15 -> 5672.687887 | Z16: =($R$14/1000)*G16*$R$15 -> 16854.61879 | AA16: =SUM(X16:Z16)/($R$14*$R$15/1000) -> 310.0658791 | AB16: =AA16/(1-$AU16) -> 356.7652649 | AC16: =AA16/1000 -> 0.3100658791 | AD16: =AC16/(1-$AU16) -> 0.3567652649 | AE16: =X16/SUM($X16:$Z16)*$AC16 -> 0.09278861567 | AF16: =Y16/SUM($X16:$Z16)*$AC16 -> 0.05471342484 | AG16: =Z16/SUM($X16:$Z16)*$AC16 -> 0.1625638386 | AH16: =AD16-AC16 -> 0.04669938579 | AI16: =($R$13)*H16*12 -> 9620.323673 | AJ16: =($R$14/1000)*J16*$R$15 -> 5672.687887 | AK16: =($R$14/1000)*L16*$R$15 -> 16854.61879 | AL16: =SUM(AI16:AK16)/($R$14*$R$15/1000) -> 310.0658791 | AM16: =AL16/1000 -> 0.3100658791 | AN16: =($R$13)*M16*12 -> 23439.88361 | AO16: =($R$14/1000)*N16*$R$15 -> 5014.659268 | AP16: =($R$14/1000)*O16*$R$15 -> 16854.61879 | AQ16: =SUM(AN16:AP16)/($R$14*$R$15/1000) -> 437.0096611 | AR16: =AQ16/1000 -> 0.4370096611 | AT16: AmE | AU16: 0.1308966718 | AW16: COPEL-DIS - COPEL DISTRIBUIÇÃO S.A. | AX16: ok | AZ16: CEAL - COMPANHIA ENERGÉTICA DE ALAGOAS - CEAL | BA16: 0.2411754151
A17: 5 | B17: Bandeirante | C17: 43.8962055 | D17: 16.57102803 | E17: 218.5394925 | F17: 267.1177346 | G17: 161.9561144 | H17: 16.57102803 | I17: 2354.90115 | J17: 218.5394925 | K17: 267.1177346 | L17: 161.9561144 | M17: 48.1763767 | N17: 119.2974146 | O17: 170.7195828 | U17: 3 | V17: 5 | W17: Bandeirante | X17: 11931.14018 | Y17: 22658.17459 | Z17: 16791.60994 | AA17: 495.5721905 | AB17: 638.7966659 | AC17: =AA17/1000 -> 0.4955721905 | AD17: 0.6387966659 | AE17: 0.1150765836 | AF17: 0.2185394925 | AG17: 0.1619561144 | AH17: =AD17-AC17 -> 0.1432244754 | AI17: 11931.14018 | AJ17: 22658.17459 | AK17: 16791.60994 | AL17: 495.5721905 | AM17: =AL17/1000 -> 0.4955721905 | AN17: 34686.99123 | AO17: 12368.75595 | AP17: 17700.20634 | AQ17: 624.5751689 | AR17: =AQ17/1000 -> 0.6245751689 | AT17: Bandeirante | AU17: 0.2242098042 | AW17: CELESC-DIS - CELESC DISTRIBUIÇÃO S.A | AX17: ok | AZ17: CEBDIS - CEB DISTRIBUIÇÃO S.A. | BA17: 0.2441019952 | BB17: CEA | BC17: 0.1761552177
A18: 6 | B18: Boa Vista | C18: 44.30775632 | D18: 15.96176301 | E18: 116.8917719 | F18: 356.8626073 | G18: 232.9910528 | H18: 15.96176301 | I18: 2263.187309 | J18: 116.8917719 | K18: 356.8626073 | L18: 232.9910528 | M18: 47.86293457 | N18: 68.07299205 | O18: 243.3136823 | U18: 4 | V18: 6 | W18: Boa Vista | X18: 11492.46936 | Y18: 12119.33891 | Z18: 24156.51235 | AA18: 460.7284011 | AB18: 546.3512538 | AC18: 0.4607284011 | AD18: 0.5463512538 | AE18: 0.1108455764 | AF18: 0.1168917719 | AG18: 0.2329910528 | AH18: 0.08562285268 | AI18: 11492.46936 | AJ18: 12119.33891 | AK18: 24156.51235 | AL18: 460.7284011 | AM18: =AL18/1000 -> 0.4607284011 | AN18: 34461.31289 | AO18: 7057.807815 | AP18: 25226.76259 | AQ18: 643.7681644 | AR18: =AQ18/1000 -> 0.6437681644 | AT18: Boa Vista | AU18: 0.1567175916 | AW18: LIGHT - LIGHT SERVIÇOS DE ELETRICIDADE S A | AX18: ok | AZ18: CEDRAP - COOPERATIVA DE ELETRIFICAÇÃO E DESENVOLVIMENTO RURAL DO ALTO PARAÍBA LTDA | BA18: 0.1908982164 | BB18: CEAL | BC18: 0.2411754151
A19: 9 | B19: CEA | C19: 44.27514083 | D19: 17.2362826 | E19: 88.39231552 | F19: 399.5627341 | G19: 260.7757192 | H19: 17.2362826 | I19: 2236.0635 | J19: 88.39231552 | K19: 399.5627341 | L19: 260.7757192 | M19: 49.11448394 | N19: 67.98131575 | O19: 272.3413038 | U19: 5 | V19: 9 | W19: CEA | X19: 12410.12348 | Y19: 9164.515273 | Z19: 27037.22656 | AA19: 468.8644417 | AB19: 569.1174499 | AC19: 0.4688644417 | AD19: 0.5691174499 | AE19: 0.119696407 | AF19: 0.08839231552 | AG19: 0.2607757192 | AH19: 0.1002530083 | AI19: 12410.12348 | AJ19: 9164.515273 | AK19: 27037.22656 | AL19: 468.8644417 | AM19: =AL19/1000 -> 0.4688644417 | AN19: 35362.42843 | AO19: 7048.302817 | AP19: 28236.34637 | AQ19: 681.3954246 | AR19: =AQ19/1000 -> 0.6813954246 | AT19: CEA | AU19: 0.1761552177 | AW19: COELBA - COMPANHIA DE ELETRICIDADE DO ESTADO DA BAHIA | AX19: ok | AZ19: CEDRI - COOPERATIVA DE ELETRIFICAÇÃO E DISTRIBUIÇÃO DA REGIÃO DE ITARIRI | BA19: 0.216751199 | BB19: CEBDIS | BC19: 0.2441019952
A20: 8 | B20: Ceal | C20: 27.90438382 | D20: 11.54928282 | E20: 77.58811579 | F20: 424.2307344 | G20: 277.2927506 | H20: 11.54928282 | I20: 1432.343858 | J20: 77.58811579 | K20: 424.2307344 | L20: 277.2927506 | M20: 31.64025032 | N20: 62.54692467 | O20: 289.5375826 | U20: 6 | V20: 8 | W20: Ceal | X20: 8315.483633 | Y20: 8044.335846 | Z20: 28749.71238 | AA20: 435.0842194 | AB20: 573.3660032 | AC20: 0.4350842194 | AD20: 0.5733660032 | AE20: 0.08020335294 | AF20: 0.07758811579 | AG20: 0.2772927506 | AH20: 0.1382817839 | AI20: 8315.483633 | AJ20: 8044.335846 | AK20: 28749.71238 | AL20: 435.0842194 | AM20: 0.4350842194 | AN20: 22780.98023 | AO20: 6484.86515 | AP20: 30019.25656 | AQ20: 571.8084679 | AR20: 0.5718084679 | AT20: Ceal | AU20: 0.2411754151 | AW20: ELEKTRO - ELEKTRO REDES S.A. | AX20: ok | AZ20: CEEE-D - COMPANHIA ESTADUAL DE DISTRIBUIÇÃO DE ENERGIA ELÉTRICA - CEEE-D | BA20: 0.2817400938 | BB20: CELESC-DIS | BC20: 0.2936980229
A21: 10 | B21: CEB-DIS 2017 | C21: 83.29689677 | D21: 24.36407881 | E21: 129.3550964 | F21: 381.3319366 | G21: 247.4120044 | H21: 24.36407881 | I21: 4171.146576 | J21: 129.3550964 | K21: 381.3319366 | L21: 247.4120044 | M21: 84.33789344 | N21: 74.29692049 | O21: 258.5719987 | U21: 7 | V21: 10 | W21: CEB-DIS 2017 | X21: 17542.13675 | Y21: 13411.53639 | Z21: 25651.67661 | AA21: 545.9620925 | AB21: 722.2695245 | AC21: 0.5459620925 | AD21: 0.7222695245 | AE21: 0.1691949918 | AF21: 0.1293550964 | AG21: 0.2474120044 | AH21: 0.176307432 | AI21: 17542.13675 | AJ21: 13411.53639 | AK21: 25651.67661 | AL21: 545.9620925 | AM21: 0.5459620925 | AN21: 60723.28328 | AO21: 7703.104716 | AP21: 26808.74483 | AQ21: 918.5487348 | AR21: 0.9185487348 | AT21: CEB-DIS 2017 | AU21: 0.2441019952 | AW21: CELPE - COMPANHIA ENERGÉTICA DE PERNAMBUCO | AX21: ok | AZ21: CEJAMA - COOPERATIVA DE ELETRICIDADE JACINTO MACHADO | BA21: 0.2486745031 | BB21: CELG-D | BC21: 0.3537165553
A22: 11 | B22: Celesc-DIS | C22: 39.81269945 | D22: 14.32034919 | E22: 64.73135685 | F22: 347.9234047 | G22: 224.2953677 | H22: 14.32034919 | I22: 1997.336959 | J22: 64.73135685 | K22: 347.9234047 | L22: 224.2953677 | M22: 42.98550844 | N22: 40.96943546 | O22: 234.5977042 | U22: 8 | V22: 11 | W22: Celesc-DIS | X22: 10310.65141 | Y22: 6711.347078 | Z22: 23254.94373 | AA22: 388.4735939 | AB22: 550.0106279 | AC22: 0.3884735939 | AD22: 0.5500106279 | AE22: 0.09944686934 | AF22: 0.06473135685 | AG22: 0.2242953677 | AH22: 0.161537034 | AI22: 10310.65141 | AJ22: 6711.347078 | AK22: 23254.94373 | AL22: 388.4735939 | AM22: 0.3884735939 | AN22: 30949.56608 | AO22: 4247.711069 | AP22: 24323.08997 | AQ22: 574.0776149 | AR22: 0.5740776149 | AT22: Celesc-DIS | AU22: 0.2936980229 | AW22: ENEL CE - COMPANHIA ENERGETICA DO CEARA | AX22: ok | AZ22: CELESC-DIS - CELESC DISTRIBUIÇÃO S.A | BA22: 0.2936980229 | BB22: CELPA | BC22: 0.2713744677
A23: 12 | B23: Celg-D | C23: 66.90703991 | D23: 22.21968429 | E23: 71.89273769 | F23: 360.9460402 | G23: 230.6120439 | H23: 22.21968429 | I23: 3322.237743 | J23: 71.89273769 | K23: 360.9460402 | L23: 230.6120439 | M23: 70.39272876 | N23: 45.20092054 | O23: 241.4732103 | U23: 9 | V23: 12 | W23: Celg-D | X23: 15998.17269 | Y23: 7453.839043 | Z23: 23909.85672 | AA23: 456.8081448 | AB23: 706.823219 | AC23: 0.4568081448 | AD23: 0.706823219 | AE23: 0.1543033631 | AF23: 0.07189273769 | AG23: 0.2306120439 | AH23: 0.2500150742 | AI23: 15998.17269 | AJ23: 7453.839043 | AK23: 23909.85672 | AL23: 456.8081448 | AM23: 0.4568081448 | AN23: 50682.76471 | AO23: 4686.431442 | AP23: 25035.94244 | AQ23: 775.512525 | AR23: 0.775512525 | AT23: Celg-D | AU23: 0.3537165553 | AW23: EDP SP - EDP SÃO PAULO DISTRIBUIÇÃO DE ENERGIA S.A. | AZ23: CELG-D - CELG DISTRIBUIÇÃO S.A. | BA23: 0.3537165553 | BB23: CELPE | BC23: 0.2583638301
A24: 13 | B24: Celpa | C24: 43.52803977 | D24: 14.19730079 | E24: 85.31994641 | F24: 380.5744414 | G24: 249.4783202 | H24: 14.19730079 | I24: 2195.649039 | J24: 85.31994641 | K24: 380.5744414 | L24: 249.4783202 | M24: 45.5376699 | N24: 63.63766862 | O24: 260.402997 | U24: 10 | V24: 13 | W24: Celpa | X24: 10222.05657 | Y24: 8845.972044 | Z24: 25865.91224 | AA24: 433.3906333 | AB24: 594.8057185 | AC24: 0.4333906333 | AD24: 0.5948057185 | AE24: 0.09859236662 | AF24: 0.08531994641 | AG24: 0.2494783202 | AH24: 0.1614150852 | AI24: 10222.05657 | AJ24: 8845.972044 | AK24: 25865.91224 | AL24: 433.3906333 | AM24: 0.4333906333 | AN24: 32787.12232 | AO24: 6597.953483 | AP24: 26998.58273 | AQ24: 640.2744844 | AR24: 0.6402744844 | AT24: Celpa | AU24: 0.2713744677 | AW24: CPFL- PIRATININGA - COMPANHIA PIRATININGA DE FORÇA E LUZ | AZ24: CELPA - CENTRAIS ELÉTRICAS DO PARÁ S.A. - CELPA | BA24: 0.2713744677 | BB24: CEMAR | BC24: 0.2117180373
A25: 14 | B25: Celpe | C25: 34.16986856 | D25: 12.61131608 | E25: 90.33609349 | F25: 360.9478052 | G25: 228.716931 | H25: 12.61131608 | I25: 1749.557158 | J25: 90.33609349 | K25: 360.9478052 | L25: 228.716931 | M25: 37.21336065 | N25: 54.34036309 | O25: 239.7361705 | U25: 11 | V25: 14 | W25: Celpe | X25: 9080.147579 | Y25: 9366.046173 | Z25: 23713.3714 | AA25: 406.6316084 | AB25: 548.2898824 | AC25: 0.4066316084 | AD25: 0.5482898824 | AE25: 0.08757858391 | AF25: 0.09033609349 | AG25: 0.228716931 | AH25: 0.141658274 | AI25: 9080.147579 | AJ25: 9366.046173 | AK25: 23713.3714 | AL25: 406.6316084 | AM25: 0.4066316084 | AN25: 26793.61967 | AO25: 5634.008845 | AP25: 24855.84616 | AQ25: 552.5026492 | AR25: 0.5525026492 | AT25: Celpe | AU25: 0.2583638301 | AW25: CELG-D - CELG DISTRIBUIÇÃO S.A. | AX25: ok | AZ25: CELPE - COMPANHIA ENERGÉTICA DE PERNAMBUCO | BA25: 0.2583638301 | BB25: CEMIG-D | BC25: 0.2278019086
A26: 15 | B26: Cemar | C26: 154.5094227 | D26: 55.73568155 | E26: 89.21972856 | F26: 163.0503905 | G26: 163.0503905 | H26: 55.73568155 | I26: 7521.131694 | J26: 89.21972856 | K26: 163.0503905 | L26: 163.0503905 | M26: 166.9827527 | N26: 66.74293597 | O26: 163.0503905 | U26: 12 | V26: 15 | W26: Cemar | X26: 40129.69072 | Y26: 9250.301457 | Z26: 16905.06448 | AA26: 639.3234631 | AB26: 811.0339871 | AC26: 0.6393234631 | AD26: 0.8110339871 | AE26: 0.3870533441 | AF26: 0.08921972856 | AG26: 0.1630503905 | AH26: 0.171710524 | AI26: 40129.69072 | AJ26: 9250.301457 | AK26: 16905.06448 | AL26: 639.3234631 | AM26: 0.6393234631 | AN26: 120227.582 | AO26: 6919.907602 | AP26: 16905.06448 | AQ26: 1389.395776 | AR26: 1.389395776 | AT26: Cemar | AU26: 0.2117180373 | AW26: RGE SUL - RGE SUL DISTRIBUIDORA DE ENERGIA S.A. | AX26: ok | AZ26: CEMAR - COMPANHIA ENERGÉTICA DO MARANHÃO | BA26: 0.2117180373 | BB26: CEPISA | BC26: 0.2940863988
A27: 3 | B27: Cemig | C27: 38.40015182 | D27: 12.80005061 | E27: 128.350174 | F27: 464.0105908 | G27: 271.2169063 | H27: 12.80005061 | I27: 1987.648078 | J27: 128.350174 | K27: 464.0105908 | L27: 271.2169063 | M27: 40.44819408 | N27: 69.36834138 | O27: 287.2830466 | U27: 13 | V27: 3 | W27: Cemig | X27: 9216.036437 | Y27: 13307.34604 | Z27: 28119.76884 | AA27: 488.4563206 | AB27: 632.5531312 | AC27: 0.4884563206 | AD27: 0.6325531312 | AE27: 0.08888924033 | AF27: 0.128350174 | AG27: 0.2712169063 | AH27: 0.1440968106 | AI27: 9216.036437 | AJ27: 13307.34604 | AK27: 28119.76884 | AL27: 488.4563206 | AM27: 0.4884563206 | AN27: 29122.69974 | AO27: 7192.109635 | AP27: 29785.50628 | AQ27: 637.5416247 | AR27: 0.6375416247 | AT27: Cemig | AU27: 0.2278019086 | AW27: RGE - RIO GRANDE ENERGIA SA | AX27: ok | AZ27: CEMIG-D - CEMIG DISTRIBUIÇÃO S.A | BA27: 0.2278019086
A28: 16 | B28: Cepisa | C28: 148.2918296 | D28: 53.739965 | E28: 81.94786746 | F28: 161.0514811 | G28: 161.0514811 | H28: 53.739965 | I28: 7214.793174 | J28: 81.94786746 | K28: 161.0514811 | L28: 161.0514811 | M28: 160.510355 | N28: 62.78097581 | O28: 161.0514811 | U28: 14 | V28: 16 | W28: Cepisa | X28: 38692.7748 | Y28: 8496.354898 | Z28: 16697.81756 | AA28: 616.1935499 | AB28: 872.9022204 | AC28: 0.6161935499 | AD28: 0.8729022204 | AE28: 0.3731942014 | AF28: 0.08194786746 | AG28: 0.1610514811 | AH28: 0.2567086705 | AI28: 38692.7748 | AJ28: 8496.354898 | AK28: 16697.81756 | AL28: 616.1935499 | AM28: 0.6161935499 | AN28: 115567.4556 | AO28: 6509.131572 | AP28: 16697.81756 | AQ28: 1338.4877 | AR28: 1.3384877 | AT28: Cepisa | AU28: 0.2940863988 | AW28: CEEE-D - COMPANHIA ESTADUAL DE DISTRIBUIÇÃO DE ENERGIA ELÉTRICA - CEEE-D | AZ28: CEPISA - COMPANHIA ENERGÉTICA DO PIAUÍ | BA28: 0.2940863988
A29: 19 | B29: Cercos | C29: 31.31339415 | D29: 10.65417093 | E29: 134.2552487 | F29: 355.1767429 | G29: 230.0340479 | H29: 10.65417093 | I29: 1654.022453 | J29: 134.2552487 | K29: 355.1767429 | L29: 230.0340479 | M29: 33.19998732 | N29: 94.84094166 | O29: 240.4626058 | U29: 15 | V29: 19 | W29: Cercos | X29: 7671.00307 | Y29: 13919.58418 | Z29: 23849.93009 | AA29: 438.2765947 | AB29: 482.7370752 | AC29: 0.4382765947 | AD29: 0.4827370752 | AE29: 0.07398729813 | AF29: 0.1342552487 | AG29: 0.2300340479 | AH29: 0.0444604805 | AI29: 7671.00307 | AJ29: 13919.58418 | AK29: 23849.93009 | AL29: 438.2765947 | AM29: 0.4382765947 | AN29: 23903.99087 | AO29: 9833.108831 | AP29: 24931.16297 | AQ29: 565.859015 | AR29: 0.565859015 | AT29: Cercos | AU29: 0.09210082006 | AW29: ENEL RJ - AMPLA ENERGIA E SERVIÇOS S.A. | AX29: ok | AZ29: CEPRAG - COOPERATIVA DE ELETRICIDADE PRAIA GRANDE | BA29: 0.2530046653 | BB29: CERCOS | BC29: 0.09210082006
A30: 20 | B30: Cernhe | C30: 124.1772598 | D30: 47.67992789 | E30: 73.5844513 | F30: 526.1128714 | G30: 526.1128714 | H30: 47.67992789 | I30: 6046.516346 | J30: 73.5844513 | K30: 526.1128714 | L30: 526.1128714 | M30: 0 | N30: 57.42847321 | O30: 526.1128714 | U30: 16 | V30: 20 | W30: Cernhe | X30: 34329.54808 | Y30: 7629.23591 | Z30: 54547.3825 | AA30: 930.807933 | AB30: 990.13389 | AC30: 0.930807933 | AD30: 0.99013389 | AE30: 0.3311106104 | AF30: 0.0735844513 | AG30: 0.5261128714 | AH30: 0.05932595698 | AI30: 34329.54808 | AJ30: 7629.23591 | AK30: 54547.3825 | AL30: 930.807933 | AM30: 0.930807933 | AN30: 0 | AO30: 5954.184102 | AP30: 54547.3825 | AQ30: 583.5413446 | AR30: 0.5835413446 | AT30: Cernhe | AU30: 0.05991710573 | AW30: CELPA - CENTRAIS ELÉTRICAS DO PARÁ S.A. - CELPA | AX30: ok | AZ30: CERAÇÁ - COOPERATIVA DISTRIBUIDORA DE ENERGIA VALE DO ARAÇÁ | BA30: 0.2584232978 | BB30: CERNHE | BC30: 0.05991710573
A31: 21 | B31: Ceron | C31: 79.07453453 | D31: 29.21949699 | E31: 65.07507901 | F31: 181.6991973 | G31: 181.6991973 | H31: 29.21949699 | I31: 3868.580521 | J31: 65.07507901 | K31: 181.6991973 | L31: 181.6991973 | M31: 0 | N31: 43.41463802 | O31: 181.6991973 | U31: 17 | V31: 21 | W31: Ceron | X31: 21038.03783 | Y31: 6746.984192 | Z31: 18838.57278 | AA31: 449.6874499 | AB31: 554.1194559 | AC31: 0.4496874499 | AD31: 0.5541194559 | AE31: 0.2029131735 | AF31: 0.06507507901 | AG31: 0.1816991973 | AH31: 0.104432006 | AI31: 21038.03783 | AJ31: 6746.984192 | AK31: 18838.57278 | AL31: 449.6874499 | AM31: 0.4496874499 | AN31: 0 | AO31: 4501.22967 | AP31: 18838.57278 | AQ31: 225.1138353 | AR31: 0.2251138353 | AT31: Ceron | AU31: 0.1884647884 | AW31: AME - AMAZONAS DISTRIBUIDORA DE ENERGIA S/A | AX31: ok | AZ31: CERAL DIS - COOPERATIVA DE DISTRIBUIÇÃO DE ENERGIA ELÉTRICA DE ARAPOTI | BA31: 0.2919477313 | BB31: CERON | BC31: 0.1884647884
A32: 22 | B32: Cerpro | C32: 74.67707321 | D32: 44.93364448 | E32: 77.19996428 | F32: 230.8703402 | G32: 230.8703402 | H32: 44.93364448 | I32: 3669.261493 | J32: 77.19996428 | K32: 230.8703402 | L32: 230.8703402 | M32: 98.69955328 | N32: 59.86205537 | O32: 230.8703402 | U32: 18 | V32: 22 | W32: Cerpro | X32: 32352.22403 | Y32: 8004.092296 | Z32: 23936.63687 | AA32: 620.1095023 | AB32: 759.9277915 | AC32: 0.6201095023 | AD32: 0.7599277915 | AE32: 0.3120391978 | AF32: 0.07719996428 | AG32: 0.2308703402 | AH32: 0.1398182892 | AI32: 32352.22403 | AJ32: 8004.092296 | AK32: 23936.63687 | AL32: 620.1095023 | AM32: 0.6201095023 | AN32: 71063.67836 | AO32: 6206.4979 | AP32: 23936.63687 | AQ32: 976.14596 | AR32: 0.97614596 | AT32: Cerpro | AU32: 0.1839889142 | AZ32: CERBRANORTE - COOPERATIVA DE ELETRIFICAÇÃO DE BRAÇO DO NORTE | BA32: 0.2511250444 | BB32: CERPRO | BC32: 0.1839889142
A33: 23 | B33: CERRP | C33: 42.11954012 | D33: 17.26544129 | E33: 68.73917283 | F33: 303.7139603 | G33: 197.7515876 | H33: 17.26544129 | I33: 2111.338368 | J33: 68.73917283 | K33: 303.7139603 | L33: 197.7515876 | M33: 47.59121689 | N33: 57.67052001 | O33: 206.5817853 | U33: 19 | V33: 23 | W33: CERRP | X33: 12431.11773 | Y33: 7126.877439 | Z33: 20502.8846 | AA33: 386.3896583 | AB33: 479.0606233 | AC33: 0.3863896583 | AD33: 0.4790606233 | AE33: 0.1198988978 | AF33: 0.06873917283 | AG33: 0.1977515876 | AH33: 0.09267096505 | AI33: 12431.11773 | AJ33: 7126.877439 | AK33: 20502.8846 | AL33: 386.3896583 | AM33: 0.3863896583 | AN33: 34265.67616 | AO33: 5979.279515 | AP33: 21418.3995 | AQ33: 594.7468671 | AR33: 0.5947468671 | AT33: CERRP | AU33: 0.1934430854 | AZ33: CERCOS - COOPERATIVA DE ELETRIFICAÇÃO E DESENVOLVIMENTO RURAL CENTRO SUL DE SERGIPE LTDA | BA33: 0.09210082006 | BB33: CERRP | BC33: 0.1934430854
A34: 24 | B34: Certaja | C34: 25.91254624 | D34: 9.477221696 | E34: 57.71482139 | F34: 461.7545038 | G34: 286.256321 | H34: 9.477221696 | I34: 1316.28464 | J34: 57.71482139 | K34: 461.7545038 | L34: 286.256321 | M34: 28.13418943 | N34: 50.14876882 | O34: 300.8811695 | U34: 20 | V34: 24 | W34: Certaja | X34: 6823.599621 | Y34: 5983.872681 | Z34: 29679.05536 | AA34: 409.7851819 | AB34: 508.4081443 | AC34: 0.4097851819 | AD34: 0.5084081443 | AE34: 0.06581403955 | AF34: 0.05771482139 | AG34: 0.286256321 | AH34: 0.09862296237 | AI34: 6823.599621 | AJ34: 5983.872681 | AK34: 29679.05536 | AL34: 409.7851819 | AM34: 0.4097851819 | AN34: 20256.61639 | AO34: 5199.424351 | AP34: 31195.35966 | AQ34: 546.4062538 | AR34: 0.5464062538 | AT34: Certaja | AU34: 0.1939838366 | AZ34: CEREJ - COOPERATIVA DE PRESTAÇÃO DE SERVIÇOS PÚBLICOS DE DISTRIBUIÇÃO DE ENERGIA ELÉTRICA SENADOR ESTEVES JÚNIOR | BA34: 0.2542606911 | BB34: CERTAJA | BC34: 0.1939838366
A35: 1 | B35: Chesp V02 | C35: 28.00748796 | D35: 13.46567928 | E35: 226.2542922 | F35: 432.2918603 | G35: 273.5331874 | H35: 13.46567928 | I35: 1580.578232 | J35: 226.2542922 | K35: 432.2918603 | L35: 273.5331874 | M35: 33.63169389 | N35: 122.7619913 | O35: 286.7630768 | U35: 21 | V35: 1 | W35: Chesp V02 | X35: 9695.289085 | Y35: 23458.04501 | Z35: 28359.92087 | AA35: 593.2991413 | AB35: 907.4918277 | AC35: 0.5932991413 | AD35: 0.9074918277 | AE35: 0.0935116617 | AF35: 0.2262542922 | AG35: 0.2735331874 | AH35: 0.3141926864 | AI35: 9695.289085 | AJ35: 23458.04501 | AK35: 28359.92087 | AL35: 593.2991413 | AM35: 0.5932991413 | AN35: 24214.8196 | AO35: 12727.96326 | AP35: 29731.5958 | AQ35: 643.0784979 | AR35: 0.6430784979 | AT35: Chesp V02 | AU35: 0.3462209541 | AZ35: CERES - COOPERATIVA DE ELETRIFICAÇÃO RURAL DE RESENDE LTDA | BA35: 0.01131923735 | BB35: CHESP | BC35: 0.3462209541
A36: 26 | B36: Coelba | C36: 47.89437088 | D36: 18.28811317 | E36: 64.15822012 | F36: 309.1538734 | G36: 193.6673338 | H36: 18.28811317 | I36: 2387.801763 | J36: 64.15822012 | K36: 309.1538734 | L36: 193.6673338 | M36: 52.77208113 | N36: 54.3341661 | O36: 203.2912121 | U36: 22 | V36: 26 | W36: Coelba | X36: 13167.44149 | Y36: 6651.924263 | Z36: 20079.42916 | AA36: 384.8263398 | AB36: 497.154687 | AC36: 0.3848263398 | AD36: 0.497154687 | AE36: 0.1270007859 | AF36: 0.06415822012 | AG36: 0.1936673338 | AH36: 0.1123283472 | AI36: 13167.44149 | AJ36: 6651.924263 | AK36: 20079.42916 | AL36: 384.8263398 | AM36: 0.3848263398 | AN36: 37995.89841 | AO36: 5633.366341 | AP36: 21077.23287 | AQ36: 624.0981638 | AR36: 0.6240981638 | AT36: Coelba | AU36: 0.2259424483 | AZ36: CERGAL - COOPERATIVA DE ELETRIFICAÇÃO ANITA GARIBALDI LTDA | BA36: 0.2545882634
A37: 27 | B37: Cooperaliança | C37: 32.05891439 | D37: 14.32219939 | E37: 71.18057609 | F37: 385.8550367 | G37: 254.7088754 | H37: 14.32219939 | I37: 1627.347069 | J37: 71.18057609 | K37: 385.8550367 | L37: 254.7088754 | M37: 37.40468837 | N37: 56.28541479 | O37: 265.6377222 | U37: 23 | V37: 27 | W37: Cooperaliança | X37: 10311.98356 | Y37: 7380.002129 | Z37: 26408.2162 | AA37: 425.3491695 | AB37: 569.0068282 | AC37: 0.4253491695 | AD37: 0.5690068282 | AE37: 0.09945971798 | AF37: 0.07118057609 | AG37: 0.2547088754 | AH37: 0.1436576587 | AI37: 10311.98356 | AJ37: 7380.002129 | AK37: 26408.2162 | AL37: 425.3491695 | AM37: 0.4253491695 | AN37: 26931.37563 | AO37: 5835.671806 | AP37: 27541.31904 | AQ37: 581.6779173 | AR37: 0.5816779173 | AT37: Cooperaliança | AU37: 0.2524708872 | AZ37: CERGAPA - COOPERATIVA DE ELETRICIDADE GRÃO PARÁ | BA37: 0.2505806971 | BB37: COELBA | BC37: 0.2259424483
A38: 28 | B38: Copel-DIS | C38: 48.63587086 | D38: 17.7846291 | E38: 50.3631787 | F38: 347.9970756 | G38: 224.0617041 | H38: 17.7846291 | I38: 2413.219429 | J38: 50.3631787 | K38: 347.9970756 | L38: 224.0617041 | M38: 52.80242159 | N38: 34.05837961 | O38: 234.3896517 | U38: 24 | V38: 28 | W38: Copel-DIS | X38: 12804.93295 | Y38: 5221.654368 | Z38: 23230.71748 | AA38: 397.9292515 | AB38: 603.2171101 | AC38: 0.3979292515 | AD38: 0.6032171101 | AE38: 0.1235043688 | AF38: 0.0503631787 | AG38: 0.2240617041 | AH38: 0.2052878586 | AI38: 12804.93295 | AJ38: 5221.654368 | AK38: 23230.71748 | AL38: 397.9292515 | AM38: 0.3979292515 | AN38: 38017.74354 | AO38: 3531.172798 | AP38: 24301.51909 | AQ38: 635.1315146 | AR38: 0.6351315146 | AT38: Copel-DIS | AU38: 0.3403216771 | AZ38: CERGRAL - COOPERATIVA DE ELETRICIDADE DE GRAVATAL | BA38: 0.2499997106 | BB38: COOPERALIANÇA | BC38: 0.2524708872
A39: 29 | B39: Cosern | C39: 20.51046497 | D39: 8.192172135 | E39: 69.78090051 | F39: 416.2192273 | G39: 275.1634145 | H39: 8.192172135 | I39: 1066.01144 | J39: 69.78090051 | K39: 416.2192273 | L39: 275.1634145 | M39: 22.95986744 | N39: 57.918703 | O39: 286.9180655 | U39: 25 | V39: 29 | W39: Cosern | X39: 5898.363938 | Y39: 7234.883765 | Z39: 28528.94281 | AA39: 401.8343992 | AB39: 545.7048928 | AC39: 0.4018343992 | AD39: 0.5457048928 | AE39: 0.05689008427 | AF39: 0.06978090051 | AG39: 0.2751634145 | AH39: 0.1438704936 | AI39: 5898.363938 | AJ39: 7234.883765 | AK39: 28528.94281 | AL39: 401.8343992 | AM39: 0.4018343992 | AN39: 16531.10456 | AO39: 6005.011127 | AP39: 29747.66503 | AQ39: 504.2802924 | AR39: 0.5042802924 | AT39: Cosern | AU39: 0.2636415679 | AZ39: CERILUZ - COOPERATIVA REGIONAL DE ENERGIA E DESENVOLVIMENTO IJUÍ LTDA | BA39: 0.2172287316 | BB39: COPEL-DIS | BC39: 0.3403216771
A40: 30 | B40: CPFL Piratininga | C40: 32.51339314 | D40: 13.58100614 | E40: 57.86947198 | F40: 409.7169623 | G40: 249.8592102 | H40: 13.58100614 | I40: 1636.276811 | J40: 57.86947198 | K40: 409.7169623 | L40: 249.8592102 | M40: 36.99045947 | N40: 49.59567244 | O40: 263.1806896 | U40: 26 | V40: 30 | W40: CPFL Piratininga | X40: 9778.324419 | Y40: 5999.906855 | Z40: 25905.40292 | AA40: 402.0412248 | AB40: 522.2464175 | AC40: 0.4020412248 | AD40: 0.5222464175 | AE40: 0.09431254262 | AF40: 0.05786947198 | AG40: 0.2498592102 | AH40: 0.1202051927 | AI40: 9778.324419 | AJ40: 5999.906855 | AK40: 25905.40292 | AL40: 402.0412248 | AM40: 0.4020412248 | AN40: 26633.13082 | AO40: 5142.079318 | AP40: 27286.5739 | AQ40: 569.6545528 | AR40: 0.5696545528 | AT40: CPFL Piratininga | AU40: 0.2301694921 | AZ40: CERIM - COOPERATIVA DE ELETRIFICAÇÃO RURAL ITU-MAIRINQUE | BA40: 0.1918595929 | BB40: COSERN | BC40: 0.2636415679
A41: 31 | B41: Demei | C41: 28.37323614 | D41: 11.04996189 | E41: 51.18749472 | F41: 336.9279088 | G41: 227.8099435 | H41: 11.04996189 | I41: 1431.810016 | J41: 51.18749472 | K41: 336.9279088 | L41: 227.8099435 | M41: 31.47870896 | N41: 46.39089041 | O41: 236.9031073 | U41: 27 | V41: 31 | W41: Demei | X41: 7955.972563 | Y41: 5307.119453 | Z41: 23619.33494 | AA41: 355.7332847 | AB41: 490.3129768 | AC41: 0.3557332847 | AD41: 0.4903129768 | AE41: 0.07673584648 | AF41: 0.05118749472 | AG41: 0.2278099435 | AH41: 0.1345796921 | AI41: 7955.972563 | AJ41: 5307.119453 | AK41: 23619.33494 | AL41: 355.7332847 | AM41: 0.3557332847 | AN41: 22664.67045 | AO41: 4809.807518 | AP41: 24562.11416 | AQ41: 501.8961433 | AR41: 0.5018961433 | AT41: Demei | AU41: 0.2744771167 | AZ41: CERIPA - COOPERATIVA DE ELETRIFICAÇÃO RURAL DE ITAÍ-PARANAPANEMA-AVARÉ LTDA | BA41: 0.09899889818 | BB41: CPFL-PIRATININGA | BC41: 0.2301694921
A42: 2 | B42: DMED V02 | C42: 24.63107176 | D42: 9.608059103 | E42: 74.79138027 | F42: 413.9590421 | G42: 272.743824 | H42: 9.608059103 | I42: 1271.444628 | J42: 74.79138027 | K42: 413.9590421 | L42: 272.743824 | M42: 27.34248325 | N42: 60.23458387 | O42: 284.5117588 | U42: 28 | V42: 2 | W42: DMED V02 | X42: 6917.802554 | Y42: 7754.370306 | Z42: 28278.07967 | AA42: 414.2578369 | AB42: 563.7882421 | AC42: 0.4142578369 | AD42: 0.5637882421 | AE42: 0.06672263266 | AF42: 0.07479138027 | AG42: 0.272743824 | AH42: 0.1495304052 | AI42: 6917.802554 | AJ42: 7754.370306 | AK42: 28278.07967 | AL42: 414.2578369 | AM42: 0.4142578369 | AN42: 19686.58794 | AO42: 6245.121656 | AP42: 29498.17916 | AQ42: 534.6246986 | AR42: 0.5346246986 | AT42: DMED V02 | AU42: 0.2652244124 | AZ42: CERIS - COOPERATIVA DE ELETRIFICACAO DA REGIAO DE ITAPECERICA DA SERRA | BA42: 0.2059164684 | BB42: DEMEI | BC42: 0.2744771167
A43: 32 | B43: EBO | C43: 36.64899673 | D43: 12.35054994 | E43: 36.38503519 | F43: 355.1435321 | G43: 233.1902604 | H43: 12.35054994 | I43: 1815.031375 | J43: 36.38503519 | K43: 355.1435321 | L43: 233.1902604 | M43: 38.7378079 | N43: 27.34131451 | O43: 243.353033 | U43: 29 | V43: 32 | W43: EBO | X43: 8892.395956 | Y43: 3772.400448 | Z43: 24177.1662 | AA43: 355.3430035 | AB43: 494.0281757 | AC43: 0.3553430035 | AD43: 0.4940281757 | AE43: 0.08576770791 | AF43: 0.03638503519 | AG43: 0.2331902604 | AH43: 0.1386851722 | AI43: 8892.395956 | AJ43: 3772.400448 | AK43: 24177.1662 | AL43: 355.3430035 | AM43: 0.3553430035 | AN43: 27891.22169 | AO43: 2834.747489 | AP43: 25230.84246 | AQ43: 539.7069024 | AR43: 0.5397069024 | AT43: EBO | AU43: 0.2807232037 | AZ43: CERMC - COOPERATIVA DE ELETRIFICAÇÃO E DESENVOLVIMENTO DA REGIÃO DE MOGI DAS CRUZES | BA43: 0.1721347585 | BB43: DMED | BC43: 0.2652244124
A44: 33 | B44: Eflul | C44: 29.83282421 | D44: 11.97485947 | E44: 63.58080785 | F44: 520.0519567 | G44: 324.6003858 | H44: 11.97485947 | I44: 1513.58572 | J44: 63.58080785 | K44: 520.0519567 | L44: 324.6003858 | M44: 33.45445237 | N44: 54.89728027 | O44: 340.8880167 | U44: 30 | V44: 33 | W44: Eflul | X44: 8621.898819 | Y44: 6592.058158 | Z44: 33654.568 | AA44: 471.33994 | AB44: 673.4461798 | AC44: 0.47133994 | AD44: 0.6734461798 | AE44: 0.08315874633 | AF44: 0.06358080785 | AG44: 0.3246003858 | AH44: 0.2021062398 | AI44: 8621.898819 | AJ44: 6592.058158 | AK44: 33654.568 | AL44: 471.33994 | AM44: 0.47133994 | AN44: 24087.2057 | AO44: 5691.750018 | AP44: 35343.26957 | AQ44: 628.1078829 | AR44: 0.6281078829 | AT44: Eflul | AU44: 0.3001074858 | AZ44: CERMISSÕES - COOPERATIVA DE DISTRIBUIÇÃO E GERAÇÃO DE ENERGIA DAS MISSÕES | BA44: 0.1417301461 | BB44: EBO | BC44: 0.2807232037
A45: 34 | B45: Elektro | C45: 40.61376139 | D45: 16.61550806 | E45: 69.85675204 | F45: 412.4172182 | G45: 274.4053658 | H45: 16.61550806 | I45: 2043.799343 | J45: 69.85675204 | K45: 412.4172182 | L45: 274.4053658 | M45: 45.85762646 | N45: 57.5502242 | O45: 285.9063535 | U45: 31 | V45: 34 | W45: Elektro | X45: 11963.1658 | Y45: 7242.748052 | Z45: 28450.34833 | AA45: 459.6475905 | AB45: 593.5322372 | AC45: 0.4596475905 | AD45: 0.5935322372 | AE45: 0.1153854726 | AF45: 0.06985675204 | AG45: 0.2744053658 | AH45: 0.1338846467 | AI45: 11963.1658 | AJ45: 7242.748052 | AK45: 28450.34833 | AL45: 459.6475905 | AM45: 0.4596475905 | AN45: 33017.49105 | AO45: 5966.807245 | AP45: 29642.77073 | AQ45: 661.912317 | AR45: 0.661912317 | AT45: Elektro | AU45: 0.225572662 | AZ45: CERMOFUL - COOPERATIVA FUMACENSE DE ELETRICIDADE | BA45: 0.2513651849 | BB45: EFLUL | BC45: 0.3001074858
A46: 35 | B46: Eletroacre 1 | C46: 35.47175012 | D46: 11.99034277 | E46: 112.2637464 | F46: 300.894226 | G46: 194.7058712 | H46: 11.99034277 | I46: 1834.220761 | J46: 112.2637464 | K46: 300.894226 | L46: 194.7058712 | M46: 37.52983111 | N46: 82.93939492 | O46: 203.5549008 | U46: 32 | V46: 35 | W46: Eletroacre 1 | X46: 8633.046792 | Y46: 11639.50523 | Z46: 20187.10473 | AA46: 390.2358869 | AB46: 476.093443 | AC46: 0.3902358869 | AD46: 0.476093443 | AE46: 0.08326626921 | AF46: 0.1122637464 | AG46: 0.1947058712 | AH46: 0.08585755619 | AI46: 8633.046792 | AJ46: 11639.50523 | AK46: 20187.10473 | AL46: 390.2358869 | AM46: 0.3902358869 | AN46: 27021.4784 | AO46: 8599.156465 | AP46: 21104.57211 | AQ46: 547.1181229 | AR46: 0.5471181229 | AT46: Eletroacre 1 | AU46: 0.1803376153 | AZ46: CERNHE - COOPERATIVA DE ELETRIFICAÇÃO E DESENVOLVIMENTO RURAL DA REGIÃO DE NOVO HORIZONTE | BA46: 0.05991710573 | BB46: ELEKTRO | BC46: 0.225572662
A47: 36 | B47: Eletrocar c | C47: 47.65885965 | D47: 17.77455248 | E47: 68.06187384 | F47: 421.2909001 | G47: 258.041873 | H47: 17.77455248 | I47: 2384.517626 | J47: 68.06187384 | K47: 421.2909001 | L47: 258.041873 | M47: 52.08967871 | N47: 55.39705803 | O47: 271.6459586 | U47: 33 | V47: 36 | W47: Eletrocar c | X47: 12797.67779 | Y47: 7056.655079 | Z47: 26753.78139 | AA47: 449.5381391 | AB47: 643.6359512 | AC47: 0.4495381391 | AD47: 0.6436359512 | AE47: 0.1234343922 | AF47: 0.06806187384 | AG47: 0.258041873 | AH47: 0.1940978122 | AI47: 12797.67779 | AJ47: 7056.655079 | AK47: 26753.78139 | AL47: 449.5381391 | AM47: 0.4495381391 | AN47: 37504.56867 | AO47: 5743.566976 | AP47: 28164.25298 | AQ47: 688.7768965 | AR47: 0.6887768965 | AT47: Eletrocar c | AU47: 0.3015645907 | AZ47: CERON - CENTRAIS ELÉTRICAS DE RONDÔNIA SA CERON | BA47: 0.1884647884 | BB47: ELETROACRE | BC47: 0.1803376153
A48: 37 | B48: Eletropaulo | C48: 17.01324915 | D48: 10.92724196 | E48: 65.77108975 | F48: 368.3185685 | G48: 243.3189249 | H48: 10.92724196 | I48: 890.5850874 | J48: 65.77108975 | K48: 368.3185685 | L48: 243.3189249 | M48: 0 | N48: 0 | O48: 253.7355619 | U48: 34 | V48: 37 | W48: Eletropaulo | X48: =($R$13)*D48*12 -> 7867.614213 | Y48: =($R$14/1000)*E48*$R$15 -> 6819.146585 | Z48: =($R$14/1000)*G48*$R$15 -> 25227.30613 | AA48: =SUM(X48:Z48)/($R$14*$R$15/1000) -> 384.9736394 | AB48: =AA48/(1-$AU48) -> 493.8803562 | AC48: 0.3849736394 | AD48: =AC48/(1-$AU48) -> 0.4938803562 | AE48: =X48/SUM($X48:$Z48)*$AC48 -> 0.07588362474 | AF48: =Y48/SUM($X48:$Z48)*$AC48 -> 0.06577108975 | AG48: =Z48/SUM($X48:$Z48)*$AC48 -> 0.2433189249 | AH48: 0.1089067168 | AI48: =($R$13)*H48*12 -> 7867.614213 | AJ48: =($R$14/1000)*J48*$R$15 -> 6819.146585 | AK48: =($R$14/1000)*L48*$R$15 -> 25227.30613 | AL48: =SUM(AI48:AK48)/($R$14*$R$15/1000) -> 384.9736394 | AM48: 0.3849736394 | AN48: =($R$13)*M48*12 -> 0 | AO48: =($R$14/1000)*N48*$R$15 -> 0 | AP48: =($R$14/1000)*O48*$R$15 -> 26307.30306 | AQ48: =SUM(AN48:AP48)/($R$14*$R$15/1000) -> 253.7355619 | AR48: 0.2537355619 | AT48: Eletropaulo | AU48: 0.2205123477 | AZ48: CERPALO - COOPERATIVA DE ELETRICIDADE DE PAULO LOPES | BA48: 0.2666268843 | BB48: ELETROCAR | BC48: 0.3015645907
A49: 38 | B49: ELFSM | C49: 56.1603634 | D49: 18.04387412 | E49: 90.29268687 | F49: 417.1115375 | G49: 264.7263291 | H49: 18.04387412 | I49: 2793.003389 | J49: 90.29268687 | K49: 417.1115375 | L49: 264.7263291 | M49: 58.47934506 | N49: 69.14864418 | O49: 277.4250965 | U49: 35 | V49: 38 | W49: ELFSM | X49: 12991.58937 | Y49: 9361.545775 | Z49: 27446.82581 | AA49: 480.3236974 | AB49: 690.4767855 | AC49: 0.4803236974 | AD49: 0.6904767855 | AE49: 0.1253046814 | AF49: 0.09029268687 | AG49: 0.2647263291 | AH49: 0.2101530881 | AI49: 12991.58937 | AJ49: 9361.545775 | AK49: 27446.82581 | AL49: 480.3236974 | AM49: 0.4803236974 | AN49: 42105.12844 | AO49: 7169.331429 | AP49: 28763.43401 | AQ49: 752.6803036 | AR49: 0.7526803036 | AT49: ELFSM | AU49: 0.3043593825 | AZ49: CERPRO - COOPERATIVA DE ELETRIFICAÇÃO RURAL DA REGIÃO DE PROMISSÃO | BA49: 0.1839889142 | BB49: ELETROPAULO | BC49: 0.2205123477
A50: 39 | B50: EMG | C50: 48.70776582 | D50: 19.08803822 | E50: 74.09271191 | F50: 391.7419485 | G50: 251.8902242 | H50: 19.08803822 | I50: 2438.581579 | J50: 74.09271191 | K50: 391.7419485 | L50: 251.8902242 | M50: 0 | N50: 0 | O50: 263.5445346 | U50: 36 | V50: 39 | W50: EMG | X50: 13743.38752 | Y50: 7681.932371 | Z50: 26115.97845 | AA50: 458.5387571 | AB50: 612.8752969 | AC50: 0.4585387571 | AD50: 0.6128752969 | AE50: 0.132555821 | AF50: 0.07409271191 | AG50: 0.2518902242 | AH50: 0.1543365398 | AI50: 13743.38752 | AJ50: 7681.932371 | AK50: 26115.97845 | AL50: 458.5387571 | AM50: 0.4585387571 | AN50: 0 | AO50: 0 | AP50: 27324.29735 | AQ50: 263.5445346 | AR50: 0.2635445346 | AT50: EMG | AU50: 0.2518237243 | AZ50: CERRP - COOPERATIVA DE ELETRIFICAÇÃO E DESENVOLVIMENTO DA REGIÃO DE SÃO JOSÉ DO RIO PRETO-CERRP | BA50: 0.1934430854 | BB50: ELFSM | BC50: 0.3043593825
A51: 40 | B51: EMT | C51: 41.40297543 | D51: 15.75435088 | E51: 83.97313114 | F51: 388.1890351 | G51: 247.5960635 | H51: 15.75435088 | I51: 2093.162677 | J51: 83.97313114 | K51: 388.1890351 | L51: 247.5960635 | M51: 45.56474933 | N51: 62.2402363 | O51: 259.3121445 | U51: 37 | V51: 40 | W51: EMT | X51: 11343.13263 | Y51: 8706.334236 | Z51: 25670.75987 | AA51: 440.9744091 | AB51: 627.5000156 | AC51: 0.4409744091 | AD51: 0.6275000156 | AE51: 0.1094052144 | AF51: 0.08397313114 | AG51: 0.2475960635 | AH51: 0.1865256065 | AI51: 11343.13263 | AJ51: 8706.334236 | AK51: 25670.75987 | AL51: 440.9744091 | AM51: 0.4409744091 | AN51: 32806.61952 | AO51: 6453.0677 | AP51: 26885.48314 | AQ51: 637.9742511 | AR51: 0.6379742511 | AT51: EMT | AU51: 0.2972519551 | AZ51: CERSUL - COOPERATIVA DE DISTRIBUIÇÃO DE ENERGIA | BA51: 0.2455944137 | BB51: EMG | BC51: 0.2518237243
A52: 42 | B52: Enel RJ | C52: 32.74451082 | D52: 13.10603946 | E52: 48.86781022 | F52: 363.6422038 | G52: 233.3122877 | H52: 13.10603946 | I52: 1637.587485 | J52: 48.86781022 | K52: 363.6422038 | L52: 233.3122877 | M52: 0 | N52: 0 | O52: 244.173114 | U52: 38 | V52: 42 | W52: Enel RJ | X52: 9436.348409 | Y52: 5066.614563 | Z52: 24189.81799 | AA52: 373.1942608 | AB52: 580.2097556 | AC52: 0.3731942608 | AD52: 0.5802097556 | AE52: 0.0910141629 | AF52: 0.04886781022 | AG52: 0.2333122877 | AH52: 0.2070154948 | AI52: 9436.348409 | AJ52: 5066.614563 | AK52: 24189.81799 | AL52: 373.1942608 | AM52: 0.3731942608 | AN52: 0 | AO52: 0 | AP52: 25315.86846 | AQ52: 244.173114 | AR52: 0.244173114 | AT52: Enel RJ | AU52: 0.3567942331 | AZ52: CERTAJA - COOPERATIVA REGIONAL DE ENERGIA TAQUARI JACUI | BA52: 0.1939838366
A53: 41 | B53: ENEL-CE | C53: 59.09461037 | D53: 23.04605097 | E53: 119.5425189 | F53: 373.2667868 | G53: 247.513468 | H53: 23.04605097 | I53: 2990.240067 | J53: 119.5425189 | K53: 373.2667868 | L53: 247.513468 | M53: 65.59409351 | N53: 81.0846988 | O53: 257.9929112 | U53: 39 | V53: 41 | W53: ENEL-CE | X53: 16593.1567 | Y53: 12394.16836 | Z53: 25662.19636 | AA53: 527.0980075 | AB53: 752.773097 | AC53: 0.5270980075 | AD53: 0.752773097 | AE53: 0.1600420206 | AF53: 0.1195425189 | AG53: 0.247513468 | AH53: 0.2256750896 | AI53: 16593.1567 | AJ53: 12394.16836 | AK53: 25662.19636 | AL53: 527.0980075 | AM53: 0.5270980075 | AN53: 47227.74733 | AO53: 8406.861571 | AP53: 26748.70504 | AQ53: 794.5921483 | AR53: 0.7945921483 | AT53: ENEL-CE | AU53: 0.299791651 | AZ53: CERTEL - COOPERATIVA DE DISTRIBUIÇÃO DE ENERGIA TEUTÔNIA | BA53: 0.205287928 | BB53: ENEL RJ | BC53: 0.3567942331
A54: 43 | B54: ENF | C54: 59.77348037 | D54: 19.3560895 | E54: 57.49139884 | F54: 412.3405707 | G54: 252.9194393 | H54: 19.3560895 | I54: 2960.380117 | J54: 57.49139884 | K54: 412.3405707 | L54: 252.9194393 | M54: 0 | N54: 0 | O54: 266.2045336 | U54: 40 | V54: 43 | W54: ENF | X54: 13936.38444 | Y54: 5960.708232 | Z54: 26222.68747 | AA54: 444.8281263 | AB54: 707.6582387 | AC54: 0.4448281263 | AD54: 0.7076582387 | AE54: 0.1344172882 | AF54: 0.05749139884 | AG54: 0.2529194393 | AH54: 0.2628301124 | AI54: 13936.38444 | AJ54: 5960.708232 | AK54: 26222.68747 | AL54: 444.8281263 | AM54: 0.4448281263 | AN54: 0 | AO54: 0 | AP54: 27600.08604 | AQ54: 266.2045336 | AR54: 0.2662045336 | AT54: ENF | AU54: 0.3714082561 | AZ54: CERTREL - COOPERATIVA DE ENERGIA TREVISO | BA54: 0.2465916938 | BB54: ENEL CE | BC54: 0.299791651
A55: 44 | B55: EPB | C55: 55.94670581 | D55: 18.13137441 | E55: 59.65478749 | F55: 360.9541616 | G55: 231.1532457 | H55: 18.13137441 | I55: 2778.426737 | J55: 59.65478749 | K55: 360.9541616 | L55: 231.1532457 | M55: 58.41300693 | N55: 39.30607128 | O55: 241.9699887 | U55: 41 | V55: 44 | W55: EPB | X55: 13054.58958 | Y55: 6185.008367 | Z55: 23965.96851 | AA55: 416.7203555 | AB55: 554.2198237 | AC55: 0.4167203555 | AD55: 0.5542198237 | AE55: 0.1259123223 | AF55: 0.05965478749 | AG55: 0.2311532457 | AH55: 0.1374994682 | AI55: 13054.58958 | AJ55: 6185.008367 | AK55: 23965.96851 | AL55: 416.7203555 | AM55: 0.4167203555 | AN55: 42057.36499 | AO55: 4075.253471 | AP55: 25087.44843 | AQ55: 686.9219414 | AR55: 0.6869219414 | AT55: EPB | AU55: 0.2480955431 | AZ55: CETRIL - COOPERATIVA DE ELETRIFICAÇÃO DE IBIÚNA E REGIÃO | BA55: 0.1865484853 | BB55: ENF | BC55: 0.3714082561
A56: 45 | B56: ETO | C56: 73.89618563 | D56: 26.25613723 | E56: 64.29499896 | F56: 385.5950906 | G56: 244.508677 | H56: 26.25613723 | I56: 3651.83683 | J56: 64.29499896 | K56: 385.5950906 | L56: 244.508677 | M56: 79.46377641 | N56: 40.69889031 | O56: 256.2658782 | U56: 42 | V56: 45 | W56: ETO | X56: 18904.4188 | Y56: 6666.105492 | Z56: 25350.65964 | AA56: 491.1379623 | AB56: 653.7954289 | AC56: 0.4911379623 | AD56: 0.6537954289 | AE56: 0.1823342863 | AF56: 0.06429499896 | AG56: 0.244508677 | AH56: 0.1626574666 | AI56: 18904.4188 | AJ56: 6666.105492 | AK56: 25350.65964 | AL56: 491.1379623 | AM56: 0.4911379623 | AN56: 57213.91902 | AO56: 4219.660948 | AP56: 26569.64625 | AQ56: 848.7965491 | AR56: 0.8487965491 | AT56: ETO | AU56: 0.248789544 | AZ56: CFLO - COMPANHIA FORÇA E LUZ DO OESTE | BA56: 0.3096019568 | BB56: EPB | BC56: 0.2480955431
A57: 46 | B57: Forcel | C57: 35.74181986 | D57: 12.77746255 | E57: 57.36953967 | F57: 295.9196068 | G57: 193.2806268 | H57: 12.77746255 | I57: 1792.231042 | J57: 57.36953967 | K57: 295.9196068 | L57: 193.2806268 | M57: 38.51152431 | N57: 51.32564309 | O57: 201.8338751 | U57: 43 | V57: 46 | W57: Forcel | X57: 9199.773038 | Y57: 5948.073873 | Z57: 20039.33539 | AA57: 339.3825453 | AB57: 523.9645925 | AC57: 0.3393825453 | AD57: 0.5239645925 | AE57: 0.08873237884 | AF57: 0.05736953967 | AG57: 0.1932806268 | AH57: 0.1845820472 | AI57: 9199.773038 | AJ57: 5948.073873 | AK57: 20039.33539 | AL57: 339.3825453 | AM57: 0.3393825453 | AN57: 27728.2975 | AO57: 5321.442676 | AP57: 20926.13617 | AQ57: 520.6006592 | AR57: 0.5206006592 | AT57: Forcel | AU57: 0.3522796193 | AZ57: CHESP - COMPANHIA HIDROELÉTRICA SÃO PATRÍCIO - CHESP | BA57: 0.3462209541
A58: 47 | B58: Hidropan | C58: 19.28609377 | D58: 14.4586978 | E58: 51.70252675 | F58: 426.2037205 | G58: 263.3193001 | H58: 14.4586978 | I58: 989.5475415 | J58: 51.70252675 | K58: 426.2037205 | L58: 263.3193001 | M58: 0 | N58: 0 | O58: 276.8930018 | U58: 44 | V58: 47 | W58: Hidropan | X58: 10410.26241 | Y58: 5360.517973 | Z58: 27300.94503 | AA58: 415.4294504 | AB58: 576.6119704 | AC58: 0.4154294504 | AD58: 0.5766119704 | AE58: 0.1004076236 | AF58: 0.05170252675 | AG58: 0.2633193001 | AH58: 0.16118252 | AI58: 10410.26241 | AJ58: 5360.517973 | AK58: 27300.94503 | AL58: 415.4294504 | AM58: 0.4154294504 | AN58: 0 | AO58: 0 | AP58: 28708.26643 | AQ58: 276.8930018 | AR58: 0.2768930018 | AT58: Hidropan | AU58: 0.2795337736 | AZ58: CNEE - COMPANHIA NACIONAL DE ENERGIA ELÉTRICA | BA58: 0.2174845132 | BB58: FORCEL | BC58: 0.3522796193
A59: 48 | B59: Ienergia | C59: 39.32879211 | D59: 13.9624365 | E59: 70.36274362 | F59: 387.4944898 | G59: 251.7243919 | H59: 13.9624365 | I59: 1981.138721 | J59: 70.36274362 | K59: 387.4944898 | L59: 251.7243919 | M59: 42.27908691 | N59: 58.11178376 | O59: 263.0385668 | U59: 45 | V59: 48 | W59: Ienergia | X59: 10052.95428 | Y59: 7295.209259 | Z59: 26098.78496 | AA59: 419.0485001 | AB59: 596.4371782 | AC59: 0.4190485001 | AD59: 0.5964371782 | AE59: 0.09696136457 | AF59: 0.07036274362 | AG59: 0.2517243919 | AH59: 0.177388678 | AI59: 10052.95428 | AJ59: 7295.209259 | AK59: 26098.78496 | AL59: 419.0485001 | AM59: 0.4190485001 | AN59: 30440.94257 | AO59: 6025.02974 | AP59: 27271.8386 | AQ59: 614.7551207 | AR59: 0.6147551207 | AT59: Ienergia | AU59: 0.297413851 | AZ59: COCEL - COMPANHIA CAMPOLARGUENSE DE ENERGIA | BA59: 0.3406307068 | BB59: HIDROPAN | BC59: 0.2795337736
A60: 49 | B60: Light | C60: 31.30041039 | D60: 17.08753899 | E60: 149.9562485 | F60: 387.4968711 | G60: 257.8810584 | H60: 17.08753899 | I60: 1666.717616 | J60: 149.9562485 | K60: 387.4968711 | L60: 257.8810584 | M60: 39.62365102 | N60: 96.61129807 | O60: 268.6823762 | U60: 46 | V60: 49 | W60: Light | X60: 12303.02807 | Y60: 15547.46384 | Z60: 26737.10814 | AA60: 526.5007721 | AB60: 807.9501834 | AC60: 0.5265007721 | AD60: 0.8079501834 | AE60: 0.1186634652 | AF60: 0.1499562485 | AG60: 0.2578810584 | AH60: 0.2814494113 | AI60: 12303.02807 | AJ60: 15547.46384 | AK60: 26737.10814 | AL60: 526.5007721 | AM60: 0.5265007721 | AN60: 28529.02874 | AO60: 10016.65938 | AP60: 27856.98876 | AQ60: 640.4579175 | AR60: 0.6404579175 | AT60: Light | AU60: 0.3483499565 | AZ60: COELBA - COMPANHIA DE ELETRICIDADE DO ESTADO DA BAHIA | BA60: 0.2259424483 | BB60: IENERGIA | BC60: 0.297413851
A61: 50 | B61: MuxEnergia | C61: 28.28965348 | D61: 12.63328741 | E61: 60.32998686 | F61: 296.6080032 | G61: 191.3122549 | H61: 12.63328741 | I61: 1433.709231 | J61: 60.32998686 | K61: 296.6080032 | L61: 191.3122549 | M61: 0 | N61: 0 | O61: 200.0869005 | U61: 47 | V61: 50 | W61: MuxEnergia | X61: 9095.966936 | Y61: 6255.013038 | Z61: 19835.25458 | AA61: 339.3734043 | AB61: 450.8407769 | AC61: 0.3393734043 | AD61: 0.4508407769 | AE61: 0.08773116258 | AF61: 0.06032998686 | AG61: 0.1913122549 | AH61: 0.1114673726 | AI61: 9095.966936 | AJ61: 6255.013038 | AK61: 19835.25458 | AL61: 339.3734043 | AM61: 0.3393734043 | AN61: 0 | AO61: 0 | AP61: 20745.00985 | AQ61: 200.0869005 | AR61: 0.2000869005 | AT61: MuxEnergia | AU61: 0.2472433247 | AZ61: COOPERA - COOPERATIVA PIONEIRA DE ELETRIFICAÇÃO | BA61: 0.2027095776 | BB61: LIGHT | BC61: 0.3483499565
A62: 53 | B62: RGE | C62: 32.26434767 | D62: 21.66724899 | E62: 72.017912 | F62: 391.7426407 | G62: 259.3973239 | H62: 21.66724899 | I62: 1642.392046 | J62: 72.017912 | K62: 391.7426407 | L62: 259.3973239 | M62: 44.89760952 | N62: 57.01709116 | O62: 270.4261003 | U62: 48 | V62: 53 | W62: RGE | X62: 15600.41927 | Y62: 7466.817117 | Z62: 26894.31455 | AA62: 481.8822428 | AB62: 673.9321996 | AC62: 0.4818822428 | AD62: 0.6739321996 | AE62: 0.1504670069 | AF62: 0.072017912 | AG62: 0.2593973239 | AH62: 0.1920499568 | AI62: 15600.41927 | AJ62: 7466.817117 | AK62: 26894.31455 | AL62: 481.8822428 | AM62: 0.4818822428 | AN62: 32326.27886 | AO62: 5911.532012 | AP62: 28037.77808 | AQ62: 639.2321465 | AR62: 0.6392321465 | AT62: RGE | AU62: 0.2849692549 | AZ62: COOPERALIANÇA - COOPERATIVA ALIANÇA | BA62: 0.2524708872 | BB62: MUXENERGIA | BC62: 0.2472433247
A63: 52 | B63: RGE-SUL | C63: 38.25977639 | D63: 13.12324942 | E63: 74.62129955 | F63: 362.6968797 | G63: 235.1551585 | H63: 13.12324942 | I63: 1935.474973 | J63: 74.62129955 | K63: 362.6968797 | L63: 235.1551585 | M63: 40.67022997 | N63: 58.13447252 | O63: 245.7836353 | U63: 49 | V63: 52 | W63: RGE-SUL | X63: 9448.739583 | Y63: 7736.736338 | Z63: 24380.88683 | AA63: 400.9101346 | AB63: 555.1276788 | AC63: 0.4009101346 | AD63: 0.5551276788 | AE63: 0.09113367654 | AF63: 0.07462129955 | AG63: 0.2351551585 | AH63: 0.1542175442 | AI63: 9448.739583 | AJ63: 7736.736338 | AK63: 24380.88683 | AL63: 400.9101346 | AM63: 0.4009101346 | AN63: 29282.56558 | AO63: 6027.382111 | AP63: 25482.8473 | AQ63: 586.3502603 | AR63: 0.5863502603 | AT63: RGE-SUL | AU63: 0.2778055393 | AZ63: COOPERCOCAL - COOPERATIVA ENERGÉTICA COCAL | BA63: 0.2485384152
A64: 54 | B64: RTA EDP ES | C64: 49.56720578 | D64: 18.25560768 | E64: 103.1226139 | F64: 409.0699345 | G64: 267.7713969 | H64: 18.25560768 | I64: 2510.562552 | J64: 103.1226139 | K64: 409.0699345 | L64: 267.7713969 | M64: 53.9437006 | N64: 74.99164935 | O64: 279.5462751 | U64: 50 | V64: 54 | W64: RTA EDP ES | X64: 13144.03753 | Y64: 10691.75261 | Z64: 27762.53844 | AA64: 497.6690642 | AB64: 707.0211943 | AC64: 0.4976690642 | AD64: 0.7070211943 | AE64: 0.1267750533 | AF64: 0.1031226139 | AG64: 0.2677713969 | AH64: 0.20935213 | AI64: 13144.03753 | AJ64: 10691.75261 | AK64: 27762.53844 | AL64: 497.6690642 | AM64: 0.4976690642 | AN64: 38839.46443 | AO64: 7775.134205 | AP64: 28983.3578 | AQ64: 729.1469564 | AR64: 0.7291469564 | AT64: RTA EDP ES | AU64: 0.2961044615 | AZ64: COOPERLUZ - COOPERATIVA DISTRIBUIDORA DE ENERGIA FRONTEIRA NOROESTE | BA64: 0.2617313945 | BB64: RGE | BC64: 0.2849692549
A65: 55 | B65: Sul Sudeste | C65: 76.60693038 | D65: 29.1418871 | E65: 117.1564608 | F65: 737.1396759 | G65: 480.3751915 | H65: 29.1418871 | I65: 3838.384998 | J65: 117.1564608 | K65: 737.1396759 | L65: 480.3751915 | M65: 0 | N65: 0 | O65: 501.7722319 | U65: 51 | V65: 55 | W65: Sul Sudeste | X65: 20982.15871 | Y65: 12146.78185 | Z65: 49805.29986 | AA65: 799.9058683 | AB65: 1025.535065 | AC65: 0.7999058683 | AD65: 1.025535065 | AE65: 0.202374216 | AF65: 0.1171564608 | AG65: 0.4803751915 | AH65: 0.2256291972 | AI65: 20982.15871 | AJ65: 12146.78185 | AK65: 49805.29986 | AL65: 799.9058683 | AM65: 0.7999058683 | AN65: 0 | AO65: 0 | AP65: 52023.745 | AQ65: 501.7722319 | AR65: 0.5017722319 | AT65: Sul Sudeste | AU65: 0.2200111969 | AZ65: COOPERMILA - COOPERATIVA DE ELETRIFICAÇÃO LAURO MULLER | BA65: 0.2395510692 | BB65: RGE SUL | BC65: 0.2778055393
U66: 52 | V66: 56 | W66: Média | X66: =AVERAGE(X16:X65) -> 13503.0599 | Y66: 8730.272907 | Z66: 25708.04469 | AA66: 462.3975453 | AB66: 621.3588107 | AC66: 0.4623975453 | AD66: 0.6213588107 | AE66: 0.1302378462 | AF66: 0.08420402109 | AG66: 0.247955678 | AH66: 0.1589612654 | AI66: =AVERAGE(AI16:AI65) -> 13503.0599 | AJ66: 8730.272907 | AK66: 25708.04469 | AL66: 462.3975453 | AM66: 0.4623975453 | AN66: 30756.6061 | AO66: 5506.12102 | AP66: 26763.70892 | AQ66: 607.8938661 | AR66: 0.6078938661 | AZ66: COORSEL - COOPERATIVA REGIONAL SUL DE ELETRIFICAÇÃO RURAL | BA66: 0.2511751894
AZ67: COPEL-DIS - COPEL DISTRIBUIÇÃO S.A. | BA67: 0.3403216771
X68: TUSDa-DFP | Y68: TUSDa-E | Z68: TEh-EFP | AA68: Valor da Tarifa (R$/MWh) | AB68: Valor da Tarifa com impostos (R$/MWh) | AC68: Valor da Tarifa (R$/kWh) | AD68: Valor da Tarifa com impostos (R$/kWh) | AE68: TUSDa-DFP | AF68: TUSDa-E | AG68: TEh-EFP | AH68: Impostos | AZ68: COPREL - COPREL COOPERATIVA DE ENERGIA | BA68: 0.2041362252
U69: =Formulário!AA$12 -> 34 | V69: =VLOOKUP($U$69,$U$15:$AH$66,2,0) -> 37 | W69: =IF($U$69=1,"Tarifa média nacional",VLOOKUP($U$69,$U$15:$AH$66,3,0)) -> Eletropaulo | X69: =VLOOKUP($U$69,$U$15:$AH$66,4,0) -> 7867.614213 | Y69: =VLOOKUP($U$69,$U$15:$AH$66,5,0) -> 6819.146585 | Z69: =VLOOKUP($U$69,$U$15:$AH$66,6,0) -> 25227.30613 | AA69: =VLOOKUP($U$69,$U$15:$AH$66,7,0) -> 384.9736394 | AB69: =VLOOKUP($U$69,$U$15:$AH$66,8,0) -> 493.8803562 | AC69: =VLOOKUP($U$69,$U$15:$AH$66,9,0) -> 0.3849736394 | AD69: =VLOOKUP($U$69,$U$15:$AH$66,10,0) -> 0.4938803562 | AE69: =VLOOKUP($U$69,$U$15:$AH$66,11,0) -> 0.07588362474 | AF69: =VLOOKUP($U$69,$U$15:$AH$66,12,0) -> 0.06577108975 | AG69: =VLOOKUP($U$69,$U$15:$AH$66,13,0) -> 0.2433189249 | AH69: =VLOOKUP($U$69,$U$15:$AH$66,14,0) -> 0.1089067168 | AZ69: COSERN - COMPANHIA ENERGÉTICA DO RIO GRANDE DO NORTE COSERN | BA69: 0.2636415679
AZ70: CPFL JAGUARI - COMPANHIA JAGUARI DE ENERGIA | BA70: 0.226789774
AZ71: CPFL LESTE PAULISTA - COMPANHIA LESTE PAULISTA DE ENERGIA | BA71: 0.2028798455
AZ72: CPFL-PAULISTA - COMPANHIA PAULISTA DE FORÇA E LUZ | BA72: 0.222352985
AZ73: CRELUZ-D - COOPERATIVA DE DISTRIBUIÇÃO DE ENERGIA CRELUZ-D | BA73: 0.1888364328
AZ74: CRERAL - COOPERATIVA REGIONAL DE ELETRIFICAÇÃO RURAL DO ALTO URUGUAI | BA74: 0.1898049363
AZ75: DEMEI - DEPARTAMENTO MUNICIPAL DE ENERGIA DE IJUÍ | BA75: 0.2744771167
AZ76: DMED - DME DISTRIBUIÇÃO S.A. - DMED | BA76: 0.2652244124
AZ77: EBO - ENERGISA BORBOREMA - DISTRIBUIDORA DE ENERGIA S.A | BA77: 0.2807232037
AZ78: EDEVP - EMPRESA DE DISTRIBUICAO DE ENERGIA VALE PARANAPANEMA S.A. | BA78: 0.2040266596
AZ79: EDP ES - ESPÍRITO SANTO DISTRIBUIÇÃO DE ENERGIA S.A. | BA79: 0.2961044615
AZ80: EDP SP - EDP SÃO PAULO DISTRIBUIÇÃO DE ENERGIA S.A. | BA80: 0.2242098042
AZ81: EEB - EMPRESA ELÉTRICA BRAGANTINA S.A. | BA81: 0.235384953
AZ82: EFLJC - EMPRESA FORÇA E LUZ JOÃO CESA LTDA | BA82: 0.3169786835
AZ83: EFLUL - EMPRESA FORÇA E LUZ DE URUSSANGA LTDA | BA83: 0.3001074858
AZ84: ELEKTRO - ELEKTRO REDES S.A. | BA84: 0.225572662
AZ85: ELETROACRE - COMPANHIA DE ELETRICIDADE DO ACRE | BA85: 0.1803376153
AZ86: ELETROCAR - CENTRAIS ELÉTRICAS DE CARAZINHO SA | BA86: 0.3015645907
AZ87: ELETROPAULO - ELETROPAULO METROPOLITANA ELETRICIDADE DE SÃO PAULO S.A. | BA87: 0.2205123477
AZ88: ELFSM - EMPRESA LUZ E FORÇA SANTA MARIA S.A. | BA88: 0.3043593825
AZ89: EMG - ENERGISA MINAS GERAIS - DISTRIBUIDORA DE ENERGIA S.A. | BA89: 0.2518237243
AZ90: EMS - ENERGISA MATO GROSSO DO SUL - DISTRIBUIDORA DE ENERGIA S.A. | BA90: 0.2085111832
AZ91: EMT - ENERGISA MATO GROSSO - DISTRIBUIDORA DE ENERGIA S.A. | BA91: 0.2972519551
AZ92: ENEL CE - COMPANHIA ENERGETICA DO CEARA | BA92: 0.299791651
AZ93: ENEL RJ - AMPLA ENERGIA E SERVIÇOS S.A. | BA93: 0.3567942331
AZ94: ENF - ENERGISA NOVA FRIBURGO - DISTRIBUIDORA DE ENERGIA S.A. | BA94: 0.3714082561
AZ95: EPB - ENERGISA PARAÍBA - DISTRIBUIDORA DE ENERGIA S.A | BA95: 0.2480955431
AZ96: ESE - ENERGISA SERGIPE - DISTRIBUIDORA DE ENERGIA S.A | BA96: 0.2269925548
AZ97: ESS - ENERGISA SUL-SUDESTE - DISTRIBUIDORA DE ENERGIA S.A. | BA97: 0.2200111969
AZ98: ETO - ENERGISA TOCANTINS DISTRIBUIDORA DE ENERGIA S.A. | BA98: 0.248789544
AZ99: FORCEL - FORÇA E LUZ CORONEL VIVIDA LTDA | BA99: 0.3522796193
AZ100: HIDROPAN - HIDROPAN DISTRIBUICAO DE ENERGIA S.A. | BA100: 0.2795337736
AZ101: IENERGIA - IGUAÇU DISTRIBUIDORA DE ENERGIA ELÉTRICA LTDA. | BA101: 0.297413851
AZ102: LIGHT - LIGHT SERVIÇOS DE ELETRICIDADE S A | BA102: 0.3483499565
AZ103: MUXENERGIA - MUXFELDT MARIN E CIA LTDA | BA103: 0.2472433247
AZ104: RGE - RIO GRANDE ENERGIA SA | BA104: 0.2849692549
AZ105: RGE SUL - RGE SUL DISTRIBUIDORA DE ENERGIA S.A. | BA105: 0.2778055393
AZ106: SULGIPE - COMPANHIA SUL SERGIPANA DE ELETRICIDADE | BA106: 0.2075919608
AZ107: UHENPAL - NOVA PALMA ENERGIA LTDA | BA107: 0.2559316031

Sheet TesteCaixaDeCombinacao (hidden)
A1: UF | B1: CÓDIGO UF | C1: MUNICÍPIO | D1: CÓDIGO MUNICÍPIO | E1: CÓDIGO ALF. POR UF (1) | F1: CONCATENAR CÓDIGO UF E (1) | G1: CÓDIGO UF&_&MUNICÍPIO | H1: CHAVE PRIMÁRIA | I1: TIPO DE CIDADES | J1: MUNICÍPIO&_&UF | K1: DISTRIBUIDORA | M1: CAIXA_UF_INDEX | N1: UF_INDEX | O1: LISTA DA CAIXA 1 | P1: MUNICIPIOS POR UF | Q1: LISTA DA CAIXA 2 (LC2) | R1: CONCATENAR CAIXA 1 E LC2 | S1: FILTRO | T1: DISTRIBUIDORA | U1: CHAVE PRIMÁRIA | W1: Caixa 1 | X1: Caixa 2 | Y1: RESULTADO FINAL | AB1: UF | AC1: CÓDIGO UF | AD1: MUNICÍPIO | AE1: CÓDIGO MUNICÍPIO | AG1: Código_Ordem_Alf_UF | AH1: MUNICIPIOS EM GRUPOS DE Ufs EM ORDEM
A2: RO | B2: 11 | C2: Alta Floresta D'Oeste | D2: 00015 | E2: 1 | F2: =CONCATENATE(B2,"_",E2) -> 11_1 | G2: =CONCATENATE(B2,"_",D2) -> 11_00015 | H2: =CONCATENATE(C2,"_",D2) -> Alta Floresta D'Oeste_00015 | I2: de 60 a 100 mil | J2: =CONCATENATE(C2&"_"&A2) -> Alta Floresta D'Oeste_RO | K2: ELETROBRÁS DISTRIBUIÇÃO RONDÔNIA | M2: 1 | N2: 12 | O2: ACRE | P2: =COUNTIF($B$2:$B$5571,N2) -> 22 | Q2: 1 | R2: =CONCATENATE($W$3,"_",Q2) -> 32_1 | S2: =IFERROR(INDEX($C$2:$F$5571,MATCH(R2,$F$2:$F$5571,0),1),"") -> Afonso Claudio | T2: =IFERROR(INDEX($C$2:$K$5571,MATCH(R2,$F$2:$F$5571,0),9),"") -> CEMAT | U2: =IFERROR(INDEX($C$2:$K$5571,MATCH($R2,$F$2:$F$5571,0),6),"") -> Afonso Claudio_00102 | V2: =VLOOKUP(U2,$H$2:$I$5571,2,0) -> de 60 a 100 mil | W2: 8 | X2: 14 | Y2: =VLOOKUP(CONCATENATE($W$3,"_",$X$2),$R$2:$T$854,3,0) -> ESCELSA | AB2: RO | AC2: 11 | AD2: Alta Floresta D'Oeste | AE2: 00015 | AF2: =CONCATENATE(AD2,"_",AE2) -> Alta Floresta D'Oeste_00015 | AG2: =VLOOKUP(AF2,$AJ$2:$AK$5571,2,0) -> 1 | AH2: Acrelandia | AI2: 00013 | AJ2: =CONCATENATE(AH2,"_",AI2) -> Acrelandia_00013 | AK2: 1
A3: RO | B3: 11 | C3: Ariquemes | D3: 00023 | E3: 5 | F3: =CONCATENATE(B3,"_",E3) -> 11_5 | G3: 11_00023 | H3: =CONCATENATE(C3,"_",D3) -> Ariquemes_00023 | I3: de 100 a 250 mil | J3: Ariquemes_RO | K3: ELETROBRÁS DISTRIBUIÇÃO RONDÔNIA | M3: 2 | N3: 27 | O3: ALAGOAS | P3: =COUNTIF($B$2:$B$5571,N3) -> 102 | Q3: 2 | R3: 32_2 | S3: =IFERROR(INDEX($C$2:$F$5571,MATCH(R3,$F$2:$F$5571,0),1),"") -> agua Doce do Norte | T3: =IFERROR(INDEX($C$2:$K$5571,MATCH(R3,$F$2:$F$5571,0),9),"") -> ESCELSA | U3: agua Doce do Norte_00169 | W3: =VLOOKUP($W$2,M2:N28,2,FALSE) -> 32 | AA3: =IFERROR(VLOOKUP(Z3,$G$2:$J$5571,2,FALSE),"") ->  | AB3: RO | AC3: 11 | AD3: Ariquemes | AE3: 00023 | AF3: =CONCATENATE(AD3,"_",AE3) -> Ariquemes_00023 | AG3: =VLOOKUP(AF3,$AJ$2:$AK$5571,2,0) -> 5 | AH3: Assis Brasil | AI3: 00054 | AJ3: Assis Brasil_00054 | AK3: 2
A4: RO | B4: 11 | C4: Cabixi | D4: 00031 | E4: 7 | F4: 11_7 | G4: 11_00031 | H4: Cabixi_00031 | I4: de 60 a 100 mil | J4: Cabixi_RO | K4: ELETROBRÁS DISTRIBUIÇÃO RONDÔNIA | M4: 3 | N4: 16 | O4: AMAPA | P4: 16 | Q4: 3 | R4: 32_3 | S4: =IFERROR(INDEX($C$2:$F$5571,MATCH(R4,$F$2:$F$5571,0),1),"") -> aguia Branca | T4: ELFSM | U4: aguia Branca_00136 | AB4: RO | AC4: 11 | AD4: Cabixi | AE4: 00031 | AF4: Cabixi_00031 | AG4: 7 | AH4: Brasileia | AI4: 00104 | AJ4: Brasileia_00104 | AK4: 3
A5: RO | B5: 11 | C5: Cacoal | D5: 00049 | E5: 9 | F5: 11_9 | G5: 11_00049 | H5: Cacoal_00049 | I5: de 60 a 100 mil | J5: Cacoal_RO | K5: ELETROBRÁS DISTRIBUIÇÃO RONDÔNIA | M5: 4 | N5: 13 | O5: AMAZONAS | P5: 62 | Q5: 4 | R5: 32_4 | S5: Alegre | T5: CEMAT | U5: Alegre_00201 | W5: UNIDADE FEDERATIVA | AB5: RO | AC5: 11 | AD5: Cacoal | AE5: 00049 | AF5: Cacoal_00049 | AG5: 9 | AH5: Bujari | AI5: 00138 | AJ5: Bujari_00138 | AK5: 4
A6: RO | B6: 11 | C6: Cerejeiras | D6: 00056 | E6: 13 | F6: 11_13 | G6: 11_00056 | H6: Cerejeiras_00056 | I6: de 60 a 100 mil | J6: Cerejeiras_RO | K6: ELETROBRÁS DISTRIBUIÇÃO RONDÔNIA | M6: 5 | N6: 29 | O6: BAHIA | P6: 417 | Q6: 5 | R6: 32_5 | S6: Alfredo Chaves | T6: CEMAT | U6: Alfredo Chaves_00300 | AB6: RO | AC6: 11 | AD6: Cerejeiras | AE6: 00056 | AF6: Cerejeiras_00056 | AG6: 13 | AH6: Capixaba | AI6: 00179 | AJ6: Capixaba_00179 | AK6: 5
A7: RO | B7: 11 | C7: Colorado do Oeste | D7: 00064 | E7: 15 | F7: 11_15 | G7: 11_00064 | H7: Colorado do Oeste_00064 | I7: de 60 a 100 mil | J7: Colorado do Oeste_RO | K7: ELETROBRÁS DISTRIBUIÇÃO RONDÔNIA | M7: 6 | N7: 23 | O7: CEARA | P7: 184 | Q7: 6 | R7: 32_6 | S7: Alto Rio Novo | T7: CEMAT | U7: Alto Rio Novo_00359 | AB7: RO | AC7: 11 | AD7: Colorado do Oeste | AE7: 00064 | AF7: Colorado do Oeste_00064 | AG7: 15 | AH7: Cruzeiro do Sul | AI7: 00203 | AJ7: Cruzeiro do Sul_00203 | AK7: 6
A8: RO | B8: 11 | C8: Corumbiara | D8: 00072 | E8: 16 | F8: 11_16 | G8: 11_00072 | H8: Corumbiara_00072 | I8: de 60 a 100 mil | J8: Corumbiara_RO | K8: ELETROBRÁS DISTRIBUIÇÃO RONDÔNIA | M8: 7 | N8: 53 | O8: DISTRITO FEDERAL | P8: 1 | Q8: 7 | R8: 32_7 | S8: Anchieta | T8: CEMAT | U8: Anchieta_00409 | W8: MUNICÍPIO | AB8: RO | AC8: 11 | AD8: Corumbiara | AE8: 00072 | AF8: Corumbiara_00072 | AG8: 16 | AH8: Epitaciolandia | AI8: 00252 | AJ8: Epitaciolandia_00252 | AK8: 7
A9: RO | B9: 11 | C9: Costa Marques | D9: 00080 | E9: 17 | F9: 11_17 | G9: 11_00080 | H9: Costa Marques_00080 | I9: de 60 a 100 mil | J9: Costa Marques_RO | K9: ELETROBRÁS DISTRIBUIÇÃO RONDÔNIA | M9: 8 | N9: 32 | O9: ESPIRITO SANTO | P9: 78 | Q9: 8 | R9: 32_8 | S9: Apiaca | T9: CEMAT | U9: Apiaca_00508 | AB9: RO | AC9: 11 | AD9: Costa Marques | AE9: 00080 | AF9: Costa Marques_00080 | AG9: 17 | AH9: Feijo | AI9: 00302 | AJ9: Feijo_00302 | AK9: 8
A10: RO | B10: 11 | C10: Espigao D'Oeste | D10: 00098 | E10: 19 | F10: 11_19 | G10: 11_00098 | H10: Espigao D'Oeste_00098 | I10: de 60 a 100 mil | J10: Espigao D'Oeste_RO | K10: ELETROBRÁS DISTRIBUIÇÃO RONDÔNIA | M10: 9 | N10: 52 | O10: GOIAS | P10: 246 | Q10: 9 | R10: 32_9 | S10: Aracruz | T10: CEMAT | U10: Aracruz_00607 | AB10: RO | AC10: 11 | AD10: Espigao D'Oeste | AE10: 00098 | AF10: Espigao D'Oeste_00098 | AG10: 19 | AH10: Jordao | AI10: 00328 | AJ10: Jordao_00328 | AK10: 9
A11: RO | B11: 11 | C11: Guajara-Mirim | D11: 00106 | E11: 21 | F11: 11_21 | G11: 11_00106 | H11: Guajara-Mirim_00106 | I11: de 60 a 100 mil | J11: Guajara-Mirim_RO | K11: ELETROBRÁS DISTRIBUIÇÃO RONDÔNIA | M11: 10 | N11: 21 | O11: MARANHAO | P11: 217 | Q11: 10 | R11: 32_10 | S11: Atilio Vivacqua | T11: ESCELSA | U11: Atilio Vivacqua_00706 | W11: DISTRIBUIDORA | AB11: RO | AC11: 11 | AD11: Guajara-Mirim | AE11: 00106 | AF11: Guajara-Mirim_00106 | AG11: 21 | AH11: Mancio Lima | AI11: 00336 | AJ11: Mancio Lima_00336 | AK11: 10
A12: RO | B12: 11 | C12: Jaru | D12: 00114 | E12: 23 | F12: 11_23 | G12: 11_00114 | H12: Jaru_00114 | I12: de 60 a 100 mil | J12: Jaru_RO | K12: ELETROBRÁS DISTRIBUIÇÃO RONDÔNIA | M12: 11 | N12: 51 | O12: MATO GROSSO | P12: 141 | Q12: 11 | R12: 32_11 | S12: Baixo Guandu | T12: CEMAT | U12: Baixo Guandu_00805 | W12: =Y2 -> ESCELSA | AB12: RO | AC12: 11 | AD12: Jaru | AE12: 00114 | AF12: Jaru_00114 | AG12: 23 | AH12: Manoel Urbano | AI12: 00344 | AJ12: Manoel Urbano_00344 | AK12: 11
A13: RO | B13: 11 | C13: Ji-Parana | D13: 00122 | E13: 24 | F13: 11_24 | G13: 11_00122 | H13: Ji-Parana_00122 | I13: de 100 a 250 mil | J13: Ji-Parana_RO | K13: ELETROBRÁS DISTRIBUIÇÃO RONDÔNIA | M13: 12 | N13: 50 | O13: MATO GROSSO DO SUL | P13: 79 | Q13: 12 | R13: 32_12 | S13: Barra de Sao Francisco | T13: ESCELSA | U13: Barra de Sao Francisco_00904 | AB13: RO | AC13: 11 | AD13: Ji-Parana | AE13: 00122 | AF13: Ji-Parana_00122 | AG13: 24 | AH13: Marechal Thaumaturgo | AI13: 00351 | AJ13: Marechal Thaumaturgo_00351 | AK13: 12
A14: RO | B14: 11 | C14: Machadinho D'Oeste | D14: 00130 | E14: 25 | F14: 11_25 | G14: 11_00130 | H14: Machadinho D'Oeste_00130 | I14: de 60 a 100 mil | J14: Machadinho D'Oeste_RO | K14: ELETROBRÁS DISTRIBUIÇÃO RONDÔNIA | M14: 13 | N14: 31 | O14: MINAS GERAIS | P14: 853 | Q14: 13 | R14: 32_13 | S14: Boa Esperanca | T14: CEMAT | U14: Boa Esperanca_01001 | W14: TIPO DE CIDADE | AB14: RO | AC14: 11 | AD14: Machadinho D'Oeste | AE14: 00130 | AF14: Machadinho D'Oeste_00130 | AG14: 25 | AH14: Placido de Castro | AI14: 00385 | AJ14: Placido de Castro_00385 | AK14: 13
A15: RO | B15: 11 | C15: Nova Brasilandia D'Oeste | D15: 00148 | E15: 29 | F15: 11_29 | G15: 11_00148 | H15: Nova Brasilandia D'Oeste_00148 | I15: de 60 a 100 mil | J15: Nova Brasilandia D'Oeste_RO | K15: ELETROBRÁS DISTRIBUIÇÃO RONDÔNIA | M15: 14 | N15: 15 | O15: PARA | P15: 144 | Q15: 14 | R15: 32_14 | S15: Bom Jesus do Norte | T15: ESCELSA | U15: Bom Jesus do Norte_01100 | W15: =VLOOKUP(VLOOKUP(CONCATENATE($W$3,"_",$X$2),$R$2:$U$854,4,0),$H$2:$I$5571,2,0) -> de 60 a 100 mil | AB15: RO | AC15: 11 | AD15: Nova Brasilandia D'Oeste | AE15: 00148 | AF15: Nova Brasilandia D'Oeste_00148 | AG15: 29 | AH15: Porto Acre | AI15: 00807 | AJ15: Porto Acre_00807 | AK15: 14
A16: RO | B16: 11 | C16: Ouro Preto do Oeste | D16: 00155 | E16: 33 | F16: 11_33 | G16: 11_00155 | H16: Ouro Preto do Oeste_00155 | I16: de 60 a 100 mil | J16: Ouro Preto do Oeste_RO | K16: ELETROBRÁS DISTRIBUIÇÃO RONDÔNIA | M16: 15 | N16: 25 | O16: PARAIBA | P16: 223 | Q16: 15 | R16: 32_15 | S16: Brejetuba | T16: ESCELSA | U16: Brejetuba_01159 | AB16: RO | AC16: 11 | AD16: Ouro Preto do Oeste | AE16: 00155 | AF16: Ouro Preto do Oeste_00155 | AG16: 33 | AH16: Porto Walter | AI16: 00393 | AJ16: Porto Walter_00393 | AK16: 15
A17: RO | B17: 11 | C17: Pimenta Bueno | D17: 00189 | E17: 35 | F17: 11_35 | G17: 11_00189 | H17: Pimenta Bueno_00189 | I17: de 60 a 100 mil | J17: Pimenta Bueno_RO | K17: ELETROBRÁS DISTRIBUIÇÃO RONDÔNIA | M17: 16 | N17: 41 | O17: PARANA | P17: 399 | Q17: 16 | R17: 32_16 | S17: Cachoeiro de Itapemirim | T17: CEMAT | U17: Cachoeiro de Itapemirim_01209 | AB17: RO | AC17: 11 | AD17: Pimenta Bueno | AE17: 00189 | AF17: Pimenta Bueno_00189 | AG17: 35 | AH17: Rio Branco | AI17: 00401 | AJ17: Rio Branco_00401 | AK17: 16
A18: RO | B18: 11 | C18: Porto Velho | D18: 00205 | E18: 37 | F18: 11_37 | G18: 11_00205 | H18: Porto Velho_00205 | I18: de 500 mil a 1 milhão | J18: Porto Velho_RO | K18: ELETROBRÁS DISTRIBUIÇÃO RONDÔNIA | M18: 17 | N18: 26 | O18: PERNAMBUCO | P18: 185 | Q18: 17 | R18: 32_17 | S18: Cariacica | T18: CEMAT | U18: Cariacica_01308 | AB18: RO | AC18: 11 | AD18: Porto Velho | AE18: 00205 | AF18: Porto Velho_00205 | AG18: 37 | AH18: Rodrigues Alves | AI18: 00427 | AJ18: Rodrigues Alves_00427 | AK18: 17
A19: RO | B19: 11 | C19: Presidente Medici | D19: 00254 | E19: 38 | F19: 11_38 | G19: 11_00254 | H19: Presidente Medici_00254 | I19: de 60 a 100 mil | J19: Presidente Medici_RO | K19: ELETROBRÁS DISTRIBUIÇÃO RONDÔNIA | M19: 18 | N19: 22 | O19: PIAUI | P19: 224 | Q19: 18 | R19: 32_18 | S19: Castelo | T19: CEMAT | U19: Castelo_01407 | AB19: RO | AC19: 11 | AD19: Presidente Medici | AE19: 00254 | AF19: Presidente Medici_00254 | AG19: 38 | AH19: Santa Rosa do Purus | AI19: 00435 | AJ19: Santa Rosa do Purus_00435 | AK19: 18
A20: RO | B20: 11 | C20: Rio Crespo | D20: 00262 | E20: 40 | F20: 11_40 | G20: 11_00262 | H20: Rio Crespo_00262 | I20: de 60 a 100 mil | J20: Rio Crespo_RO | K20: ELETROBRÁS DISTRIBUIÇÃO RONDÔNIA | M20: 19 | N20: 33 | O20: RIO DE JANEIRO | P20: 92 | Q20: 19 | R20: 32_19 | S20: Colatina | T20: ELFSM | U20: Colatina_01506 | AB20: RO | AC20: 11 | AD20: Rio Crespo | AE20: 00262 | AF20: Rio Crespo_00262 | AG20: 40 | AH20: Sena Madureira | AI20: 00500 | AJ20: Sena Madureira_00500 | AK20: 19
A21: RO | B21: 11 | C21: Rolim de Moura | D21: 00288 | E21: 41 | F21: 11_41 | G21: 11_00288 | H21: Rolim de Moura_00288 | I21: de 60 a 100 mil | J21: Rolim de Moura_RO | K21: ELETROBRÁS DISTRIBUIÇÃO RONDÔNIA | M21: 20 | N21: 24 | O21: RIO GRANDE DO NORTE | P21: 167 | Q21: 20 | R21: 32_20 | S21: Conceicao da Barra | T21: CEMAT | U21: Conceicao da Barra_01605 | AB21: RO | AC21: 11 | AD21: Rolim de Moura | AE21: 00288 | AF21: Rolim de Moura_00288 | AG21: 41 | AH21: Senador Guiomard | AI21: 00450 | AJ21: Senador Guiomard_00450 | AK21: 20
A22: RO | B22: 11 | C22: Santa Luzia D'Oeste | D22: 00296 | E22: 42 | F22: 11_42 | G22: 11_00296 | H22: Santa Luzia D'Oeste_00296 | I22: de 60 a 100 mil | J22: Santa Luzia D'Oeste_RO | K22: ELETROBRÁS DISTRIBUIÇÃO RONDÔNIA | M22: 21 | N22: 43 | O22: RIO GRANDE DO SUL | P22: 497 | Q22: 21 | R22: 32_21 | S22: Conceicao do Castelo | T22: CEMAT | U22: Conceicao do Castelo_01704 | AB22: RO | AC22: 11 | AD22: Santa Luzia D'Oeste | AE22: 00296 | AF22: Santa Luzia D'Oeste_00296 | AG22: 42 | AH22: Tarauaca | AI22: 00609 | AJ22: Tarauaca_00609 | AK22: 21
A23: RO | B23: 11 | C23: Vilhena | D23: 00304 | E23: 52 | F23: 11_52 | G23: 11_00304 | H23: Vilhena_00304 | I23: de 60 a 100 mil | J23: Vilhena_RO | K23: ELETROBRÁS DISTRIBUIÇÃO RONDÔNIA | M23: 22 | N23: 11 | O23: RONDONIA | P23: 52 | Q23: 22 | R23: 32_22 | S23: Divino de Sao Lourenco | T23: CEMAT | U23: Divino de Sao Lourenco_01803 | AB23: RO | AC23: 11 | AD23: Vilhena | AE23: 00304 | AF23: Vilhena_00304 | AG23: 52 | AH23: Xapuri | AI23: 00708 | AJ23: Xapuri_00708 | AK23: 22
A24: RO | B24: 11 | C24: Sao Miguel do Guapore | D24: 00320 | E24: 45 | F24: 11_45 | G24: 11_00320 | H24: Sao Miguel do Guapore_00320 | I24: de 60 a 100 mil | J24: Sao Miguel do Guapore_RO | K24: ELETROBRÁS DISTRIBUIÇÃO RONDÔNIA | M24: 23 | N24: 14 | O24: RORAIMA | P24: 15 | Q24: 23 | R24: 32_23 | S24: Domingos Martins | T24: CEMAT | U24: Domingos Martins_01902 | AB24: RO | AC24: 11 | AD24: Sao Miguel do Guapore | AE24: 00320 | AF24: Sao Miguel do Guapore_00320 | AG24: 45 | AH24: agua Branca | AI24: 00102 | AJ24: agua Branca_00102 | AK24: 1
A25: RO | B25: 11 | C25: Nova Mamore | D25: 00338 | E25: 30 | F25: 11_30 | G25: 11_00338 | H25: Nova Mamore_00338 | I25: de 60 a 100 mil | J25: Nova Mamore_RO | K25: ELETROBRÁS DISTRIBUIÇÃO RONDÔNIA | M25: 24 | N25: 42 | O25: SANTA CATARINA | P25: 295 | Q25: 24 | R25: 32_24 | S25: Dores do Rio Preto | T25: ESCELSA | U25: Dores do Rio Preto_02009 | AB25: RO | AC25: 11 | AD25: Nova Mamore | AE25: 00338 | AF25: Nova Mamore_00338 | AG25: 30 | AH25: Anadia | AI25: 00201 | AJ25: Anadia_00201 | AK25: 2
A26: RO | B26: 11 | C26: Alvorada D'Oeste | D26: 00346 | E26: 4 | F26: 11_4 | G26: 11_00346 | H26: Alvorada D'Oeste_00346 | I26: de 60 a 100 mil | J26: Alvorada D'Oeste_RO | K26: ELETROBRÁS DISTRIBUIÇÃO RONDÔNIA | M26: 25 | N26: 35 | O26: SAO PAULO | P26: 645 | Q26: 25 | R26: 32_25 | S26: Ecoporanga | T26: ESCELSA | U26: Ecoporanga_02108 | AB26: RO | AC26: 11 | AD26: Alvorada D'Oeste | AE26: 00346 | AF26: Alvorada D'Oeste_00346 | AG26: 4 | AH26: Arapiraca | AI26: 00300 | AJ26: Arapiraca_00300 | AK26: 3
A27: RO | B27: 11 | C27: Alto Alegre dos Parecis | D27: 00379 | E27: 2 | F27: 11_2 | G27: 11_00379 | H27: Alto Alegre dos Parecis_00379 | I27: de 60 a 100 mil | J27: Alto Alegre dos Parecis_RO | K27: ELETROBRÁS DISTRIBUIÇÃO RONDÔNIA | M27: 26 | N27: 28 | O27: SERGIPE | P27: 75 | Q27: 26 | R27: 32_26 | S27: Fundao | T27: ESCELSA | U27: Fundao_02207 | AB27: RO | AC27: 11 | AD27: Alto Alegre dos Parecis | AE27: 00379 | AF27: Alto Alegre dos Parecis_00379 | AG27: 2 | AH27: Atalaia | AI27: 00409 | AJ27: Atalaia_00409 | AK27: 4
A28: RO | B28: 11 | C28: Alto Paraiso | D28: 00403 | E28: 3 | F28: 11_3 | G28: 11_00403 | H28: Alto Paraiso_00403 | I28: de 60 a 100 mil | J28: Alto Paraiso_RO | K28: ELETROBRÁS DISTRIBUIÇÃO RONDÔNIA | M28: 27 | N28: 17 | O28: TOCANTINS | P28: 139 | Q28: 27 | R28: 32_27 | S28: Governador Lindenberg | T28: ELFSM | U28: Governador Lindenberg_02256 | AB28: RO | AC28: 11 | AD28: Alto Paraiso | AE28: 00403 | AF28: Alto Paraiso_00403 | AG28: 3 | AH28: Barra de Santo Antonio | AI28: 00508 | AJ28: Barra de Santo Antonio_00508 | AK28: 5
A29: RO | B29: 11 | C29: Buritis | D29: 00452 | E29: 6 | F29: 11_6 | G29: 11_00452 | H29: Buritis_00452 | I29: de 60 a 100 mil | J29: Buritis_RO | K29: ELETROBRÁS DISTRIBUIÇÃO RONDÔNIA | Q29: 28 | R29: 32_28 | S29: Guacui | T29: ESCELSA | U29: Guacui_02306 | AB29: RO | AC29: 11 | AD29: Buritis | AE29: 00452 | AF29: Buritis_00452 | AG29: 6 | AH29: Barra de Sao Miguel | AI29: 00607 | AJ29: Barra de Sao Miguel_00607 | AK29: 6
A30: RO | B30: 11 | C30: Novo Horizonte do Oeste | D30: 00502 | E30: 32 | F30: 11_32 | G30: 11_00502 | H30: Novo Horizonte do Oeste_00502 | I30: de 60 a 100 mil | J30: Novo Horizonte do Oeste_RO | K30: ELETROBRÁS DISTRIBUIÇÃO RONDÔNIA | Q30: 29 | R30: 32_29 | S30: Guarapari | T30: ESCELSA | U30: Guarapari_02405 | AB30: RO | AC30: 11 | AD30: Novo Horizonte do Oeste | AE30: 00502 | AF30: Novo Horizonte do Oeste_00502 | AG30: 32 | AH30: Batalha | AI30: 00706 | AJ30: Batalha_00706 | AK30: 7
A31: RO | B31: 11 | C31: Cacaulandia | D31: 00601 | E31: 8 | F31: 11_8 | G31: 11_00601 | H31: Cacaulandia_00601 | I31: de 60 a 100 mil | J31: Cacaulandia_RO | K31: ELETROBRÁS DISTRIBUIÇÃO RONDÔNIA | Q31: 30 | R31: 32_30 | S31: Ibatiba | T31: ESCELSA | U31: Ibatiba_02454 | AB31: RO | AC31: 11 | AD31: Cacaulandia | AE31: 00601 | AF31: Cacaulandia_00601 | AG31: 8 | AH31: Belem | AI31: 00805 | AJ31: Belem_00805 | AK31: 8
A32: RO | B32: 11 | C32: Campo Novo de Rondonia | D32: 00700 | E32: 10 | F32: 11_10 | G32: 11_00700 | H32: Campo Novo de Rondonia_00700 | I32: de 60 a 100 mil | J32: Campo Novo de Rondonia_RO | K32: ELETROBRÁS DISTRIBUIÇÃO RONDÔNIA | Q32: 31 | R32: 32_31 | S32: Ibiracu | T32: CEMAT | U32: Ibiracu_02504 | AB32: RO | AC32: 11 | AD32: Campo Novo de Rondonia | AE32: 00700 | AF32: Campo Novo de Rondonia_00700 | AG32: 10 | AH32: Belo Monte | AI32: 00904 | AJ32: Belo Monte_00904 | AK32: 9
A33: RO | B33: 11 | C33: Candeias do Jamari | D33: 00809 | E33: 11 | F33: 11_11 | G33: 11_00809 | H33: Candeias do Jamari_00809 | I33: de 60 a 100 mil | J33: Candeias do Jamari_RO | K33: ELETROBRÁS DISTRIBUIÇÃO RONDÔNIA | Q33: 32 | R33: 32_32 | S33: Ibitirama | T33: ESCELSA | U33: Ibitirama_02553 | AB33: RO | AC33: 11 | AD33: Candeias do Jamari | AE33: 00809 | AF33: Candeias do Jamari_00809 | AG33: 11 | AH33: Boca da Mata | AI33: 01001 | AJ33: Boca da Mata_01001 | AK33: 10
A34: RO | B34: 11 | C34: Castanheiras | D34: 00908 | E34: 12 | F34: 11_12 | G34: 11_00908 | H34: Castanheiras_00908 | I34: de 60 a 100 mil | J34: Castanheiras_RO | K34: ELETROBRÁS DISTRIBUIÇÃO RONDÔNIA | Q34: 33 | R34: 32_33 | S34: Iconha | T34: CEMAT | U34: Iconha_02603 | AB34: RO | AC34: 11 | AD34: Castanheiras | AE34: 00908 | AF34: Castanheiras_00908 | AG34: 12 | AH34: Branquinha | AI34: 01100 | AJ34: Branquinha_01100 | AK34: 11
A35: RO | B35: 11 | C35: Chupinguaia | D35: 00924 | E35: 14 | F35: 11_14 | G35: 11_00924 | H35: Chupinguaia_00924 | I35: de 60 a 100 mil | J35: Chupinguaia_RO | K35: ELETROBRÁS DISTRIBUIÇÃO RONDÔNIA | Q35: 34 | R35: 32_34 | S35: Irupi | T35: ESCELSA | U35: Irupi_02652 | AB35: RO | AC35: 11 | AD35: Chupinguaia | AE35: 00924 | AF35: Chupinguaia_00924 | AG35: 14 | AH35: Cacimbinhas | AI35: 01209 | AJ35: Cacimbinhas_01209 | AK35: 12
A36: RO | B36: 11 | C36: Cujubim | D36: 00940 | E36: 18 | F36: 11_18 | G36: 11_00940 | H36: Cujubim_00940 | I36: de 60 a 100 mil | J36: Cujubim_RO | K36: ELETROBRÁS DISTRIBUIÇÃO RONDÔNIA | Q36: 35 | R36: 32_35 | S36: Itaguacu | T36: CEMAT | U36: Itaguacu_02702 | AB36: RO | AC36: 11 | AD36: Cujubim | AE36: 00940 | AF36: Cujubim_00940 | AG36: 18 | AH36: Cajueiro | AI36: 01308 | AJ36: Cajueiro_01308 | AK36: 13
A37: RO | B37: 11 | C37: Governador Jorge Teixeira | D37: 01005 | E37: 20 | F37: 11_20 | G37: 11_01005 | H37: Governador Jorge Teixeira_01005 | I37: de 60 a 100 mil | J37: Governador Jorge Teixeira_RO | K37: ELETROBRÁS DISTRIBUIÇÃO RONDÔNIA | Q37: 36 | R37: 32_36 | S37: Itapemirim | T37: ESCELSA | U37: Itapemirim_02801 | AB37: RO | AC37: 11 | AD37: Governador Jorge Teixeira | AE37: 01005 | AF37: Governador Jorge Teixeira_01005 | AG37: 20 | AH37: Campestre | AI37: 01357 | AJ37: Campestre_01357 | AK37: 14
A38: RO | B38: 11 | C38: Itapua do Oeste | D38: 01104 | E38: 22 | F38: 11_22 | G38: 11_01104 | H38: Itapua do Oeste_01104 | I38: de 60 a 100 mil | J38: Itapua do Oeste_RO | K38: ELETROBRÁS DISTRIBUIÇÃO RONDÔNIA | Q38: 37 | R38: 32_37 | S38: Itarana | T38: ESCELSA | U38: Itarana_02900 | AB38: RO | AC38: 11 | AD38: Itapua do Oeste | AE38: 01104 | AF38: Itapua do Oeste_01104 | AG38: 22 | AH38: Campo Alegre | AI38: 01407 | AJ38: Campo Alegre_01407 | AK38: 15
A39: RO | B39: 11 | C39: Ministro Andreazza | D39: 01203 | E39: 26 | F39: 11_26 | G39: 11_01203 | H39: Ministro Andreazza_01203 | I39: de 60 a 100 mil | J39: Ministro Andreazza_RO | K39: ELETROBRÁS DISTRIBUIÇÃO RONDÔNIA | Q39: 38 | R39: 32_38 | S39: Iuna | T39: CEMAT | U39: Iuna_03007 | AB39: RO | AC39: 11 | AD39: Ministro Andreazza | AE39: 01203 | AF39: Ministro Andreazza_01203 | AG39: 26 | AH39: Campo Grande | AI39: 01506 | AJ39: Campo Grande_01506 | AK39: 16
A40: RO | B40: 11 | C40: Mirante da Serra | D40: 01302 | E40: 27 | F40: 11_27 | G40: 11_01302 | H40: Mirante da Serra_01302 | I40: de 60 a 100 mil | J40: Mirante da Serra_RO | K40: ELETROBRÁS DISTRIBUIÇÃO RONDÔNIA | Q40: 39 | R40: 32_39 | S40: Jaguare | T40: CEMAT | U40: Jaguare_03056 | AB40: RO | AC40: 11 | AD40: Mirante da Serra | AE40: 01302 | AF40: Mirante da Serra_01302 | AG40: 27 | AH40: Canapi | AI40: 01605 | AJ40: Canapi_01605 | AK40: 17
A41: RO | B41: 11 | C41: Monte Negro | D41: 01401 | E41: 28 | F41: 11_28 | G41: 11_01401 | H41: Monte Negro_01401 | I41: de 60 a 100 mil | J41: Monte Negro_RO | K41: ELETROBRÁS DISTRIBUIÇÃO RONDÔNIA | Q41: 40 | R41: 32_40 | S41: Jeronimo Monteiro | T41: CEMAT | U41: Jeronimo Monteiro_03106 | AB41: RO | AC41: 11 | AD41: Monte Negro | AE41: 01401 | AF41: Monte Negro_01401 | AG41: 28 | AH41: Capela | AI41: 01704 | AJ41: Capela_01704 | AK41: 18
A42: RO | B42: 11 | C42: Nova Uniao | D42: 01435 | E42: 31 | F42: 11_31 | G42: 11_01435 | H42: Nova Uniao_01435 | I42: de 60 a 100 mil | J42: Nova Uniao_RO | K42: ELETROBRÁS DISTRIBUIÇÃO RONDÔNIA | Q42: 41 | R42: 32_41 | S42: Joao Neiva | T42: ESCELSA | U42: Joao Neiva_03130 | AB42: RO | AC42: 11 | AD42: Nova Uniao | AE42: 01435 | AF42: Nova Uniao_01435 | AG42: 31 | AH42: Carneiros | AI42: 01803 | AJ42: Carneiros_01803 | AK42: 19
A43: RO | B43: 11 | C43: Parecis | D43: 01450 | E43: 34 | F43: 11_34 | G43: 11_01450 | H43: Parecis_01450 | I43: de 60 a 100 mil | J43: Parecis_RO | K43: ELETROBRÁS DISTRIBUIÇÃO RONDÔNIA | Q43: 42 | R43: 32_42 | S43: Laranja da Terra | T43: ESCELSA | U43: Laranja da Terra_03163 | AB43: RO | AC43: 11 | AD43: Parecis | AE43: 01450 | AF43: Parecis_01450 | AG43: 34 | AH43: Cha Preta | AI43: 01902 | AJ43: Cha Preta_01902 | AK43: 20
A44: RO | B44: 11 | C44: Pimenteiras do Oeste | D44: 01468 | E44: 36 | F44: 11_36 | G44: 11_01468 | H44: Pimenteiras do Oeste_01468 | I44: de 60 a 100 mil | J44: Pimenteiras do Oeste_RO | K44: ELETROBRÁS DISTRIBUIÇÃO RONDÔNIA | Q44: 43 | R44: 32_43 | S44: Linhares | T44: CEMAT | U44: Linhares_03205 | AB44: RO | AC44: 11 | AD44: Pimenteiras do Oeste | AE44: 01468 | AF44: Pimenteiras do Oeste_01468 | AG44: 36 | AH44: Coite do Noia | AI44: 02009 | AJ44: Coite do Noia_02009 | AK44: 21
A45: RO | B45: 11 | C45: Primavera de Rondonia | D45: 01476 | E45: 39 | F45: 11_39 | G45: 11_01476 | H45: Primavera de Rondonia_01476 | I45: de 60 a 100 mil | J45: Primavera de Rondonia_RO | K45: ELETROBRÁS DISTRIBUIÇÃO RONDÔNIA | Q45: 44 | R45: 32_44 | S45: Mantenopolis | T45: CEMAT | U45: Mantenopolis_03304 | AB45: RO | AC45: 11 | AD45: Primavera de Rondonia | AE45: 01476 | AF45: Primavera de Rondonia_01476 | AG45: 39 | AH45: Colonia Leopoldina | AI45: 02108 | AJ45: Colonia Leopoldina_02108 | AK45: 22
A46: RO | B46: 11 | C46: Sao Felipe D'Oeste | D46: 01484 | E46: 43 | F46: 11_43 | G46: 11_01484 | H46: Sao Felipe D'Oeste_01484 | I46: de 60 a 100 mil | J46: Sao Felipe D'Oeste_RO | K46: ELETROBRÁS DISTRIBUIÇÃO RONDÔNIA | Q46: 45 | R46: 32_45 | S46: Marataizes | T46: ESCELSA | U46: Marataizes_03320 | AB46: RO | AC46: 11 | AD46: Sao Felipe D'Oeste | AE46: 01484 | AF46: Sao Felipe D'Oeste_01484 | AG46: 43 | AH46: Coqueiro Seco | AI46: 02207 | AJ46: Coqueiro Seco_02207 | AK46: 23
A47: RO | B47: 11 | C47: Sao Francisco do Guapore | D47: 01492 | E47: 44 | F47: 11_44 | G47: 11_01492 | H47: Sao Francisco do Guapore_01492 | I47: de 60 a 100 mil | J47: Sao Francisco do Guapore_RO | K47: ELETROBRÁS DISTRIBUIÇÃO RONDÔNIA | Q47: 46 | R47: 32_46 | S47: Marechal Floriano | T47: ESCELSA | U47: Marechal Floriano_03346 | AB47: RO | AC47: 11 | AD47: Sao Francisco do Guapore | AE47: 01492 | AF47: Sao Francisco do Guapore_01492 | AG47: 44 | AH47: Coruripe | AI47: 02306 | AJ47: Coruripe_02306 | AK47: 24
A48: RO | B48: 11 | C48: Seringueiras | D48: 01500 | E48: 46 | F48: 11_46 | G48: 11_01500 | H48: Seringueiras_01500 | I48: de 60 a 100 mil | J48: Seringueiras_RO | K48: ELETROBRÁS DISTRIBUIÇÃO RONDÔNIA | Q48: 47 | R48: 32_47 | S48: Marilandia | T48: CEMAT | U48: Marilandia_03353 | AB48: RO | AC48: 11 | AD48: Seringueiras | AE48: 01500 | AF48: Seringueiras_01500 | AG48: 46 | AH48: Craibas | AI48: 02355 | AJ48: Craibas_02355 | AK48: 25
A49: RO | B49: 11 | C49: Teixeiropolis | D49: 01559 | E49: 47 | F49: 11_47 | G49: 11_01559 | H49: Teixeiropolis_01559 | I49: de 60 a 100 mil | J49: Teixeiropolis_RO | K49: ELETROBRÁS DISTRIBUIÇÃO RONDÔNIA | Q49: 48 | R49: 32_48 | S49: Mimoso do Sul | T49: CEMAT | U49: Mimoso do Sul_03403 | AB49: RO | AC49: 11 | AD49: Teixeiropolis | AE49: 01559 | AF49: Teixeiropolis_01559 | AG49: 47 | AH49: Delmiro Gouveia | AI49: 02405 | AJ49: Delmiro Gouveia_02405 | AK49: 26
A50: RO | B50: 11 | C50: Theobroma | D50: 01609 | E50: 48 | F50: 11_48 | G50: 11_01609 | H50: Theobroma_01609 | I50: de 60 a 100 mil | J50: Theobroma_RO | K50: ELETROBRÁS DISTRIBUIÇÃO RONDÔNIA | Q50: 49 | R50: 32_49 | S50: Montanha | T50: CEMAT | U50: Montanha_03502 | AB50: RO | AC50: 11 | AD50: Theobroma | AE50: 01609 | AF50: Theobroma_01609 | AG50: 48 | AH50: Dois Riachos | AI50: 02504 | AJ50: Dois Riachos_02504 | AK50: 27
A51: RO | B51: 11 | C51: Urupa | D51: 01708 | E51: 49 | F51: 11_49 | G51: 11_01708 | H51: Urupa_01708 | I51: de 60 a 100 mil | J51: Urupa_RO | K51: ELETROBRÁS DISTRIBUIÇÃO RONDÔNIA | Q51: 50 | R51: 32_50 | S51: Mucurici | T51: CEMAT | U51: Mucurici_03601 | AB51: RO | AC51: 11 | AD51: Urupa | AE51: 01708 | AF51: Urupa_01708 | AG51: 49 | AH51: Estrela de Alagoas | AI51: 02553 | AJ51: Estrela de Alagoas_02553 | AK51: 28
A52: RO | B52: 11 | C52: Vale do Anari | D52: 01757 | E52: 50 | F52: 11_50 | G52: 11_01757 | H52: Vale do Anari_01757 | I52: de 60 a 100 mil | J52: Vale do Anari_RO | K52: ELETROBRÁS DISTRIBUIÇÃO RONDÔNIA | Q52: 51 | R52: 32_51 | S52: Muniz Freire | T52: CEMAT | U52: Muniz Freire_03700 | AB52: RO | AC52: 11 | AD52: Vale do Anari | AE52: 01757 | AF52: Vale do Anari_01757 | AG52: 50 | AH52: Feira Grande | AI52: 02603 | AJ52: Feira Grande_02603 | AK52: 29
A53: RO | B53: 11 | C53: Vale do Paraiso | D53: 01807 | E53: 51 | F53: 11_51 | G53: 11_01807 | H53: Vale do Paraiso_01807 | I53: de 60 a 100 mil | J53: Vale do Paraiso_RO | K53: ELETROBRÁS DISTRIBUIÇÃO RONDÔNIA | Q53: 52 | R53: 32_52 | S53: Muqui | T53: CEMAT | U53: Muqui_03809 | AB53: RO | AC53: 11 | AD53: Vale do Paraiso | AE53: 01807 | AF53: Vale do Paraiso_01807 | AG53: 51 | AH53: Feliz Deserto | AI53: 02702 | AJ53: Feliz Deserto_02702 | AK53: 30
A54: AC | B54: 12 | C54: Acrelandia | D54: 00013 | E54: 1 | F54: 12_1 | G54: 12_00013 | H54: Acrelandia_00013 | I54: de 60 a 100 mil | J54: Acrelandia_AC | K54: ELETROBRÁS DISTRIBUIÇÃO ACRE | Q54: 53 | R54: 32_53 | S54: Nova Venecia | T54: CEMAT | U54: Nova Venecia_03908 | AB54: AC | AC54: 12 | AD54: Acrelandia | AE54: 00013 | AF54: Acrelandia_00013 | AG54: 1 | AH54: Flexeiras | AI54: 02801 | AJ54: Flexeiras_02801 | AK54: 31
A55: AC | B55: 12 | C55: Assis Brasil | D55: 00054 | E55: 2 | F55: 12_2 | G55: 12_00054 | H55: Assis Brasil_00054 | I55: de 60 a 100 mil | J55: Assis Brasil_AC | K55: ELETROBRÁS DISTRIBUIÇÃO ACRE | Q55: 54 | R55: 32_54 | S55: Pancas | T55: ELFSM | U55: Pancas_04005 | AB55: AC | AC55: 12 | AD55: Assis Brasil | AE55: 00054 | AF55: Assis Brasil_00054 | AG55: 2 | AH55: Girau do Ponciano | AI55: 02900 | AJ55: Girau do Ponciano_02900 | AK55: 32
A56: AC | B56: 12 | C56: Brasileia | D56: 00104 | E56: 3 | F56: 12_3 | G56: 12_00104 | H56: Brasileia_00104 | I56: de 60 a 100 mil | J56: Brasileia_AC | K56: CEMIG-D | Q56: 55 | R56: 32_55 | S56: Pedro Canario | T56: ESCELSA | U56: Pedro Canario_04054 | AB56: AC | AC56: 12 | AD56: Brasileia | AE56: 00104 | AF56: Brasileia_00104 | AG56: 3 | AH56: Ibateguara | AI56: 03007 | AJ56: Ibateguara_03007 | AK56: 33
A57: AC | B57: 12 | C57: Bujari | D57: 00138 | E57: 4 | F57: 12_4 | G57: 12_00138 | H57: Bujari_00138 | I57: de 60 a 100 mil | J57: Bujari_AC | K57: ELETROBRÁS DISTRIBUIÇÃO ACRE | Q57: 56 | R57: 32_56 | S57: Pinheiros | T57: CEMAT | U57: Pinheiros_04104 | AB57: AC | AC57: 12 | AD57: Bujari | AE57: 00138 | AF57: Bujari_00138 | AG57: 4 | AH57: Igaci | AI57: 03106 | AJ57: Igaci_03106 | AK57: 34
A58: AC | B58: 12 | C58: Capixaba | D58: 00179 | E58: 5 | F58: 12_5 | G58: 12_00179 | H58: Capixaba_00179 | I58: de 60 a 100 mil | J58: Capixaba_AC | K58: ELETROBRÁS DISTRIBUIÇÃO ACRE | Q58: 57 | R58: 32_57 | S58: Piuma | T58: CEMAT | U58: Piuma_04203 | AB58: AC | AC58: 12 | AD58: Capixaba | AE58: 00179 | AF58: Capixaba_00179 | AG58: 5 | AH58: Igreja Nova | AI58: 03205 | AJ58: Igreja Nova_03205 | AK58: 35
A59: AC | B59: 12 | C59: Cruzeiro do Sul | D59: 00203 | E59: 6 | F59: 12_6 | G59: 12_00203 | H59: Cruzeiro do Sul_00203 | I59: de 60 a 100 mil | J59: Cruzeiro do Sul_AC | K59: CEMIG-D | Q59: 58 | R59: 32_58 | S59: Ponto Belo | T59: ESCELSA | U59: Ponto Belo_04252 | AB59: AC | AC59: 12 | AD59: Cruzeiro do Sul | AE59: 00203 | AF59: Cruzeiro do Sul_00203 | AG59: 6 | AH59: Inhapi | AI59: 03304 | AJ59: Inhapi_03304 | AK59: 36
A60: AC | B60: 12 | C60: Epitaciolandia | D60: 00252 | E60: 7 | F60: 12_7 | G60: 12_00252 | H60: Epitaciolandia_00252 | I60: de 60 a 100 mil | J60: Epitaciolandia_AC | K60: ENERSUL | Q60: 59 | R60: 32_59 | S60: Presidente Kennedy | T60: ESCELSA | U60: Presidente Kennedy_04302 | AB60: AC | AC60: 12 | AD60: Epitaciolandia | AE60: 00252 | AF60: Epitaciolandia_00252 | AG60: 7 | AH60: Jacare dos Homens | AI60: 03403 | AJ60: Jacare dos Homens_03403 | AK60: 37
A61: AC | B61: 12 | C61: Feijo | D61: 00302 | E61: 8 | F61: 12_8 | G61: 12_00302 | H61: Feijo_00302 | I61: de 60 a 100 mil | J61: Feijo_AC | K61: CEMIG-D | Q61: 60 | R61: 32_60 | S61: Rio Bananal | T61: ESCELSA | U61: Rio Bananal_04351 | AB61: AC | AC61: 12 | AD61: Feijo | AE61: 00302 | AF61: Feijo_00302 | AG61: 8 | AH61: Jacuipe | AI61: 03502 | AJ61: Jacuipe_03502 | AK61: 38
A62: AC | B62: 12 | C62: Jordao | D62: 00328 | E62: 9 | F62: 12_9 | G62: 12_00328 | H62: Jordao_00328 | I62: de 60 a 100 mil | J62: Jordao_AC | K62: ELETROBRÁS DISTRIBUIÇÃO ACRE | Q62: 61 | R62: 32_61 | S62: Rio Novo do Sul | T62: ESCELSA | U62: Rio Novo do Sul_04401 | AB62: AC | AC62: 12 | AD62: Jordao | AE62: 00328 | AF62: Jordao_00328 | AG62: 9 | AH62: Japaratinga | AI62: 03601 | AJ62: Japaratinga_03601 | AK62: 39
A63: AC | B63: 12 | C63: Mancio Lima | D63: 00336 | E63: 10 | F63: 12_10 | G63: 12_00336 | H63: Mancio Lima_00336 | I63: de 60 a 100 mil | J63: Mancio Lima_AC | K63: ELETROBRÁS DISTRIBUIÇÃO ACRE | Q63: 62 | R63: 32_62 | S63: Santa Leopoldina | T63: CEMAT | U63: Santa Leopoldina_04500 | AB63: AC | AC63: 12 | AD63: Mancio Lima | AE63: 00336 | AF63: Mancio Lima_00336 | AG63: 10 | AH63: Jaramataia | AI63: 03700 | AJ63: Jaramataia_03700 | AK63: 40
A64: AC | B64: 12 | C64: Manoel Urbano | D64: 00344 | E64: 11 | F64: 12_11 | G64: 12_00344 | H64: Manoel Urbano_00344 | I64: de 60 a 100 mil | J64: Manoel Urbano_AC | K64: ELETROBRÁS DISTRIBUIÇÃO ACRE | Q64: 63 | R64: 32_63 | S64: Santa Maria de Jetiba | T64: CEMAT | U64: Santa Maria de Jetiba_04559 | AB64: AC | AC64: 12 | AD64: Manoel Urbano | AE64: 00344 | AF64: Manoel Urbano_00344 | AG64: 11 | AH64: Jequia da Praia | AI64: 03759 | AJ64: Jequia da Praia_03759 | AK64: 41
A65: AC | B65: 12 | C65: Marechal Thaumaturgo | D65: 00351 | E65: 12 | F65: 12_12 | G65: 12_00351 | H65: Marechal Thaumaturgo_00351 | I65: de 60 a 100 mil | J65: Marechal Thaumaturgo_AC | K65: ELETROBRÁS DISTRIBUIÇÃO ACRE | Q65: 64 | R65: 32_64 | S65: Santa Teresa | T65: CEMAT | U65: Santa Teresa_04609 | AB65: AC | AC65: 12 | AD65: Marechal Thaumaturgo | AE65: 00351 | AF65: Marechal Thaumaturgo_00351 | AG65: 12 | AH65: Joaquim Gomes | AI65: 03809 | AJ65: Joaquim Gomes_03809 | AK65: 42
A66: AC | B66: 12 | C66: Placido de Castro | D66: 00385 | E66: 13 | F66: 12_13 | G66: =CONCATENATE(B66,"_",D66) -> 12_00385 | H66: Placido de Castro_00385 | I66: de 60 a 100 mil | J66: =CONCATENATE(C66&"_"&A66) -> Placido de Castro_AC | K66: ELETROBRÁS DISTRIBUIÇÃO ACRE | Q66: 65 | R66: =CONCATENATE($W$3,"_",Q66) -> 32_65 | S66: Sao Domingos do Norte | T66: ELFSM | U66: =IFERROR(INDEX($C$2:$K$5571,MATCH($R66,$F$2:$F$5571,0),6),"") -> Sao Domingos do Norte_04658 | AB66: AC | AC66: 12 | AD66: Placido de Castro | AE66: 00385 | AF66: Placido de Castro_00385 | AG66: 13 | AH66: Jundia | AI66: 03908 | AJ66: =CONCATENATE(AH66,"_",AI66) -> Jundia_03908 | AK66: 43
A67: AC | B67: 12 | C67: Porto Walter | D67: 00393 | E67: 15 | F67: =CONCATENATE(B67,"_",E67) -> 12_15 | G67: 12_00393 | H67: =CONCATENATE(C67,"_",D67) -> Porto Walter_00393 | I67: de 60 a 100 mil | J67: Porto Walter_AC | K67: ELETROBRÁS DISTRIBUIÇÃO ACRE | Q67: 66 | R67: 32_66 | S67: =IFERROR(INDEX($C$2:$F$5571,MATCH(R67,$F$2:$F$5571,0),1),"") -> Sao Gabriel da Palha | T67: =IFERROR(INDEX($C$2:$K$5571,MATCH(R67,$F$2:$F$5571,0),9),"") -> ELFSM | U67: Sao Gabriel da Palha_04708 | AA67: =IFERROR(VLOOKUP(Z67,$G$2:$J$5571,2,FALSE),"") ->  | AB67: AC | AC67: 12 | AD67: Porto Walter | AE67: 00393 | AF67: =CONCATENATE(AD67,"_",AE67) -> Porto Walter_00393 | AG67: =VLOOKUP(AF67,$AJ$2:$AK$5571,2,0) -> 15 | AH67: Junqueiro | AI67: 04005 | AJ67: Junqueiro_04005 | AK67: 44
A68: AC | B68: 12 | C68: Rio Branco | D68: 00401 | E68: 16 | F68: 12_16 | G68: 12_00401 | H68: Rio Branco_00401 | I68: de 250 a 500 mil | J68: Rio Branco_AC | K68: CEMIG-D | Q68: 67 | R68: 32_67 | S68: Sao Jose do Calcado | T68: CEMAT | U68: Sao Jose do Calcado_04807 | AB68: AC | AC68: 12 | AD68: Rio Branco | AE68: 00401 | AF68: Rio Branco_00401 | AG68: 16 | AH68: Lagoa da Canoa | AI68: 04104 | AJ68: Lagoa da Canoa_04104 | AK68: 45
A69: AC | B69: 12 | C69: Rodrigues Alves | D69: 00427 | E69: 17 | F69: 12_17 | G69: 12_00427 | H69: Rodrigues Alves_00427 | I69: de 60 a 100 mil | J69: Rodrigues Alves_AC | K69: ELETROBRÁS DISTRIBUIÇÃO ACRE | Q69: 68 | R69: 32_68 | S69: Sao Mateus | T69: CEMAT | U69: Sao Mateus_04906 | AB69: AC | AC69: 12 | AD69: Rodrigues Alves | AE69: 00427 | AF69: Rodrigues Alves_00427 | AG69: 17 | AH69: Limoeiro de Anadia | AI69: 04203 | AJ69: Limoeiro de Anadia_04203 | AK69: 46
A70: AC | B70: 12 | C70: Santa Rosa do Purus | D70: 00435 | E70: 18 | F70: 12_18 | G70: 12_00435 | H70: Santa Rosa do Purus_00435 | I70: de 60 a 100 mil | J70: Santa Rosa do Purus_AC | K70: ELETROBRÁS DISTRIBUIÇÃO ACRE | Q70: 69 | R70: 32_69 | S70: Sao Roque do Canaa | T70: ELFSM | U70: Sao Roque do Canaa_04955 | AB70: AC | AC70: 12 | AD70: Santa Rosa do Purus | AE70: 00435 | AF70: Santa Rosa do Purus_00435 | AG70: 18 | AH70: Maceio | AI70: 04302 | AJ70: Maceio_04302 | AK70: 47
A71: AC | B71: 12 | C71: Senador Guiomard | D71: 00450 | E71: 20 | F71: 12_20 | G71: 12_00450 | H71: Senador Guiomard_00450 | I71: de 60 a 100 mil | J71: Senador Guiomard_AC | K71: ELETROBRÁS DISTRIBUIÇÃO ACRE | Q71: 70 | R71: 32_70 | S71: Serra | T71: CEMAT | U71: Serra_05002 | AB71: AC | AC71: 12 | AD71: Senador Guiomard | AE71: 00450 | AF71: Senador Guiomard_00450 | AG71: 20 | AH71: Major Isidoro | AI71: 04401 | AJ71: Major Isidoro_04401 | AK71: 48
A72: AC | B72: 12 | C72: Sena Madureira | D72: 00500 | E72: 19 | F72: 12_19 | G72: 12_00500 | H72: Sena Madureira_00500 | I72: de 60 a 100 mil | J72: Sena Madureira_AC | K72: CEMIG-D | Q72: 71 | R72: 32_71 | S72: Sooretama | T72: ESCELSA | U72: Sooretama_05010 | AB72: AC | AC72: 12 | AD72: Sena Madureira | AE72: 00500 | AF72: Sena Madureira_00500 | AG72: 19 | AH72: Mar Vermelho | AI72: 04906 | AJ72: Mar Vermelho_04906 | AK72: 49
A73: AC | B73: 12 | C73: Tarauaca | D73: 00609 | E73: 21 | F73: 12_21 | G73: 12_00609 | H73: Tarauaca_00609 | I73: de 60 a 100 mil | J73: Tarauaca_AC | K73: CEMIG-D | Q73: 72 | R73: 32_72 | S73: Vargem Alta | T73: ESCELSA | U73: Vargem Alta_05036 | AB73: AC | AC73: 12 | AD73: Tarauaca | AE73: 00609 | AF73: Tarauaca_00609 | AG73: 21 | AH73: Maragogi | AI73: 04500 | AJ73: Maragogi_04500 | AK73: 50
A74: AC | B74: 12 | C74: Xapuri | D74: 00708 | E74: 22 | F74: 12_22 | G74: 12_00708 | H74: Xapuri_00708 | I74: de 60 a 100 mil | J74: Xapuri_AC | K74: CEMIG-D | Q74: 73 | R74: 32_73 | S74: Venda Nova do Imigrante | T74: ESCELSA | U74: Venda Nova do Imigrante_05069 | AB74: AC | AC74: 12 | AD74: Xapuri | AE74: 00708 | AF74: Xapuri_00708 | AG74: 22 | AH74: Maravilha | AI74: 04609 | AJ74: Maravilha_04609 | AK74: 51
A75: AC | B75: 12 | C75: Porto Acre | D75: 00807 | E75: 14 | F75: 12_14 | G75: 12_00807 | H75: Porto Acre_00807 | I75: de 60 a 100 mil | J75: Porto Acre_AC | K75: CEMIG-D | Q75: 74 | R75: 32_74 | S75: Viana | T75: CEMAT | U75: Viana_05101 | AB75: AC | AC75: 12 | AD75: Porto Acre | AE75: 00807 | AF75: Porto Acre_00807 | AG75: 14 | AH75: Marechal Deodoro | AI75: 04708 | AJ75: Marechal Deodoro_04708 | AK75: 52
A76: AM | B76: 13 | C76: Alvaraes | D76: 00029 | E76: 1 | F76: 13_1 | G76: 13_00029 | H76: Alvaraes_00029 | I76: de 60 a 100 mil | J76: Alvaraes_AM | K76: ELETROBRÁS AMAZONAS ENERGIA | Q76: 75 | R76: 32_75 | S76: Vila Pavao | T76: CEMAT | U76: Vila Pavao_05150 | AB76: AM | AC76: 13 | AD76: Alvaraes | AE76: 00029 | AF76: Alvaraes_00029 | AG76: 1 | AH76: Maribondo | AI76: 04807 | AJ76: Maribondo_04807 | AK76: 53
A77: AM | B77: 13 | C77: Amatura | D77: 00060 | E77: 2 | F77: 13_2 | G77: 13_00060 | H77: Amatura_00060 | I77: de 60 a 100 mil | J77: Amatura_AM | K77: ELETROBRÁS AMAZONAS ENERGIA | Q77: 76 | R77: 32_76 | S77: Vila Valerio | T77: CEMAT | U77: Vila Valerio_05176 | AB77: AM | AC77: 13 | AD77: Amatura | AE77: 00060 | AF77: Amatura_00060 | AG77: 2 | AH77: Mata Grande | AI77: 05002 | AJ77: Mata Grande_05002 | AK77: 54
A78: AM | B78: 13 | C78: Anama | D78: 00086 | E78: 3 | F78: 13_3 | G78: 13_00086 | H78: Anama_00086 | I78: de 60 a 100 mil | J78: Anama_AM | K78: ELETROBRÁS AMAZONAS ENERGIA | Q78: 77 | R78: 32_77 | S78: Vila Velha | T78: CEMAT | U78: Vila Velha_05200 | AB78: AM | AC78: 13 | AD78: Anama | AE78: 00086 | AF78: Anama_00086 | AG78: 3 | AH78: Matriz de Camaragibe | AI78: 05101 | AJ78: Matriz de Camaragibe_05101 | AK78: 55
A79: AM | B79: 13 | C79: Anori | D79: 00102 | E79: 4 | F79: 13_4 | G79: 13_00102 | H79: Anori_00102 | I79: de 60 a 100 mil | J79: Anori_AM | K79: CEMAT | Q79: 78 | R79: 32_78 | S79: Vitoria | T79: CEMAT | U79: Vitoria_05309 | AB79: AM | AC79: 13 | AD79: Anori | AE79: 00102 | AF79: Anori_00102 | AG79: 4 | AH79: Messias | AI79: 05200 | AJ79: Messias_05200 | AK79: 56
A80: AM | B80: 13 | C80: Apui | D80: 00144 | E80: 5 | F80: 13_5 | G80: 13_00144 | H80: Apui_00144 | I80: de 60 a 100 mil | J80: Apui_AM | K80: ELETROBRÁS AMAZONAS ENERGIA | Q80: 79 | R80: 32_79 | AB80: AM | AC80: 13 | AD80: Apui | AE80: 00144 | AF80: Apui_00144 | AG80: 5 | AH80: Minador do Negrao | AI80: 05309 | AJ80: Minador do Negrao_05309 | AK80: 57
A81: AM | B81: 13 | C81: Atalaia do Norte | D81: 00201 | E81: 6 | F81: 13_6 | G81: 13_00201 | H81: Atalaia do Norte_00201 | I81: de 60 a 100 mil | J81: Atalaia do Norte_AM | K81: CEMAT | Q81: 80 | R81: 32_80 | AB81: AM | AC81: 13 | AD81: Atalaia do Norte | AE81: 00201 | AF81: Atalaia do Norte_00201 | AG81: 6 | AH81: Monteiropolis | AI81: 05408 | AJ81: Monteiropolis_05408 | AK81: 58
A82: AM | B82: 13 | C82: Autazes | D82: 00300 | E82: 7 | F82: 13_7 | G82: 13_00300 | H82: Autazes_00300 | I82: de 60 a 100 mil | J82: Autazes_AM | K82: CEMAT | Q82: 81 | R82: 32_81 | AB82: AM | AC82: 13 | AD82: Autazes | AE82: 00300 | AF82: Autazes_00300 | AG82: 7 | AH82: Murici | AI82: 05507 | AJ82: Murici_05507 | AK82: 59
A83: AM | B83: 13 | C83: Barcelos | D83: 00409 | E83: 8 | F83: 13_8 | G83: 13_00409 | H83: Barcelos_00409 | I83: de 60 a 100 mil | J83: Barcelos_AM | K83: CEMAT | Q83: 82 | R83: 32_82 | AB83: AM | AC83: 13 | AD83: Barcelos | AE83: 00409 | AF83: Barcelos_00409 | AG83: 8 | AH83: Novo Lino | AI83: 05606 | AJ83: Novo Lino_05606 | AK83: 60
A84: AM | B84: 13 | C84: Barreirinha | D84: 00508 | E84: 9 | F84: 13_9 | G84: 13_00508 | H84: Barreirinha_00508 | I84: de 60 a 100 mil | J84: Barreirinha_AM | K84: CEMAT | Q84: 83 | R84: 32_83 | AB84: AM | AC84: 13 | AD84: Barreirinha | AE84: 00508 | AF84: Barreirinha_00508 | AG84: 9 | AH84: Olho d'agua das Flores | AI84: 05705 | AJ84: Olho d'agua das Flores_05705 | AK84: 61
A85: AM | B85: 13 | C85: Benjamin Constant | D85: 00607 | E85: 10 | F85: 13_10 | G85: 13_00607 | H85: Benjamin Constant_00607 | I85: de 60 a 100 mil | J85: Benjamin Constant_AM | K85: CEMAT | Q85: 84 | R85: 32_84 | AB85: AM | AC85: 13 | AD85: Benjamin Constant | AE85: 00607 | AF85: Benjamin Constant_00607 | AG85: 10 | AH85: Olho d'agua do Casado | AI85: 05804 | AJ85: Olho d'agua do Casado_05804 | AK85: 62
A86: AM | B86: 13 | C86: Beruri | D86: 00631 | E86: 11 | F86: 13_11 | G86: 13_00631 | H86: Beruri_00631 | I86: de 60 a 100 mil | J86: Beruri_AM | K86: ELETROBRÁS AMAZONAS ENERGIA | Q86: 85 | R86: 32_85 | AB86: AM | AC86: 13 | AD86: Beruri | AE86: 00631 | AF86: Beruri_00631 | AG86: 11 | AH86: Olho d'agua Grande | AI86: 05903 | AJ86: Olho d'agua Grande_05903 | AK86: 63
A87: AM | B87: 13 | C87: Boa Vista do Ramos | D87: 00680 | E87: 12 | F87: 13_12 | G87: 13_00680 | H87: Boa Vista do Ramos_00680 | I87: de 60 a 100 mil | J87: Boa Vista do Ramos_AM | K87: ELETROBRÁS AMAZONAS ENERGIA | Q87: 86 | R87: 32_86 | AB87: AM | AC87: 13 | AD87: Boa Vista do Ramos | AE87: 00680 | AF87: Boa Vista do Ramos_00680 | AG87: 12 | AH87: Olivenca | AI87: 06000 | AJ87: Olivenca_06000 | AK87: 64
A88: AM | B88: 13 | C88: Boca do Acre | D88: 00706 | E88: 13 | F88: 13_13 | G88: 13_00706 | H88: Boca do Acre_00706 | I88: de 60 a 100 mil | J88: Boca do Acre_AM | K88: ESCELSA | Q88: 87 | R88: 32_87 | AB88: AM | AC88: 13 | AD88: Boca do Acre | AE88: 00706 | AF88: Boca do Acre_00706 | AG88: 13 | AH88: Ouro Branco | AI88: 06109 | AJ88: Ouro Branco_06109 | AK88: 65
A89: AM | B89: 13 | C89: Borba | D89: 00805 | E89: 14 | F89: 13_14 | G89: 13_00805 | H89: Borba_00805 | I89: de 60 a 100 mil | J89: Borba_AM | K89: CEMAT | Q89: 88 | R89: 32_88 | AB89: AM | AC89: 13 | AD89: Borba | AE89: 00805 | AF89: Borba_00805 | AG89: 14 | AH89: Palestina | AI89: 06208 | AJ89: Palestina_06208 | AK89: 66
A90: AM | B90: 13 | C90: Caapiranga | D90: 00839 | E90: 15 | F90: 13_15 | G90: 13_00839 | H90: Caapiranga_00839 | I90: de 60 a 100 mil | J90: Caapiranga_AM | K90: ELETROBRÁS AMAZONAS ENERGIA | Q90: 89 | R90: 32_89 | AB90: AM | AC90: 13 | AD90: Caapiranga | AE90: 00839 | AF90: Caapiranga_00839 | AG90: 15 | AH90: Palmeira dos indios | AI90: 06307 | AJ90: Palmeira dos indios_06307 | AK90: 67
A91: AM | B91: 13 | C91: Canutama | D91: 00904 | E91: 16 | F91: 13_16 | G91: 13_00904 | H91: Canutama_00904 | I91: de 60 a 100 mil | J91: Canutama_AM | K91: ESCELSA | Q91: 90 | R91: 32_90 | AB91: AM | AC91: 13 | AD91: Canutama | AE91: 00904 | AF91: Canutama_00904 | AG91: 16 | AH91: Pao de Acucar | AI91: 06406 | AJ91: Pao de Acucar_06406 | AK91: 68
A92: AM | B92: 13 | C92: Carauari | D92: 01001 | E92: 17 | F92: 13_17 | G92: 13_01001 | H92: Carauari_01001 | I92: de 60 a 100 mil | J92: Carauari_AM | K92: CEMAT | Q92: 91 | R92: 32_91 | AB92: AM | AC92: 13 | AD92: Carauari | AE92: 01001 | AF92: Carauari_01001 | AG92: 17 | AH92: Pariconha | AI92: 06422 | AJ92: Pariconha_06422 | AK92: 69
A93: AM | B93: 13 | C93: Careiro | D93: 01100 | E93: 18 | F93: 13_18 | G93: 13_01100 | H93: Careiro_01100 | I93: de 60 a 100 mil | J93: Careiro_AM | K93: ESCELSA | Q93: 92 | R93: 32_92 | AB93: AM | AC93: 13 | AD93: Careiro | AE93: 01100 | AF93: Careiro_01100 | AG93: 18 | AH93: Paripueira | AI93: 06448 | AJ93: Paripueira_06448 | AK93: 70
A94: AM | B94: 13 | C94: Careiro da Varzea | D94: 01159 | E94: 19 | F94: 13_19 | G94: 13_01159 | H94: Careiro da Varzea_01159 | I94: de 60 a 100 mil | J94: Careiro da Varzea_AM | K94: ESCELSA | Q94: 93 | R94: 32_93 | AB94: AM | AC94: 13 | AD94: Careiro da Varzea | AE94: 01159 | AF94: Careiro da Varzea_01159 | AG94: 19 | AH94: Passo de Camaragibe | AI94: 06505 | AJ94: Passo de Camaragibe_06505 | AK94: 71
A95: AM | B95: 13 | C95: Coari | D95: 01209 | E95: 20 | F95: 13_20 | G95: 13_01209 | H95: Coari_01209 | I95: de 60 a 100 mil | J95: Coari_AM | K95: CEMAT | Q95: 94 | R95: 32_94 | AB95: AM | AC95: 13 | AD95: Coari | AE95: 01209 | AF95: Coari_01209 | AG95: 20 | AH95: Paulo Jacinto | AI95: 06604 | AJ95: Paulo Jacinto_06604 | AK95: 72
A96: AM | B96: 13 | C96: Codajas | D96: 01308 | E96: 21 | F96: 13_21 | G96: 13_01308 | H96: Codajas_01308 | I96: de 60 a 100 mil | J96: Codajas_AM | K96: CEMAT | Q96: 95 | R96: 32_95 | AB96: AM | AC96: 13 | AD96: Codajas | AE96: 01308 | AF96: Codajas_01308 | AG96: 21 | AH96: Penedo | AI96: 06703 | AJ96: Penedo_06703 | AK96: 73
A97: AM | B97: 13 | C97: Eirunepe | D97: 01407 | E97: 22 | F97: 13_22 | G97: 13_01407 | H97: Eirunepe_01407 | I97: de 60 a 100 mil | J97: Eirunepe_AM | K97: CEMAT | Q97: 96 | R97: 32_96 | AB97: AM | AC97: 13 | AD97: Eirunepe | AE97: 01407 | AF97: Eirunepe_01407 | AG97: 22 | AH97: Piacabucu | AI97: 06802 | AJ97: Piacabucu_06802 | AK97: 74
A98: AM | B98: 13 | C98: Envira | D98: 01506 | E98: 23 | F98: 13_23 | G98: 13_01506 | H98: Envira_01506 | I98: de 60 a 100 mil | J98: Envira_AM | K98: ELFSM | Q98: 97 | R98: 32_97 | AB98: AM | AC98: 13 | AD98: Envira | AE98: 01506 | AF98: Envira_01506 | AG98: 23 | AH98: Pilar | AI98: 06901 | AJ98: Pilar_06901 | AK98: 75
A99: AM | B99: 13 | C99: Fonte Boa | D99: 01605 | E99: 24 | F99: 13_24 | G99: 13_01605 | H99: Fonte Boa_01605 | I99: de 60 a 100 mil | J99: Fonte Boa_AM | K99: CEMAT | Q99: 98 | R99: 32_98 | AB99: AM | AC99: 13 | AD99: Fonte Boa | AE99: 01605 | AF99: Fonte Boa_01605 | AG99: 24 | AH99: Pindoba | AI99: 07008 | AJ99: Pindoba_07008 | AK99: 76
A100: AM | B100: 13 | C100: Guajara | D100: 01654 | E100: 25 | F100: 13_25 | G100: 13_01654 | H100: Guajara_01654 | I100: de 60 a 100 mil | J100: Guajara_AM | K100: ELETROBRÁS AMAZONAS ENERGIA | Q100: 99 | R100: 32_99 | AB100: AM | AC100: 13 | AD100: Guajara | AE100: 01654 | AF100: Guajara_01654 | AG100: 25 | AH100: Piranhas | AI100: 07107 | AJ100: Piranhas_07107 | AK100: 77
A101: AM | B101: 13 | C101: Humaita | D101: 01704 | E101: 26 | F101: 13_26 | G101: 13_01704 | H101: Humaita_01704 | I101: de 60 a 100 mil | J101: Humaita_AM | K101: CEMAT | Q101: 100 | R101: 32_100 | AB101: AM | AC101: 13 | AD101: Humaita | AE101: 01704 | AF101: Humaita_01704 | AG101: 26 | AH101: Poco das Trincheiras | AI101: 07206 | AJ101: Poco das Trincheiras_07206 | AK101: 78
A102: AM | B102: 13 | C102: Ipixuna | D102: 01803 | E102: 27 | F102: 13_27 | G102: 13_01803 | H102: Ipixuna_01803 | I102: de 60 a 100 mil | J102: Ipixuna_AM | K102: CEMAT | Q102: 101 | R102: 32_101 | AB102: AM | AC102: 13 | AD102: Ipixuna | AE102: 01803 | AF102: Ipixuna_01803 | AG102: 27 | AH102: Porto Calvo | AI102: 07305 | AJ102: Porto Calvo_07305 | AK102: 79
A103: AM | B103: 13 | C103: Iranduba | D103: 01852 | E103: 28 | F103: 13_28 | G103: 13_01852 | H103: Iranduba_01852 | I103: de 60 a 100 mil | J103: Iranduba_AM | K103: CEMAT | Q103: 102 | R103: 32_102 | AB103: AM | AC103: 13 | AD103: Iranduba | AE103: 01852 | AF103: Iranduba_01852 | AG103: 28 | AH103: Porto de Pedras | AI103: 07404 | AJ103: Porto de Pedras_07404 | AK103: 80
A104: AM | B104: 13 | C104: Itacoatiara | D104: 01902 | E104: 29 | F104: 13_29 | G104: 13_01902 | H104: Itacoatiara_01902 | I104: de 60 a 100 mil | J104: Itacoatiara_AM | K104: CEMAT | Q104: 103 | R104: 32_103 | AB104: AM | AC104: 13 | AD104: Itacoatiara | AE104: 01902 | AF104: Itacoatiara_01902 | AG104: 29 | AH104: Porto Real do Colegio | AI104: 07503 | AJ104: Porto Real do Colegio_07503 | AK104: 81
A105: AM | B105: 13 | C105: Itamarati | D105: 01951 | E105: 30 | F105: 13_30 | G105: 13_01951 | H105: Itamarati_01951 | I105: de 60 a 100 mil | J105: Itamarati_AM | K105: ELETROBRÁS AMAZONAS ENERGIA | Q105: 104 | R105: 32_104 | AB105: AM | AC105: 13 | AD105: Itamarati | AE105: 01951 | AF105: Itamarati_01951 | AG105: 30 | AH105: Quebrangulo | AI105: 07602 | AJ105: Quebrangulo_07602 | AK105: 82
A106: AM | B106: 13 | C106: Itapiranga | D106: 02009 | E106: 31 | F106: 13_31 | G106: 13_02009 | H106: Itapiranga_02009 | I106: de 60 a 100 mil | J106: Itapiranga_AM | K106: ESCELSA | Q106: 105 | R106: 32_105 | AB106: AM | AC106: 13 | AD106: Itapiranga | AE106: 02009 | AF106: Itapiranga_02009 | AG106: 31 | AH106: Rio Largo | AI106: 07701 | AJ106: Rio Largo_07701 | AK106: 83
A107: AM | B107: 13 | C107: Japura | D107: 02108 | E107: 32 | F107: 13_32 | G107: 13_02108 | H107: Japura_02108 | I107: de 60 a 100 mil | J107: Japura_AM | K107: ESCELSA | Q107: 106 | R107: 32_106 | AB107: AM | AC107: 13 | AD107: Japura | AE107: 02108 | AF107: Japura_02108 | AG107: 32 | AH107: Roteiro | AI107: 07800 | AJ107: Roteiro_07800 | AK107: 84
A108: AM | B108: 13 | C108: Jurua | D108: 02207 | E108: 33 | F108: 13_33 | G108: 13_02207 | H108: Jurua_02207 | I108: de 60 a 100 mil | J108: Jurua_AM | K108: ESCELSA | Q108: 107 | R108: 32_107 | AB108: AM | AC108: 13 | AD108: Jurua | AE108: 02207 | AF108: Jurua_02207 | AG108: 33 | AH108: Santa Luzia do Norte | AI108: 07909 | AJ108: Santa Luzia do Norte_07909 | AK108: 85
A109: AM | B109: 13 | C109: Jutai | D109: 02306 | E109: 34 | F109: 13_34 | G109: 13_02306 | H109: Jutai_02306 | I109: de 60 a 100 mil | J109: Jutai_AM | K109: ESCELSA | Q109: 108 | R109: 32_108 | AB109: AM | AC109: 13 | AD109: Jutai | AE109: 02306 | AF109: Jutai_02306 | AG109: 34 | AH109: Santana do Ipanema | AI109: 08006 | AJ109: Santana do Ipanema_08006 | AK109: 86
A110: AM | B110: 13 | C110: Labrea | D110: 02405 | E110: 35 | F110: 13_35 | G110: 13_02405 | H110: Labrea_02405 | I110: de 60 a 100 mil | J110: Labrea_AM | K110: ESCELSA | Q110: 109 | R110: 32_109 | AB110: AM | AC110: 13 | AD110: Labrea | AE110: 02405 | AF110: Labrea_02405 | AG110: 35 | AH110: Santana do Mundau | AI110: 08105 | AJ110: Santana do Mundau_08105 | AK110: 87
A111: AM | B111: 13 | C111: Manacapuru | D111: 02504 | E111: 36 | F111: 13_36 | G111: 13_02504 | H111: Manacapuru_02504 | I111: de 60 a 100 mil | J111: Manacapuru_AM | K111: CEMAT | Q111: 110 | R111: 32_110 | AB111: AM | AC111: 13 | AD111: Manacapuru | AE111: 02504 | AF111: Manacapuru_02504 | AG111: 36 | AH111: Sao Bras | AI111: 08204 | AJ111: Sao Bras_08204 | AK111: 88
A112: AM | B112: 13 | C112: Manaquiri | D112: 02553 | E112: 37 | F112: 13_37 | G112: 13_02553 | H112: Manaquiri_02553 | I112: de 60 a 100 mil | J112: Manaquiri_AM | K112: ESCELSA | Q112: 111 | R112: 32_111 | AB112: AM | AC112: 13 | AD112: Manaquiri | AE112: 02553 | AF112: Manaquiri_02553 | AG112: 37 | AH112: Sao Jose da Laje | AI112: 08303 | AJ112: Sao Jose da Laje_08303 | AK112: 89
A113: AM | B113: 13 | C113: Manaus | D113: 02603 | E113: 38 | F113: 13_38 | G113: 13_02603 | H113: Manaus_02603 | I113: Mais de 1 milhão | J113: Manaus_AM | K113: CEMAT | Q113: 112 | R113: 32_112 | AB113: AM | AC113: 13 | AD113: Manaus | AE113: 02603 | AF113: Manaus_02603 | AG113: 38 | AH113: Sao Jose da Tapera | AI113: 08402 | AJ113: Sao Jose da Tapera_08402 | AK113: 90
A114: AM | B114: 13 | C114: Manicore | D114: 02702 | E114: 39 | F114: 13_39 | G114: 13_02702 | H114: Manicore_02702 | I114: de 60 a 100 mil | J114: Manicore_AM | K114: CEMAT | Q114: 113 | R114: 32_113 | AB114: AM | AC114: 13 | AD114: Manicore | AE114: 02702 | AF114: Manicore_02702 | AG114: 39 | AH114: Sao Luis do Quitunde | AI114: 08501 | AJ114: Sao Luis do Quitunde_08501 | AK114: 91
A115: AM | B115: 13 | C115: Maraa | D115: 02801 | E115: 40 | F115: 13_40 | G115: 13_02801 | H115: Maraa_02801 | I115: de 60 a 100 mil | J115: Maraa_AM | K115: ESCELSA | Q115: 114 | R115: 32_114 | AB115: AM | AC115: 13 | AD115: Maraa | AE115: 02801 | AF115: Maraa_02801 | AG115: 40 | AH115: Sao Miguel dos Campos | AI115: 08600 | AJ115: Sao Miguel dos Campos_08600 | AK115: 92
A116: AM | B116: 13 | C116: Maues | D116: 02900 | E116: 41 | F116: 13_41 | G116: 13_02900 | H116: Maues_02900 | I116: de 60 a 100 mil | J116: Maues_AM | K116: ESCELSA | Q116: 115 | R116: 32_115 | AB116: AM | AC116: 13 | AD116: Maues | AE116: 02900 | AF116: Maues_02900 | AG116: 41 | AH116: Sao Miguel dos Milagres | AI116: 08709 | AJ116: Sao Miguel dos Milagres_08709 | AK116: 93
A117: AM | B117: 13 | C117: Nhamunda | D117: 03007 | E117: 42 | F117: 13_42 | G117: 13_03007 | H117: Nhamunda_03007 | I117: de 60 a 100 mil | J117: Nhamunda_AM | K117: CEMAT | Q117: 116 | R117: 32_116 | AB117: AM | AC117: 13 | AD117: Nhamunda | AE117: 03007 | AF117: Nhamunda_03007 | AG117: 42 | AH117: Sao Sebastiao | AI117: 08808 | AJ117: Sao Sebastiao_08808 | AK117: 94
A118: AM | B118: 13 | C118: Nova Olinda do Norte | D118: 03106 | E118: 43 | F118: 13_43 | G118: 13_03106 | H118: Nova Olinda do Norte_03106 | I118: de 60 a 100 mil | J118: Nova Olinda do Norte_AM | K118: CEMAT | Q118: 117 | R118: 32_117 | AB118: AM | AC118: 13 | AD118: Nova Olinda do Norte | AE118: 03106 | AF118: Nova Olinda do Norte_03106 | AG118: 43 | AH118: Satuba | AI118: 08907 | AJ118: Satuba_08907 | AK118: 95
A119: AM | B119: 13 | C119: Novo Airao | D119: 03205 | E119: 44 | F119: 13_44 | G119: 13_03205 | H119: Novo Airao_03205 | I119: de 60 a 100 mil | J119: Novo Airao_AM | K119: CEMAT | Q119: 118 | R119: 32_118 | AB119: AM | AC119: 13 | AD119: Novo Airao | AE119: 03205 | AF119: Novo Airao_03205 | AG119: 44 | AH119: Senador Rui Palmeira | AI119: 08956 | AJ119: Senador Rui Palmeira_08956 | AK119: 96
A120: AM | B120: 13 | C120: Novo Aripuana | D120: 03304 | E120: 45 | F120: 13_45 | G120: 13_03304 | H120: Novo Aripuana_03304 | I120: de 60 a 100 mil | J120: Novo Aripuana_AM | K120: CEMAT | Q120: 119 | R120: 32_119 | AB120: AM | AC120: 13 | AD120: Novo Aripuana | AE120: 03304 | AF120: Novo Aripuana_03304 | AG120: 45 | AH120: Tanque d'Arca | AI120: 09004 | AJ120: Tanque d'Arca_09004 | AK120: 97
A121: AM | B121: 13 | C121: Parintins | D121: 03403 | E121: 46 | F121: 13_46 | G121: 13_03403 | H121: Parintins_03403 | I121: de 100 a 250 mil | J121: Parintins_AM | K121: CEMAT | Q121: 120 | R121: 32_120 | AB121: AM | AC121: 13 | AD121: Parintins | AE121: 03403 | AF121: Parintins_03403 | AG121: 46 | AH121: Taquarana | AI121: 09103 | AJ121: Taquarana_09103 | AK121: 98
A122: AM | B122: 13 | C122: Pauini | D122: 03502 | E122: 47 | F122: 13_47 | G122: 13_03502 | H122: Pauini_03502 | I122: de 60 a 100 mil | J122: Pauini_AM | K122: CEMAT | Q122: 121 | R122: 32_121 | AB122: AM | AC122: 13 | AD122: Pauini | AE122: 03502 | AF122: Pauini_03502 | AG122: 47 | AH122: Teotonio Vilela | AI122: 09152 | AJ122: Teotonio Vilela_09152 | AK122: 99
A123: AM | B123: 13 | C123: Presidente Figueiredo | D123: 03536 | E123: 48 | F123: 13_48 | G123: 13_03536 | H123: Presidente Figueiredo_03536 | I123: de 60 a 100 mil | J123: Presidente Figueiredo_AM | K123: ELETROBRÁS AMAZONAS ENERGIA | Q123: 122 | R123: 32_122 | AB123: AM | AC123: 13 | AD123: Presidente Figueiredo | AE123: 03536 | AF123: Presidente Figueiredo_03536 | AG123: 48 | AH123: Traipu | AI123: 09202 | AJ123: Traipu_09202 | AK123: 100
A124: AM | B124: 13 | C124: Rio Preto da Eva | D124: 03569 | E124: 49 | F124: 13_49 | G124: 13_03569 | H124: Rio Preto da Eva_03569 | I124: de 60 a 100 mil | J124: Rio Preto da Eva_AM | K124: ELETROBRÁS AMAZONAS ENERGIA | Q124: 123 | R124: 32_123 | AB124: AM | AC124: 13 | AD124: Rio Preto da Eva | AE124: 03569 | AF124: Rio Preto da Eva_03569 | AG124: 49 | AH124: Uniao dos Palmares | AI124: 09301 | AJ124: Uniao dos Palmares_09301 | AK124: 101
A125: AM | B125: 13 | C125: Santa Isabel do Rio Negro | D125: 03601 | E125: 50 | F125: 13_50 | G125: 13_03601 | H125: Santa Isabel do Rio Negro_03601 | I125: de 60 a 100 mil | J125: Santa Isabel do Rio Negro_AM | K125: CEMAT | Q125: 124 | R125: 32_124 | AB125: AM | AC125: 13 | AD125: Santa Isabel do Rio Negro | AE125: 03601 | AF125: Santa Isabel do Rio Negro_03601 | AG125: 50 | AH125: Vicosa | AI125: 09400 | AJ125: Vicosa_09400 | AK125: 102
A126: AM | B126: 13 | C126: Santo Antonio do Ica | D126: 03700 | E126: 51 | F126: 13_51 | G126: 13_03700 | H126: Santo Antonio do Ica_03700 | I126: de 60 a 100 mil | J126: Santo Antonio do Ica_AM | K126: CEMAT | Q126: 125 | R126: 32_125 | AB126: AM | AC126: 13 | AD126: Santo Antonio do Ica | AE126: 03700 | AF126: Santo Antonio do Ica_03700 | AG126: 51 | AH126: Alvaraes | AI126: 00029 | AJ126: Alvaraes_00029 | AK126: 1
A127: AM | B127: 13 | C127: Sao Gabriel da Cachoeira | D127: 03809 | E127: 52 | F127: 13_52 | G127: 13_03809 | H127: Sao Gabriel da Cachoeira_03809 | I127: de 60 a 100 mil | J127: Sao Gabriel da Cachoeira_AM | K127: CEMAT | Q127: 126 | R127: 32_126 | AB127: AM | AC127: 13 | AD127: Sao Gabriel da Cachoeira | AE127: 03809 | AF127: Sao Gabriel da Cachoeira_03809 | AG127: 52 | AH127: Amatura | AI127: 00060 | AJ127: Amatura_00060 | AK127: 2
A128: AM | B128: 13 | C128: Sao Paulo de Olivenca | D128: 03908 | E128: 53 | F128: 13_53 | G128: 13_03908 | H128: Sao Paulo de Olivenca_03908 | I128: de 60 a 100 mil | J128: Sao Paulo de Olivenca_AM | K128: CEMAT | Q128: 127 | R128: 32_127 | AB128: AM | AC128: 13 | AD128: Sao Paulo de Olivenca | AE128: 03908 | AF128: Sao Paulo de Olivenca_03908 | AG128: 53 | AH128: Anama | AI128: 00086 | AJ128: Anama_00086 | AK128: 3
A129: AM | B129: 13 | C129: Sao Sebastiao do Uatuma | D129: 03957 | E129: 54 | F129: 13_54 | G129: 13_03957 | H129: Sao Sebastiao do Uatuma_03957 | I129: de 60 a 100 mil | J129: Sao Sebastiao do Uatuma_AM | K129: CEMAT | Q129: 128 | R129: 32_128 | AB129: AM | AC129: 13 | AD129: Sao Sebastiao do Uatuma | AE129: 03957 | AF129: Sao Sebastiao do Uatuma_03957 | AG129: 54 | AH129: Anori | AI129: 00102 | AJ129: Anori_00102 | AK129: 4
A130: AM | B130: 13 | C130: Silves | D130: 04005 | E130: 55 | F130: 13_55 | G130: =CONCATENATE(B130,"_",D130) -> 13_04005 | H130: Silves_04005 | I130: de 60 a 100 mil | J130: =CONCATENATE(C130&"_"&A130) -> Silves_AM | K130: ELFSM | Q130: 129 | R130: =CONCATENATE($W$3,"_",Q130) -> 32_129 | U130: =IFERROR(INDEX($C$2:$K$5571,MATCH($R130,$F$2:$F$5571,0),6),"") ->  | AB130: AM | AC130: 13 | AD130: Silves | AE130: 04005 | AF130: Silves_04005 | AG130: 55 | AH130: Apui | AI130: 00144 | AJ130: =CONCATENATE(AH130,"_",AI130) -> Apui_00144 | AK130: 5
A131: AM | B131: 13 | C131: Tabatinga | D131: 04062 | E131: 56 | F131: =CONCATENATE(B131,"_",E131) -> 13_56 | G131: 13_04062 | H131: =CONCATENATE(C131,"_",D131) -> Tabatinga_04062 | I131: de 60 a 100 mil | J131: Tabatinga_AM | K131: ELETROBRÁS AMAZONAS ENERGIA | Q131: 130 | R131: 32_130 | S131: =IFERROR(INDEX($C$2:$F$5571,MATCH(R131,$F$2:$F$5571,0),1),"") ->  | T131: =IFERROR(INDEX($C$2:$K$5571,MATCH(R131,$F$2:$F$5571,0),9),"") ->  | AA131: =IFERROR(VLOOKUP(Z131,$G$2:$J$5571,2,FALSE),"") ->  | AB131: AM | AC131: 13 | AD131: Tabatinga | AE131: 04062 | AF131: =CONCATENATE(AD131,"_",AE131) -> Tabatinga_04062 | AG131: =VLOOKUP(AF131,$AJ$2:$AK$5571,2,0) -> 56 | AH131: Atalaia do Norte | AI131: 00201 | AJ131: Atalaia do Norte_00201 | AK131: 6
A132: AM | B132: 13 | C132: Tapaua | D132: 04104 | E132: 57 | F132: 13_57 | G132: 13_04104 | H132: Tapaua_04104 | I132: de 60 a 100 mil | J132: Tapaua_AM | K132: CEMAT | Q132: 131 | R132: 32_131 | AB132: AM | AC132: 13 | AD132: Tapaua | AE132: 04104 | AF132: Tapaua_04104 | AG132: 57 | AH132: Autazes | AI132: 00300 | AJ132: Autazes_00300 | AK132: 7
A133: AM | B133: 13 | C133: Tefe | D133: 04203 | E133: 58 | F133: 13_58 | G133: 13_04203 | H133: Tefe_04203 | I133: de 60 a 100 mil | J133: Tefe_AM | K133: CEMAT | Q133: 132 | R133: 32_132 | AB133: AM | AC133: 13 | AD133: Tefe | AE133: 04203 | AF133: Tefe_04203 | AG133: 58 | AH133: Barcelos | AI133: 00409 | AJ133: Barcelos_00409 | AK133: 8
A134: AM | B134: 13 | C134: Tonantins | D134: 04237 | E134: 59 | F134: 13_59 | G134: 13_04237 | H134: Tonantins_04237 | I134: de 60 a 100 mil | J134: Tonantins_AM | K134: ELETROBRÁS AMAZONAS ENERGIA | Q134: 133 | R134: 32_133 | AB134: AM | AC134: 13 | AD134: Tonantins | AE134: 04237 | AF134: Tonantins_04237 | AG134: 59 | AH134: Barreirinha | AI134: 00508 | AJ134: Barreirinha_00508 | AK134: 9
A135: AM | B135: 13 | C135: Uarini | D135: 04260 | E135: 60 | F135: 13_60 | G135: 13_04260 | H135: Uarini_04260 | I135: de 60 a 100 mil | J135: Uarini_AM | K135: ELETROBRÁS AMAZONAS ENERGIA | Q135: 134 | R135: 32_134 | AB135: AM | AC135: 13 | AD135: Uarini | AE135: 04260 | AF135: Uarini_04260 | AG135: 60 | AH135: Benjamin Constant | AI135: 00607 | AJ135: Benjamin Constant_00607 | AK135: 10
A136: AM | B136: 13 | C136: Urucara | D136: 04302 | E136: 61 | F136: 13_61 | G136: 13_04302 | H136: Urucara_04302 | I136: de 60 a 100 mil | J136: Urucara_AM | K136: ESCELSA | Q136: 135 | R136: 32_135 | AB136: AM | AC136: 13 | AD136: Urucara | AE136: 04302 | AF136: Urucara_04302 | AG136: 61 | AH136: Beruri | AI136: 00631 | AJ136: Beruri_00631 | AK136: 11
A137: AM | B137: 13 | C137: Urucurituba | D137: 04401 | E137: 62 | F137: 13_62 | G137: 13_04401 | H137: Urucurituba_04401 | I137: de 60 a 100 mil | J137: Urucurituba_AM | K137: ESCELSA | Q137: 136 | R137: 32_136 | AB137: AM | AC137: 13 | AD137: Urucurituba | AE137: 04401 | AF137: Urucurituba_04401 | AG137: 62 | AH137: Boa Vista do Ramos | AI137: 00680 | AJ137: Boa Vista do Ramos_00680 | AK137: 12
A138: RR | B138: 14 | C138: Amajari | D138: 00027 | E138: 2 | F138: 14_2 | G138: 14_00027 | H138: Amajari_00027 | I138: de 60 a 100 mil | J138: Amajari_RR | K138: CERR | Q138: 137 | R138: 32_137 | AB138: RR | AC138: 14 | AD138: Amajari | AE138: 00027 | AF138: Amajari_00027 | AG138: 2 | AH138: Boca do Acre | AI138: 00706 | AJ138: Boca do Acre_00706 | AK138: 13
A139: RR | B139: 14 | C139: Alto Alegre | D139: 00050 | E139: 1 | F139: 14_1 | G139: 14_00050 | H139: Alto Alegre_00050 | I139: de 60 a 100 mil | J139: Alto Alegre_RR | K139: CELG-D | Q139: 138 | R139: 32_138 | AB139: RR | AC139: 14 | AD139: Alto Alegre | AE139: 00050 | AF139: Alto Alegre_00050 | AG139: 1 | AH139: Borba | AI139: 00805 | AJ139: Borba_00805 | AK139: 14
A140: RR | B140: 14 | C140: Boa Vista | D140: 00100 | E140: 3 | F140: 14_3 | G140: 14_00100 | H140: Boa Vista_00100 | I140: de 250 a 500 mil | J140: Boa Vista_RR | K140: CELG-D | Q140: 139 | R140: 32_139 | AB140: RR | AC140: 14 | AD140: Boa Vista | AE140: 00100 | AF140: Boa Vista_00100 | AG140: 3 | AH140: Caapiranga | AI140: 00839 | AJ140: Caapiranga_00839 | AK140: 15
A141: RR | B141: 14 | C141: Bonfim | D141: 00159 | E141: 4 | F141: 14_4 | G141: 14_00159 | H141: Bonfim_00159 | I141: de 60 a 100 mil | J141: Bonfim_RR | K141: CELG-D | Q141: 140 | R141: 32_140 | AB141: RR | AC141: 14 | AD141: Bonfim | AE141: 00159 | AF141: Bonfim_00159 | AG141: 4 | AH141: Canutama | AI141: 00904 | AJ141: Canutama_00904 | AK141: 16
A142: RR | B142: 14 | C142: Canta | D142: 00175 | E142: 5 | F142: 14_5 | G142: 14_00175 | H142: Canta_00175 | I142: de 60 a 100 mil | J142: Canta_RR | K142: CELG-D | Q142: 141 | R142: 32_141 | AB142: RR | AC142: 14 | AD142: Canta | AE142: 00175 | AF142: Canta_00175 | AG142: 5 | AH142: Carauari | AI142: 01001 | AJ142: Carauari_01001 | AK142: 17
A143: RR | B143: 14 | C143: Caracarai | D143: 00209 | E143: 6 | F143: 14_6 | G143: 14_00209 | H143: Caracarai_00209 | I143: de 60 a 100 mil | J143: Caracarai_RR | K143: CELG-D | Q143: 142 | R143: 32_142 | AB143: RR | AC143: 14 | AD143: Caracarai | AE143: 00209 | AF143: Caracarai_00209 | AG143: 6 | AH143: Careiro | AI143: 01100 | AJ143: Careiro_01100 | AK143: 18
A144: RR | B144: 14 | C144: Caroebe | D144: 00233 | E144: 7 | F144: 14_7 | G144: 14_00233 | H144: Caroebe_00233 | I144: de 60 a 100 mil | J144: Caroebe_RR | K144: AMPLA | Q144: 143 | R144: 32_143 | AB144: RR | AC144: 14 | AD144: Caroebe | AE144: 00233 | AF144: Caroebe_00233 | AG144: 7 | AH144: Careiro da Varzea | AI144: 01159 | AJ144: Careiro da Varzea_01159 | AK144: 19
A145: RR | B145: 14 | C145: Iracema | D145: 00282 | E145: 8 | F145: 14_8 | G145: 14_00282 | H145: Iracema_00282 | I145: de 60 a 100 mil | J145: Iracema_RR | K145: CERR | Q145: 144 | R145: 32_144 | AB145: RR | AC145: 14 | AD145: Iracema | AE145: 00282 | AF145: Iracema_00282 | AG145: 8 | AH145: Coari | AI145: 01209 | AJ145: Coari_01209 | AK145: 20
A146: RR | B146: 14 | C146: Mucajai | D146: 00308 | E146: 9 | F146: 14_9 | G146: 14_00308 | H146: Mucajai_00308 | I146: de 60 a 100 mil | J146: Mucajai_RR | K146: CELG-D | Q146: 145 | R146: 32_145 | AB146: RR | AC146: 14 | AD146: Mucajai | AE146: 00308 | AF146: Mucajai_00308 | AG146: 9 | AH146: Codajas | AI146: 01308 | AJ146: Codajas_01308 | AK146: 21
A147: RR | B147: 14 | C147: Normandia | D147: 00407 | E147: 10 | F147: 14_10 | G147: 14_00407 | H147: Normandia_00407 | I147: de 60 a 100 mil | J147: Normandia_RR | K147: LIGHT | Q147: 146 | R147: 32_146 | AB147: RR | AC147: 14 | AD147: Normandia | AE147: 00407 | AF147: Normandia_00407 | AG147: 10 | AH147: Eirunepe | AI147: 01407 | AJ147: Eirunepe_01407 | AK147: 22
A148: RR | B148: 14 | C148: Pacaraima | D148: 00456 | E148: 11 | F148: 14_11 | G148: 14_00456 | H148: Pacaraima_00456 | I148: de 60 a 100 mil | J148: Pacaraima_RR | K148: LIGHT | Q148: 147 | R148: 32_147 | AB148: RR | AC148: 14 | AD148: Pacaraima | AE148: 00456 | AF148: Pacaraima_00456 | AG148: 11 | AH148: Envira | AI148: 01506 | AJ148: Envira_01506 | AK148: 23
A149: RR | B149: 14 | C149: Rorainopolis | D149: 00472 | E149: 12 | F149: 14_12 | G149: 14_00472 | H149: Rorainopolis_00472 | I149: de 60 a 100 mil | J149: Rorainopolis_RR | K149: CERR | Q149: 148 | R149: 32_148 | AB149: RR | AC149: 14 | AD149: Rorainopolis | AE149: 00472 | AF149: Rorainopolis_00472 | AG149: 12 | AH149: Fonte Boa | AI149: 01605 | AJ149: Fonte Boa_01605 | AK149: 24
A150: RR | B150: 14 | C150: Sao Joao da Baliza | D150: 00506 | E150: 13 | F150: 14_13 | G150: 14_00506 | H150: Sao Joao da Baliza_00506 | I150: de 60 a 100 mil | J150: Sao Joao da Baliza_RR | K150: CELG-D | Q150: 149 | R150: 32_149 | AB150: RR | AC150: 14 | AD150: Sao Joao da Baliza | AE150: 00506 | AF150: Sao Joao da Baliza_00506 | AG150: 13 | AH150: Guajara | AI150: 01654 | AJ150: Guajara_01654 | AK150: 25
A151: RR | B151: 14 | C151: Sao Luiz | D151: 00605 | E151: 14 | F151: 14_14 | G151: 14_00605 | H151: Sao Luiz_00605 | I151: de 60 a 100 mil | J151: Sao Luiz_RR | K151: CELG-D | Q151: 150 | R151: 32_150 | AB151: RR | AC151: 14 | AD151: Sao Luiz | AE151: 00605 | AF151: Sao Luiz_00605 | AG151: 14 | AH151: Humaita | AI151: 01704 | AJ151: Humaita_01704 | AK151: 26
A152: RR | B152: 14 | C152: Uiramuta | D152: 00704 | E152: 15 | F152: 14_15 | G152: 14_00704 | H152: Uiramuta_00704 | I152: de 60 a 100 mil | J152: Uiramuta_RR | K152: AMPLA | Q152: 151 | R152: 32_151 | AB152: RR | AC152: 14 | AD152: Uiramuta | AE152: 00704 | AF152: Uiramuta_00704 | AG152: 15 | AH152: Ipixuna | AI152: 01803 | AJ152: Ipixuna_01803 | AK152: 27
A153: PA | B153: 15 | C153: Abaetetuba | D153: 00107 | E153: 1 | F153: 15_1 | G153: 15_00107 | H153: Abaetetuba_00107 | I153: de 100 a 250 mil | J153: Abaetetuba_PA | K153: CELPA | Q153: 152 | R153: 32_152 | AB153: PA | AC153: 15 | AD153: Abaetetuba | AE153: 00107 | AF153: Abaetetuba_00107 | AG153: 1 | AH153: Iranduba | AI153: 01852 | AJ153: Iranduba_01852 | AK153: 28
A154: PA | B154: 15 | C154: Abel Figueiredo | D154: 00131 | E154: 2 | F154: 15_2 | G154: 15_00131 | H154: Abel Figueiredo_00131 | I154: de 60 a 100 mil | J154: Abel Figueiredo_PA | K154: CELPA | Q154: 153 | R154: 32_153 | AB154: PA | AC154: 15 | AD154: Abel Figueiredo | AE154: 00131 | AF154: Abel Figueiredo_00131 | AG154: 2 | AH154: Itacoatiara | AI154: 01902 | AJ154: Itacoatiara_01902 | AK154: 29
A155: PA | B155: 15 | C155: Acara | D155: 00206 | E155: 3 | F155: 15_3 | G155: 15_00206 | H155: Acara_00206 | I155: de 60 a 100 mil | J155: Acara_PA | K155: CELPA | Q155: 154 | R155: 32_154 | AB155: PA | AC155: 15 | AD155: Acara | AE155: 00206 | AF155: Acara_00206 | AG155: 3 | AH155: Itamarati | AI155: 01951 | AJ155: Itamarati_01951 | AK155: 30
A156: PA | B156: 15 | C156: Afua | D156: 00305 | E156: 4 | F156: 15_4 | G156: 15_00305 | H156: Afua_00305 | I156: de 60 a 100 mil | J156: Afua_PA | K156: CELPA | Q156: 155 | R156: 32_155 | AB156: PA | AC156: 15 | AD156: Afua | AE156: 00305 | AF156: Afua_00305 | AG156: 4 | AH156: Itapiranga | AI156: 02009 | AJ156: Itapiranga_02009 | AK156: 31
A157: PA | B157: 15 | C157: agua Azul do Norte | D157: 00347 | E157: 5 | F157: 15_5 | G157: 15_00347 | H157: agua Azul do Norte_00347 | I157: de 60 a 100 mil | J157: agua Azul do Norte_PA | K157: CELPA | Q157: 156 | R157: 32_156 | AB157: PA | AC157: 15 | AD157: agua Azul do Norte | AE157: 00347 | AF157: agua Azul do Norte_00347 | AG157: 5 | AH157: Japura | AI157: 02108 | AJ157: Japura_02108 | AK157: 32
A158: PA | B158: 15 | C158: Alenquer | D158: 00404 | E158: 6 | F158: 15_6 | G158: 15_00404 | H158: Alenquer_00404 | I158: de 60 a 100 mil | J158: Alenquer_PA | K158: CELPA | Q158: 157 | R158: 32_157 | AB158: PA | AC158: 15 | AD158: Alenquer | AE158: 00404 | AF158: Alenquer_00404 | AG158: 6 | AH158: Jurua | AI158: 02207 | AJ158: Jurua_02207 | AK158: 33
A159: PA | B159: 15 | C159: Almeirim | D159: 00503 | E159: 7 | F159: 15_7 | G159: 15_00503 | H159: Almeirim_00503 | I159: de 60 a 100 mil | J159: Almeirim_PA | K159: CELPA | Q159: 158 | R159: 32_158 | AB159: PA | AC159: 15 | AD159: Almeirim | AE159: 00503 | AF159: Almeirim_00503 | AG159: 7 | AH159: Jutai | AI159: 02306 | AJ159: Jutai_02306 | AK159: 34
A160: PA | B160: 15 | C160: Altamira | D160: 00602 | E160: 8 | F160: 15_8 | G160: 15_00602 | H160: Altamira_00602 | I160: de 100 a 250 mil | J160: Altamira_PA | K160: CELPA | Q160: 159 | R160: 32_159 | AB160: PA | AC160: 15 | AD160: Altamira | AE160: 00602 | AF160: Altamira_00602 | AG160: 8 | AH160: Labrea | AI160: 02405 | AJ160: Labrea_02405 | AK160: 35
A161: PA | B161: 15 | C161: Anajas | D161: 00701 | E161: 9 | F161: 15_9 | G161: 15_00701 | H161: Anajas_00701 | I161: de 60 a 100 mil | J161: Anajas_PA | K161: CELPA | Q161: 160 | R161: 32_160 | AB161: PA | AC161: 15 | AD161: Anajas | AE161: 00701 | AF161: Anajas_00701 | AG161: 9 | AH161: Manacapuru | AI161: 02504 | AJ161: Manacapuru_02504 | AK161: 36
A162: PA | B162: 15 | C162: Ananindeua | D162: 00800 | E162: 10 | F162: 15_10 | G162: 15_00800 | H162: Ananindeua_00800 | I162: de 500 mil a 1 milhão | J162: Ananindeua_PA | K162: CELPA | Q162: 161 | R162: 32_161 | AB162: PA | AC162: 15 | AD162: Ananindeua | AE162: 00800 | AF162: Ananindeua_00800 | AG162: 10 | AH162: Manaquiri | AI162: 02553 | AJ162: Manaquiri_02553 | AK162: 37
A163: PA | B163: 15 | C163: Anapu | D163: 00859 | E163: 11 | F163: 15_11 | G163: 15_00859 | H163: Anapu_00859 | I163: de 60 a 100 mil | J163: Anapu_PA | K163: CELPA | Q163: 162 | R163: 32_162 | AB163: PA | AC163: 15 | AD163: Anapu | AE163: 00859 | AF163: Anapu_00859 | AG163: 11 | AH163: Manaus | AI163: 02603 | AJ163: Manaus_02603 | AK163: 38
A164: PA | B164: 15 | C164: Augusto Correa | D164: 00909 | E164: 12 | F164: 15_12 | G164: 15_00909 | H164: Augusto Correa_00909 | I164: de 60 a 100 mil | J164: Augusto Correa_PA | K164: CELPA | Q164: 163 | R164: 32_163 | AB164: PA | AC164: 15 | AD164: Augusto Correa | AE164: 00909 | AF164: Augusto Correa_00909 | AG164: 12 | AH164: Manicore | AI164: 02702 | AJ164: Manicore_02702 | AK164: 39
A165: PA | B165: 15 | C165: Aurora do Para | D165: 00958 | E165: 13 | F165: 15_13 | G165: 15_00958 | H165: Aurora do Para_00958 | I165: de 60 a 100 mil | J165: Aurora do Para_PA | K165: CELPA | Q165: 164 | R165: 32_164 | AB165: PA | AC165: 15 | AD165: Aurora do Para | AE165: 00958 | AF165: Aurora do Para_00958 | AG165: 13 | AH165: Maraa | AI165: 02801 | AJ165: Maraa_02801 | AK165: 40
A166: PA | B166: 15 | C166: Aveiro | D166: 01006 | E166: 14 | F166: 15_14 | G166: 15_01006 | H166: Aveiro_01006 | I166: de 60 a 100 mil | J166: Aveiro_PA | K166: CELPA | Q166: 165 | R166: 32_165 | AB166: PA | AC166: 15 | AD166: Aveiro | AE166: 01006 | AF166: Aveiro_01006 | AG166: 14 | AH166: Maues | AI166: 02900 | AJ166: Maues_02900 | AK166: 41
A167: PA | B167: 15 | C167: Bagre | D167: 01105 | E167: 15 | F167: 15_15 | G167: 15_01105 | H167: Bagre_01105 | I167: de 60 a 100 mil | J167: Bagre_PA | K167: CELPA | Q167: 166 | R167: 32_166 | AB167: PA | AC167: 15 | AD167: Bagre | AE167: 01105 | AF167: Bagre_01105 | AG167: 15 | AH167: Nhamunda | AI167: 03007 | AJ167: Nhamunda_03007 | AK167: 42
A168: PA | B168: 15 | C168: Baiao | D168: 01204 | E168: 16 | F168: 15_16 | G168: 15_01204 | H168: Baiao_01204 | I168: de 60 a 100 mil | J168: Baiao_PA | K168: CELPA | Q168: 167 | R168: 32_167 | AB168: PA | AC168: 15 | AD168: Baiao | AE168: 01204 | AF168: Baiao_01204 | AG168: 16 | AH168: Nova Olinda do Norte | AI168: 03106 | AJ168: Nova Olinda do Norte_03106 | AK168: 43
A169: PA | B169: 15 | C169: Bannach | D169: 01253 | E169: 17 | F169: 15_17 | G169: 15_01253 | H169: Bannach_01253 | I169: de 60 a 100 mil | J169: Bannach_PA | K169: CELPA | Q169: 168 | R169: 32_168 | AB169: PA | AC169: 15 | AD169: Bannach | AE169: 01253 | AF169: Bannach_01253 | AG169: 17 | AH169: Novo Airao | AI169: 03205 | AJ169: Novo Airao_03205 | AK169: 44
A170: PA | B170: 15 | C170: Barcarena | D170: 01303 | E170: 18 | F170: 15_18 | G170: 15_01303 | H170: Barcarena_01303 | I170: de 100 a 250 mil | J170: Barcarena_PA | K170: CELPA | Q170: 169 | R170: 32_169 | AB170: PA | AC170: 15 | AD170: Barcarena | AE170: 01303 | AF170: Barcarena_01303 | AG170: 18 | AH170: Novo Aripuana | AI170: 03304 | AJ170: Novo Aripuana_03304 | AK170: 45
A171: PA | B171: 15 | C171: Belem | D171: 01402 | E171: 19 | F171: 15_19 | G171: 15_01402 | H171: Belem_01402 | I171: Mais de 1 milhão | J171: Belem_PA | K171: CELPA | Q171: 170 | R171: 32_170 | AB171: PA | AC171: 15 | AD171: Belem | AE171: 01402 | AF171: Belem_01402 | AG171: 19 | AH171: Parintins | AI171: 03403 | AJ171: Parintins_03403 | AK171: 46
A172: PA | B172: 15 | C172: Belterra | D172: 01451 | E172: 20 | F172: 15_20 | G172: 15_01451 | H172: Belterra_01451 | I172: de 60 a 100 mil | J172: Belterra_PA | K172: CELPA | Q172: 171 | R172: 32_171 | AB172: PA | AC172: 15 | AD172: Belterra | AE172: 01451 | AF172: Belterra_01451 | AG172: 20 | AH172: Pauini | AI172: 03502 | AJ172: Pauini_03502 | AK172: 47
A173: PA | B173: 15 | C173: Benevides | D173: 01501 | E173: 21 | F173: 15_21 | G173: 15_01501 | H173: Benevides_01501 | I173: de 60 a 100 mil | J173: Benevides_PA | K173: CELPA | Q173: 172 | R173: 32_172 | AB173: PA | AC173: 15 | AD173: Benevides | AE173: 01501 | AF173: Benevides_01501 | AG173: 21 | AH173: Presidente Figueiredo | AI173: 03536 | AJ173: Presidente Figueiredo_03536 | AK173: 48
A174: PA | B174: 15 | C174: Bom Jesus do Tocantins | D174: 01576 | E174: 22 | F174: 15_22 | G174: 15_01576 | H174: Bom Jesus do Tocantins_01576 | I174: de 60 a 100 mil | J174: Bom Jesus do Tocantins_PA | K174: CELPA | Q174: 173 | R174: 32_173 | AB174: PA | AC174: 15 | AD174: Bom Jesus do Tocantins | AE174: 01576 | AF174: Bom Jesus do Tocantins_01576 | AG174: 22 | AH174: Rio Preto da Eva | AI174: 03569 | AJ174: Rio Preto da Eva_03569 | AK174: 49
A175: PA | B175: 15 | C175: Bonito | D175: 01600 | E175: 23 | F175: 15_23 | G175: 15_01600 | H175: Bonito_01600 | I175: de 60 a 100 mil | J175: Bonito_PA | K175: CELPA | Q175: 174 | R175: 32_174 | AB175: PA | AC175: 15 | AD175: Bonito | AE175: 01600 | AF175: Bonito_01600 | AG175: 23 | AH175: Santa Isabel do Rio Negro | AI175: 03601 | AJ175: Santa Isabel do Rio Negro_03601 | AK175: 50
A176: PA | B176: 15 | C176: Braganca | D176: 01709 | E176: 24 | F176: 15_24 | G176: 15_01709 | H176: Braganca_01709 | I176: de 100 a 250 mil | J176: Braganca_PA | K176: CELPA | Q176: 175 | R176: 32_175 | AB176: PA | AC176: 15 | AD176: Braganca | AE176: 01709 | AF176: Braganca_01709 | AG176: 24 | AH176: Santo Antonio do Ica | AI176: 03700 | AJ176: Santo Antonio do Ica_03700 | AK176: 51
A177: PA | B177: 15 | C177: Brasil Novo | D177: 01725 | E177: 25 | F177: 15_25 | G177: 15_01725 | H177: Brasil Novo_01725 | I177: de 60 a 100 mil | J177: Brasil Novo_PA | K177: CELPA | Q177: 176 | R177: 32_176 | AB177: PA | AC177: 15 | AD177: Brasil Novo | AE177: 01725 | AF177: Brasil Novo_01725 | AG177: 25 | AH177: Sao Gabriel da Cachoeira | AI177: 03809 | AJ177: Sao Gabriel da Cachoeira_03809 | AK177: 52
A178: PA | B178: 15 | C178: Brejo Grande do Araguaia | D178: 01758 | E178: 26 | F178: 15_26 | G178: 15_01758 | H178: Brejo Grande do Araguaia_01758 | I178: de 60 a 100 mil | J178: Brejo Grande do Araguaia_PA | K178: CELPA | Q178: 177 | R178: 32_177 | AB178: PA | AC178: 15 | AD178: Brejo Grande do Araguaia | AE178: 01758 | AF178: Brejo Grande do Araguaia_01758 | AG178: 26 | AH178: Sao Paulo de Olivenca | AI178: 03908 | AJ178: Sao Paulo de Olivenca_03908 | AK178: 53
A179: PA | B179: 15 | C179: Breu Branco | D179: 01782 | E179: 27 | F179: 15_27 | G179: 15_01782 | H179: Breu Branco_01782 | I179: de 60 a 100 mil | J179: Breu Branco_PA | K179: CELPA | Q179: 178 | R179: 32_178 | AB179: PA | AC179: 15 | AD179: Breu Branco | AE179: 01782 | AF179: Breu Branco_01782 | AG179: 27 | AH179: Sao Sebastiao do Uatuma | AI179: 03957 | AJ179: Sao Sebastiao do Uatuma_03957 | AK179: 54
A180: PA | B180: 15 | C180: Breves | D180: 01808 | E180: 28 | F180: 15_28 | G180: 15_01808 | H180: Breves_01808 | I180: de 100 a 250 mil | J180: Breves_PA | K180: CELPA | Q180: 179 | R180: 32_179 | AB180: PA | AC180: 15 | AD180: Breves | AE180: 01808 | AF180: Breves_01808 | AG180: 28 | AH180: Silves | AI180: 04005 | AJ180: Silves_04005 | AK180: 55
A181: PA | B181: 15 | C181: Bujaru | D181: 01907 | E181: 29 | F181: 15_29 | G181: 15_01907 | H181: Bujaru_01907 | I181: de 60 a 100 mil | J181: Bujaru_PA | K181: CELPA | Q181: 180 | R181: 32_180 | AB181: PA | AC181: 15 | AD181: Bujaru | AE181: 01907 | AF181: Bujaru_01907 | AG181: 29 | AH181: Tabatinga | AI181: 04062 | AJ181: Tabatinga_04062 | AK181: 56
A182: PA | B182: 15 | C182: Cachoeira do Piria | D182: 01956 | E182: 31 | F182: 15_31 | G182: 15_01956 | H182: Cachoeira do Piria_01956 | I182: de 60 a 100 mil | J182: Cachoeira do Piria_PA | K182: CELPA | Q182: 181 | R182: 32_181 | AB182: PA | AC182: 15 | AD182: Cachoeira do Piria | AE182: 01956 | AF182: Cachoeira do Piria_01956 | AG182: 31 | AH182: Tapaua | AI182: 04104 | AJ182: Tapaua_04104 | AK182: 57
A183: PA | B183: 15 | C183: Cachoeira do Arari | D183: 02004 | E183: 30 | F183: 15_30 | G183: 15_02004 | H183: Cachoeira do Arari_02004 | I183: de 60 a 100 mil | J183: Cachoeira do Arari_PA | K183: CELPA | Q183: 182 | R183: 32_182 | AB183: PA | AC183: 15 | AD183: Cachoeira do Arari | AE183: 02004 | AF183: Cachoeira do Arari_02004 | AG183: 30 | AH183: Tefe | AI183: 04203 | AJ183: Tefe_04203 | AK183: 58
A184: PA | B184: 15 | C184: Cameta | D184: 02103 | E184: 32 | F184: 15_32 | G184: 15_02103 | H184: Cameta_02103 | I184: de 100 a 250 mil | J184: Cameta_PA | K184: CELPA | Q184: 183 | R184: 32_183 | AB184: PA | AC184: 15 | AD184: Cameta | AE184: 02103 | AF184: Cameta_02103 | AG184: 32 | AH184: Tonantins | AI184: 04237 | AJ184: Tonantins_04237 | AK184: 59
A185: PA | B185: 15 | C185: Canaa dos Carajas | D185: 02152 | E185: 33 | F185: 15_33 | G185: 15_02152 | H185: Canaa dos Carajas_02152 | I185: de 60 a 100 mil | J185: Canaa dos Carajas_PA | K185: CELPA | Q185: 184 | R185: 32_184 | AB185: PA | AC185: 15 | AD185: Canaa dos Carajas | AE185: 02152 | AF185: Canaa dos Carajas_02152 | AG185: 33 | AH185: Uarini | AI185: 04260 | AJ185: Uarini_04260 | AK185: 60
A186: PA | B186: 15 | C186: Capanema | D186: 02202 | E186: 34 | F186: 15_34 | G186: 15_02202 | H186: Capanema_02202 | I186: de 60 a 100 mil | J186: Capanema_PA | K186: CELPA | Q186: 185 | R186: 32_185 | AB186: PA | AC186: 15 | AD186: Capanema | AE186: 02202 | AF186: Capanema_02202 | AG186: 34 | AH186: Urucara | AI186: 04302 | AJ186: Urucara_04302 | AK186: 61
A187: PA | B187: 15 | C187: Capitao Poco | D187: 02301 | E187: 35 | F187: 15_35 | G187: 15_02301 | H187: Capitao Poco_02301 | I187: de 60 a 100 mil | J187: Capitao Poco_PA | K187: CELPA | Q187: 186 | R187: 32_186 | AB187: PA | AC187: 15 | AD187: Capitao Poco | AE187: 02301 | AF187: Capitao Poco_02301 | AG187: 35 | AH187: Urucurituba | AI187: 04401 | AJ187: Urucurituba_04401 | AK187: 62
A188: PA | B188: 15 | C188: Castanhal | D188: 02400 | E188: 36 | F188: 15_36 | G188: 15_02400 | H188: Castanhal_02400 | I188: de 100 a 250 mil | J188: Castanhal_PA | K188: CELPA | Q188: 187 | R188: 32_187 | AB188: PA | AC188: 15 | AD188: Castanhal | AE188: 02400 | AF188: Castanhal_02400 | AG188: 36 | AH188: Amapa | AI188: 00105 | AJ188: Amapa_00105 | AK188: 1
A189: PA | B189: 15 | C189: Chaves | D189: 02509 | E189: 37 | F189: 15_37 | G189: 15_02509 | H189: Chaves_02509 | I189: de 60 a 100 mil | J189: Chaves_PA | K189: CELPA | Q189: 188 | R189: 32_188 | AB189: PA | AC189: 15 | AD189: Chaves | AE189: 02509 | AF189: Chaves_02509 | AG189: 37 | AH189: Calcoene | AI189: 00204 | AJ189: Calcoene_00204 | AK189: 2
A190: PA | B190: 15 | C190: Colares | D190: 02608 | E190: 38 | F190: 15_38 | G190: 15_02608 | H190: Colares_02608 | I190: de 60 a 100 mil | J190: Colares_PA | K190: CELPA | Q190: 189 | R190: 32_189 | AB190: PA | AC190: 15 | AD190: Colares | AE190: 02608 | AF190: Colares_02608 | AG190: 38 | AH190: Cutias | AI190: 00212 | AJ190: Cutias_00212 | AK190: 3
A191: PA | B191: 15 | C191: Conceicao do Araguaia | D191: 02707 | E191: 39 | F191: 15_39 | G191: 15_02707 | H191: Conceicao do Araguaia_02707 | I191: de 60 a 100 mil | J191: Conceicao do Araguaia_PA | K191: CELPA | Q191: 190 | R191: 32_190 | AB191: PA | AC191: 15 | AD191: Conceicao do Araguaia | AE191: 02707 | AF191: Conceicao do Araguaia_02707 | AG191: 39 | AH191: Ferreira Gomes | AI191: 00238 | AJ191: Ferreira Gomes_00238 | AK191: 4
A192: PA | B192: 15 | C192: Concordia do Para | D192: 02756 | E192: 40 | F192: 15_40 | G192: 15_02756 | H192: Concordia do Para_02756 | I192: de 60 a 100 mil | J192: Concordia do Para_PA | K192: CELPA | Q192: 191 | R192: 32_191 | AB192: PA | AC192: 15 | AD192: Concordia do Para | AE192: 02756 | AF192: Concordia do Para_02756 | AG192: 40 | AH192: Itaubal | AI192: 00253 | AJ192: Itaubal_00253 | AK192: 5
A193: PA | B193: 15 | C193: Cumaru do Norte | D193: 02764 | E193: 41 | F193: 15_41 | G193: 15_02764 | H193: Cumaru do Norte_02764 | I193: de 60 a 100 mil | J193: Cumaru do Norte_PA | K193: CELPA | Q193: 192 | R193: 32_192 | AB193: PA | AC193: 15 | AD193: Cumaru do Norte | AE193: 02764 | AF193: Cumaru do Norte_02764 | AG193: 41 | AH193: Laranjal do Jari | AI193: 00279 | AJ193: Laranjal do Jari_00279 | AK193: 6
A194: PA | B194: 15 | C194: Curionopolis | D194: 02772 | E194: 42 | F194: 15_42 | G194: =CONCATENATE(B194,"_",D194) -> 15_02772 | H194: Curionopolis_02772 | I194: de 60 a 100 mil | J194: =CONCATENATE(C194&"_"&A194) -> Curionopolis_PA | K194: CELPA | Q194: 193 | R194: =CONCATENATE($W$3,"_",Q194) -> 32_193 | U194: =IFERROR(INDEX($C$2:$K$5571,MATCH($R194,$F$2:$F$5571,0),6),"") ->  | AB194: PA | AC194: 15 | AD194: Curionopolis | AE194: 02772 | AF194: Curionopolis_02772 | AG194: 42 | AH194: Macapa | AI194: 00303 | AJ194: =CONCATENATE(AH194,"_",AI194) -> Macapa_00303 | AK194: 7
A195: PA | B195: 15 | C195: Curralinho | D195: 02806 | E195: 43 | F195: =CONCATENATE(B195,"_",E195) -> 15_43 | G195: 15_02806 | H195: =CONCATENATE(C195,"_",D195) -> Curralinho_02806 | I195: de 60 a 100 mil | J195: Curralinho_PA | K195: CELPA | Q195: 194 | R195: 32_194 | S195: =IFERROR(INDEX($C$2:$F$5571,MATCH(R195,$F$2:$F$5571,0),1),"") ->  | T195: =IFERROR(INDEX($C$2:$K$5571,MATCH(R195,$F$2:$F$5571,0),9),"") ->  | AA195: =IFERROR(VLOOKUP(Z195,$G$2:$J$5571,2,FALSE),"") ->  | AB195: PA | AC195: 15 | AD195: Curralinho | AE195: 02806 | AF195: =CONCATENATE(AD195,"_",AE195) -> Curralinho_02806 | AG195: =VLOOKUP(AF195,$AJ$2:$AK$5571,2,0) -> 43 | AH195: Mazagao | AI195: 00402 | AJ195: Mazagao_00402 | AK195: 8
A196: PA | B196: 15 | C196: Curua | D196: 02855 | E196: 44 | F196: 15_44 | G196: 15_02855 | H196: Curua_02855 | I196: de 60 a 100 mil | J196: Curua_PA | K196: CELPA | Q196: 195 | R196: 32_195 | AB196: PA | AC196: 15 | AD196: Curua | AE196: 02855 | AF196: Curua_02855 | AG196: 44 | AH196: Oiapoque | AI196: 00501 | AJ196: Oiapoque_00501 | AK196: 9
A197: PA | B197: 15 | C197: Curuca | D197: 02905 | E197: 45 | F197: 15_45 | G197: 15_02905 | H197: Curuca_02905 | I197: de 60 a 100 mil | J197: Curuca_PA | K197: CELPA | Q197: 196 | R197: 32_196 | AB197: PA | AC197: 15 | AD197: Curuca | AE197: 02905 | AF197: Curuca_02905 | AG197: 45 | AH197: Pedra Branca do Amapari | AI197: 00154 | AJ197: Pedra Branca do Amapari_00154 | AK197: 10
A198: PA | B198: 15 | C198: Dom Eliseu | D198: 02939 | E198: 46 | F198: 15_46 | G198: 15_02939 | H198: Dom Eliseu_02939 | I198: de 60 a 100 mil | J198: Dom Eliseu_PA | K198: CELPA | Q198: 197 | R198: 32_197 | AB198: PA | AC198: 15 | AD198: Dom Eliseu | AE198: 02939 | AF198: Dom Eliseu_02939 | AG198: 46 | AH198: Porto Grande | AI198: 00535 | AJ198: Porto Grande_00535 | AK198: 11
A199: PA | B199: 15 | C199: Eldorado do Carajas | D199: 02954 | E199: 47 | F199: 15_47 | G199: 15_02954 | H199: Eldorado do Carajas_02954 | I199: de 60 a 100 mil | J199: Eldorado do Carajas_PA | K199: CELPA | Q199: 198 | R199: 32_198 | AB199: PA | AC199: 15 | AD199: Eldorado do Carajas | AE199: 02954 | AF199: Eldorado do Carajas_02954 | AG199: 47 | AH199: Pracuuba | AI199: 00550 | AJ199: Pracuuba_00550 | AK199: 12
A200: PA | B200: 15 | C200: Faro | D200: 03002 | E200: 48 | F200: 15_48 | G200: 15_03002 | H200: Faro_03002 | I200: de 60 a 100 mil | J200: Faro_PA | K200: CELPA | Q200: 199 | R200: 32_199 | AB200: PA | AC200: 15 | AD200: Faro | AE200: 03002 | AF200: Faro_03002 | AG200: 48 | AH200: Santana | AI200: 00600 | AJ200: Santana_00600 | AK200: 13
... 2050 more rows

Sheet SeriePreçoDiesel (hidden)
B1: Rótulos de Linha | C1: 2013-01-01 | D1: 2013-02-01 | E1: 2013-03-01 | F1: 2013-04-01 | G1: 2013-05-01 | H1: 2013-06-01 | I1: 2013-07-01 | J1: 2013-08-01 | K1: 2013-09-01 | L1: 2013-10-01 | M1: 2013-11-01 | N1: 2013-12-01 | O1: 2014-01-01 | P1: 2014-02-01 | Q1: 2014-03-01 | R1: 2014-04-01 | S1: 2014-05-01 | T1: 2014-06-01 | U1: 2014-07-01 | V1: 2014-08-01 | W1: 2014-09-01 | X1: 2014-10-01 | Y1: 2014-11-01 | Z1: 2014-12-01 | AA1: 2015-01-01 | AB1: 2015-02-01 | AC1: 2015-03-01 | AD1: 2015-04-01 | AE1: 2015-05-01 | AF1: 2015-06-01 | AG1: 2015-07-01 | AH1: 2015-08-01 | AI1: 2015-09-01 | AJ1: 2015-10-01 | AK1: 2015-11-01 | AL1: 2015-12-01 | AM1: 2016-01-01 | AN1: 2016-02-01 | AO1: 2016-03-01 | AP1: 2016-04-01 | AQ1: 2016-05-01 | AR1: 2016-06-01 | AS1: 2016-07-01 | AT1: 2016-08-01 | AU1: 2016-09-01 | AV1: 2016-10-01 | AW1: 2016-11-01 | AX1: 2016-12-01 | AY1: 2017-01-01 | AZ1: 2017-02-01 | BA1: 2017-03-01 | BB1: 2017-04-01 | BC1: 2017-05-01 | BD1: 2017-06-01 | BE1: 2017-07-01 | BF1: 2017-08-01 | BG1: 2017-09-01 | BH1: 2017-10-01 | BI1: 2017-11-01 | BJ1: 2017-12-01 | BK1: 2018-01-01 | BL1: 2018-02-01 | BM1: 2018-03-01 | BN1: 2018-04-01 | BO1: 2018-05-01 | BP1: 2018-06-01 | BQ1: 2018-07-01 | BR1: 2018-08-01 | BS1: 2018-09-01 | BT1: 2018-10-01 | BU1: 2018-11-01 | BV1: 2018-12-01 | BW1: 2019-01-01
B2: ACRE | C2: 2.663 | D2: 2.724 | E2: 2.798 | F2: 2.825 | G2: 2.827 | H2: 2.829 | I2: 2.831 | J2: 2.831 | K2: 2.835 | L2: 2.831 | M2: 2.843 | N2: 3.011 | O2: 3.036 | P2: 3.067 | Q2: 3.071 | R2: 3.085 | S2: 3.083 | T2: 3.082 | U2: 3.085 | V2: 3.052 | W2: 3.022 | X2: 3.025 | Y2: 3.105 | Z2: 3.164 | AA2: 3.16 | AB2: 3.315 | AC2: 3.362 | AD2: 3.363 | AE2: 3.364 | AF2: 3.364 | AG2: 3.367 | AH2: 3.366 | AI2: 3.343 | AJ2: 3.516 | AK2: 3.573 | AL2: 3.588 | AM2: 3.587 | AN2: 3.583 | AO2: 3.593 | AP2: 3.592 | AQ2: 3.6 | AR2: 3.596 | AS2: 3.6 | AT2: 3.56 | AU2: 3.563 | AV2: 3.572 | AW2: 3.564 | AX2: 3.66 | AY2: 3.741 | AZ2: 3.784 | BA2: 3.738 | BB2: 3.709 | BC2: 3.714 | BD2: 3.693 | BE2: 3.687 | BF2: 3.826 | BG2: 3.886 | BH2: 3.938 | BI2: 4.047 | BJ2: 4.104 | BK2: 4.108 | BL2: 4.098 | BM2: 4.104 | BN2: 4.285 | BO2: 4.474 | BP2: 4.385 | BQ2: 4.333 | BR2: 4.334 | BS2: 4.538 | BT2: 4.634 | BU2: 4.658 | BV2: 4.591 | BW2: 4.552
B3: ALAGOAS | C3: 2.118 | D3: 2.208 | E3: 2.266 | F3: 2.291 | G3: 2.293 | H3: 2.299 | I3: 2.296 | J3: 2.292 | K3: 2.294 | L3: 2.297 | M3: 2.3 | N3: 2.401 | O3: 2.431 | P3: 2.44 | Q3: 2.445 | R3: 2.441 | S3: 2.447 | T3: 2.447 | U3: 2.45 | V3: 2.452 | W3: 2.452 | X3: 2.448 | Y3: 2.517 | Z3: 2.569 | AA3: 2.567 | AB3: 2.726 | AC3: 2.767 | AD3: 2.769 | AE3: 2.779 | AF3: 2.79 | AG3: 2.793 | AH3: 2.788 | AI3: 2.802 | AJ3: 2.88 | AK3: 2.929 | AL3: 2.945 | AM3: 2.975 | AN3: 2.998 | AO3: 3.026 | AP3: 3.024 | AQ3: 3.015 | AR3: 3.024 | AS3: 3.01 | AT3: 3.017 | AU3: 3.007 | AV3: 3.022 | AW3: 3.029 | AX3: 3.023 | AY3: 3.093 | AZ3: 3.118 | BA3: 3.098 | BB3: 3.078 | BC3: 3.08 | BD3: 3.051 | BE3: 3.038 | BF3: 3.139 | BG3: 3.189 | BH3: 3.21 | BI3: 3.26 | BJ3: 3.308 | BK3: 3.404 | BL3: 3.422 | BM3: 3.426 | BN3: 3.484 | BO3: 3.686 | BP3: 3.596 | BQ3: 3.504 | BR3: 3.497 | BS3: 3.712 | BT3: 3.807 | BU3: 3.825 | BV3: 3.731 | BW3: 3.688
B4: AMAPA | C4: 2.231 | D4: 2.292 | E4: 2.325 | F4: 2.36 | G4: 2.353 | H4: 2.338 | I4: 2.346 | J4: 2.341 | K4: 2.333 | L4: 2.362 | M4: 2.338 | N4: 2.469 | O4: 2.475 | P4: 2.513 | Q4: 2.536 | R4: 2.554 | S4: 2.576 | T4: 2.583 | U4: 2.588 | V4: 2.583 | W4: 2.595 | X4: 2.596 | Y4: 2.685 | Z4: 2.739 | AA4: 2.747 | AB4: 2.91 | AC4: 2.943 | AD4: 2.942 | AE4: 2.933 | AF4: 2.928 | AG4: 2.975 | AH4: 2.989 | AI4: 2.959 | AJ4: 3.172 | AK4: 3.198 | AL4: 3.188 | AM4: 3.197 | AN4: 3.445 | AO4: 3.523 | AP4: 3.568 | AQ4: 3.577 | AR4: 3.567 | AS4: 3.574 | AT4: 3.568 | AU4: 3.571 | AV4: 3.58 | AW4: 3.575 | AX4: 3.662 | AY4: 3.679 | AZ4: 3.655 | BA4: 3.631 | BB4: 3.581 | BC4: 3.541 | BD4: 3.488 | BE4: 3.394 | BF4: 3.491 | BG4: 3.47 | BH4: 3.61 | BI4: 3.708 | BJ4: 3.76 | BK4: 3.776 | BL4: 3.915 | BM4: 3.862 | BN4: 3.945 | BO4: 4.137 | BP4: 3.83 | BQ4: 3.742 | BR4: 3.712 | BS4: 3.901 | BT4: 3.999 | BU4: 3.951 | BV4: 3.862 | BW4: 3.993
B5: AMAZONAS | C5: 2.222 | D5: 2.318 | E5: 2.36 | F5: 2.383 | G5: 2.381 | H5: 2.381 | I5: 2.383 | J5: 2.38 | K5: 2.378 | L5: 2.379 | M5: 2.378 | N5: 2.538 | O5: 2.555 | P5: 2.558 | Q5: 2.56 | R5: 2.568 | S5: 2.571 | T5: 2.575 | U5: 2.578 | V5: 2.594 | W5: 2.598 | X5: 2.596 | Y5: 2.68 | Z5: 2.729 | AA5: 2.729 | AB5: 2.885 | AC5: 2.915 | AD5: 2.975 | AE5: 2.976 | AF5: 2.979 | AG5: 2.972 | AH5: 2.965 | AI5: 2.955 | AJ5: 3.145 | AK5: 3.178 | AL5: 3.161 | AM5: 3.176 | AN5: 3.194 | AO5: 3.177 | AP5: 3.2 | AQ5: 3.186 | AR5: 3.178 | AS5: 3.194 | AT5: 3.149 | AU5: 3.15 | AV5: 3.163 | AW5: 3.124 | AX5: 3.189 | AY5: 3.241 | AZ5: 3.282 | BA5: 3.22 | BB5: 3.166 | BC5: 3.139 | BD5: 3.05 | BE5: 3.078 | BF5: 3.146 | BG5: 3.258 | BH5: 3.311 | BI5: 3.298 | BJ5: 3.318 | BK5: 3.411 | BL5: 3.412 | BM5: 3.419 | BN5: 3.531 | BO5: 3.671 | BP5: 3.451 | BQ5: 3.397 | BR5: 3.399 | BS5: 3.664 | BT5: 3.779 | BU5: 3.777 | BV5: 3.668 | BW5: 3.627
B6: BAHIA | C6: 2.086 | D6: 2.213 | E6: 2.274 | F6: 2.299 | G6: 2.294 | H6: 2.293 | I6: 2.29 | J6: 2.284 | K6: 2.284 | L6: 2.278 | M6: 2.278 | N6: 2.427 | O6: 2.439 | P6: 2.437 | Q6: 2.438 | R6: 2.449 | S6: 2.445 | T6: 2.444 | U6: 2.444 | V6: 2.429 | W6: 2.431 | X6: 2.431 | Y6: 2.492 | Z6: 2.54 | AA6: 2.541 | AB6: 2.75 | AC6: 2.753 | AD6: 2.742 | AE6: 2.738 | AF6: 2.743 | AG6: 2.747 | AH6: 2.752 | AI6: 2.748 | AJ6: 2.87 | AK6: 2.949 | AL6: 2.978 | AM6: 2.984 | AN6: 2.993 | AO6: 2.99 | AP6: 2.983 | AQ6: 2.976 | AR6: 2.965 | AS6: 2.962 | AT6: 2.997 | AU6: 2.978 | AV6: 2.977 | AW6: 2.952 | AX6: 3.008 | AY6: 3.052 | AZ6: 3.055 | BA6: 3.01 | BB6: 2.96 | BC6: 2.983 | BD6: 2.959 | BE6: 2.956 | BF6: 3.101 | BG6: 3.132 | BH6: 3.162 | BI6: 3.202 | BJ6: 3.236 | BK6: 3.302 | BL6: 3.334 | BM6: 3.332 | BN6: 3.406 | BO6: 3.634 | BP6: 3.449 | BQ6: 3.385 | BR6: 3.384 | BS6: 3.648 | BT6: 3.729 | BU6: 3.648 | BV6: 3.493 | BW6: 3.429
B7: CEARA | C7: 2.196 | D7: 2.303 | E7: 2.345 | F7: 2.375 | G7: 2.381 | H7: 2.388 | I7: 2.389 | J7: 2.389 | K7: 2.398 | L7: 2.392 | M7: 2.389 | N7: 2.472 | O7: 2.522 | P7: 2.544 | Q7: 2.554 | R7: 2.564 | S7: 2.556 | T7: 2.556 | U7: 2.56 | V7: 2.559 | W7: 2.561 | X7: 2.559 | Y7: 2.616 | Z7: 2.677 | AA7: 2.686 | AB7: 2.819 | AC7: 2.882 | AD7: 2.907 | AE7: 2.903 | AF7: 2.906 | AG7: 2.896 | AH7: 2.907 | AI7: 2.892 | AJ7: 3.026 | AK7: 3.038 | AL7: 3.147 | AM7: 3.157 | AN7: 3.131 | AO7: 3.14 | AP7: 3.223 | AQ7: 3.191 | AR7: 3.19 | AS7: 3.197 | AT7: 3.203 | AU7: 3.191 | AV7: 3.169 | AW7: 3.147 | AX7: 3.189 | AY7: 3.242 | AZ7: 3.229 | BA7: 3.188 | BB7: 3.124 | BC7: 3.139 | BD7: 3.114 | BE7: 3.088 | BF7: 3.244 | BG7: 3.28 | BH7: 3.319 | BI7: 3.362 | BJ7: 3.427 | BK7: 3.545 | BL7: 3.566 | BM7: 3.581 | BN7: 3.61 | BO7: 3.812 | BP7: 3.598 | BQ7: 3.545 | BR7: 3.528 | BS7: 3.709 | BT7: 3.867 | BU7: 3.845 | BV7: 3.807 | BW7: 3.694
B8: DISTRITO FEDERAL | C8: 2.123 | D8: 2.316 | E8: 2.389 | F8: 2.418 | G8: 2.419 | H8: 2.419 | I8: 2.418 | J8: 2.418 | K8: 2.418 | L8: 2.417 | M8: 2.416 | N8: 2.515 | O8: 2.516 | P8: 2.539 | Q8: 2.544 | R8: 2.541 | S8: 2.54 | T8: 2.541 | U8: 2.544 | V8: 2.546 | W8: 2.552 | X8: 2.562 | Y8: 2.609 | Z8: 2.646 | AA8: 2.646 | AB8: 2.848 | AC8: 2.886 | AD8: 2.887 | AE8: 2.884 | AF8: 2.884 | AG8: 2.884 | AH8: 2.886 | AI8: 2.886 | AJ8: 3.124 | AK8: 3.118 | AL8: 3.125 | AM8: 3.231 | AN8: 3.267 | AO8: 3.264 | AP8: 3.234 | AQ8: 3.175 | AR8: 3.149 | AS8: 3.135 | AT8: 3.123 | AU8: 3.121 | AV8: 3.132 | AW8: 3.142 | AX8: 3.2 | AY8: 3.256 | AZ8: 3.278 | BA8: 3.26 | BB8: 3.222 | BC8: 3.243 | BD8: 3.223 | BE8: 3.186 | BF8: 3.278 | BG8: 3.421 | BH8: 3.47 | BI8: 3.524 | BJ8: 3.575 | BK8: 3.576 | BL8: 3.588 | BM8: 3.568 | BN8: 3.614 | BO8: 3.802 | BP8: 3.593 | BQ8: 3.537 | BR8: 3.516 | BS8: 3.765 | BT8: 3.834 | BU8: 3.823 | BV8: 3.734 | BW8: 3.665
B9: ESPIRITO SANTO | C9: 2.163 | D9: 2.268 | E9: 2.28 | F9: 2.339 | G9: 2.347 | H9: 2.345 | I9: 2.348 | J9: 2.344 | K9: 2.346 | L9: 2.338 | M9: 2.342 | N9: 2.45 | O9: 2.463 | P9: 2.473 | Q9: 2.476 | R9: 2.489 | S9: 2.485 | T9: 2.488 | U9: 2.486 | V9: 2.478 | W9: 2.479 | X9: 2.479 | Y9: 2.55 | Z9: 2.585 | AA9: 2.592 | AB9: 2.764 | AC9: 2.781 | AD9: 2.775 | AE9: 2.777 | AF9: 2.781 | AG9: 2.785 | AH9: 2.782 | AI9: 2.793 | AJ9: 2.911 | AK9: 2.925 | AL9: 2.946 | AM9: 2.967 | AN9: 2.973 | AO9: 2.976 | AP9: 2.976 | AQ9: 2.977 | AR9: 2.966 | AS9: 2.974 | AT9: 2.997 | AU9: 3.003 | AV9: 3.003 | AW9: 2.994 | AX9: 3.031 | AY9: 3.116 | AZ9: 3.139 | BA9: 3.108 | BB9: 3.076 | BC9: 3.063 | BD9: 3.04 | BE9: 3.048 | BF9: 3.173 | BG9: 3.253 | BH9: 3.305 | BI9: 3.31 | BJ9: 3.305 | BK9: 3.336 | BL9: 3.354 | BM9: 3.328 | BN9: 3.335 | BO9: 3.519 | BP9: 3.307 | BQ9: 3.279 | BR9: 3.264 | BS9: 3.505 | BT9: 3.592 | BU9: 3.598 | BV9: 3.461 | BW9: 3.401
B10: GOIAS | C10: 2.156 | D10: 2.242 | E10: 2.271 | F10: 2.316 | G10: 2.321 | H10: 2.321 | I10: 2.318 | J10: 2.325 | K10: 2.33 | L10: 2.336 | M10: 2.332 | N10: 2.508 | O10: 2.515 | P10: 2.516 | Q10: 2.54 | R10: 2.551 | S10: 2.55 | T10: 2.549 | U10: 2.546 | V10: 2.543 | W10: 2.542 | X10: 2.538 | Y10: 2.597 | Z10: 2.634 | AA10: 2.645 | AB10: 2.846 | AC10: 2.858 | AD10: 2.85 | AE10: 2.847 | AF10: 2.847 | AG10: 2.847 | AH10: 2.844 | AI10: 2.844 | AJ10: 2.963 | AK10: 2.977 | AL10: 2.99 | AM10: 3.002 | AN10: 3.016 | AO10: 3.019 | AP10: 3.023 | AQ10: 3.016 | AR10: 3.01 | AS10: 3.009 | AT10: 3.023 | AU10: 3.021 | AV10: 3.02 | AW10: 3.011 | AX10: 3.023 | AY10: 3.125 | AZ10: 3.171 | BA10: 3.127 | BB10: 3.099 | BC10: 3.08 | BD10: 3.044 | BE10: 3.045 | BF10: 3.18 | BG10: 3.235 | BH10: 3.265 | BI10: 3.357 | BJ10: 3.412 | BK10: 3.45 | BL10: 3.456 | BM10: 3.453 | BN10: 3.507 | BO10: 3.744 | BP10: 3.588 | BQ10: 3.529 | BR10: 3.487 | BS10: 3.698 | BT10: 3.813 | BU10: 3.735 | BV10: 3.535 | BW10: 3.463
B11: MARANHAO | C11: 2.103 | D11: 2.189 | E11: 2.21 | F11: 2.26 | G11: 2.272 | H11: 2.285 | I11: 2.276 | J11: 2.278 | K11: 2.27 | L11: 2.281 | M11: 2.28 | N11: 2.375 | O11: 2.397 | P11: 2.401 | Q11: 2.413 | R11: 2.428 | S11: 2.446 | T11: 2.448 | U11: 2.433 | V11: 2.418 | W11: 2.42 | X11: 2.432 | Y11: 2.523 | Z11: 2.567 | AA11: 2.58 | AB11: 2.772 | AC11: 2.789 | AD11: 2.771 | AE11: 2.765 | AF11: 2.754 | AG11: 2.764 | AH11: 2.764 | AI11: 2.751 | AJ11: 2.84 | AK11: 2.944 | AL11: 2.979 | AM11: 3.033 | AN11: 3.051 | AO11: 3.055 | AP11: 3.078 | AQ11: 3.058 | AR11: 3.053 | AS11: 3.048 | AT11: 3.043 | AU11: 3.041 | AV11: 3.038 | AW11: 3.021 | AX11: 3.049 | AY11: 3.111 | AZ11: 3.105 | BA11: 3.05 | BB11: 2.989 | BC11: 2.988 | BD11: 2.954 | BE11: 2.926 | BF11: 3.035 | BG11: 3.122 | BH11: 3.12 | BI11: 3.143 | BJ11: 3.184 | BK11: 3.269 | BL11: 3.319 | BM11: 3.313 | BN11: 3.329 | BO11: 3.528 | BP11: 3.436 | BQ11: 3.409 | BR11: 3.339 | BS11: 3.475 | BT11: 3.591 | BU11: 3.633 | BV11: 3.523 | BW11: 3.463
B12: MATO GROSSO | C12: 2.411 | D12: 2.504 | E12: 2.553 | F12: 2.576 | G12: 2.577 | H12: 2.578 | I12: 2.585 | J12: 2.588 | K12: 2.583 | L12: 2.581 | M12: 2.577 | N12: 2.696 | O12: 2.745 | P12: 2.756 | Q12: 2.76 | R12: 2.762 | S12: 2.762 | T12: 2.76 | U12: 2.76 | V12: 2.754 | W12: 2.745 | X12: 2.733 | Y12: 2.79 | Z12: 2.834 | AA12: 2.857 | AB12: 3.045 | AC12: 3.073 | AD12: 3.064 | AE12: 3.062 | AF12: 3.055 | AG12: 3.054 | AH12: 3.06 | AI12: 3.063 | AJ12: 3.17 | AK12: 3.218 | AL12: 3.248 | AM12: 3.266 | AN12: 3.277 | AO12: 3.274 | AP12: 3.271 | AQ12: 3.271 | AR12: 3.282 | AS12: 3.284 | AT12: 3.31 | AU12: 3.315 | AV12: 3.321 | AW12: 3.304 | AX12: 3.324 | AY12: 3.377 | AZ12: 3.384 | BA12: 3.359 | BB12: 3.325 | BC12: 3.328 | BD12: 3.294 | BE12: 3.268 | BF12: 3.443 | BG12: 3.528 | BH12: 3.6 | BI12: 3.64 | BJ12: 3.677 | BK12: 3.682 | BL12: 3.689 | BM12: 3.693 | BN12: 3.74 | BO12: 3.9 | BP12: 3.731 | BQ12: 3.685 | BR12: 3.669 | BS12: 3.896 | BT12: 4.04 | BU12: 4.03 | BV12: 3.932 | BW12: 3.873
B13: MATO GROSSO DO SUL | C13: 2.298 | D13: 2.402 | E13: 2.46 | F13: 2.491 | G13: 2.493 | H13: 2.488 | I13: 2.49 | J13: 2.489 | K13: 2.484 | L13: 2.487 | M13: 2.488 | N13: 2.643 | O13: 2.658 | P13: 2.66 | Q13: 2.663 | R13: 2.665 | S13: 2.661 | T13: 2.663 | U13: 2.658 | V13: 2.66 | W13: 2.653 | X13: 2.657 | Y13: 2.725 | Z13: 2.778 | AA13: 2.785 | AB13: 3.04 | AC13: 3.086 | AD13: 3.078 | AE13: 3.08 | AF13: 3.079 | AG13: 2.969 | AH13: 2.916 | AI13: 2.921 | AJ13: 3.015 | AK13: 3.058 | AL13: 3.06 | AM13: 3.198 | AN13: 3.236 | AO13: 3.252 | AP13: 3.261 | AQ13: 3.264 | AR13: 3.258 | AS13: 3.266 | AT13: 3.272 | AU13: 3.279 | AV13: 3.284 | AW13: 3.278 | AX13: 3.329 | AY13: 3.417 | AZ13: 3.423 | BA13: 3.409 | BB13: 3.365 | BC13: 3.349 | BD13: 3.297 | BE13: 3.245 | BF13: 3.428 | BG13: 3.499 | BH13: 3.553 | BI13: 3.672 | BJ13: 3.744 | BK13: 3.777 | BL13: 3.768 | BM13: 3.755 | BN13: 3.714 | BO13: 3.812 | BP13: 3.57 | BQ13: 3.486 | BR13: 3.462 | BS13: 3.703 | BT13: 3.745 | BU13: 3.676 | BV13: 3.52 | BW13: 3.473
B14: MINAS GERAIS | C14: 2.172 | D14: 2.264 | E14: 2.317 | F14: 2.348 | G14: 2.356 | H14: 2.356 | I14: 2.356 | J14: 2.354 | K14: 2.352 | L14: 2.353 | M14: 2.352 | N14: 2.48 | O14: 2.507 | P14: 2.512 | Q14: 2.515 | R14: 2.517 | S14: 2.514 | T14: 2.516 | U14: 2.517 | V14: 2.516 | W14: 2.513 | X14: 2.513 | Y14: 2.57 | Z14: 2.61 | AA14: 2.611 | AB14: 2.795 | AC14: 2.823 | AD14: 2.823 | AE14: 2.823 | AF14: 2.819 | AG14: 2.814 | AH14: 2.816 | AI14: 2.811 | AJ14: 2.935 | AK14: 2.96 | AL14: 2.977 | AM14: 2.992 | AN14: 3.003 | AO14: 3.006 | AP14: 3.003 | AQ14: 2.998 | AR14: 2.999 | AS14: 2.999 | AT14: 3.004 | AU14: 3.001 | AV14: 3.005 | AW14: 2.993 | AX14: 3.022 | AY14: 3.092 | AZ14: 3.093 | BA14: 3.04 | BB14: 3 | BC14: 3.014 | BD14: 2.994 | BE14: 2.988 | BF14: 3.129 | BG14: 3.21 | BH14: 3.265 | BI14: 3.346 | BJ14: 3.38 | BK14: 3.455 | BL14: 3.47 | BM14: 3.461 | BN14: 3.509 | BO14: 3.709 | BP14: 3.489 | BQ14: 3.455 | BR14: 3.453 | BS14: 3.679 | BT14: 3.76 | BU14: 3.707 | BV14: 3.516 | BW14: 3.451
B15: PARA | C15: 2.312 | D15: 2.429 | E15: 2.45 | F15: 2.472 | G15: 2.483 | H15: 2.495 | I15: 2.491 | J15: 2.494 | K15: 2.505 | L15: 2.505 | M15: 2.51 | N15: 2.62 | O15: 2.644 | P15: 2.664 | Q15: 2.681 | R15: 2.67 | S15: 2.678 | T15: 2.686 | U15: 2.676 | V15: 2.692 | W15: 2.681 | X15: 2.676 | Y15: 2.751 | Z15: 2.806 | AA15: 2.811 | AB15: 2.988 | AC15: 3.029 | AD15: 3.038 | AE15: 3.033 | AF15: 3.034 | AG15: 3.036 | AH15: 3.039 | AI15: 3.003 | AJ15: 3.104 | AK15: 3.142 | AL15: 3.191 | AM15: 3.242 | AN15: 3.258 | AO15: 3.27 | AP15: 3.269 | AQ15: 3.27 | AR15: 3.271 | AS15: 3.275 | AT15: 3.283 | AU15: 3.29 | AV15: 3.288 | AW15: 3.284 | AX15: 3.341 | AY15: 3.43 | AZ15: 3.414 | BA15: 3.34 | BB15: 3.283 | BC15: 3.279 | BD15: 3.223 | BE15: 3.183 | BF15: 3.354 | BG15: 3.411 | BH15: 3.455 | BI15: 3.544 | BJ15: 3.573 | BK15: 3.586 | BL15: 3.584 | BM15: 3.592 | BN15: 3.656 | BO15: 3.811 | BP15: 3.62 | BQ15: 3.604 | BR15: 3.602 | BS15: 3.839 | BT15: 3.972 | BU15: 3.957 | BV15: 3.865 | BW15: 3.81
B16: PARAIBA | C16: 2.076 | D16: 2.181 | E16: 2.215 | F16: 2.256 | G16: 2.275 | H16: 2.284 | I16: 2.278 | J16: 2.281 | K16: 2.282 | L16: 2.282 | M16: 2.285 | N16: 2.378 | O16: 2.4 | P16: 2.399 | Q16: 2.408 | R16: 2.408 | S16: 2.415 | T16: 2.42 | U16: 2.425 | V16: 2.422 | W16: 2.429 | X16: 2.423 | Y16: 2.502 | Z16: 2.541 | AA16: 2.542 | AB16: 2.697 | AC16: 2.734 | AD16: 2.749 | AE16: 2.754 | AF16: 2.759 | AG16: 2.757 | AH16: 2.752 | AI16: 2.765 | AJ16: 2.845 | AK16: 2.883 | AL16: 2.924 | AM16: 2.955 | AN16: 2.992 | AO16: 2.995 | AP16: 2.984 | AQ16: 3.008 | AR16: 2.999 | AS16: 2.977 | AT16: 2.996 | AU16: 3.01 | AV16: 2.989 | AW16: 2.977 | AX16: 2.973 | AY16: 3.005 | AZ16: 3.019 | BA16: 2.988 | BB16: 2.958 | BC16: 2.988 | BD16: 2.957 | BE16: 2.963 | BF16: 3.026 | BG16: 3.098 | BH16: 3.138 | BI16: 3.16 | BJ16: 3.188 | BK16: 3.277 | BL16: 3.304 | BM16: 3.311 | BN16: 3.333 | BO16: 3.517 | BP16: 3.366 | BQ16: 3.323 | BR16: 3.306 | BS16: 3.515 | BT16: 3.665 | BU16: 3.68 | BV16: 3.627 | BW16: 3.515
B17: PARANA | C17: 2.093 | D17: 2.175 | E17: 2.238 | F17: 2.267 | G17: 2.264 | H17: 2.263 | I17: 2.266 | J17: 2.262 | K17: 2.259 | L17: 2.263 | M17: 2.261 | N17: 2.416 | O17: 2.437 | P17: 2.44 | Q17: 2.438 | R17: 2.44 | S17: 2.435 | T17: 2.438 | U17: 2.435 | V17: 2.436 | W17: 2.435 | X17: 2.437 | Y17: 2.489 | Z17: 2.526 | AA17: 2.53 | AB17: 2.703 | AC17: 2.723 | AD17: 2.723 | AE17: 2.721 | AF17: 2.717 | AG17: 2.716 | AH17: 2.712 | AI17: 2.733 | AJ17: 2.83 | AK17: 2.84 | AL17: 2.851 | AM17: 2.861 | AN17: 2.871 | AO17: 2.877 | AP17: 2.866 | AQ17: 2.865 | AR17: 2.862 | AS17: 2.858 | AT17: 2.844 | AU17: 2.844 | AV17: 2.842 | AW17: 2.823 | AX17: 2.85 | AY17: 2.924 | AZ17: 2.918 | BA17: 2.852 | BB17: 2.823 | BC17: 2.8 | BD17: 2.747 | BE17: 2.711 | BF17: 2.854 | BG17: 2.986 | BH17: 3.042 | BI17: 3.096 | BJ17: 3.124 | BK17: 3.153 | BL17: 3.151 | BM17: 3.144 | BN17: 3.216 | BO17: 3.443 | BP17: 3.209 | BQ17: 3.176 | BR17: 3.17 | BS17: 3.425 | BT17: 3.519 | BU17: 3.451 | BV17: 3.276 | BW17: 3.224
B18: PERNAMBUCO | C18: 2.099 | D18: 2.211 | E18: 2.247 | F18: 2.275 | G18: 2.278 | H18: 2.282 | I18: 2.281 | J18: 2.283 | K18: 2.283 | L18: 2.285 | M18: 2.279 | N18: 2.396 | O18: 2.423 | P18: 2.44 | Q18: 2.445 | R18: 2.442 | S18: 2.446 | T18: 2.45 | U18: 2.45 | V18: 2.45 | W18: 2.454 | X18: 2.448 | Y18: 2.509 | Z18: 2.577 | AA18: 2.578 | AB18: 2.735 | AC18: 2.775 | AD18: 2.768 | AE18: 2.762 | AF18: 2.762 | AG18: 2.773 | AH18: 2.771 | AI18: 2.806 | AJ18: 2.912 | AK18: 2.943 | AL18: 2.966 | AM18: 3.006 | AN18: 3.028 | AO18: 3.023 | AP18: 3.019 | AQ18: 3.029 | AR18: 3.013 | AS18: 3.014 | AT18: 3.004 | AU18: 3.004 | AV18: 3.004 | AW18: 2.977 | AX18: 2.986 | AY18: 3.026 | AZ18: 2.993 | BA18: 2.965 | BB18: 2.932 | BC18: 2.939 | BD18: 2.896 | BE18: 2.874 | BF18: 2.993 | BG18: 3.023 | BH18: 3.06 | BI18: 3.13 | BJ18: 3.166 | BK18: 3.272 | BL18: 3.33 | BM18: 3.31 | BN18: 3.419 | BO18: 3.6 | BP18: 3.451 | BQ18: 3.391 | BR18: 3.403 | BS18: 3.582 | BT18: 3.807 | BU18: 3.739 | BV18: 3.669 | BW18: 3.579
B19: PIAUI | C19: 2.142 | D19: 2.224 | E19: 2.281 | F19: 2.313 | G19: 2.315 | H19: 2.314 | I19: 2.311 | J19: 2.315 | K19: 2.318 | L19: 2.317 | M19: 2.318 | N19: 2.44 | O19: 2.453 | P19: 2.455 | Q19: 2.459 | R19: 2.455 | S19: 2.456 | T19: 2.456 | U19: 2.463 | V19: 2.466 | W19: 2.469 | X19: 2.471 | Y19: 2.579 | Z19: 2.615 | AA19: 2.616 | AB19: 2.788 | AC19: 2.861 | AD19: 2.861 | AE19: 2.859 | AF19: 2.86 | AG19: 2.859 | AH19: 2.856 | AI19: 2.869 | AJ19: 2.984 | AK19: 3.081 | AL19: 3.117 | AM19: 3.168 | AN19: 3.192 | AO19: 3.204 | AP19: 3.149 | AQ19: 3.12 | AR19: 3.122 | AS19: 3.129 | AT19: 3.126 | AU19: 3.131 | AV19: 3.129 | AW19: 3.112 | AX19: 3.158 | AY19: 3.188 | AZ19: 3.19 | BA19: 3.11 | BB19: 3.067 | BC19: 3.035 | BD19: 2.999 | BE19: 2.993 | BF19: 3.114 | BG19: 3.209 | BH19: 3.21 | BI19: 3.304 | BJ19: 3.332 | BK19: 3.405 | BL19: 3.476 | BM19: 3.458 | BN19: 3.521 | BO19: 3.688 | BP19: 3.468 | BQ19: 3.452 | BR19: 3.45 | BS19: 3.724 | BT19: 3.837 | BU19: 3.793 | BV19: 3.676 | BW19: 3.556
B20: RIO DE JANEIRO | C20: 2.121 | D20: 2.213 | E20: 2.259 | F20: 2.284 | G20: 2.288 | H20: 2.289 | I20: 2.288 | J20: 2.286 | K20: 2.285 | L20: 2.288 | M20: 2.288 | N20: 2.403 | O20: 2.43 | P20: 2.438 | Q20: 2.449 | R20: 2.456 | S20: 2.46 | T20: 2.457 | U20: 2.458 | V20: 2.457 | W20: 2.458 | X20: 2.453 | Y20: 2.528 | Z20: 2.575 | AA20: 2.578 | AB20: 2.742 | AC20: 2.767 | AD20: 2.767 | AE20: 2.771 | AF20: 2.776 | AG20: 2.779 | AH20: 2.78 | AI20: 2.789 | AJ20: 2.907 | AK20: 2.96 | AL20: 2.984 | AM20: 2.989 | AN20: 3.009 | AO20: 3.017 | AP20: 3.063 | AQ20: 3.073 | AR20: 3.08 | AS20: 3.076 | AT20: 3.081 | AU20: 3.078 | AV20: 3.075 | AW20: 3.073 | AX20: 3.094 | AY20: 3.161 | AZ20: 3.164 | BA20: 3.139 | BB20: 3.129 | BC20: 3.126 | BD20: 3.107 | BE20: 3.105 | BF20: 3.229 | BG20: 3.283 | BH20: 3.33 | BI20: 3.404 | BJ20: 3.455 | BK20: 3.529 | BL20: 3.541 | BM20: 3.532 | BN20: 3.597 | BO20: 3.753 | BP20: 3.525 | BQ20: 3.453 | BR20: 3.432 | BS20: 3.621 | BT20: 3.681 | BU20: 3.654 | BV20: 3.53 | BW20: 3.486
B21: RIO GRANDE DO NORTE | C21: 2.117 | D21: 2.199 | E21: 2.253 | F21: 2.262 | G21: 2.256 | H21: 2.259 | I21: 2.264 | J21: 2.279 | K21: 2.295 | L21: 2.28 | M21: 2.294 | N21: 2.42 | O21: 2.449 | P21: 2.455 | Q21: 2.459 | R21: 2.478 | S21: 2.48 | T21: 2.482 | U21: 2.493 | V21: 2.496 | W21: 2.495 | X21: 2.496 | Y21: 2.573 | Z21: 2.616 | AA21: 2.607 | AB21: 2.748 | AC21: 2.763 | AD21: 2.764 | AE21: 2.767 | AF21: 2.769 | AG21: 2.767 | AH21: 2.761 | AI21: 2.786 | AJ21: 2.917 | AK21: 2.963 | AL21: 3.024 | AM21: 3.034 | AN21: 3.059 | AO21: 3.136 | AP21: 3.149 | AQ21: 3.116 | AR21: 3.082 | AS21: 3.081 | AT21: 3.07 | AU21: 3.068 | AV21: 3.064 | AW21: 3.052 | AX21: 3.131 | AY21: 3.173 | AZ21: 3.156 | BA21: 3.101 | BB21: 3.062 | BC21: 3.069 | BD21: 3.027 | BE21: 2.995 | BF21: 3.097 | BG21: 3.201 | BH21: 3.233 | BI21: 3.343 | BJ21: 3.376 | BK21: 3.462 | BL21: 3.499 | BM21: 3.487 | BN21: 3.55 | BO21: 3.713 | BP21: 3.427 | BQ21: 3.389 | BR21: 3.392 | BS21: 3.624 | BT21: 3.753 | BU21: 3.723 | BV21: 3.619 | BW21: 3.531
B22: RIO GRANDE DO SUL | C22: 2.19 | D22: 2.278 | E22: 2.319 | F22: 2.35 | G22: 2.345 | H22: 2.349 | I22: 2.344 | J22: 2.333 | K22: 2.335 | L22: 2.335 | M22: 2.333 | N22: 2.475 | O22: 2.484 | P22: 2.49 | Q22: 2.492 | R22: 2.495 | S22: 2.496 | T22: 2.486 | U22: 2.481 | V22: 2.488 | W22: 2.497 | X22: 2.495 | Y22: 2.55 | Z22: 2.599 | AA22: 2.595 | AB22: 2.773 | AC22: 2.785 | AD22: 2.783 | AE22: 2.778 | AF22: 2.778 | AG22: 2.776 | AH22: 2.774 | AI22: 2.75 | AJ22: 2.886 | AK22: 2.925 | AL22: 2.933 | AM22: 2.94 | AN22: 2.951 | AO22: 2.968 | AP22: 2.968 | AQ22: 2.972 | AR22: 2.961 | AS22: 2.955 | AT22: 2.918 | AU22: 2.919 | AV22: 2.921 | AW22: 2.9 | AX22: 2.939 | AY22: 2.992 | AZ22: 3.014 | BA22: 2.95 | BB22: 2.916 | BC22: 2.953 | BD22: 2.901 | BE22: 2.878 | BF22: 3.016 | BG22: 3.081 | BH22: 3.119 | BI22: 3.194 | BJ22: 3.257 | BK22: 3.294 | BL22: 3.315 | BM22: 3.317 | BN22: 3.362 | BO22: 3.56 | BP22: 3.352 | BQ22: 3.316 | BR22: 3.301 | BS22: 3.545 | BT22: 3.655 | BU22: 3.614 | BV22: 3.423 | BW22: 3.364
B23: RONDONIA | C23: 2.333 | D23: 2.409 | E23: 2.437 | F23: 2.489 | G23: 2.509 | H23: 2.515 | I23: 2.516 | J23: 2.506 | K23: 2.515 | L23: 2.513 | M23: 2.513 | N23: 2.656 | O23: 2.676 | P23: 2.702 | Q23: 2.751 | R23: 2.759 | S23: 2.762 | T23: 2.76 | U23: 2.761 | V23: 2.761 | W23: 2.764 | X23: 2.763 | Y23: 2.815 | Z23: 2.86 | AA23: 2.877 | AB23: 3.069 | AC23: 3.081 | AD23: 3.085 | AE23: 3.087 | AF23: 3.088 | AG23: 3.094 | AH23: 3.098 | AI23: 3.08 | AJ23: 3.203 | AK23: 3.236 | AL23: 3.285 | AM23: 3.308 | AN23: 3.318 | AO23: 3.313 | AP23: 3.306 | AQ23: 3.301 | AR23: 3.297 | AS23: 3.288 | AT23: 3.293 | AU23: 3.294 | AV23: 3.294 | AW23: 3.271 | AX23: 3.293 | AY23: 3.382 | AZ23: 3.379 | BA23: 3.305 | BB23: 3.258 | BC23: 3.229 | BD23: 3.168 | BE23: 3.12 | BF23: 3.27 | BG23: 3.352 | BH23: 3.384 | BI23: 3.457 | BJ23: 3.506 | BK23: 3.592 | BL23: 3.609 | BM23: 3.595 | BN23: 3.65 | BO23: 3.816 | BP23: 3.609 | BQ23: 3.587 | BR23: 3.584 | BS23: 3.794 | BT23: 3.922 | BU23: 3.917 | BV23: 3.794 | BW23: 3.705
B24: RORAIMA | C24: 2.459 | D24: 2.568 | E24: 2.615 | F24: 2.638 | G24: 2.637 | H24: 2.64 | I24: 2.638 | J24: 2.638 | K24: 2.635 | L24: 2.638 | M24: 2.638 | N24: 2.749 | O24: 2.777 | P24: 2.775 | Q24: 2.776 | R24: 2.78 | S24: 2.78 | T24: 2.779 | U24: 2.775 | V24: 2.776 | W24: 2.772 | X24: 2.773 | Y24: 2.846 | Z24: 2.872 | AA24: 2.877 | AB24: 3.043 | AC24: 3.094 | AD24: 3.093 | AE24: 3.093 | AF24: 3.097 | AG24: 3.094 | AH24: 3.095 | AI24: 3.079 | AJ24: 3.181 | AK24: 3.188 | AL24: 3.202 | AM24: 3.199 | AN24: 3.214 | AO24: 3.243 | AP24: 3.253 | AQ24: 3.252 | AR24: 3.252 | AS24: 3.25 | AT24: 3.259 | AU24: 3.25 | AV24: 3.256 | AW24: 3.244 | AX24: 3.318 | AY24: 3.38 | AZ24: 3.374 | BA24: 3.32 | BB24: 3.269 | BC24: 3.252 | BD24: 3.141 | BE24: 3.031 | BF24: 3.143 | BG24: 3.202 | BH24: 3.235 | BI24: 3.375 | BJ24: 3.399 | BK24: 3.496 | BL24: 3.489 | BM24: 3.478 | BN24: 3.533 | BO24: 3.742 | BP24: 3.539 | BQ24: 3.44 | BR24: 3.44 | BS24: 3.782 | BT24: 3.871 | BU24: 3.755 | BV24: 3.595 | BW24: 3.501
B25: SANTA CATARINA | C25: 2.168 | D25: 2.249 | E25: 2.312 | F25: 2.338 | G25: 2.335 | H25: 2.328 | I25: 2.332 | J25: 2.331 | K25: 2.336 | L25: 2.334 | M25: 2.337 | N25: 2.464 | O25: 2.493 | P25: 2.501 | Q25: 2.511 | R25: 2.51 | S25: 2.507 | T25: 2.503 | U25: 2.499 | V25: 2.499 | W25: 2.497 | X25: 2.495 | Y25: 2.541 | Z25: 2.589 | AA25: 2.593 | AB25: 2.762 | AC25: 2.774 | AD25: 2.771 | AE25: 2.773 | AF25: 2.774 | AG25: 2.775 | AH25: 2.774 | AI25: 2.788 | AJ25: 2.875 | AK25: 2.909 | AL25: 2.936 | AM25: 2.954 | AN25: 2.96 | AO25: 2.956 | AP25: 2.96 | AQ25: 2.936 | AR25: 2.925 | AS25: 2.926 | AT25: 2.942 | AU25: 2.95 | AV25: 2.958 | AW25: 2.926 | AX25: 2.968 | AY25: 3.04 | AZ25: 3.052 | BA25: 3.018 | BB25: 2.977 | BC25: 2.949 | BD25: 2.924 | BE25: 2.863 | BF25: 2.992 | BG25: 3.106 | BH25: 3.128 | BI25: 3.203 | BJ25: 3.235 | BK25: 3.243 | BL25: 3.263 | BM25: 3.273 | BN25: 3.288 | BO25: 3.468 | BP25: 3.266 | BQ25: 3.226 | BR25: 3.23 | BS25: 3.457 | BT25: 3.557 | BU25: 3.54 | BV25: 3.394 | BW25: 3.28
B26: SAO PAULO | C26: 2.102 | D26: 2.198 | E26: 2.255 | F26: 2.284 | G26: 2.283 | H26: 2.281 | I26: 2.278 | J26: 2.279 | K26: 2.276 | L26: 2.279 | M26: 2.279 | N26: 2.422 | O26: 2.432 | P26: 2.434 | Q26: 2.437 | R26: 2.442 | S26: 2.438 | T26: 2.434 | U26: 2.433 | V26: 2.43 | W26: 2.43 | X26: 2.43 | Y26: 2.501 | Z26: 2.536 | AA26: 2.539 | AB26: 2.698 | AC26: 2.716 | AD26: 2.714 | AE26: 2.712 | AF26: 2.712 | AG26: 2.716 | AH26: 2.719 | AI26: 2.732 | AJ26: 2.851 | AK26: 2.899 | AL26: 2.912 | AM26: 2.919 | AN26: 2.925 | AO26: 2.924 | AP26: 2.921 | AQ26: 2.917 | AR26: 2.918 | AS26: 2.915 | AT26: 2.904 | AU26: 2.903 | AV26: 2.904 | AW26: 2.889 | AX26: 2.917 | AY26: 2.99 | AZ26: 3.003 | BA26: 2.952 | BB26: 2.923 | BC26: 2.928 | BD26: 2.905 | BE26: 2.903 | BF26: 3.024 | BG26: 3.093 | BH26: 3.163 | BI26: 3.235 | BJ26: 3.251 | BK26: 3.278 | BL26: 3.276 | BM26: 3.273 | BN26: 3.329 | BO26: 3.537 | BP26: 3.311 | BQ26: 3.268 | BR26: 3.265 | BS26: 3.499 | BT26: 3.599 | BU26: 3.55 | BV26: 3.358 | BW26: 3.305
B27: SERGIPE | C27: 2.175 | D27: 2.268 | E27: 2.309 | F27: 2.355 | G27: 2.368 | H27: 2.374 | I27: 2.369 | J27: 2.367 | K27: 2.36 | L27: 2.358 | M27: 2.357 | N27: 2.416 | O27: 2.467 | P27: 2.483 | Q27: 2.484 | R27: 2.457 | S27: 2.466 | T27: 2.465 | U27: 2.473 | V27: 2.46 | W27: 2.449 | X27: 2.456 | Y27: 2.519 | Z27: 2.558 | AA27: 2.561 | AB27: 2.745 | AC27: 2.789 | AD27: 2.786 | AE27: 2.787 | AF27: 2.777 | AG27: 2.773 | AH27: 2.774 | AI27: 2.752 | AJ27: 2.881 | AK27: 2.92 | AL27: 2.94 | AM27: 3.002 | AN27: 3.01 | AO27: 3.005 | AP27: 2.998 | AQ27: 2.995 | AR27: 2.999 | AS27: 2.989 | AT27: 3.015 | AU27: 3.029 | AV27: 3.01 | AW27: 2.966 | AX27: 2.985 | AY27: 3.081 | AZ27: 3.105 | BA27: 3 | BB27: 3.007 | BC27: 2.971 | BD27: 2.955 | BE27: 2.899 | BF27: 3.126 | BG27: 3.202 | BH27: 3.21 | BI27: 3.268 | BJ27: 3.301 | BK27: 3.4 | BL27: 3.435 | BM27: 3.43 | BN27: 3.417 | BO27: 3.659 | BP27: 3.418 | BQ27: 3.405 | BR27: 3.403 | BS27: 3.653 | BT27: 3.759 | BU27: 3.667 | BV27: 3.534 | BW27: 3.448
B28: TOCANTINS | C28: 2.114 | D28: 2.208 | E28: 2.22 | F28: 2.268 | G28: 2.288 | H28: 2.283 | I28: 2.287 | J28: 2.294 | K28: 2.294 | L28: 2.297 | M28: 2.297 | N28: 2.403 | O28: 2.441 | P28: 2.455 | Q28: 2.455 | R28: 2.461 | S28: 2.459 | T28: 2.454 | U28: 2.458 | V28: 2.455 | W28: 2.449 | X28: 2.458 | Y28: 2.543 | Z28: 2.592 | AA28: 2.593 | AB28: 2.789 | AC28: 2.815 | AD28: 2.824 | AE28: 2.827 | AF28: 2.82 | AG28: 2.825 | AH28: 2.825 | AI28: 2.846 | AJ28: 2.948 | AK28: 2.971 | AL28: 2.982 | AM28: 2.986 | AN28: 3.041 | AO28: 3.054 | AP28: 3.05 | AQ28: 3.06 | AR28: 3.058 | AS28: 3.06 | AT28: 3.02 | AU28: 3.03 | AV28: 3.041 | AW28: 3.006 | AX28: 3.009 | AY28: 3.13 | AZ28: 3.114 | BA28: 3.028 | BB28: 2.987 | BC28: 2.975 | BD28: 2.942 | BE28: 2.911 | BF28: 3.018 | BG28: 3.094 | BH28: 3.124 | BI28: 3.18 | BJ28: 3.217 | BK28: 3.324 | BL28: 3.359 | BM28: 3.352 | BN28: 3.421 | BO28: 3.582 | BP28: 3.414 | BQ28: 3.403 | BR28: 3.445 | BS28: 3.693 | BT28: 3.815 | BU28: 3.719 | BV28: 3.564 | BW28: 3.488
B29: Média do mês no Brasil | C29: 2.201592593 | D29: 2.298259259 | E29: 2.342888889 | F29: 2.375259259 | G29: 2.379185185 | H29: 2.380592593 | I29: 2.380333333 | J29: 2.380037037 | K29: 2.380851852 | L29: 2.381703704 | M29: 2.381555556 | N29: 2.505296296 | O29: 2.528333333 | P29: 2.538777778 | Q29: 2.546666667 | R29: 2.55062963 | S29: 2.55237037 | T29: 2.552666667 | U29: 2.552925926 | V29: 2.550814815 | W29: 2.549703704 | X29: 2.549740741 | Y29: 2.618703704 | Z29: 2.664222222 | AA29: 2.668259259 | AB29: 2.844259259 | AC29: 2.874962963 | AD29: 2.876740741 | AE29: 2.876111111 | AF29: 2.876 | AG29: 2.874333333 | AH29: 2.872777778 | AI29: 2.872074074 | AJ29: 2.995962963 | AK29: 3.034259259 | AL29: 3.058481481 | AM29: 3.086222222 | AN29: 3.110925926 | AO29: 3.121481481 | AP29: 3.125592593 | AQ29: 3.119185185 | AR29: 3.113925926 | AS29: 3.112777778 | AT29: 3.111888889 | AU29: 3.11262963 | AV29: 3.11337037 | AW29: 3.097555556 | AX29: 3.135962963 | AY29: 3.20162963 | AZ29: 3.207814815 | BA29: 3.159481481 | BB29: 3.121666667 | BC29: 3.116814815 | BD29: 3.077518519 | BE29: 3.050962963 | BF29: 3.180333333 | BG29: 3.252740741 | BH29: 3.294777778 | BI29: 3.361555556 | BJ29: 3.40037037 | BK29: 3.459333333 | BL29: 3.482296296 | BM29: 3.475814815 | BN29: 3.529666667 | BO29: 3.715444444 | BP29: 3.518444444 | BQ29: 3.471074074 | BR29: 3.461740741 | BS29: 3.690592593 | BT29: 3.800074074 | BU29: 3.76537037 | BV29: 3.64062963 | BW29: 3.576444444
B30: IPCA (mensal) (%) | C30: 0.86 | D30: 0.6 | E30: 0.47 | F30: 0.55 | G30: 0.37 | H30: 0.26 | I30: 0.03 | J30: 0.24 | K30: 0.35 | L30: 0.57 | M30: 0.54 | N30: 0.92 | O30: 0.55 | P30: 0.69 | Q30: 0.92 | R30: 0.67 | S30: 0.46 | T30: 0.4 | U30: 0.01 | V30: 0.25 | W30: 0.57 | X30: 0.42 | Y30: 0.51 | Z30: 0.78 | AA30: 1.24 | AB30: 1.22 | AC30: 1.32 | AD30: 0.71 | AE30: 0.74 | AF30: 0.79 | AG30: 0.62 | AH30: 0.22 | AI30: 0.54 | AJ30: 0.82 | AK30: 1.01 | AL30: 0.96 | AM30: 1.27 | AN30: 0.9 | AO30: 0.43 | AP30: 0.61 | AQ30: 0.78 | AR30: 0.35 | AS30: 0.52 | AT30: 0.44 | AU30: 0.08 | AV30: 0.26 | AW30: 0.18 | AX30: 0.3 | AY30: 0.38 | AZ30: 0.33 | BA30: 0.25 | BB30: 0.14 | BC30: 0.31 | BD30: -0.23 | BE30: 0.24 | BF30: 0.19 | BG30: 0.16 | BH30: 0.42 | BI30: 0.28 | BJ30: 0.44 | BK30: 0.29 | BL30: 0.32 | BM30: 0.09 | BN30: 0.22 | BO30: 0.4 | BP30: 1.26 | BQ30: 0.33 | BR30: -0.09 | BS30: 0.48 | BT30: 0.45 | BU30: -0.21 | BV30: 0.15 | BW30: 0.32
B31: 1+ IPCA (mensal) | C31: =1+C30/100 -> 1.0086 | D31: =1+D30/100 -> 1.006 | E31: 1.0047 | F31: 1.0055 | G31: 1.0037 | H31: 1.0026 | I31: 1.0003 | J31: 1.0024 | K31: 1.0035 | L31: 1.0057 | M31: 1.0054 | N31: 1.0092 | O31: 1.0055 | P31: 1.0069 | Q31: 1.0092 | R31: 1.0067 | S31: 1.0046 | T31: 1.004 | U31: 1.0001 | V31: 1.0025 | W31: 1.0057 | X31: 1.0042 | Y31: 1.0051 | Z31: 1.0078 | AA31: 1.0124 | AB31: 1.0122 | AC31: 1.0132 | AD31: 1.0071 | AE31: 1.0074 | AF31: 1.0079 | AG31: 1.0062 | AH31: 1.0022 | AI31: 1.0054 | AJ31: 1.0082 | AK31: 1.0101 | AL31: 1.0096 | AM31: 1.0127 | AN31: 1.009 | AO31: 1.0043 | AP31: 1.0061 | AQ31: 1.0078 | AR31: 1.0035 | AS31: 1.0052 | AT31: 1.0044 | AU31: 1.0008 | AV31: 1.0026 | AW31: 1.0018 | AX31: 1.003 | AY31: 1.0038 | AZ31: 1.0033 | BA31: 1.0025 | BB31: 1.0014 | BC31: 1.0031 | BD31: 0.9977 | BE31: 1.0024 | BF31: 1.0019 | BG31: 1.0016 | BH31: 1.0042 | BI31: 1.0028 | BJ31: 1.0044 | BK31: 1.0029 | BL31: 1.0032 | BM31: 1.0009 | BN31: 1.0022 | BO31: 1.004 | BP31: =1+BP30/100 -> 1.0126 | BQ31: 1.0033 | BR31: 0.9991 | BS31: 1.0048 | BT31: 1.0045 | BU31: 0.9979 | BV31: 1.0015 | BW31: 1.0032
B32: Multiplicador IPCA 2019 | C32: =C31*D32 -> 1.420407717 | D32: 1.408296368 | E32: 1.399896986 | F32: 1.39334825 | G32: 1.385726752 | H32: 1.380618464 | I32: 1.377038165 | J32: 1.376625177 | K32: 1.373329187 | L32: 1.3685393 | M32: 1.360782838 | N32: 1.353474078 | O32: 1.34113563 | P32: 1.333799731 | Q32: 1.32465958 | R32: 1.312583809 | S32: 1.303848027 | T32: 1.297877789 | U32: 1.292706962 | V32: 1.292577704 | W32: 1.289354318 | X32: 1.282046652 | Y32: 1.276684577 | Z32: 1.270206524 | AA32: 1.260375594 | AB32: 1.244938358 | AC32: 1.229933174 | AD32: 1.213909567 | AE32: 1.205351571 | AF32: 1.19649749 | AG32: 1.187119248 | AH32: 1.17980446 | AI32: 1.177214588 | AJ32: 1.170891772 | AK32: 1.16136855 | AL32: 1.149756015 | AM32: 1.138823311 | AN32: 1.124541632 | AO32: 1.114511033 | AP32: 1.109739154 | AQ32: 1.103010789 | AR32: 1.094473892 | AS32: 1.090656594 | AT32: 1.085014519 | AU32: 1.080261369 | AV32: 1.07939785 | AW32: 1.076598694 | AX32: 1.074664298 | AY32: 1.071449948 | AZ32: 1.067393851 | BA32: 1.063883037 | BB32: 1.061229963 | BC32: 1.059746318 | BD32: 1.056471257 | BE32: 1.058906742 | BF32: 1.056371451 | BG32: 1.054368151 | BH32: 1.052683857 | BI32: 1.048281077 | BJ32: 1.045354085 | BK32: 1.040774677 | BL32: 1.037765158 | BM32: 1.034454902 | BN32: 1.03352473 | BO32: =BO31*BP32 -> 1.031255967 | BP32: 1.027147377 | BQ32: 1.014366361 | BR32: 1.011029962 | BS32: 1.011940709 | BT32: 1.007106597 | BU32: =BU31*BV32 -> 1.00259492 | BV32: =BV31*BW31 -> 1.0047048 | BW32: =BW31 -> 1.0032
B33: Meses de 2013 a 2019 | C33: 2013-01-01 | D33: 2013-02-01 | E33: 2013-03-01 | F33: 2013-04-01 | G33: 2013-05-01 | H33: 2013-06-01 | I33: 2013-07-01 | J33: 2013-08-01 | K33: 2013-09-01 | L33: 2013-10-01 | M33: 2013-11-01 | N33: 2013-12-01 | O33: 2014-01-01 | P33: 2014-02-01 | Q33: 2014-03-01 | R33: 2014-04-01 | S33: 2014-05-01 | T33: 2014-06-01 | U33: 2014-07-01 | V33: 2014-08-01 | W33: 2014-09-01 | X33: 2014-10-01 | Y33: 2014-11-01 | Z33: 2014-12-01 | AA33: 2015-01-01 | AB33: 2015-02-01 | AC33: 2015-03-01 | AD33: 2015-04-01 | AE33: 2015-05-01 | AF33: 2015-06-01 | AG33: 2015-07-01 | AH33: 2015-08-01 | AI33: 2015-09-01 | AJ33: 2015-10-01 | AK33: 2015-11-01 | AL33: 2015-12-01 | AM33: 2016-01-01 | AN33: 2016-02-01 | AO33: 2016-03-01 | AP33: 2016-04-01 | AQ33: 2016-05-01 | AR33: 2016-06-01 | AS33: 2016-07-01 | AT33: 2016-08-01 | AU33: 2016-09-01 | AV33: 2016-10-01 | AW33: 2016-11-01 | AX33: 2016-12-01 | AY33: 2017-01-01 | AZ33: 2017-02-01 | BA33: 2017-03-01 | BB33: 2017-04-01 | BC33: 2017-05-01 | BD33: 2017-06-01 | BE33: 2017-07-01 | BF33: 2017-08-01 | BG33: 2017-09-01 | BH33: 2017-10-01 | BI33: 2017-11-01 | BJ33: 2017-12-01 | BK33: 2018-01-01 | BL33: 2018-02-01 | BM33: 2018-03-01 | BN33: 2018-04-01 | BO33: 2018-05-01 | BP33: 2018-06-01 | BQ33: 2018-07-01 | BR33: 2018-08-01 | BS33: 2018-09-01 | BT33: 2018-10-01 | BU33: 2018-11-01 | BV33: 2018-12-01 | BW33: 2019-01-01
A34: 1 | B34: Escolha o Estado | C34: =C62 -> 3.127159108 | D34: 3.236630168 | E34: 3.279803095 | F34: 3.309563331 | G34: 3.29690056 | H34: 3.286690089 | I34: 3.277809845 | J34: 3.276418908 | K34: 3.269693339 | L34: 3.259455119 | M34: 3.240779927 | N34: 3.390853594 | O34: 3.390837917 | P34: 3.386221118 | Q34: 3.373466397 | R34: 3.347915155 | S34: 3.327903072 | T34: 3.313049371 | U34: 3.300185117 | V34: 3.297126356 | W34: 3.28747148 | X34: 3.26888658 | Y34: 3.34325863 | Z34: 3.384112447 | AA34: 3.363008849 | AB34: 3.540927453 | AC34: 3.536012321 | AD34: 3.492103108 | AE34: 3.466725047 | AF34: 3.441126781 | AG34: 3.412176424 | AH34: 3.389316035 | AI34: 3.381047498 | AJ34: 3.507948384 | AK34: 3.523893277 | AL34: 3.516507479 | AM34: 3.514661809 | AN34: 3.498365718 | AO34: 3.47892555 | AP34: 3.468592481 | AQ34: 3.440494911 | AR34: 3.408110628 | AS34: 3.394971609 | AT34: 3.376444625 | AU34: 3.362453544 | AV34: 3.360565285 | AW34: 3.334824265 | AX34: 3.370107436 | AY34: 3.430385901 | AZ34: 3.42400181 | BA34: 3.361318755 | BB34: 3.3128062 | BC34: 3.303033023 | BD34: 3.251309857 | BE34: 3.230685252 | BF34: 3.359613337 | BG34: 3.429586242 | BH34: 3.46835938 | BI34: 3.523855077 | BJ34: 3.554591058 | BK34: 3.600386531 | BL34: 3.613805765 | BM34: 3.595573674 | BN34: 3.647997788 | BO34: =BO62 -> 3.831574252 | BP34: 3.613960983 | BQ34: 3.520940777 | BR34: 3.49992361 | BS34: 3.734660884 | BT34: 3.827079669 | BU34: 3.775141205 | BV34: 3.657758064 | BW34: =BW62 -> 3.587889067
A35: 2 | B35: ACRE | C35: =C$32*C2 -> 3.78254575 | D35: 3.836199307 | E35: 3.916911768 | F35: 3.936208805 | G35: 3.917449529 | H35: 3.905769635 | I35: 3.898395045 | J35: 3.897225877 | K35: 3.893388246 | L35: 3.874334757 | M35: 3.868705607 | N35: 4.075310447 | O35: 4.071687772 | P35: 4.090763776 | Q35: 4.06802957 | R35: 4.049321051 | S35: 4.019763468 | T35: 4.000059347 | U35: 3.988000977 | V35: 3.944947152 | W35: 3.896428749 | X35: 3.878191123 | Y35: 3.964105611 | Z35: 4.018933441 | AA35: 3.982786877 | AB35: 4.126970658 | AC35: 4.13503533 | AD35: 4.082377875 | AE35: 4.054802685 | AF35: 4.025017556 | AG35: 3.997030507 | AH35: 3.971221813 | AI35: =AI$32*AI2 -> 3.935428368 | AJ35: 4.116855472 | AK35: 4.14956983 | AL35: 4.12532458 | AM35: 4.084959216 | AN35: 4.029232668 | AO35: 4.004438141 | AP35: 3.986183042 | AQ35: 3.970838839 | AR35: 3.935728116 | AS35: 3.926363739 | AT35: 3.862651686 | AU35: 3.848971256 | AV35: 3.855609121 | AW35: 3.836997744 | AX35: 3.933271331 | AY35: 4.008294256 | AZ35: 4.039018334 | BA35: 3.976794794 | BB35: 3.936101931 | BC35: 3.935897824 | BD35: 3.901548351 | BE35: 3.904189159 | BF35: 4.041677171 | BG35: 4.097274636 | BH35: 4.14546903 | BI35: 4.242393517 | BJ35: 4.290133166 | BK35: 4.275502372 | BL35: 4.252761616 | BM35: 4.245402918 | BN35: 4.428653467 | BO35: =BO$32*BO2 -> 4.613839195 | BP35: 4.504041249 | BQ35: 4.395249442 | BR35: 4.381803856 | BS35: 4.592186936 | BT35: 4.666931971 | BU35: 4.670087137 | BV35: 4.612599737 | BW35: 4.5665664
A36: 3 | B36: ALAGOAS | C36: =C$32*C3 -> 3.008423545 | D36: 3.109518381 | E36: 3.172166571 | F36: 3.19216084 | G36: 3.177471443 | H36: 3.174041849 | I36: 3.161679627 | J36: 3.155224906 | K36: 3.150417156 | L36: 3.143534771 | M36: 3.129800526 | N36: 3.24969126 | O36: 3.260300716 | P36: 3.254471344 | Q36: 3.238792673 | R36: 3.204017078 | S36: 3.190516123 | T36: 3.175906951 | U36: 3.167132056 | V36: 3.16940053 | W36: 3.161496788 | X36: 3.138450204 | Y36: 3.21341508 | Z36: 3.263160559 | AA36: 3.23538415 | AB36: 3.393701965 | AC36: 3.403225091 | AD36: 3.361315592 | AE36: 3.349672016 | AF36: 3.338227996 | AG36: 3.315624059 | AH36: 3.289294835 | AI36: =AI$32*AI3 -> 3.298555275 | AJ36: 3.372168304 | AK36: 3.401648484 | AL36: 3.386031463 | AM36: 3.387999349 | AN36: 3.371375813 | AO36: 3.372510385 | AP36: 3.355851203 | AQ36: 3.325577527 | AR36: 3.30968905 | AS36: 3.282876348 | AT36: 3.273488803 | AU36: 3.248345935 | AV36: 3.261940304 | AW36: 3.261017443 | AX36: 3.248710173 | AY36: 3.31399469 | AZ36: 3.328134029 | BA36: 3.29590965 | BB36: 3.266465825 | BC36: 3.264018659 | BD36: 3.223293805 | BE36: 3.216958683 | BF36: 3.315949984 | BG36: 3.362380035 | BH36: 3.379115182 | BI36: 3.41739631 | BJ36: 3.458031314 | BK36: 3.542796999 | BL36: 3.55123237 | BM36: 3.544042494 | BN36: 3.600800158 | BO36: =BO$32*BO3 -> 3.801209493 | BP36: 3.693621968 | BQ36: 3.554339729 | BR36: 3.535571777 | BS36: 3.756323911 | BT36: 3.834054815 | BU36: 3.834925569 | BV36: 3.748553609 | BW36: 3.6998016
A37: 4 | B37: AMAPA | C37: =C$32*C4 -> 3.168929617 | D37: 3.227815276 | E37: 3.254760493 | F37: 3.288301869 | G37: 3.260615048 | H37: 3.227885969 | I37: 3.230531535 | J37: 3.22267954 | K37: 3.203976994 | L37: 3.232489826 | M37: 3.181510274 | N37: 3.341727497 | O37: 3.319310684 | P37: 3.351838725 | Q37: 3.359336695 | R37: 3.352339048 | S37: 3.358712518 | T37: 3.35241833 | U37: 3.345525617 | V37: 3.338728209 | W37: 3.345874455 | X37: 3.328193109 | Y37: 3.427898089 | Z37: 3.479095668 | AA37: 3.462251757 | AB37: 3.622770623 | AC37: 3.61969333 | AD37: 3.571321947 | AE37: 3.535296158 | AF37: 3.50334465 | AG37: 3.531679762 | AH37: 3.526435531 | AI37: =AI$32*AI4 -> 3.483377966 | AJ37: 3.714068702 | AK37: 3.714056624 | AL37: 3.665422174 | AM37: 3.640818124 | AN37: 3.874045922 | AO37: 3.926422368 | AP37: 3.959549303 | AQ37: 3.945469591 | AR37: 3.903988373 | AS37: 3.898006667 | AT37: 3.871331802 | AU37: 3.857613347 | AV37: 3.864244304 | AW37: 3.84884033 | AX37: 3.935420659 | AY37: 3.941864359 | AZ37: 3.901324527 | BA37: 3.862959309 | BB37: 3.800264496 | BC37: 3.752561711 | BD37: 3.684971744 | BE37: 3.593929483 | BF37: 3.687792735 | BG37: 3.658657485 | BH37: 3.800188724 | BI37: 3.887026232 | BJ37: 3.93053136 | BK37: 3.929965179 | BL37: 4.062850592 | BM37: 3.995064832 | BN37: 4.077255059 | BO37: =BO$32*BO4 -> 4.266305934 | BP37: 3.933974454 | BQ37: 3.795758923 | BR37: 3.752943219 | BS37: 3.947580705 | BT37: 4.027419282 | BU37: 3.961252529 | BV37: 3.880169938 | BW37: 4.0057776
A38: 5 | B38: AMAZONAS | C38: =C$32*C5 -> 3.156145947 | D38: 3.264430982 | E38: 3.303756888 | F38: 3.320348879 | G38: 3.299415397 | H38: 3.287252563 | I38: 3.281481947 | J38: 3.276367922 | K38: 3.265776807 | L38: 3.255754994 | M38: 3.235941588 | N38: 3.435117209 | O38: 3.426601534 | P38: 3.411859712 | Q38: 3.391128525 | R38: 3.370715222 | S38: 3.352193278 | T38: 3.342035308 | U38: 3.332598547 | V38: 3.352946564 | W38: 3.349742518 | X38: 3.328193109 | Y38: 3.421514666 | Z38: 3.466393603 | AA38: 3.439564996 | AB38: 3.591647164 | AC38: 3.585255201 | AD38: 3.611380963 | AE38: 3.587126276 | AF38: 3.564366022 | AG38: 3.528118404 | AH38: 3.498120224 | AI38: =AI$32*AI5 -> 3.478669107 | AJ38: 3.682454624 | AK38: 3.690829253 | AL38: 3.634378762 | AM38: 3.616902835 | AN38: 3.591785973 | AO38: 3.540801551 | AP38: 3.551165294 | AQ38: 3.514192372 | AR38: 3.478238029 | AS38: 3.483557162 | AT38: 3.416710719 | AU38: 3.402823311 | AV38: 3.414135401 | AW38: 3.363294319 | AX38: 3.427104446 | AY38: 3.472569282 | AZ38: 3.503186621 | BA38: 3.425703381 | BB38: 3.359854061 | BC38: 3.326543691 | BD38: 3.222237333 | BE38: 3.259314953 | BF38: 3.323344584 | BG38: 3.435131437 | BH38: 3.485436251 | BI38: 3.457230991 | BJ38: 3.468484855 | BK38: 3.550082422 | BL38: 3.540854718 | BM38: 3.53680131 | BN38: 3.649375821 | BO38: =BO$32*BO5 -> 3.785740653 | BP38: 3.544685598 | BQ38: 3.445802528 | BR38: 3.436490841 | BS38: 3.707750757 | BT38: 3.80585583 | BU38: 3.786801013 | BV38: 3.685257206 | BW38: 3.6386064
A39: 6 | B39: BAHIA | C39: =C$32*C6 -> 2.962970498 | D39: 3.116559863 | E39: 3.183365747 | F39: 3.203307626 | G39: 3.17885717 | H39: 3.165758138 | I39: 3.153417398 | J39: 3.144211905 | K39: 3.136683864 | L39: 3.117532525 | M39: 3.099863304 | N39: 3.284881586 | O39: 3.271029801 | P39: 3.250469945 | Q39: 3.229520056 | R39: 3.214517748 | S39: 3.187908427 | T39: 3.172013317 | U39: 3.159375814 | V39: 3.139671243 | W39: 3.134420347 | X39: 3.116655411 | Y39: 3.181497966 | Z39: 3.22632457 | AA39: 3.202614384 | AB39: 3.423580485 | AC39: 3.386006027 | AD39: 3.328540034 | AE39: 3.300252602 | AF39: 3.281992614 | AG39: 3.261016573 | AH39: 3.246821874 | AI39: =AI$32*AI6 -> 3.234985688 | AJ39: 3.360459387 | AK39: 3.424875855 | AL39: 3.423973411 | AM39: 3.398248759 | AN39: 3.365753105 | AO39: 3.332387988 | AP39: 3.310351897 | AQ39: 3.282560107 | AR39: 3.24511509 | AS39: 3.230524832 | AT39: 3.251788512 | AU39: 3.217018356 | AV39: 3.2133674 | AW39: 3.178119344 | AX39: 3.232590208 | AY39: 3.270065242 | AZ39: 3.260888216 | BA39: 3.202287943 | BB39: 3.141240689 | BC39: 3.161223266 | BD39: 3.126098449 | BE39: 3.13012833 | BF39: 3.275807869 | BG39: 3.30228105 | BH39: 3.328586356 | BI39: 3.356596007 | BJ39: 3.38276582 | BK39: 3.436637982 | BL39: 3.459909036 | BM39: 3.446803733 | BN39: 3.52018523 | BO39: =BO$32*BO6 -> 3.747584183 | BP39: 3.542631304 | BQ39: 3.433630132 | BR39: 3.421325392 | BS39: 3.691559705 | BT39: 3.7555005 | BU39: 3.657466268 | BV39: 3.509433866 | BW39: 3.4399728
A40: 7 | B40: CEARA | C40: =C$32*C7 -> 3.119215347 | D40: 3.243306536 | E40: 3.282758433 | F40: 3.309202093 | G40: 3.299415397 | H40: 3.296916892 | I40: 3.289744176 | J40: 3.288757549 | K40: 3.293243391 | L40: 3.273546005 | M40: 3.250910199 | N40: 3.34578792 | O40: 3.382344058 | P40: 3.393186516 | Q40: 3.383180568 | R40: 3.365464886 | S40: 3.332635558 | T40: 3.31737563 | U40: 3.309329822 | V40: 3.307706344 | W40: 3.302036408 | X40: 3.280757383 | Y40: 3.339806853 | Z40: 3.400342864 | AA40: 3.385368845 | AB40: 3.509481232 | AC40: 3.544667406 | AD40: 3.528835112 | AE40: 3.499135611 | AF40: 3.477021705 | AG40: 3.437897341 | AH40: 3.429691565 | AI40: =AI$32*AI7 -> 3.404504588 | AJ40: 3.543118503 | AK40: 3.528237656 | AL40: 3.618282178 | AM40: 3.595265192 | AN40: 3.52093985 | AO40: 3.499564643 | AP40: 3.576689294 | AQ40: 3.519707426 | AR40: 3.491371716 | AS40: 3.486829131 | AT40: 3.475301503 | AU40: 3.447114027 | AV40: 3.420611788 | AW40: 3.388056089 | AX40: 3.427104446 | AY40: 3.473640732 | AZ40: 3.446614746 | BA40: 3.391659123 | BB40: 3.315282403 | BC40: 3.326543691 | BD40: 3.289851494 | BE40: 3.26990402 | BF40: 3.426868987 | BG40: 3.458327536 | BH40: 3.493857722 | BI40: 3.52432098 | BJ40: 3.58242845 | BK40: 3.689546229 | BL40: 3.700670552 | BM40: 3.704383004 | BN40: 3.731024274 | BO40: =BO$32*BO7 -> 3.931147745 | BP40: 3.695676263 | BQ40: 3.59592875 | BR40: 3.566913706 | BS40: 3.753288089 | BT40: 3.894481211 | BU40: 3.854977467 | BV40: 3.824911174 | BW40: 3.7058208
A41: 8 | B41: DISTRITO FEDERAL | C41: =C$32*C8 -> 3.015525583 | D41: 3.261614389 | E41: 3.3443539 | F41: 3.369116067 | G41: 3.352073014 | H41: 3.339716065 | I41: 3.329678283 | J41: 3.328679679 | K41: 3.320709975 | L41: 3.307759487 | M41: 3.287651335 | N41: 3.403987305 | O41: 3.374297244 | P41: 3.386517518 | Q41: 3.369933972 | R41: 3.335275459 | S41: 3.311773989 | T41: 3.297907463 | U41: 3.28864651 | V41: 3.290902834 | W41: 3.29043222 | X41: 3.284603523 | Y41: 3.330870061 | Z41: 3.360966461 | AA41: 3.334953822 | AB41: 3.545584445 | AC41: 3.549587139 | AD41: 3.504556921 | AE41: 3.476233931 | AF41: 3.45069876 | AG41: 3.42365191 | AH41: 3.404915672 | AI41: =AI$32*AI8 -> 3.397441301 | AJ41: 3.657865897 | AK41: 3.62114714 | AL41: 3.592987545 | AM41: 3.679538117 | AN41: 3.673877512 | AO41: 3.637764011 | AP41: 3.588896425 | AQ41: 3.502059254 | AR41: 3.446498286 | AS41: 3.419208423 | AT41: 3.388500342 | AU41: 3.371495731 | AV41: 3.380674067 | AW41: 3.382673096 | AX41: 3.438925754 | AY41: 3.488641031 | AZ41: 3.498917045 | BA41: 3.468258702 | BB41: 3.419282939 | BC41: 3.436757308 | BD41: 3.405006861 | BE41: 3.373676881 | BF41: 3.462785616 | BG41: 3.606993446 | BH41: 3.652812984 | BI41: 3.694142514 | BJ41: 3.737140855 | BK41: 3.721810244 | BL41: 3.723501386 | BM41: 3.69093509 | BN41: 3.735158373 | BO41: =BO$32*BO8 -> 3.920835185 | BP41: 3.690540526 | BQ41: 3.587813819 | BR41: 3.554781347 | BS41: 3.809956768 | BT41: 3.861246693 | BU41: 3.832920379 | BV41: 3.751567723 | BW41: 3.676728
A42: 9 | B42: ESPIRITO SANTO | C42: =C$32*C9 -> 3.072341892 | D42: 3.194016163 | E42: 3.191765129 | F42: 3.259041556 | G42: 3.252300688 | H42: 3.237550298 | I42: 3.233285611 | J42: 3.226809416 | K42: 3.221830273 | L42: 3.199644883 | M42: 3.186953406 | N42: 3.31601149 | O42: 3.303217056 | P42: 3.298486735 | Q42: 3.27985712 | R42: 3.267021101 | S42: 3.240062348 | T42: 3.22911994 | U42: 3.213669507 | V42: 3.20300755 | W42: 3.196309354 | X42: 3.178193651 | Y42: 3.255545671 | Z42: 3.283483864 | AA42: 3.26689354 | AB42: 3.441009622 | AC42: 3.420444156 | AD42: 3.368599049 | AE42: 3.347261313 | AF42: 3.327459519 | AG42: 3.306127105 | AH42: 3.282216008 | AI42: =AI$32*AI9 -> 3.287960344 | AJ42: 3.408465949 | AK42: 3.39700301 | AL42: 3.387181219 | AM42: 3.378888763 | AN42: 3.343262272 | AO42: 3.316784833 | AP42: 3.302583723 | AQ42: 3.283663118 | AR42: 3.246209564 | AS42: 3.243612711 | AT42: 3.251788512 | AU42: 3.24402489 | AV42: 3.241431744 | AW42: 3.223336489 | AX42: 3.257307487 | AY42: 3.338638038 | AZ42: 3.3505493 | BA42: 3.30654848 | BB42: 3.264343365 | BC42: 3.246002971 | BD42: 3.211672621 | BE42: 3.227547751 | BF42: 3.351866614 | BG42: 3.429859596 | BH42: 3.479120148 | BI42: 3.469810364 | BJ42: 3.454895252 | BK42: 3.472024321 | BL42: 3.480664339 | BM42: 3.442665914 | BN42: 3.446804974 | BO42: =BO$32*BO9 -> 3.628989747 | BP42: 3.396776376 | BQ42: 3.326107298 | BR42: 3.300001796 | BS42: 3.546852184 | BT42: 3.617526897 | BU42: 3.607336522 | BV42: 3.477283313 | BW42: 3.4118832
A43: 10 | B43: GOIAS | C43: =C$32*C10 -> 3.062399038 | D43: 3.157400458 | E43: 3.179166056 | F43: 3.226994546 | G43: 3.216271792 | H43: 3.204415455 | I43: 3.191974466 | J43: 3.200653537 | K43: 3.199857006 | L43: 3.196907804 | M43: 3.173345577 | N43: 3.394512986 | O43: 3.372956109 | P43: 3.355840124 | Q43: 3.364635333 | R43: 3.348401297 | S43: 3.32481247 | T43: 3.308290485 | U43: 3.291231924 | V43: 3.287025101 | W43: 3.277538676 | X43: 3.253834403 | Y43: 3.315549846 | Z43: 3.345723983 | AA43: 3.333693446 | AB43: 3.543094568 | AC43: 3.51514901 | AD43: 3.459642267 | AE43: 3.431635923 | AF43: 3.406428353 | AG43: 3.379728498 | AH43: 3.355363884 | AI43: =AI$32*AI10 -> 3.347998288 | AJ43: 3.469352322 | AK43: 3.457394174 | AL43: 3.437770483 | AM43: 3.418747579 | AN43: 3.391617562 | AO43: 3.364708808 | AP43: 3.354741464 | AQ43: 3.326680538 | AR43: 3.294366415 | AS43: 3.281785692 | AT43: 3.27999889 | AU43: 3.263469595 | AV43: 3.259781508 | AW43: 3.241638667 | AX43: 3.248710173 | AY43: 3.348281088 | AZ43: 3.384705903 | BA43: 3.326762258 | BB43: 3.288751654 | BC43: 3.264018659 | BD43: 3.215898506 | BE43: 3.22437103 | BF43: 3.359261214 | BG43: 3.41088097 | BH43: 3.437012794 | BI43: 3.519079574 | BJ43: 3.566748139 | BK43: 3.590672634 | BL43: 3.586516385 | BM43: 3.571972777 | BN43: 3.624571227 | BO43: =BO$32*BO10 -> 3.861022339 | BP43: 3.685404789 | BQ43: 3.579698888 | BR43: 3.525461478 | BS43: 3.742156741 | BT43: 3.840097455 | BU43: 3.744692026 | BV43: 3.551631468 | BW43: 3.4740816
A44: 11 | B44: MARANHAO | C44: =C$32*C11 -> 2.987117429 | D44: 3.08276075 | E44: 3.09377234 | F44: 3.148967044 | G44: 3.148371181 | H44: 3.15471319 | I44: 3.134138863 | J44: 3.135952154 | K44: 3.117457255 | L44: 3.121638143 | M44: 3.10258487 | N44: 3.214500934 | O44: 3.214702104 | P44: 3.202453155 | Q44: 3.196403567 | R44: 3.186953488 | S44: 3.189212275 | T44: 3.177204829 | U44: 3.145156038 | V44: 3.125452888 | W44: 3.12023745 | X44: 3.117937458 | Y44: 3.221075187 | Z44: 3.260620146 | AA44: 3.251769032 | AB44: 3.450969129 | AC44: 3.430283621 | AD44: 3.363743411 | AE44: 3.332797094 | AF44: 3.295154087 | AG44: 3.281197601 | AH44: 3.260979528 | AI44: =AI$32*AI11 -> 3.238517331 | AJ44: 3.325332634 | AK44: 3.419069012 | AL44: 3.425123167 | AM44: 3.454051101 | AN44: 3.430976519 | AO44: 3.404831205 | AP44: 3.415777117 | AQ44: 3.373006991 | AR44: 3.341428793 | AS44: 3.324321299 | AT44: 3.30169918 | AU44: 3.285074822 | AV44: 3.279210669 | AW44: 3.252404654 | AX44: 3.276651445 | AY44: 3.333280789 | AZ44: 3.314257909 | BA44: 3.244843264 | BB44: 3.172016358 | BC44: 3.166521997 | BD44: 3.120816093 | BE44: 3.098361128 | BF44: 3.206087353 | BG44: 3.291737369 | BH44: 3.284373634 | BI44: 3.294747424 | BJ44: 3.328407407 | BK44: 3.402292418 | BL44: 3.444342558 | BM44: 3.42714909 | BN44: 3.440603825 | BO44: =BO$32*BO11 -> 3.63827105 | BP44: 3.529278388 | BQ44: 3.457974925 | BR44: 3.375829043 | BS44: 3.516493963 | BT44: 3.61651979 | BU44: 3.642427344 | BV44: 3.53957501 | BW44: 3.4740816
A45: 12 | B45: MATO GROSSO | C45: =C$32*C12 -> 3.424603006 | D45: 3.526374106 | E45: 3.573937006 | F45: 3.589265091 | G45: 3.571017841 | H45: 3.5592344 | I45: 3.559643656 | J45: 3.562705959 | K45: 3.547309291 | L45: 3.532199933 | M45: 3.506737372 | N45: 3.648966113 | O45: 3.681417304 | P45: 3.675952059 | Q45: 3.656060441 | R45: 3.625356481 | S45: 3.601228251 | T45: 3.582142699 | U45: 3.567871214 | V45: 3.559758996 | W45: 3.539277603 | X45: 3.5038335 | Y45: 3.56194997 | Z45: 3.599765288 | AA45: 3.600893072 | AB45: 3.790837301 | AC45: 3.779584643 | AD45: 3.719418914 | AE45: 3.690786511 | AF45: 3.655299831 | AG45: 3.625462182 | AH45: 3.610201648 | AI45: =AI$32*AI12 -> 3.605808283 | AJ45: 3.711726918 | AK45: 3.737283995 | AL45: 3.734407535 | AM45: 3.719396933 | AN45: 3.685122928 | AO45: 3.648909121 | AP45: 3.629956774 | AQ45: 3.607948289 | AR45: 3.592063314 | AS45: 3.581716255 | AT45: 3.591398057 | AU45: 3.581066437 | AV45: 3.584680261 | AW45: 3.557082084 | AX45: 3.572184126 | AY45: 3.618286475 | AZ45: 3.612060793 | BA45: 3.573583123 | BB45: 3.528589626 | BC45: 3.526835745 | BD45: 3.48001632 | BE45: 3.460507234 | BF45: 3.637086905 | BG45: 3.719810838 | BH45: 3.789661886 | BI45: 3.815743119 | BJ45: 3.843766971 | BK45: 3.832132359 | BL45: 3.828315667 | BM45: 3.820241953 | BN45: 3.865382489 | BO45: =BO$32*BO12 -> 4.02189827 | BP45: 3.832286864 | BQ45: 3.73794004 | BR45: 3.709468931 | BS45: 3.942521001 | BT45: 4.068710652 | BU45: 4.040457527 | BV45: 3.950499274 | BW45: 3.8853936
A46: 13 | B46: MATO GROSSO DO SUL | C46: =C$32*C13 -> 3.264096934 | D46: 3.382727877 | E46: 3.443746586 | F46: 3.47083049 | G46: 3.454616794 | H46: 3.434978739 | I46: 3.428825031 | J46: 3.426420066 | K46: 3.411349701 | L46: 3.403557238 | M46: 3.3856277 | N46: 3.577231987 | O46: 3.564738504 | P46: 3.547907285 | Q46: 3.527568462 | R46: 3.498035851 | S46: 3.469539601 | T46: 3.456248553 | U46: 3.436015104 | V46: 3.438256692 | W46: 3.420657006 | X46: 3.406397955 | Y46: 3.478965472 | Z46: 3.528633723 | AA46: 3.510146029 | AB46: 3.784612609 | AC46: 3.795573774 | AD46: 3.736413648 | AE46: 3.712482839 | AF46: 3.684015771 | AG46: 3.524557046 | AH46: 3.440309805 | AI46: =AI$32*AI13 -> 3.438643811 | AJ46: 3.530238694 | AK46: 3.551465027 | AL46: 3.518253404 | AM46: 3.641956948 | AN46: 3.639016721 | AO46: 3.624389878 | AP46: 3.618859382 | AQ46: 3.600227214 | AR46: 3.565795941 | AS46: 3.562084436 | AT46: 3.550167505 | AU46: 3.542177028 | AV46: 3.54474254 | AW46: 3.529090518 | AX46: 3.577557448 | AY46: 3.661144473 | AZ46: 3.653689154 | BA46: 3.626777275 | BB46: 3.571038824 | BC46: 3.549090418 | BD46: 3.483185734 | BE46: 3.436152379 | BF46: 3.621241333 | BG46: 3.689234162 | BH46: 3.740185745 | BI46: 3.849288114 | BJ46: 3.913805695 | BK46: 3.931005954 | BL46: 3.910299114 | BM46: 3.884378157 | BN46: 3.838510846 | BO46: =BO$32*BO13 -> 3.931147745 | BP46: 3.666916136 | BQ46: 3.536081134 | BR46: 3.500185729 | BS46: 3.747216444 | BT46: 3.771614206 | BU46: 3.685538926 | BV46: 3.536560896 | BW46: 3.4841136
A47: 14 | B47: MINAS GERAIS | C47: =C$32*C14 -> 3.085125561 | D47: 3.188382978 | E47: 3.243561317 | F47: 3.27158169 | G47: 3.264772229 | H47: 3.252737101 | I47: 3.244301916 | J47: 3.240575667 | K47: 3.230070248 | L47: 3.220172972 | M47: 3.200561234 | N47: 3.356615712 | O47: 3.362227024 | P47: 3.350504925 | Q47: 3.331518844 | R47: 3.303773447 | S47: 3.277873941 | T47: 3.265460518 | U47: 3.253743422 | V47: 3.252125503 | W47: 3.240147401 | X47: 3.221783237 | Y47: 3.281079363 | Z47: 3.315239027 | AA47: 3.290840676 | AB47: 3.479602712 | AC47: 3.472101349 | AD47: 3.426866709 | AE47: 3.402707485 | AF47: 3.372926424 | AG47: 3.340553563 | AH47: 3.322329359 | AI47: =AI$32*AI14 -> 3.309150207 | AJ47: 3.436567352 | AK47: 3.437650909 | AL47: 3.422823655 | AM47: 3.407359346 | AN47: 3.376998521 | AO47: 3.350220164 | AP47: 3.332546681 | AQ47: 3.306826344 | AR47: 3.282327203 | AS47: 3.270879126 | AT47: 3.259383614 | AU47: 3.241864367 | AV47: 3.24359054 | AW47: 3.22225989 | AX47: 3.247635508 | AY47: 3.31292324 | AZ47: 3.301449183 | BA47: 3.234204434 | BB47: 3.183689888 | BC47: 3.194075402 | BD47: 3.163074943 | BE47: 3.164013346 | BF47: 3.30538627 | BG47: 3.384521766 | BH47: 3.437012794 | BI47: 3.507548483 | BJ47: 3.533296808 | BK47: 3.595876508 | BL47: 3.601045097 | BM47: 3.580248416 | BN47: 3.626638277 | BO47: =BO$32*BO14 -> 3.82492838 | BP47: 3.583717199 | BQ47: 3.504635777 | BR47: 3.491086459 | BS47: 3.722929867 | BT47: 3.786720805 | BU47: 3.716619368 | BV47: 3.532542077 | BW47: 3.4620432
A48: 15 | B48: PARA | C48: =C$32*C15 -> 3.283982642 | D48: 3.420751878 | E48: 3.429747616 | F48: 3.444356873 | G48: 3.440759526 | H48: 3.444643068 | I48: 3.430202069 | J48: 3.433303192 | K48: 3.440189614 | L48: 3.428190946 | M48: 3.415564922 | N48: 3.546102083 | O48: 3.545962605 | P48: 3.553242484 | Q48: 3.551412334 | R48: 3.50459877 | S48: 3.491705017 | T48: 3.486099742 | U48: 3.459283829 | V48: 3.479619179 | W48: 3.456758927 | X48: 3.430756841 | Y48: 3.512159271 | Z48: 3.564199505 | AA48: 3.542915795 | AB48: 3.719875815 | AC48: 3.725467583 | AD48: 3.687857266 | AE48: 3.655831315 | AF48: 3.630173384 | AG48: 3.604094036 | AH48: 3.585425754 | AI48: =AI$32*AI15 -> 3.535175408 | AJ48: 3.634448061 | AK48: 3.649019985 | AL48: 3.668871442 | AM48: 3.692065173 | AN48: 3.663756637 | AO48: 3.644451077 | AP48: 3.627737296 | AQ48: 3.606845279 | AR48: 3.580024101 | AS48: 3.571900346 | AT48: 3.562102665 | AU48: 3.554059903 | AV48: 3.549060132 | AW48: 3.53555011 | AX48: 3.59045342 | AY48: 3.675073322 | AZ48: 3.644082609 | BA48: 3.553369345 | BB48: 3.484017967 | BC48: 3.474908176 | BD48: 3.405006861 | BE48: 3.370500161 | BF48: 3.543069846 | BG48: 3.596449764 | BH48: 3.637022727 | BI48: 3.715108136 | BJ48: 3.735050147 | BK48: 3.73221799 | BL48: 3.719350325 | BM48: 3.715762008 | BN48: 3.778566412 | BO48: =BO$32*BO15 -> 3.930116489 | BP48: 3.718273505 | BQ48: 3.655776365 | BR48: 3.641729923 | BS48: 3.884840381 | BT48: 4.000227404 | BU48: 3.967268098 | BV48: 3.883184052 | BW48: 3.822192
A49: 16 | B49: PARAIBA | C49: =C$32*C16 -> 2.94876642 | D49: 3.071494379 | E49: 3.100771825 | F49: 3.143393651 | G49: 3.152528362 | H49: 3.153332572 | I49: 3.13689294 | J49: 3.140082029 | K49: 3.133937205 | L49: 3.123006682 | M49: 3.109388784 | N49: 3.218561356 | O49: 3.218725511 | P49: 3.199785555 | Q49: 3.189780269 | R49: 3.160701812 | S49: 3.148792986 | T49: 3.14086425 | U49: 3.134814382 | V49: 3.130623199 | W49: 3.131841638 | X49: 3.106399038 | Y49: 3.194264811 | Z49: 3.227594777 | AA49: 3.20387476 | AB49: 3.357598752 | AC49: 3.362637297 | AD49: 3.337037401 | AE49: 3.319538227 | AF49: 3.301136574 | AG49: 3.272887766 | AH49: 3.246821874 | AI49: =AI$32*AI16 -> 3.254998336 | AJ49: 3.331187092 | AK49: 3.34822553 | AL49: 3.361886586 | AM49: 3.365222883 | AN49: 3.364628563 | AO49: 3.337960543 | AP49: 3.311461637 | AQ49: 3.317856452 | AR49: 3.282327203 | AS49: 3.246884681 | AT49: 3.250703498 | AU49: 3.251586719 | AV49: 3.226320175 | AW49: 3.205034311 | AX49: 3.194976958 | AY49: 3.219707094 | AZ49: 3.222462038 | BA49: 3.178882516 | BB49: 3.139118229 | BC49: 3.166521997 | BD49: 3.123985506 | BE49: 3.137540678 | BF49: 3.19658001 | BG49: 3.266432533 | BH49: 3.303321944 | BI49: 3.312568202 | BJ49: 3.332588824 | BK49: 3.410618615 | BL49: 3.428776081 | BM49: 3.425080181 | BN49: 3.444737924 | BO49: =BO$32*BO16 -> 3.626927235 | BP49: 3.457378071 | BQ49: 3.370739417 | BR49: 3.342465055 | BS49: 3.556971591 | BT49: 3.691045678 | BU49: 3.689549305 | BV49: 3.64406431 | BW49: 3.526248
A50: 17 | B50: PARANA | C50: =C$32*C17 -> 2.972913352 | D50: 3.063044601 | E50: 3.132969455 | F50: 3.158720482 | G50: 3.137285367 | H50: 3.124339584 | I50: 3.120368482 | J50: 3.113926151 | K50: 3.102350634 | L50: 3.097004435 | M50: 3.076729996 | N50: 3.269993371 | O50: 3.26834753 | P50: 3.254471344 | Q50: 3.229520056 | R50: 3.202704494 | S50: 3.174869946 | T50: 3.164226051 | U50: 3.147741451 | V50: 3.148719287 | W50: 3.139577764 | X50: 3.124347691 | Y50: 3.177667912 | Z50: 3.208541679 | AA50: 3.188750253 | AB50: 3.365068383 | AC50: 3.349108032 | AD50: 3.305475752 | AE50: 3.279761625 | AF50: 3.25088368 | AG50: 3.224215877 | AH50: 3.199629696 | AI50: =AI$32*AI17 -> 3.217327469 | AJ50: 3.313623716 | AK50: 3.298286683 | AL50: 3.277954397 | AM50: 3.258173492 | AN50: 3.228559026 | AO50: 3.206448241 | AP50: 3.180512416 | AQ50: 3.160125909 | AR50: 3.132384279 | AS50: 3.117096546 | AT50: 3.085781291 | AU50: 3.072263332 | AV50: 3.067648691 | AW50: 3.039238112 | AX50: 3.062793249 | AY50: 3.132919648 | AZ50: 3.114655259 | BA50: 3.034194423 | BB50: 2.995852184 | BC50: 2.96728969 | BD50: 2.902126542 | BE50: 2.870696178 | BF50: 3.014884121 | BG50: 3.1483433 | BH50: 3.202264294 | BI50: 3.245478213 | BJ50: 3.265686162 | BK50: 3.281562555 | BL50: 3.269998012 | BM50: 3.252326212 | BN50: 3.323815531 | BO50: =BO$32*BO17 -> 3.550614293 | BP50: 3.296115933 | BQ50: 3.221627562 | BR50: 3.20496498 | BS50: 3.465896927 | BT50: 3.544008115 | BU50: 3.459955069 | BV50: 3.291412925 | BW50: 3.2343168
A51: 18 | B51: PERNAMBUCO | C51: =C$32*C18 -> 2.981435798 | D51: 3.11374327 | E51: 3.145568528 | F51: 3.169867268 | G51: 3.156685542 | H51: 3.150571335 | I51: 3.141024054 | J51: 3.14283528 | K51: 3.135310535 | L51: 3.1271123 | M51: 3.101224087 | N51: 3.24292389 | O51: 3.249571631 | P51: 3.254471344 | Q51: 3.238792673 | R51: 3.205329662 | S51: 3.189212275 | T51: 3.179800584 | U51: 3.167132056 | V51: 3.166815374 | W51: 3.164075496 | X51: 3.138450204 | Y51: 3.203201603 | Z51: 3.273322211 | AA51: 3.249248281 | AB51: 3.40490641 | AC51: 3.413064557 | AD51: 3.360101682 | AE51: 3.32918104 | AF51: 3.304726067 | AG51: 3.291881674 | AH51: 3.269238159 | AI51: =AI$32*AI18 -> 3.303264134 | AJ51: 3.409636841 | AK51: 3.417907643 | AL51: 3.410176339 | AM51: 3.423302872 | AN51: 3.405112062 | AO51: 3.369166852 | AP51: 3.350302507 | AQ51: 3.341019679 | AR51: 3.297649837 | AS51: 3.287238975 | AT51: 3.259383614 | AU51: 3.245105151 | AV51: 3.242511142 | AW51: 3.205034311 | AX51: 3.208947594 | AY51: 3.242207543 | AZ51: 3.194709798 | BA51: 3.154413206 | BB51: 3.11152625 | BC51: 3.114594428 | BD51: 3.05954076 | BE51: 3.043297977 | BF51: 3.161719752 | BG51: 3.187354922 | BH51: 3.221212603 | BI51: 3.28111977 | BJ51: 3.309591034 | BK51: 3.405414742 | BL51: 3.455757975 | BM51: 3.424045726 | BN51: 3.533621051 | BO51: =BO$32*BO18 -> 3.71252148 | BP51: 3.544685598 | BQ51: 3.43971633 | BR51: 3.440534961 | BS51: 3.624771619 | BT51: 3.834054815 | BU51: 3.748702406 | BV51: 3.686261911 | BW51: 3.5904528
A52: 19 | B52: PIAUI | C52: =C$32*C19 -> 3.04251333 | D52: 3.132051123 | E52: 3.193165026 | F52: 3.222814501 | G52: 3.207957432 | H52: 3.194751126 | I52: 3.182335199 | J52: 3.186887285 | K52: 3.183377056 | L52: 3.170905557 | M52: 3.154294617 | N52: 3.302476749 | O52: 3.2898057 | P52: 3.27447834 | Q52: 3.257337907 | R52: 3.222393251 | S52: 3.202250755 | T52: 3.187587851 | U52: 3.183937246 | V52: 3.187496618 | W52: 3.183415811 | X52: 3.167937277 | Y52: 3.292569524 | Z52: 3.321590059 | AA52: 3.297142554 | AB52: 3.470888143 | AC52: 3.51883881 | AD52: 3.472995272 | AE52: 3.446100142 | AF52: 3.421982821 | AG52: 3.393973929 | AH52: 3.369521538 | AI52: =AI$32*AI19 -> 3.377428653 | AJ52: 3.493941049 | AK52: 3.578176503 | AL52: 3.583789497 | AM52: 3.607792248 | AN52: 3.589536889 | AO52: 3.570893349 | AP52: 3.494568597 | AQ52: 3.44139366 | AR52: 3.416947491 | AS52: 3.412664483 | AT52: 3.391755385 | AU52: 3.382298345 | AV52: 3.377435874 | AW52: 3.350375135 | AX52: 3.393789853 | AY52: 3.415782435 | AZ52: 3.404986386 | BA52: 3.308676247 | BB52: 3.254792295 | BC52: 3.216330074 | BD52: 3.168357299 | BE52: 3.16930788 | BF52: 3.289540698 | BG52: 3.383467398 | BH52: 3.379115182 | BI52: 3.463520677 | BJ52: 3.483119812 | BK52: 3.543837774 | BL52: 3.607271688 | BM52: 3.577145051 | BN52: 3.639040573 | BO52: =BO$32*BO19 -> 3.803272005 | BP52: 3.562147104 | BQ52: 3.501592678 | BR52: 3.488053369 | BS52: 3.768467199 | BT52: 3.864268013 | BU52: 3.802842531 | BV52: 3.693294845 | BW52: 3.5673792
A53: 20 | B53: RIO DE JANEIRO | C53: =C$32*C20 -> 3.012684768 | D53: 3.116559863 | E53: 3.162367292 | F53: 3.182407402 | G53: 3.17054281 | H53: 3.160235664 | I53: 3.150663321 | J53: 3.146965155 | K53: 3.138057193 | L53: 3.131217918 | M53: 3.113471132 | N53: 3.252398208 | O53: 3.25895958 | P53: 3.251803745 | Q53: 3.244091312 | R53: 3.223705835 | S53: 3.207466147 | T53: 3.188885729 | U53: 3.177473712 | V53: 3.175863418 | W53: 3.169232914 | X53: 3.144860438 | Y53: 3.22745861 | Z53: 3.270781798 | AA53: 3.249248281 | AB53: 3.413620979 | AC53: 3.403225091 | AD53: 3.358887773 | AE53: 3.340029204 | AF53: 3.321477032 | AG53: 3.299004389 | AH53: 3.279856399 | AI53: =AI$32*AI20 -> 3.283251486 | AJ53: 3.403782382 | AK53: 3.437650909 | AL53: 3.430871947 | AM53: 3.403942876 | AN53: 3.383745771 | AO53: 3.362479786 | AP53: 3.39913103 | AQ53: 3.389552153 | AR53: 3.370979588 | AS53: 3.354859683 | AT53: 3.342929732 | AU53: 3.325044493 | AV53: 3.31914839 | AW53: 3.308387786 | AX53: 3.325011338 | AY53: 3.386853286 | AZ53: 3.377234146 | BA53: 3.339528855 | BB53: 3.320588553 | BC53: 3.312766989 | BD53: 3.282456195 | BE53: 3.287905435 | BF53: 3.411023415 | BG53: 3.461490641 | BH53: 3.505437244 | BI53: 3.568348785 | BJ53: 3.611698364 | BK53: 3.672893834 | BL53: 3.674726423 | BM53: 3.653694714 | BN53: 3.717588453 | BO53: =BO$32*BO20 -> 3.870303643 | BP53: 3.620694504 | BQ53: 3.502607044 | BR53: 3.46985483 | BS53: 3.664237306 | BT53: 3.707159384 | BU53: 3.663481837 | BV53: 3.546607944 | BW53: 3.4971552
A54: 21 | B54: RIO GRANDE DO NORTE | C54: =C$32*C21 -> 3.007003137 | D54: 3.096843714 | E54: 3.15396791 | F54: 3.15175374 | G54: 3.126199553 | H54: 3.11881711 | I54: 3.117614405 | J54: 3.137328779 | K54: 3.151790485 | L54: 3.120269603 | M54: 3.121635829 | N54: 3.275407268 | O54: 3.284441157 | P54: 3.27447834 | Q54: 3.257337907 | R54: 3.252582679 | S54: 3.233543108 | T54: 3.221332673 | U54: 3.222718455 | V54: 3.226273949 | W54: 3.216939023 | X54: 3.199988444 | Y54: 3.284909416 | Z54: 3.322860266 | AA54: 3.285799174 | AB54: 3.421090609 | AC54: 3.398305359 | AD54: 3.355246044 | AE54: 3.335207797 | AF54: 3.313101549 | AG54: 3.284758958 | AH54: 3.257440114 | AI54: =AI$32*AI21 -> 3.279719842 | AJ54: 3.4154913 | AK54: 3.441135014 | AL54: 3.476862188 | AM54: 3.455189925 | AN54: 3.439972852 | AO54: 3.495106599 | AP54: 3.494568597 | AQ54: 3.436981617 | AR54: 3.373168536 | AS54: 3.360312966 | AT54: 3.330994572 | AU54: 3.314241879 | AV54: 3.307275013 | AW54: 3.285779213 | AX54: 3.364773917 | AY54: 3.399710685 | AZ54: 3.368694995 | BA54: 3.299101299 | BB54: 3.249486145 | BC54: 3.252361449 | BD54: 3.197938494 | BE54: 3.171425693 | BF54: 3.271582383 | BG54: 3.375032452 | BH54: 3.40332691 | BI54: 3.504403639 | BJ54: 3.529115392 | BK54: 3.603161931 | BL54: 3.631140287 | BM54: 3.607144243 | BN54: 3.669012791 | BO54: =BO$32*BO21 -> 3.829053404 | BP54: 3.520034061 | BQ54: 3.437687597 | BR54: 3.429413631 | BS54: 3.667273128 | BT54: 3.779671059 | BU54: 3.732660887 | BV54: 3.636026671 | BW54: 3.5422992
A55: 22 | B55: RIO GRANDE DO SUL | C55: =C$32*C22 -> 3.1106929 | D55: 3.208099127 | E55: 3.246361111 | F55: 3.274368386 | G55: 3.249529234 | H55: 3.243072772 | I55: 3.227777458 | J55: 3.211666539 | K55: 3.206723652 | L55: 3.195539265 | M55: 3.17470636 | N55: 3.349848342 | O55: 3.331380904 | P55: 3.321161331 | Q55: 3.301051674 | R55: 3.274896604 | S55: 3.254404676 | T55: 3.226524185 | U55: 3.207205972 | V55: 3.215933327 | W55: 3.219517732 | X55: 3.198706397 | Y55: 3.255545671 | Z55: 3.301266755 | AA55: 3.270674666 | AB55: 3.452214068 | AC55: 3.425363889 | AD55: 3.378310326 | AE55: 3.348466665 | AF55: 3.323870027 | AG55: 3.295443032 | AH55: 3.272777572 | AI55: =AI$32*AI22 -> 3.237340117 | AJ55: 3.379193655 | AK55: 3.39700301 | AL55: 3.372234391 | AM55: 3.348140534 | AN55: 3.318522356 | AO55: 3.307868745 | AP55: 3.29370581 | AQ55: 3.278148064 | AR55: 3.240737195 | AS55: 3.222890236 | AT55: 3.166072365 | AU55: 3.153282935 | AV55: 3.152921121 | AW55: 3.122136212 | AX55: 3.158438372 | AY55: 3.205778245 | AZ55: 3.217125068 | BA55: 3.138454961 | BB55: 3.094546571 | BC55: 3.129430876 | BD55: 3.064823116 | BE55: 3.047533604 | BF55: 3.186016296 | BG55: 3.248508274 | BH55: 3.283320951 | BI55: 3.348209759 | BJ55: 3.404718256 | BK55: 3.428311785 | BL55: 3.440191498 | BM55: 3.43128691 | BN55: 3.474710141 | BO55: =BO$32*BO22 -> 3.671271241 | BP55: 3.442998008 | BQ55: 3.363638853 | BR55: 3.337409905 | BS55: 3.587329812 | BT55: 3.680974612 | BU55: 3.623378041 | BV55: 3.43910453 | BW55: 3.3747648
A56: 23 | B56: RONDONIA | C56: =C$32*C23 -> 3.313811204 | D56: 3.392585951 | E56: 3.411548956 | F56: 3.468043793 | G56: 3.476788422 | H56: 3.472255437 | I56: 3.464628023 | J56: 3.449822694 | K56: 3.453922906 | L56: 3.43913926 | M56: 3.419647271 | N56: 3.59482715 | O56: 3.588878945 | P56: 3.603926874 | Q56: 3.644138505 | R56: 3.621418729 | S56: 3.601228251 | T56: 3.582142699 | U56: 3.569163921 | V56: 3.56880704 | W56: 3.563775335 | X56: 3.5422949 | Y56: 3.593867084 | Z56: 3.632790658 | AA56: 3.626100584 | AB56: 3.820715822 | AC56: 3.789424108 | AD56: 3.744911015 | AE56: 3.7209203 | AF56: 3.694784248 | AG56: 3.672946952 | AH56: 3.655034217 | AI56: =AI$32*AI23 -> 3.625820931 | AJ56: 3.750366347 | AK56: 3.758188629 | AL56: 3.776948508 | AM56: 3.767227512 | AN56: 3.731229135 | AO56: 3.692375051 | AP56: 3.668797644 | AQ56: 3.641038613 | AR56: 3.608480423 | AS56: 3.586078881 | AT56: 3.57295281 | AU56: 3.558380948 | AV56: 3.555536519 | AW56: 3.521554327 | AX56: 3.538869533 | AY56: 3.623643725 | AZ56: 3.606723824 | BA56: 3.516133439 | BB56: 3.457487218 | BC56: 3.42192086 | BD56: 3.346900942 | BE56: 3.303789036 | BF56: 3.454334644 | BG56: 3.534242043 | BH56: 3.562282173 | BI56: 3.623907682 | BJ56: 3.665011423 | BK56: 3.738462639 | BL56: 3.745294454 | BM56: 3.718865373 | BN56: 3.772365264 | BO56: =BO$32*BO23 -> 3.935272769 | BP56: 3.706974884 | BQ56: 3.638532137 | BR56: 3.623531384 | BS56: 3.839303049 | BT56: 3.949872074 | BU56: 3.927164301 | BV56: 3.811850011 | BW56: 3.716856
A57: 24 | B57: RORAIMA | C57: =C$32*C24 -> 3.492782576 | D57: 3.616505074 | E57: 3.660730619 | F57: 3.675652682 | G57: 3.654161446 | H57: 3.644832745 | I57: 3.632626679 | J57: 3.631537218 | K57: 3.618722408 | L57: 3.610206673 | M57: 3.589745125 | N57: 3.720700239 | O57: 3.724333644 | P57: 3.701294254 | Q57: 3.677254994 | R57: 3.648982989 | S57: 3.624697516 | T57: 3.606802377 | U57: 3.587261818 | V57: 3.588195706 | W57: 3.57409017 | X57: 3.555115366 | Y57: 3.633444306 | Z57: 3.648033136 | AA57: 3.626100584 | AB57: 3.788347424 | AC57: 3.805413239 | AD57: 3.754622292 | AE57: 3.72815241 | AF57: 3.705552726 | AG57: 3.672946952 | AH57: 3.651494804 | AI57: =AI$32*AI24 -> 3.624643716 | AJ57: 3.724606728 | AK57: 3.702442938 | AL57: 3.681518759 | AM57: 3.643095771 | AN57: 3.614276805 | AO57: 3.614359279 | AP57: 3.609981469 | AQ57: 3.586991084 | AR57: 3.559229097 | AS57: 3.544633931 | AT57: 3.536062316 | AU57: 3.510849448 | AV57: 3.514519401 | AW57: 3.492486162 | AX57: 3.565736141 | AY57: 3.621500825 | AZ57: 3.601386855 | BA57: 3.532091684 | BB57: 3.469160748 | BC57: 3.446295025 | BD57: 3.318376218 | BE57: 3.209546336 | BF57: 3.32017547 | BG57: 3.376086821 | BH57: 3.405432278 | BI57: 3.537948634 | BJ57: 3.553158536 | BK57: 3.63854827 | BL57: 3.620762635 | BM57: 3.597834149 | BN57: 3.65144287 | BO57: =BO$32*BO24 -> 3.858959827 | BP57: 3.635074568 | BQ57: 3.489420282 | BR57: 3.47794307 | BS57: 3.82715976 | BT57: 3.898509637 | BU57: 3.764743924 | BV57: 3.611913756 | BW57: 3.5122032
A58: 25 | B58: SANTA CATARINA | C58: =C$32*C25 -> 3.07944393 | D58: 3.167258532 | E58: 3.236561832 | F58: 3.257648207 | G58: 3.235671967 | H58: 3.214079784 | I58: 3.211253 | J58: 3.208913288 | K58: 3.208096981 | L58: 3.194170726 | M58: 3.180149491 | N58: 3.334960127 | O58: 3.343451125 | P58: 3.335833128 | Q58: 3.326220206 | R58: 3.294585361 | S58: 3.268747004 | T58: 3.248588107 | U58: 3.230474697 | V58: 3.230151682 | W58: 3.219517732 | X58: 3.198706397 | Y58: 3.24405551 | Z58: 3.28856469 | AA58: 3.268153915 | AB58: 3.438519746 | AC58: 3.411834624 | AD58: 3.363743411 | AE58: 3.342439907 | AF58: 3.319084037 | AG58: 3.294255912 | AH58: 3.272777572 | AI58: =AI$32*AI25 -> 3.282074271 | AJ58: 3.366313846 | AK58: 3.378421113 | AL58: 3.375683659 | AM58: 3.36408406 | AN58: 3.328643231 | AO58: 3.294494613 | AP58: 3.284827897 | AQ58: 3.238439675 | AR58: 3.201336135 | AS58: 3.191261194 | AT58: 3.192112714 | AU58: 3.186771037 | AV58: 3.192858841 | AW58: 3.150127778 | AX58: 3.189603636 | AY58: 3.257207842 | AZ58: 3.257686035 | BA58: 3.210799007 | BB58: 3.159281599 | BC58: 3.125191891 | BD58: 3.089121955 | BE58: 3.031650003 | BF58: 3.160663381 | BG58: 3.274867478 | BH58: 3.292795105 | BI58: 3.357644289 | BJ58: 3.381720466 | BK58: 3.375232276 | BL58: 3.38622771 | BM58: 3.385770894 | BN58: 3.398229311 | BO58: =BO$32*BO25 -> 3.576395692 | BP58: 3.354663334 | BQ58: 3.27234588 | BR58: 3.265626778 | BS58: 3.49827903 | BT58: 3.582278166 | BU58: 3.549186017 | BV58: 3.409968091 | BW58: 3.290496
A59: 26 | B59: SAO PAULO | C59: =C$32*C26 -> 2.985697021 | D59: 3.095435417 | E59: 3.156767704 | F59: 3.182407402 | G59: 3.163614176 | H59: 3.149190717 | I59: 3.13689294 | J59: 3.137328779 | K59: 3.12569723 | L59: 3.118901064 | M59: 3.101224087 | N59: 3.278114216 | O59: 3.261641851 | P59: 3.246468546 | Q59: 3.228195397 | R59: 3.205329662 | S59: 3.17878149 | T59: 3.15903454 | U59: 3.145156038 | V59: 3.14096382 | W59: 3.133130993 | X59: 3.115373365 | Y59: 3.192988127 | Z59: 3.221243744 | AA59: 3.200093633 | AB59: 3.358843691 | AC59: 3.3404985 | AD59: 3.294550566 | AE59: 3.268913461 | AF59: 3.244901192 | AG59: 3.224215877 | AH59: 3.207888327 | AI59: =AI$32*AI26 -> 3.216150254 | AJ59: 3.338212443 | AK59: 3.366807427 | AL59: 3.348089514 | AM59: 3.324225244 | AN59: 3.289284274 | AO59: 3.25883026 | AP59: 3.24154807 | AQ59: 3.21748247 | AR59: 3.193674817 | AS59: 3.179263972 | AT59: 3.150882162 | AU59: 3.135998753 | AV59: 3.134571357 | AW59: 3.110293626 | AX59: 3.134795757 | AY59: 3.203635345 | AZ59: 3.205383736 | BA59: 3.140582727 | BB59: 3.101975181 | BC59: 3.102937218 | BD59: 3.069049001 | BE59: 3.074006273 | BF59: 3.194467267 | BG59: 3.261160692 | BH59: 3.32963904 | BI59: 3.391189283 | BJ59: 3.398446131 | BK59: 3.41165939 | BL59: 3.399718657 | BM59: 3.385770894 | BN59: 3.440603825 | BO59: =BO$32*BO26 -> 3.647552354 | BP59: 3.400884966 | BQ59: 3.314949268 | BR59: 3.301012826 | BS59: 3.54078054 | BT59: 3.624576643 | BU59: 3.559211966 | BV59: 3.373798718 | BW59: 3.315576
A60: 27 | B60: SERGIPE | C60: =C$32*C27 -> 3.089386784 | D60: 3.194016163 | E60: 3.232362141 | F60: 3.281335128 | G60: 3.28140095 | H60: 3.277588234 | I60: 3.262203413 | J60: 3.258471795 | K60: 3.241056882 | L60: 3.227015669 | M60: 3.207365148 | N60: 3.269993371 | O60: 3.308581599 | P60: 3.311824733 | Q60: 3.290454397 | R60: 3.225018419 | S60: 3.215289235 | T60: 3.199268751 | U60: 3.196864316 | V60: 3.179741151 | W60: 3.157628725 | X60: 3.148706578 | Y60: 3.215968449 | Z60: 3.249188287 | AA60: 3.227821896 | AB60: 3.417355794 | AC60: 3.430283621 | AD60: 3.381952055 | AE60: 3.359314829 | AF60: 3.322673529 | AG60: 3.291881674 | AH60: 3.272777572 | AI60: =AI$32*AI27 -> 3.239694546 | AJ60: 3.373339196 | AK60: 3.391196167 | AL60: 3.380282683 | AM60: 3.418747579 | AN60: 3.384870312 | AO60: 3.349105653 | AP60: 3.326997985 | AQ60: 3.303517312 | AR60: 3.282327203 | AS60: 3.25997256 | AT60: 3.271318774 | AU60: 3.272111685 | AV60: 3.248987529 | AW60: 3.193191726 | AX60: 3.207872929 | AY60: 3.30113729 | AZ60: 3.314257909 | BA60: 3.191649112 | BB60: 3.191118497 | BC60: 3.14850631 | BD60: 3.121872564 | BE60: 3.069770646 | BF60: 3.302217155 | BG60: 3.376086821 | BH60: 3.379115182 | BI60: 3.425782559 | BJ60: 3.450713835 | BK60: 3.538633901 | BL60: 3.564723317 | BM60: 3.548180314 | BN60: 3.531554002 | BO60: =BO$32*BO27 -> 3.773365582 | BP60: 3.510789735 | BQ60: 3.453917459 | BR60: 3.440534961 | BS60: 3.696619409 | BT60: 3.785713698 | BU60: 3.676515571 | BV60: 3.550626763 | BW60: 3.4590336
A61: 28 | B61: TOCANTINS | C61: =C$32*C28 -> 3.002741914 | D61: 3.109518381 | E61: 3.10777131 | F61: 3.16011383 | G61: 3.17054281 | H61: 3.151951954 | I61: 3.149286283 | J61: 3.157978157 | K61: 3.150417156 | L61: 3.143534771 | M61: 3.125718178 | N61: 3.252398208 | O61: 3.273712072 | P61: 3.27447834 | Q61: 3.252039269 | R61: 3.230268754 | S61: 3.206162299 | T61: 3.184992095 | U61: 3.177473712 | V61: 3.173278263 | W61: 3.157628725 | X61: 3.151270671 | Y61: 3.246608879 | Z61: 3.292375309 | AA61: 3.268153915 | AB61: 3.472133081 | AC61: 3.462261884 | AD61: 3.428080618 | AE61: 3.407528892 | AF61: 3.374122921 | AG61: 3.353611875 | AH61: 3.3329476 | AI61: 3.350352717 | AJ61: 3.451788945 | AK61: 3.450425963 | AL61: 3.428572435 | AM61: 3.400526406 | AN61: 3.419731103 | AO61: 3.403716694 | AP61: 3.384704421 | AQ61: 3.375213013 | AR61: 3.346901162 | AS61: 3.337409178 | AT61: 3.276743846 | AU61: 3.273191947 | AV61: 3.282448863 | AW61: 3.236255673 | AX61: 3.233664873 | AY61: 3.353638338 | AZ61: 3.323864454 | BA61: 3.221437837 | BB61: 3.169893898 | BC61: 3.152745295 | BD61: 3.108138438 | BE61: 3.082477527 | BF61: 3.188129039 | BG61: 3.26221506 | BH61: 3.28858437 | BI61: 3.333533824 | BJ61: 3.362904092 | BK61: 3.459535025 | BL61: 3.485853165 | BM61: 3.467492832 | BN61: 3.5356881 | BO61: =BO$32*BO28 -> 3.693958872 | BP61: 3.506681145 | BQ61: 3.451888726 | BR61: 3.482998219 | BS61: 3.737097037 | BT61: 3.842111668 | BU61: 3.728650507 | BV61: 3.580767907 | BW61: 3.4991616
B62: Média do mês no Brasil | C62: =AVERAGE(C35:C61) -> 3.127159108 | D62: =AVERAGE(D35:D61) -> 3.236630168 | E62: 3.279803095 | F62: 3.309563331 | G62: 3.29690056 | H62: 3.286690089 | I62: 3.277809845 | J62: 3.276418908 | K62: 3.269693339 | L62: 3.259455119 | M62: 3.240779927 | N62: 3.390853594 | O62: 3.390837917 | P62: 3.386221118 | Q62: 3.373466397 | R62: 3.347915155 | S62: 3.327903072 | T62: 3.313049371 | U62: 3.300185117 | V62: 3.297126356 | W62: 3.28747148 | X62: 3.26888658 | Y62: 3.34325863 | Z62: 3.384112447 | AA62: 3.363008849 | AB62: 3.540927453 | AC62: 3.536012321 | AD62: 3.492103108 | AE62: 3.466725047 | AF62: 3.441126781 | AG62: 3.412176424 | AH62: 3.389316035 | AI62: 3.381047498 | AJ62: 3.507948384 | AK62: 3.523893277 | AL62: 3.516507479 | AM62: 3.514661809 | AN62: 3.498365718 | AO62: 3.47892555 | AP62: 3.468592481 | AQ62: 3.440494911 | AR62: 3.408110628 | AS62: 3.394971609 | AT62: 3.376444625 | AU62: 3.362453544 | AV62: 3.360565285 | AW62: 3.334824265 | AX62: 3.370107436 | AY62: 3.430385901 | AZ62: 3.42400181 | BA62: 3.361318755 | BB62: 3.3128062 | BC62: 3.303033023 | BD62: 3.251309857 | BE62: 3.230685252 | BF62: 3.359613337 | BG62: 3.429586242 | BH62: 3.46835938 | BI62: 3.523855077 | BJ62: 3.554591058 | BK62: 3.600386531 | BL62: 3.613805765 | BM62: 3.595573674 | BN62: 3.647997788 | BO62: 3.831574252 | BP62: =AVERAGE(BP35:BP61) -> 3.613960983 | BQ62: 3.520940777 | BR62: 3.49992361 | BS62: 3.734660884 | BT62: 3.827079669 | BU62: 3.775141205 | BV62: 3.657758064 | BW62: 3.587889067
C64: =C33 -> 2013-01-01 | O64: =O33 -> 2014-01-01 | AA64: =AA33 -> 2015-01-01 | AM64: =AM33 -> 2016-01-01 | AY64: =AY33 -> 2017-01-01 | BK64: =BK33 -> 2018-01-01 | BW64: =BW33 -> 2019-01-01
A65: =Formulário!AC12 -> 26 | B65: =VLOOKUP($A$65,$A$34:$BW$61,2,0) -> SAO PAULO | C65: =VLOOKUP($A$65,$A$34:$BW$61,3,0) -> 2.985697021 | D65: =VLOOKUP($A$65,$A$34:$BW$61,4,0) -> 3.095435417 | E65: =VLOOKUP($A$65,$A$34:$BW$61,5,0) -> 3.156767704 | F65: =VLOOKUP($A$65,$A$34:$BW$61,6,0) -> 3.182407402 | G65: =VLOOKUP($A$65,$A$34:$BW$61,7,0) -> 3.163614176 | H65: =VLOOKUP($A$65,$A$34:$BW$61,8,0) -> 3.149190717 | I65: =VLOOKUP($A$65,$A$34:$BW$61,9,0) -> 3.13689294 | J65: =VLOOKUP($A$65,$A$34:$BW$61,10,0) -> 3.137328779 | K65: =VLOOKUP($A$65,$A$34:$BW$61,11,0) -> 3.12569723 | L65: =VLOOKUP($A$65,$A$34:$BW$61,12,0) -> 3.118901064 | M65: =VLOOKUP($A$65,$A$34:$BW$61,13,0) -> 3.101224087 | N65: =VLOOKUP($A$65,$A$34:$BW$61,14,0) -> 3.278114216 | O65: =VLOOKUP($A$65,$A$34:$BW$61,15,0) -> 3.261641851 | P65: =VLOOKUP($A$65,$A$34:$BW$61,16,0) -> 3.246468546 | Q65: =VLOOKUP($A$65,$A$34:$BW$61,17,0) -> 3.228195397 | R65: =VLOOKUP($A$65,$A$34:$BW$61,18,0) -> 3.205329662 | S65: =VLOOKUP($A$65,$A$34:$BW$61,19,0) -> 3.17878149 | T65: =VLOOKUP($A$65,$A$34:$BW$61,20,0) -> 3.15903454 | U65: =VLOOKUP($A$65,$A$34:$BW$61,21,0) -> 3.145156038 | V65: =VLOOKUP($A$65,$A$34:$BW$61,22,0) -> 3.14096382 | W65: =VLOOKUP($A$65,$A$34:$BW$61,23,0) -> 3.133130993 | X65: =VLOOKUP($A$65,$A$34:$BW$61,24,0) -> 3.115373365 | Y65: =VLOOKUP($A$65,$A$34:$BW$61,25,0) -> 3.192988127 | Z65: =VLOOKUP($A$65,$A$34:$BW$61,26,0) -> 3.221243744 | AA65: =VLOOKUP($A$65,$A$34:$BW$61,27,0) -> 3.200093633 | AB65: =VLOOKUP($A$65,$A$34:$BW$61,28,0) -> 3.358843691 | AC65: =VLOOKUP($A$65,$A$34:$BW$61,29,0) -> 3.3404985 | AD65: =VLOOKUP($A$65,$A$34:$BW$61,30,0) -> 3.294550566 | AE65: =VLOOKUP($A$65,$A$34:$BW$61,31,0) -> 3.268913461 | AF65: =VLOOKUP($A$65,$A$34:$BW$61,32,0) -> 3.244901192 | AG65: =VLOOKUP($A$65,$A$34:$BW$61,33,0) -> 3.224215877 | AH65: =VLOOKUP($A$65,$A$34:$BW$61,34,0) -> 3.207888327 | AI65: =VLOOKUP($A$65,$A$34:$BW$61,35,0) -> 3.216150254 | AJ65: =VLOOKUP($A$65,$A$34:$BW$61,36,0) -> 3.338212443 | AK65: =VLOOKUP($A$65,$A$34:$BW$61,37,0) -> 3.366807427 | AL65: =VLOOKUP($A$65,$A$34:$BW$61,38,0) -> 3.348089514 | AM65: =VLOOKUP($A$65,$A$34:$BW$61,39,0) -> 3.324225244 | AN65: =VLOOKUP($A$65,$A$34:$BW$61,40,0) -> 3.289284274 | AO65: =VLOOKUP($A$65,$A$34:$BW$61,41,0) -> 3.25883026 | AP65: =VLOOKUP($A$65,$A$34:$BW$61,42,0) -> 3.24154807 | AQ65: =VLOOKUP($A$65,$A$34:$BW$61,43,0) -> 3.21748247 | AR65: =VLOOKUP($A$65,$A$34:$BW$61,44,0) -> 3.193674817 | AS65: =VLOOKUP($A$65,$A$34:$BW$61,45,0) -> 3.179263972 | AT65: =VLOOKUP($A$65,$A$34:$BW$61,46,0) -> 3.150882162 | AU65: =VLOOKUP($A$65,$A$34:$BW$61,47,0) -> 3.135998753 | AV65: =VLOOKUP($A$65,$A$34:$BW$61,48,0) -> 3.134571357 | AW65: =VLOOKUP($A$65,$A$34:$BW$61,49,0) -> 3.110293626 | AX65: =VLOOKUP($A$65,$A$34:$BW$61,50,0) -> 3.134795757 | AY65: =VLOOKUP($A$65,$A$34:$BW$61,51,0) -> 3.203635345 | AZ65: =VLOOKUP($A$65,$A$34:$BW$61,52,0) -> 3.205383736 | BA65: =VLOOKUP($A$65,$A$34:$BW$61,53,0) -> 3.140582727 | BB65: =VLOOKUP($A$65,$A$34:$BW$61,54,0) -> 3.101975181 | BC65: =VLOOKUP($A$65,$A$34:$BW$61,55,0) -> 3.102937218 | BD65: =VLOOKUP($A$65,$A$34:$BW$61,56,0) -> 3.069049001 | BE65: =VLOOKUP($A$65,$A$34:$BW$61,57,0) -> 3.074006273 | BF65: =VLOOKUP($A$65,$A$34:$BW$61,58,0) -> 3.194467267 | BG65: =VLOOKUP($A$65,$A$34:$BW$61,59,0) -> 3.261160692 | BH65: =VLOOKUP($A$65,$A$34:$BW$61,60,0) -> 3.32963904 | BI65: =VLOOKUP($A$65,$A$34:$BW$61,61,0) -> 3.391189283 | BJ65: =VLOOKUP($A$65,$A$34:$BW$61,62,0) -> 3.398446131 | BK65: =VLOOKUP($A$65,$A$34:$BW$61,63,0) -> 3.41165939 | BL65: =VLOOKUP($A$65,$A$34:$BW$61,64,0) -> 3.399718657 | BM65: =VLOOKUP($A$65,$A$34:$BW$61,65,0) -> 3.385770894 | BN65: =VLOOKUP($A$65,$A$34:$BW$61,66,0) -> 3.440603825 | BO65: =VLOOKUP($A$65,$A$34:$BW$61,67,0) -> 3.647552354 | BP65: =VLOOKUP($A$65,$A$34:$BW$61,68,0) -> 3.400884966 | BQ65: =VLOOKUP($A$65,$A$34:$BW$61,69,0) -> 3.314949268 | BR65: =VLOOKUP($A$65,$A$34:$BW$61,70,0) -> 3.301012826 | BS65: =VLOOKUP($A$65,$A$34:$BW$61,71,0) -> 3.54078054 | BT65: =VLOOKUP($A$65,$A$34:$BW$61,72,0) -> 3.624576643 | BU65: =VLOOKUP($A$65,$A$34:$BW$61,73,0) -> 3.559211966 | BV65: =VLOOKUP($A$65,$A$34:$BW$61,74,0) -> 3.373798718 | BW65: =VLOOKUP($A$65,$A$34:$BW$61,75,0) -> 3.315576

Sheet PreçoDiesel (hidden)
A1: Chave | B1: UF | C1: SIGLA | D1: Preço Médio Janeiro de 2019
A2: 1 | B2: Escolha o Estado | C2: UF | D2: =SeriePreçoDiesel!BW34 -> 3.587889067
A3: 2 | B3: ACRE | C3: AC | D3: =SeriePreçoDiesel!BW35 -> 4.5665664
A4: 3 | B4: ALAGOAS | C4: AL | D4: =SeriePreçoDiesel!BW36 -> 3.6998016
A5: 4 | B5: AMAPA | C5: AP | D5: =SeriePreçoDiesel!BW37 -> 4.0057776
A6: 5 | B6: AMAZONAS | C6: AM | D6: =SeriePreçoDiesel!BW38 -> 3.6386064 | E6: Voltar ao Formulário
A7: 6 | B7: BAHIA | C7: BA | D7: =SeriePreçoDiesel!BW39 -> 3.4399728
A8: 7 | B8: CEARA | C8: CE | D8: =SeriePreçoDiesel!BW40 -> 3.7058208
A9: 8 | B9: DISTRITO FEDERAL | C9: DF | D9: =SeriePreçoDiesel!BW41 -> 3.676728
A10: 9 | B10: ESPIRITO SANTO | C10: ES | D10: =SeriePreçoDiesel!BW42 -> 3.4118832
A11: 10 | B11: GOIAS | C11: GO | D11: =SeriePreçoDiesel!BW43 -> 3.4740816
A12: 11 | B12: MARANHAO | C12: MA | D12: =SeriePreçoDiesel!BW44 -> 3.4740816
A13: 12 | B13: MATO GROSSO | C13: MT | D13: =SeriePreçoDiesel!BW45 -> 3.8853936
A14: 13 | B14: MATO GROSSO DO SUL | C14: MS | D14: =SeriePreçoDiesel!BW46 -> 3.4841136
A15: 14 | B15: MINAS GERAIS | C15: MG | D15: =SeriePreçoDiesel!BW47 -> 3.4620432
A16: 15 | B16: PARA | C16: PA | D16: =SeriePreçoDiesel!BW48 -> 3.822192
A17: 16 | B17: PARAIBA | C17: PB | D17: =SeriePreçoDiesel!BW49 -> 3.526248
A18: 17 | B18: PARANA | C18: PR | D18: =SeriePreçoDiesel!BW50 -> 3.2343168
A19: 18 | B19: PERNAMBUCO | C19: PE | D19: =SeriePreçoDiesel!BW51 -> 3.5904528
A20: 19 | B20: PIAUI | C20: PI | D20: =SeriePreçoDiesel!BW52 -> 3.5673792
A21: 20 | B21: RIO DE JANEIRO | C21: RJ | D21: =SeriePreçoDiesel!BW53 -> 3.4971552
A22: 21 | B22: RIO GRANDE DO NORTE | C22: RN | D22: =SeriePreçoDiesel!BW54 -> 3.5422992
A23: 22 | B23: RIO GRANDE DO SUL | C23: RS | D23: =SeriePreçoDiesel!BW55 -> 3.3747648
A24: 23 | B24: RONDONIA | C24: RN | D24: =SeriePreçoDiesel!BW56 -> 3.716856
A25: 24 | B25: RORAIMA | C25: RR | D25: =SeriePreçoDiesel!BW57 -> 3.5122032
A26: 25 | B26: SANTA CATARINA | C26: SC | D26: =SeriePreçoDiesel!BW58 -> 3.290496
A27: 26 | B27: SAO PAULO | C27: SP | D27: =SeriePreçoDiesel!BW59 -> 3.315576
A28: 27 | B28: SERGIPE | C28: SE | D28: =SeriePreçoDiesel!BW60 -> 3.4590336
A29: 28 | B29: TOCANTINS | C29: TO | D29: =SeriePreçoDiesel!BW61 -> 3.4991616
A31: Fonte:
A32: Série histórica mensal a partir de 2013 obtida em 19/09/2018
A33: http://www.anp.gov.br/precos-e-defesa/234-precos/levantamento-de-precos/868-serie-historica-do-levantamento-de-precos-e-de-margens-de-comercializacao-de-combustiveis

Sheet PreçoACR (hidden)
A3: Chave | B3: Região | C3: Estado | D3: Município | E3: Distribuidora | F3: Tarifa A4 Verde | G3: Preço Médio Anual ANEEL
A4: 1 | B4: CO | G4: 421.01
A5: 2 | B5: N | G5: 415.68
A6: 3 | B6: NE | G6: 389.29
A7: 4 | B7: S | G7: 385.47
A8: 5 | B8: SE | G8: 800 | H8: 403.97
A10: Fonte:
A11: http://relatorios.aneel.gov.br/_layouts/xlviewer.aspx?id=/RelatoriosSAS/RelSAMPRegiao.xlsx&Source=http://relatorios.aneel.gov.br/RelatoriosSAS/Forms/AllItems.aspx&DefaultItemOpen=1
A14: Chave | B14: Dsitribuidora | C14: Estado | D14: Quantidade de Municípios

Sheet PreçoAlguelGD (hidden)
A1: Fonte: Greener
A2: Estudo Estratégico - Mercado Fotovoltaico de Geração Distribuída - 2º Semestre 2018
A4: % de desconto concedido sobre a tarifa de energia MT
A5: 0.143 | B5: 0 | C5: =B5*A5 -> 0
A6: 0.143 | B6: 0.01 | C6: 0.00143
A7: 0.143 | B7: 0.05 | C7: 0.00715
A8: 0.143 | B8: 0.1 | C8: 0.0143
A9: 0.143 | B9: 0.15 | C9: 0.02145
A10: 0.286 | B10: 0.2 | C10: 0.0572
C11: =SUM(C5:C10) -> 0.10153

Sheet DistânciaMédia (hidden)
A1: Dados operacionais (ônibus municipal) por modo, por faixa de população, 2016.
A2: Chave | B2: Faixa de população | C2: Passageiros transportados | D2: Quilometragem em serviço | E2: Frota | F2: Distância média anual | G2: Texto Explicativo
B3: habitantes | C3: milhões/ano | D3: milhões/ano | E3: unidade | F3: unidade
A4: 1 | B4: > 1 milhão | C4: 7038 | D4: 3599 | E4: 45284 | F4: =D4*1000000/E4 -> 79476.19468 | G4: Rio de Janeiro, Brasília, Belo Horizonte
A5: 2 | B5: de 500 mil a 1 milhão | C5: 1775 | D5: 808 | E5: 10125 | F5: 79802.46914 | G5: Sorocaba, Santo André, Ribeirão Preto
A6: 3 | B6: de 250 a 500 mil | C6: 1701 | D6: 869 | E6: 11655 | F6: 74560.27456 | G6: Piracicaba, Bauru, Blumenau
A7: 4 | B7: de 100 a 250 mil | C7: 1705 | D7: 907 | E7: 12475 | F7: 72705.41082 | G7: Porto Seguro, Maricá, Teresópolis
A8: 5 | B8: de 60 a 100 mil | C8: 944 | D8: 587 | E8: 7986 | F8: 73503.63135 | G8: São Pedro da Aldeia, Saquarema, Sorriso
B9: Total | C9: =SUM(C4:C8) -> 13163 | D9: =SUM(D4:D8) -> 6770 | E9: =SUM(E4:E8) -> 87525 | F9: 77349.32876
A11: Fonte:
A12: Associação Nacional de Transportes Públicos. ANTP, 2018
A13: Sistema de Informações da Mobilidade Urbana da Associação Nacional de Transportes Público - Simob/ANTP

Sheet CicloDeVida (hidden)
A1: Idade do Ônibus
A2: 1
A3: 2
A4: 3
A5: 4
A6: 5
A7: 6
A8: 7
A9: 8
A10: 9
A11: 10
A12: 11
A13: 12
A14: 13
A15: 14
A16: 15
A17: 16
A18: 17
A19: 18
A20: 19
A21: 20

Sheet Cidades&Frota_aux (hidden)
A1: Nome do Município | B1: UF | C1: Cód. UF | D1: Código Mun. | E1: População | G1: =COUNTA(G2:G5571)-COUNT(G2:G5571) -> 0 | I1: UF | J1: MUNICIPIO | K1: ONIBUS | L1: População
A2: Alta Floresta D'Oeste | B2: RO | C2: 11 | D2: 00015 | E2: 23167 | F2: 1 | G2: =VLOOKUP(A2,$J$2:$L$5572,2,FALSE) -> 94 | I2: AC | J2: ACRELANDIA | K2: 43 | L2: =VLOOKUP(J2,$A$2:$F$5571,5,FALSE) -> 15020 | M2: =VLOOKUP(J2,$A$2:$F$5571,6,FALSE) -> 53
A3: Ariquemes | B3: RO | C3: 11 | D3: 00023 | E3: 106168 | F3: 2 | G3: =VLOOKUP(A3,$J$2:$L$5572,2,FALSE) -> 221 | I3: AC | J3: ASSIS BRASIL | K3: 2 | L3: =VLOOKUP(J3,$A$2:$F$5571,5,FALSE) -> 7300 | M3: =VLOOKUP(J3,$A$2:$F$5571,6,FALSE) -> 54
A4: Cabixi | B4: RO | C4: 11 | D4: 00031 | E4: 5438 | F4: 3 | G4: 25 | I4: AC | J4: BRASILEIA | K4: 18 | L4: 25848 | M4: 55
A5: Cacoal | B5: RO | C5: 11 | D5: 00049 | E5: 84813 | F5: 4 | G5: 329 | I5: AC | J5: BUJARI | K5: 12 | L5: 10111 | M5: 56
A6: Cerejeiras | B6: RO | C6: 11 | D6: 00056 | E6: 16444 | F6: 5 | G6: 54 | I6: AC | J6: CAPIXABA | K6: 13 | L6: 11456 | M6: 57
A7: Colorado do Oeste | B7: RO | C7: 11 | D7: 00064 | E7: 16227 | F7: 6 | G7: 68 | I7: AC | J7: CRUZEIRO DO SUL | K7: 74 | L7: 87673 | M7: 58
A8: Corumbiara | B8: RO | C8: 11 | D8: 00072 | E8: 7567 | F8: 7 | G8: 24 | I8: AC | J8: EPITACIOLANDIA | K8: 14 | L8: 18122 | M8: 59
A9: Costa Marques | B9: RO | C9: 11 | D9: 00080 | E9: 17855 | F9: 8 | G9: 29 | I9: AC | J9: FEIJO | K9: 7 | L9: 34675 | M9: 60
A10: Espigao D'Oeste | B10: RO | C10: 11 | D10: 00098 | E10: 32047 | F10: 9 | G10: 143 | I10: AC | J10: JORDAO | K10: 0 | L10: 8159 | M10: 61
A11: Guajara-Mirim | B11: RO | C11: 11 | D11: 00106 | E11: 45783 | F11: 10 | G11: 30 | I11: AC | J11: MANCIO LIMA | K11: 13 | L11: 18638 | M11: 62
A12: Jaru | B12: RO | C12: 11 | D12: 00114 | E12: 51933 | F12: 11 | G12: 223 | I12: AC | J12: MANOEL URBANO | K12: 5 | L12: 9336 | M12: 63
A13: Ji-Parana | B13: RO | C13: 11 | D13: 00122 | E13: 127907 | F13: 12 | G13: 718 | I13: AC | J13: MARECHAL THAUMATURGO | K13: 9 | L13: 18430 | M13: 64
A14: Machadinho D'Oeste | B14: RO | C14: 11 | D14: 00130 | E14: 39097 | F14: 13 | G14: 79 | I14: AC | J14: PLACIDO DE CASTRO | K14: 21 | L14: 19565 | M14: 65
A15: Nova Brasilandia D'Oeste | B15: RO | C15: 11 | D15: 00148 | E15: 20459 | F15: 14 | G15: 100 | I15: AC | J15: PORTO ACRE | K15: 40 | L15: 18180 | M15: 74
A16: Ouro Preto do Oeste | B16: RO | C16: 11 | D16: 00155 | E16: 36340 | F16: 15 | G16: 131 | I16: AC | J16: PORTO WALTER | K16: 5 | L16: 11720 | M16: 66
A17: Pimenta Bueno | B17: RO | C17: 11 | D17: 00189 | E17: 36434 | F17: 16 | G17: 103 | I17: AC | J17: RIO BRANCO | K17: 781 | L17: 401155 | M17: 67
A18: Porto Velho | B18: RO | C18: 11 | D18: 00205 | E18: 519.531 (1) | F18: 17 | G18: 1863 | I18: AC | J18: RODRIGUES ALVES | K18: 7 | L18: 18504 | M18: 68
A19: Presidente Medici | B19: RO | C19: 11 | D19: 00254 | E19: 19409 | F19: 18 | G19: 3 | I19: AC | J19: SANTA ROSA DO PURUS | K19: 3 | L19: 6362 | M19: 69
A20: Rio Crespo | B20: RO | C20: 11 | D20: 00262 | E20: 3723 | F20: 19 | G20: 19 | I20: AC | J20: SENA MADUREIRA | K20: 9 | L20: 45177 | M20: 71
A21: Rolim de Moura | B21: RO | C21: 11 | D21: 00288 | E21: 54702 | F21: 20 | G21: 158 | I21: AC | J21: SENADOR GUIOMARD | K21: 33 | L21: 22810 | M21: 70
A22: Santa Luzia D'Oeste | B22: RO | C22: 11 | D22: 00296 | E22: 6781 | F22: 21 | G22: 52 | I22: AC | J22: TARAUACA | K22: 25 | L22: 41976 | M22: 72
A23: Vilhena | B23: RO | C23: 11 | D23: 00304 | E23: 97448 | F23: 22 | G23: 193 | I23: AC | J23: XAPURI | K23: 6 | L23: 19048 | M23: 73
A24: Sao Miguel do Guapore | B24: RO | C24: 11 | D24: 00320 | E24: 22931 | F24: 23 | G24: 75 | I24: AL | J24: AGUA BRANCA | K24: 15 | L24: 17349 | M24: 670
A25: Nova Mamore | B25: RO | C25: 11 | D25: 00338 | E25: 29757 | F25: 24 | G25: 34 | I25: AL | J25: ANADIA | K25: 37 | L25: 17564 | M25: 1652
A26: Alvorada D'Oeste | B26: RO | C26: 11 | D26: 00346 | E26: 14722 | F26: 25 | G26: 67 | I26: AL | J26: ARAPIRACA | K26: 427 | L26: 230417 | M26: 1653
A27: Alto Alegre dos Parecis | B27: RO | C27: 11 | D27: 00379 | E27: 13227 | F27: 26 | G27: 39 | I27: AL | J27: ATALAIA | K27: 138 | L27: 47000 | M27: 1654
A28: Alto Paraiso | B28: RO | C28: 11 | D28: 00403 | E28: 20999 | F28: 27 | G28: 14 | I28: AL | J28: BARRA DE SANTO ANTONIO | K28: 26 | L28: 15792 | M28: 1655
A29: Buritis | B29: RO | C29: 11 | D29: 00452 | E29: 38937 | F29: 28 | G29: 123 | I29: AL | J29: BARRA DE SAO MIGUEL | K29: 9 | L29: 5939 | M29: 1267
A30: Novo Horizonte do Oeste | B30: RO | C30: 11 | D30: 00502 | E30: 8751 | F30: 29 | G30: 18 | I30: AL | J30: BATALHA | K30: 15 | L30: 26806 | M30: 690
A31: Cacaulandia | B31: RO | C31: 11 | D31: 00601 | E31: 6190 | F31: 30 | G31: 29 | I31: AL | J31: BELEM | K31: 6 | L31: 1485732 | M31: 170
A32: Campo Novo de Rondonia | B32: RO | C32: 11 | D32: 00700 | E32: 14009 | F32: 31 | G32: 57 | I32: AL | J32: BELO MONTE | K32: 7 | L32: 6696 | M32: 1659
A33: Candeias do Jamari | B33: RO | C33: 11 | D33: 00809 | E33: 25983 | F33: 32 | G33: 34 | I33: AL | J33: BOCA DA MATA | K33: 94 | L33: 27168 | M33: 1660
A34: Castanheiras | B34: RO | C34: 11 | D34: 00908 | E34: 3119 | F34: 33 | G34: 18 | I34: AL | J34: BRANQUINHA | K34: 21 | L34: 10529 | M34: 1661
A35: Chupinguaia | B35: RO | C35: 11 | D35: 00924 | E35: 10886 | F35: 34 | G35: 85 | I35: AL | J35: CACIMBINHAS | K35: 12 | L35: 10730 | M35: 1662
A36: Cujubim | B36: RO | C36: 11 | D36: 00940 | E36: 24226 | F36: 35 | G36: 41 | I36: AL | J36: CAJUEIRO | K36: 54 | L36: 21194 | M36: 1663
A37: Governador Jorge Teixeira | B37: RO | C37: 11 | D37: 01005 | E37: 8095 | F37: 36 | G37: 31 | I37: AL | J37: CAMPESTRE | K37: 9 | L37: 6918 | M37: 1664
A38: Itapua do Oeste | B38: RO | C38: 11 | D38: 01104 | E38: 10272 | F38: 37 | G38: 66 | I38: AL | J38: CAMPO ALEGRE | K38: 141 | L38: 56579 | M38: 1665
A39: Ministro Andreazza | B39: RO | C39: 11 | D39: 01203 | E39: 9762 | F39: 38 | G39: 19 | I39: AL | J39: CAMPO GRANDE | K39: 20 | L39: 9549 | M39: 1666
A40: Mirante da Serra | B40: RO | C40: 11 | D40: 01302 | E40: 11080 | F40: 39 | G40: 32 | I40: AL | J40: CANAPI | K40: 23 | L40: 17726 | M40: 1667
A41: Monte Negro | B41: RO | C41: 11 | D41: 01401 | E41: 15695 | F41: 40 | G41: 95 | I41: AL | J41: CAPELA | K41: 60 | L41: 17124 | M41: 1668
A42: Nova Uniao | B42: RO | C42: 11 | D42: 01435 | E42: 7047 | F42: 41 | G42: 28 | I42: AL | J42: CARNEIROS | K42: 5 | L42: 9000 | M42: 1669
A43: Parecis | B43: RO | C43: 11 | D43: 01450 | E43: 5947 | F43: 42 | G43: 30 | I43: AL | J43: CHA PRETA | K43: 6 | L43: 7319 | M43: 1670
A44: Pimenteiras do Oeste | B44: RO | C44: 11 | D44: 01468 | E44: 2191 | F44: 43 | G44: 22 | I44: AL | J44: COITE DO NOIA | K44: 25 | L44: 10744 | M44: 1671
A45: Primavera de Rondonia | B45: RO | C45: 11 | D45: 01476 | E45: 2939 | F45: 44 | G45: 15 | I45: AL | J45: COLONIA LEOPOLDINA | K45: 37 | L45: 21575 | M45: 1672
A46: Sao Felipe D'Oeste | B46: RO | C46: 11 | D46: 01484 | E46: 5280 | F46: 45 | G46: 29 | I46: AL | J46: COQUEIRO SECO | K46: 7 | L46: 5826 | M46: 1673
A47: Sao Francisco do Guapore | B47: RO | C47: 11 | D47: 01492 | E47: 19842 | F47: 46 | G47: 80 | I47: AL | J47: CORURIPE | K47: 223 | L47: 56562 | M47: 1674
A48: Seringueiras | B48: RO | C48: 11 | D48: 01500 | E48: 11860 | F48: 47 | G48: 52 | I48: AL | J48: CRAIBAS | K48: 32 | L48: 24129 | M48: 1675
A49: Teixeiropolis | B49: RO | C49: 11 | D49: 01559 | E49: 4384 | F49: 48 | G49: 15 | I49: AL | J49: DELMIRO GOUVEIA | K49: 103 | L49: 51763 | M49: 1676
A50: Theobroma | B50: RO | C50: 11 | D50: 01609 | E50: 10494 | F50: 49 | G50: 24 | I50: AL | J50: DOIS RIACHOS | K50: 13 | L50: 11054 | M50: 1677
A51: Urupa | B51: RO | C51: 11 | D51: 01708 | E51: 11665 | F51: 50 | G51: 112 | I51: AL | J51: ESTRELA DE ALAGOAS | K51: 27 | L51: 18153 | M51: 1678
A52: Vale do Anari | B52: RO | C52: 11 | D52: 01757 | E52: 11028 | F52: 51 | G52: 34 | I52: AL | J52: FEIRA GRANDE | K52: 45 | L52: 22152 | M52: 1679
A53: Vale do Paraiso | B53: RO | C53: 11 | D53: 01807 | E53: 6998 | F53: 52 | G53: 24 | I53: AL | J53: FELIZ DESERTO | K53: 13 | L53: 4729 | M53: 1680
A54: Acrelandia | B54: AC | C54: 12 | D54: 00013 | E54: 15020 | F54: 53 | G54: 43 | I54: AL | J54: FLEXEIRAS | K54: 44 | L54: 12773 | M54: 1681
A55: Assis Brasil | B55: AC | C55: 12 | D55: 00054 | E55: 7300 | F55: 54 | G55: 2 | I55: AL | J55: GIRAU DO PONCIANO | K55: 87 | L55: 40588 | M55: 1682
A56: Brasileia | B56: AC | C56: 12 | D56: 00104 | E56: 25848 | F56: 55 | G56: 18 | I56: AL | J56: IBATEGUARA | K56: 18 | L56: 15606 | M56: 1683
A57: Bujari | B57: AC | C57: 12 | D57: 00138 | E57: 10111 | F57: 56 | G57: 12 | I57: AL | J57: IGACI | K57: 39 | L57: 25649 | M57: 1684
A58: Capixaba | B58: AC | C58: 12 | D58: 00179 | E58: 11456 | F58: 57 | G58: 13 | I58: AL | J58: IGREJA NOVA | K58: 106 | L58: 24408 | M58: 1685
A59: Cruzeiro do Sul | B59: AC | C59: 12 | D59: 00203 | E59: 87673 | F59: 58 | G59: 74 | I59: AL | J59: INHAPI | K59: 9 | L59: 18378 | M59: 1686
A60: Epitaciolandia | B60: AC | C60: 12 | D60: 00252 | E60: 18122 | F60: 59 | G60: 14 | I60: AL | J60: JACARE DOS HOMENS | K60: 11 | L60: 5288 | M60: 1687
A61: Feijo | B61: AC | C61: 12 | D61: 00302 | E61: 34675 | F61: 60 | G61: 7 | I61: AL | J61: JACUIPE | K61: 18 | L61: 7036 | M61: 1688
A62: Jordao | B62: AC | C62: 12 | D62: 00328 | E62: 8159 | F62: 61 | G62: 0 | I62: AL | J62: JAPARATINGA | K62: 13 | L62: 8317 | M62: 1689
A63: Mancio Lima | B63: AC | C63: 12 | D63: 00336 | E63: 18638 | F63: 62 | G63: 13 | I63: AL | J63: JARAMATAIA | K63: 8 | L63: 5597 | M63: 1690
A64: Manoel Urbano | B64: AC | C64: 12 | D64: 00344 | E64: 9336 | F64: 63 | G64: 5 | I64: AL | J64: JEQUIA DA PRAIA | K64: 40 | L64: 11624 | M64: 1691
A65: Marechal Thaumaturgo | B65: AC | C65: 12 | D65: 00351 | E65: 18430 | F65: 64 | G65: 9 | I65: AL | J65: JOAQUIM GOMES | K65: 85 | L65: 23903 | M65: 1692
A66: Placido de Castro | B66: AC | C66: 12 | D66: 00385 | E66: 19565 | F66: 65 | G66: 21 | I66: AL | J66: JUNDIA | K66: 13 | L66: 3873 | M66: 1143
A67: Porto Walter | B67: AC | C67: 12 | D67: 00393 | E67: 11720 | F67: 66 | G67: =VLOOKUP(A67,$J$2:$L$5572,2,FALSE) -> 5 | I67: AL | J67: JUNQUEIRO | K67: 112 | L67: =VLOOKUP(J67,$A$2:$F$5571,5,FALSE) -> 24731 | M67: =VLOOKUP(J67,$A$2:$F$5571,6,FALSE) -> 1694
A68: Rio Branco | B68: AC | C68: 12 | D68: 00401 | E68: 401155 | F68: 67 | G68: 781 | I68: AL | J68: LAGOA DA CANOA | K68: 40 | L68: 17934 | M68: 1695
A69: Rodrigues Alves | B69: AC | C69: 12 | D69: 00427 | E69: 18504 | F69: 68 | G69: 7 | I69: AL | J69: LIMOEIRO DE ANADIA | K69: 50 | L69: 28495 | M69: 1696
A70: Santa Rosa do Purus | B70: AC | C70: 12 | D70: 00435 | E70: 6362 | F70: 69 | G70: 3 | I70: AL | J70: MACEIO | K70: 2150 | L70: 1012382 | M70: 1697
A71: Senador Guiomard | B71: AC | C71: 12 | D71: 00450 | E71: 22810 | F71: 70 | G71: 33 | I71: AL | J71: MAJOR ISIDORO | K71: 27 | L71: 19891 | M71: 1698
A72: Sena Madureira | B72: AC | C72: 12 | D72: 00500 | E72: 45177 | F72: 71 | G72: 9 | I72: AL | J72: MAR VERMELHO | K72: 9 | L72: 3534 | M72: 1703
A73: Tarauaca | B73: AC | C73: 12 | D73: 00609 | E73: 41976 | F73: 72 | G73: 25 | I73: AL | J73: MARAGOGI | K73: 48 | L73: 32369 | M73: 1699
A74: Xapuri | B74: AC | C74: 12 | D74: 00708 | E74: 19048 | F74: 73 | G74: 6 | I74: AL | J74: MARAVILHA | K74: 10 | L74: 9326 | M74: 1700
A75: Porto Acre | B75: AC | C75: 12 | D75: 00807 | E75: 18180 | F75: 74 | G75: 40 | I75: AL | J75: MARECHAL DEODORO | K75: 168 | L75: 51364 | M75: 1701
A76: Alvaraes | B76: AM | C76: 13 | D76: 00029 | E76: 15860 | F76: 75 | G76: 3 | I76: AL | J76: MARIBONDO | K76: 14 | L76: 13337 | M76: 1702
A77: Amatura | B77: AM | C77: 13 | D77: 00060 | E77: 11332 | F77: 76 | G77: 1 | I77: AL | J77: MATA GRANDE | K77: 16 | L77: 25226 | M77: 1704
A78: Anama | B78: AM | C78: 13 | D78: 00086 | E78: 13269 | F78: 77 | G78: 6 | I78: AL | J78: MATRIZ DE CAMARAGIBE | K78: 134 | L78: 24649 | M78: 1705
